Workbook

Sheet NameConvs
A1: Full Name | B1: Short Name
A2: Fuels/Energy carriers | C2: MSG name | H2: eps | I2: 1e-08
A3: Biomass | B3: BIO | C3: =A3 -> Biomass
A4: Coal | B4: COA | C4: =A4 -> Coal | H4: Dry year | I4: 1 | J4: 0 | K4: Normal year
A5: HFO | B5: OHF | C5: =A5 -> HFO | J5: 1 | K5: Dry year
A6: Diesel | B6: ODS | C6: Diesel
A7: Nat gas | B7: GAS | C7: Gas
A8: Nuclear | B8: NUC | C8: =A8 -> Nuclear
A9: Electricity | B9: ELC | C9: Electricity
A10: Geothermal | B10: GEO | C10: Geothermal
A11: Hydro | B11: HYD | C11: Hydro
A12: Pump Storage Turbine | B12: PST | C12: Pump Storage Turbine
A13: Pump Storage Pump | B13: PSP | C13: Pump Storage Pump
A14: Solar | B14: SOL | C14: Solar
A15: Wind | B15: WND | C15: Wind
A17: Processes/Technologies prefix
A18: Power plant | B18: EP
A19: Interruptible contracts for electricity | B19: EI
A20: Heat/power plant | B20: EH
A21: Heat plant | B21: HP
A22: Import | B22: IM
A23: Export | B23: EX
A24: Transmission (local) | B24: ET
A25: Distribution | B25: ED
A26: Transmission Link | B26: EL
A28: Tech Qualifier
A29: Open gas cycle | B29: OC
A30: Combined gas Cycle | B30: CC
A31: Pulverised Coal | B31: PF
A32: Supercritical coal | B32: SC
A33: Integrated Gasification combined cycle | B33: IG
A34: Fluidized Bed | B34: FB
A35: Conventional Nuclear/pressurized water reactor | B35: PW
A36: PBMR | B36: PB
A37: Photovoltaics | B37: PV
A38: Concentrated Solar Tower | B38: TW
A39: Concentrated Solar trough | B39: TR
A42: Aditional Tech Qualifier
A43: Large | B43: L
A44: Small | B44: S
A45: Off-grid | B45: O
A47: Processes/Technologies sufix
A48: Existing | B48: EX
A49: New Committed | B49: NC
A50: New uncommitted | B50: NU
A52: Countries
A53: Angola | B53: ANG | C53: 01 | D53: =A67 -> ENE
A54: Botswana | B54: BOT | C54: 02 | D54: =A68 -> BPC
A55: Democratic Republic of Congo | B55: DRC | C55: 03 | D55: SNEL
A56: Lesotho | B56: LES | C56: 04 | D56: LEC
A57: Malawi | B57: MAL | C57: 05 | D57: ESCOM
A58: Mozambique | B58: MOZ | C58: 06 | D58: EdM
A59: Namibia | B59: NAM | C59: 07 | D59: NamPower
A60: South Africa | B60: SAF | C60: 08 | D60: Eskom
A61: Swaziland | B61: SWA | C61: 09 | D61: =A76 -> SEB
A62: Tanzania | B62: TAN | C62: 10 | D62: =A77 -> TANESCO
A63: Zambia | B63: ZAM | C63: 11 | D63: =A79 -> ZESCO
A64: Zimbabwe | B64: ZIM | C64: 12 | D64: =A80 -> ZESA
A66: Utilities | B66: Country
A67: ENE | B67: ANG | G67: ENE: Angola
A68: BPC | B68: BOT | G68: BPC: Botswana Power Corporation
A69: SNEL | B69: DRC | G69: SNEL: DRC
A70: LEC | B70: LES | G70: LEC: Lesotho Electricity Corporation
A71: ESCOM | B71: MAL | G71: ESCOM: Malawi: Electricity Supply Corporation
A72: EdM | B72: MOZ | G72: EdM: Electricidade de Mozambique
A73: NamPower | B73: NAM | G73: NamPower: Namibia
A74: Eskom | B74: SAF | G74: Eskom South Africa
A75: KPLC | B75: KEN | G75: KPLC: Kenya Power and Lighting Company
A76: SEB | B76: SWA | G76: SEB: Swaziland Electricity Board
A77: TANESCO | B77: TAN | G77: TANESCO: Tanzania Electricity Supply Company
A78: UEDC | B78: UGD | G78: UEDC: Uganda Electricity Distribution Company
A79: ZESCO | B79: ZAM | G79: ZESCO: Zambia Electricity Supply Company
A80: ZESA | B80: ZIM | G80: ZESA: Zimbabwe Electricity Supply Authority
A82: Biomass/Primary | B82: b-p
A83: Coal/Primary | B83: c-p
A84: CoalCCS/Primary | B84: C-p
A85: Gas/Primary | B85: g-p
A86: Nuclear/Primary | B86: n-p
A87: Oil/Primary | B87: o-p
A88: Electricity/Tertiary | B88: e-t
A89: Electricity/Final | B89: e-f
A90: Diesel/Primary | B90: o-p
A91: HFO/Primary | B91: h-p
A93: Electricity/Tertiary | B93: e-t
A94: Electricity/Final | B94: e-f
A96: ="Electricity/Secondary/"&B53 -> Electricity/Secondary/ANG | B96: e-A
A97: ="Electricity/Secondary/"&B54 -> Electricity/Secondary/BOT | B97: e-B
A98: Electricity/Secondary/DRC | B98: e-C
A99: Electricity/Secondary/LES | B99: e-D
A100: Electricity/Secondary/MAL | B100: e-E
A101: Electricity/Secondary/MOZ | B101: e-F
A102: Electricity/Secondary/NAM | B102: e-G
A103: Electricity/Secondary/SAF | B103: e-H
A104: ="ElcDummy/Secondary/"&B60 -> ElcDummy/Secondary/SAF | B104: d-H
A105: ="Electricity/Secondary/"&B61 -> Electricity/Secondary/SWA | B105: e-I
A106: ="Electricity/Secondary/"&B62 -> Electricity/Secondary/TAN | B106: e-J
A107: ="Electricity/Secondary/"&B63 -> Electricity/Secondary/ZAM | B107: e-K
A108: ="Electricity/Secondary/"&B64 -> Electricity/Secondary/ZIM | B108: e-L

Sheet NameConvsw
C1: Short Name | D1: Abbréviation
A2: Rapport WAPP | B2: =OFFSET(D2,0,lang) -> Energy Carrier | C2: =OFFSET(C1,0,lang) -> Short Name | D2: Energy Carrier | E2: Forme d'énergie | F2: Code | I2: eps | J2: 1e-08
A3: BIO | B3: Biomass | C3: BIO | D3: Biomass | E3: Biomasse | F3: b-p
A4: COAL | B4: Coal | C4: COA | D4: Coal | E4: Charbon | F4: c-p | I4: Language | J4: 0 | K4: 0 = English | M4: dry year | N4: 0 | O4: 0 = average year
A5: COALCCS | B5: CoalCCS | C5: COC | D5: CoalCCS | E5: CharbonCCS | F5: C-p | K5: 1 = Français | O5: 1 = dry year
A6: DO | B6: Diesel | C6: ODS | D6: Diesel | E6: Diesel Ordinaire | F6: o-p
A7: GO | B7: Gas Oil | C7: OGS | D7: Gas Oil | E7: Gasoil
A8: HFO | B8: HFO | C8: OHF | D8: HFO | E8: Fioul lourd | F8: h-p
A9: LCO | B9: Crude | C9: OLC | D9: Crude | E9: Brut leger | F9: p-p
A10: LFO | B10: =OFFSET(D10,0,lang) -> Light Fuel Oil | C10: OLF | D10: Light Fuel Oil | E10: Fioul leger
A11: NAPHTA | B11: =OFFSET(D11,0,lang) -> Naphta | C11: NAP | D11: Naphta | E11: Naphta
B12: Electricity | C12: ELC | D12: Electricity | E12: Electricite
B13: Geothermal | C13: GEO | D13: Geothermal | E13: Geothermique | I13: First year modelled | J13: 2010
B14: Hydro | C14: HYD | D14: Hydro | E14: Hydro
A15: NG | B15: Gas | C15: GAS | D15: Gas | E15: Gaz | F15: g-p
B16: Nuclear | C16: NUC | D16: Nuclear | E16: Nucleaire | F16: n-p
B17: PS Turbine | C17: PST | D17: PS Turbine | E17: Turbine Pompage hydrolique | H17: Primary | I17: Primaire
B18: PS Pump | C18: PSP | D18: PS Pump | E18: Pompe Pompage hydrolique | H18: Secondary | I18: Secondaire
A19: SOLAR | B19: Solar | C19: SOL | D19: Solar | E19: Solaire | H19: Tertiary | I19: Tertiaire
A20: WIND | B20: Wind | C20: WND | D20: Wind | E20: Eolienne | H20: Final | I20: Finale
A22: Processes/Technologies prefix
A23: Power plant | B23: EP
A24: Interruptible contracts for electricity | B24: EI
A25: Heat/power plant | B25: EH
A26: Heat plant | B26: HP
A27: Import | B27: IM
A28: Export | B28: EX
A29: Transmission (local) | B29: ET
A30: Distribution | B30: ED
A31: Transmission Link | B31: EL
A33: Tech Qualifier
A34: Open gas cycle | B34: OC | D34: CC | E34: Combined Cycle | F34: Cycle Combiné
A35: Combined gas Cycle | B35: CC | D35: GT | E35: Gas Turbine | F35: Turbine à gaz
A36: Pulverised Coal | B36: PF | D36: ST | E36: Steam Turbine | F36: Turbine à vapeur
A37: Supercritical coal | B37: SC | D37: HYD | E37: Hydro | F37: Centrale hydroélectrique
A38: Integrated Gasification combined cycle | B38: IG | D38: ROR | E38: Run of river | F38: au fil de l’eau
A39: Fluidized Bed | B39: FB | D39: DAM | E39: Dam | F39: avec lac de retenue
A40: Conventional Nuclear/pressurized water reactor | B40: PW | D40: DI | E40: Diesel Generators | F40: Groupe diesel
A41: PBMR | B41: PB | D41: WT | E41: Wind | F41: Eolienne
A42: Photovoltaics | B42: PV | D42: S | E42: Solar | F42: Centrale solaire
A43: Concentrated Solar Tower | B43: TW | D43: BIO | E43: Biomass | F43: Centrale biomasse
A44: Concentrated Solar trough | B44: TR
A47: Aditional Tech Qualifier
A48: Large | B48: L
A49: Small | B49: S
A50: Off-grid | B50: O
A52: Processes/Technologies sufix
A53: Existing | B53: EX
A54: New Committed | B54: NC
A55: New uncommitted | B55: NU | I55: 1000
I56: Resource Potential | L56: MW | M56: Mwyr | N56: MW | O56: Mwyr | P56: MW | Q56: MW | R56: MW | T56: Capacity Credit Wind 30 | V56: Area | W56: Comparison of Previous and New Estimates (MW)
A57: Countries | F57: Geographie | G57: Gas Source | H57: 1-Losses | I57: Hydro Exist+Planned | J57: Other Hydro | K57: Mini Hydro | L57: Solar Thermal | M57: Solar Thermal | N57: Solar PV | O57: Solar PV | P57: Biomass | Q57: Wind 25% | R57: Wind 30% | T57: % | W57: Solar Conc | X57: New | Y57: Solar PV | Z57: New | AA57: Wind 25 | AB57: New | AC57: Wind 30 | AD57: New | AF57: Solar Thermal (TWh) | AH57: Solar PV (TWh)
A58: Angola | B58: ANG | C58: 01 | D58: =LEFT(B58,2)&"r" -> ANr | E58: =A58 -> Angola | F58: Coastal | G58: LOCal | H58: 1 | J58: =E58 -> Angola | K58: 300 | L58: =SUMIF($C$72:$C$85,$B58,F$72:F$85)/(0.35*8.76)*1000 -> 31917.19522 | M58: =SUMIF($C$72:$C$85,B58,$F$72:$F$85)*1000/8.76 -> 11171.01833 | N58: =SUMIF($C$72:$C$85,$B58,G$72:G$85)/(0.2*8.76)*1000 -> 76020.73086 | O58: =SUMIF($C$72:$C$85,B58,$G$72:$G$85)*1000/8.76 -> 15204.14617 | P58: 500 | Q58: =R58 -> 0 | R58: =SUMIF($C$72:$C$85,$B58,I$72:I$85)/(0.3*8.76)*1000 -> 0 | S58: =SUMIF($C$72:$C$85,$B58,H$72:H$85)/(0.25*8.76)*1000 -> 230.1909201 | T58: 0.1 | V58: 1250 | W58: 10000 | X58: =M58 -> 11171.01833 | Y58: 10000 | Z58: =N58 -> 76020.73086 | AA58: 5000 | AB58: =Q58 -> 0 | AC58: 0 | AD58: =R58 -> 0
A59: Botswana | B59: BOT | C59: 02 | D59: =LEFT(B59,2)&"r" -> BOr | E59: Botswana | F59: Inland | G59: CBM | H59: 1 | J59: =E59 -> Botswana | K59: 0 | L59: =SUMIF($C$72:$C$85,$B59,F$72:F$85)/(0.35*8.76)*1000 -> 42629.23357 | M59: =SUMIF($C$72:$C$85,B59,$F$72:$F$85)*1000/8.76 -> 14920.23175 | N59: =SUMIF($C$72:$C$85,$B59,G$72:G$85)/(0.2*8.76)*1000 -> 78560.66697 | O59: =SUMIF($C$72:$C$85,B59,$G$72:$G$85)*1000/8.76 -> 15712.13339 | P59: 10 | Q59: =R59 -> 1152.412565 | R59: =SUMIF($C$72:$C$85,$B59,I$72:I$85)/(0.3*8.76)*1000 -> 1152.412565 | S59: =SUMIF($C$72:$C$85,$B59,H$72:H$85)/(0.25*8.76)*1000 -> 11178.84531 | T59: 0.05 | V59: 600 | W59: 20000 | X59: 14920.23175 | Y59: 10000 | Z59: 78560.66697 | AA59: 0 | AB59: 1152.412565 | AC59: 0 | AD59: 1152.412565
A60: Democratic Republic of Congo | B60: DRC | C60: 03 | D60: DRr | E60: Democratic Republic of Congo | F60: Coastal | G60: LOCal | H60: 1 | J60: Democratic Republic of Congo | K60: 1500 | L60: 40571.80079 | M60: 14200.13028 | N60: 130491.6339 | O60: 26098.32678 | P60: 500 | Q60: 0 | R60: 0 | S60: 2480.486252 | T60: 0.05 | V60: 2345 | W60: 200 | X60: 14200.13028 | Y60: 10000 | Z60: 130491.6339 | AA60: 0 | AB60: 0 | AC60: 0 | AD60: 0
A61: Lesotho | B61: LES | C61: 04 | D61: LEr | E61: Lesotho | F61: Inland | G61: NA | H61: 1 | J61: Lesotho | K61: 100 | L61: 3658.452516 | M61: 1280.458381 | N61: 5354.166707 | O61: 1070.833341 | P61: 10 | Q61: 166.7055398 | R61: 166.7055398 | S61: 683.3103867 | T61: 0 | V61: 30 | W61: 200 | X61: 1280.458381 | Y61: 10000 | Z61: 5354.166707 | AA61: 2000 | AB61: 166.7055398 | AC61: 1000 | AD61: 166.7055398
A62: Malawi | B62: MAL | C62: 05 | D62: MAr | E62: Malawi | F62: Inland | G62: CBM | H62: 1 | J62: Malawi | K62: 100 | L62: 14591.86134 | M62: 5107.151469 | N62: 29735.81074 | O62: 5947.162148 | P62: 200 | Q62: 1158.661907 | R62: 1158.661907 | S62: 2267.302469 | T62: 0.05 | V62: 118.5 | W62: 1000 | X62: 5107.151469 | Y62: 10000 | Z62: 29735.81074 | AA62: 0 | AB62: 1158.661907 | AC62: 0 | AD62: 1158.661907
A63: Mozambique | B63: MOZ | C63: 06 | D63: MOr | E63: Mozambique | F63: Coastal | G63: LOCal | H63: 1 | J63: Mozambique | K63: 300 | L63: 54959.54992 | M63: 19235.84247 | N63: 125705.077 | O63: 25141.0154 | P63: 1000 | Q63: 1526.228172 | R63: 1526.228172 | S63: 12334.69672 | T63: 0.1 | V63: 800 | W63: 1000 | X63: 19235.84247 | Y63: 10000 | Z63: 125705.077 | AA63: 5000 | AB63: 1526.228172 | AC63: 0 | AD63: 1526.228172
A64: Namibia | B64: NAM | C64: 07 | D64: NAr | E64: Namibia | F64: Coastal | G64: LOCal | H64: 1 | J64: Namibia | K64: 200 | L64: 96919.95554 | M64: 33921.98444 | N64: 149448.2309 | O64: 29889.64618 | P64: 50 | Q64: 1909.808537 | R64: 1909.808537 | S64: 17346.74436 | T64: 0.1 | V64: 820 | W64: 20000 | X64: 33921.98444 | Y64: 10000 | Z64: 149448.2309 | AA64: 5000 | AB64: 1909.808537 | AC64: 7500 | AD64: 1909.808537
A65: South Africa | B65: SAF | C65: 08 | D65: SAr | E65: South Africa | F65: Coastal | G65: LNG | H65: 1 | J65: South Africa | K65: 200 | L65: 141144.6674 | M65: 49400.63359 | N65: 241113.1111 | O65: 48222.62221 | P65: 3000 | Q65: 10000 | R65: 10000 | S65: 20000 | T65: 0.2 | V65: 1225 | W65: 100000 | X65: 49400.63359 | Y65: 20000 | Z65: 241113.1111 | AA65: 15000 | AB65: 10000 | AC65: 10000 | AD65: 10000
A66: Swaziland | B66: SWA | C66: 09 | D66: SWr | E66: Swaziland | F66: Inland | G66: NA | H66: 1 | J66: Swaziland | K66: 100 | L66: 1822.426566 | M66: 637.8492981 | N66: 3263.422966 | O66: 652.6845932 | P66: 200 | Q66: 36.89941155 | R66: 36.89941155 | S66: 543.7395052 | T66: 0 | V66: 17 | W66: 200 | X66: 637.8492981 | Y66: 10000 | Z66: 3263.422966 | AA66: 50 | AB66: 36.89941155 | AC66: 0 | AD66: 36.89941155
A67: Tanzania | B67: TAN | C67: 10 | D67: TAr | E67: Tanzania | F67: Coastal | G67: LOCal | H67: 1 | J67: Tanzania | K67: 200 | L67: 102682.5404 | M67: 35938.88913 | N67: 221486.2277 | O67: 44297.24554 | P67: 1000 | Q67: 11736.90004 | R67: =SUMIF($C$72:$C$85,$B67,I$72:I$85)/(0.3*8.76)*1000 -> 11736.90004 | S67: 21068.29574 | T67: 0.1 | V67: 950 | W67: 1000 | X67: 35938.88913 | Y67: 10000 | Z67: 221486.2277 | AA67: 5000 | AB67: 11736.90004 | AC67: 5000 | AD67: 11736.90004
A68: Zambia | B68: ZAM | C68: 11 | D68: ZAr | E68: Zambia | F68: Inland | G68: CBM | H68: 1 | J68: Zambia | K68: 300 | L68: 51176.09866 | M68: 17911.63453 | N68: 102137.3217 | O68: 20427.46435 | P68: 1000 | Q68: 4416.405126 | R68: 4416.405126 | S68: 15101.94656 | T68: 0.05 | V68: 750 | W68: 1000 | X68: 17911.63453 | Y68: 10000 | Z68: 102137.3217 | AA68: 0 | AB68: 4416.405126 | AC68: 0 | AD68: 4416.405126
A69: Zimbabwe | B69: ZIM | C69: 12 | D69: ZIr | E69: Zimbabwe | F69: Inland | G69: CBM | H69: 1 | J69: Zimbabwe | K69: 300 | L69: 38726.79694 | M69: 13554.37893 | N69: 89519.33762 | O69: 17903.86752 | P69: 1000 | Q69: 3986.119962 | R69: 3986.119962 | S69: 13855.20919 | T69: 0.05 | V69: 390 | W69: 1000 | X69: 13554.37893 | Y69: 10000 | Z69: 89519.33762 | AA69: 0 | AB69: 3986.119962 | AC69: 0 | AD69: 3986.119962
E71: TWh (1% of land) | F71: CSP | G71: PV | H71: Wind (20) | I71: Wind (30+40)
A72: Utilities | B72: Country | C72: ANG | D72: Angola | F72: 97.85812056 | G72: 133.1883205 | H72: 0.504118115 | I72: 0
C73: BOT | D73: Botswana | F73: 130.7012301 | G73: 137.6382885 | H73: 24.48167122 | I73: 3.02854022
C74: LES | D74: Lesotho | F74: 11.21681541 | G74: 9.38050007 | H74: 1.496449747 | I74: 0.4381021586
D75: Madagascar | F75: 31.93930371 | G75: 49.86522674 | H75: 6.543170974 | I75: 3.10932816
C76: MAL | D76: Malawi | F76: 44.73864687 | G76: 52.09714042 | H76: 4.965392407 | I76: 3.044963492
C77: MOZ | D77: Mozambique | F77: 168.5059801 | G77: 220.2352949 | H77: 27.01298582 | I77: 4.010927637
C78: NAM | D78: Namibia | F78: 297.1565837 | G78: 261.8333005 | H78: 37.98937014 | I78: 5.018976834
C79: SAF | D79: South Africa | F79: 432.7495502 | G79: 422.4301706 | H79: 102.988151 | I79: 76.35397393
C80: SWA | D80: Swaziland | F80: 5.587559851 | G80: 5.717517036 | H80: 1.190789516 | I80: 0.09697165356
C81: ZAM | D81: Zambia | F81: 156.9059185 | G81: 178.9445877 | H81: 33.07326297 | I81: 11.60631267
C82: ZIM | D82: Zimbabwe | F82: 118.7363594 | G82: 156.8378795 | H82: 30.34290813 | I82: 10.47552326
C83: DRC | F83: 124.3931412 | G83: 228.6213426 | H83: 5.432264893 | I83: 0
C84: TAN | F84: 314.8246687 | G84: 388.0438709 | H84: 46.13956768 | I84: 30.8445733
A88: =B3&"/"&OFFSET($H$17,0,lang) -> Biomass/Primary | B88: b-p
A89: =B4&"/"&OFFSET($H$17,0,lang) -> Coal/Primary | B89: c-p
A90: CoalCCS/Primary | B90: d-p
A91: =B6&"/"&OFFSET($H$17,0,lang) -> Diesel/Primary | B91: o-p
A92: =B7&"/"&OFFSET($H$17,0,lang) -> Gas Oil/Primary | B92: s-p
A93: =B8&"/"&OFFSET($H$17,0,lang) -> HFO/Primary | B93: h-p
A94: =B9&"/"&OFFSET($H$17,0,lang) -> Crude/Primary | B94: p-p
A95: =B10&"/"&OFFSET($H$17,0,lang) -> Light Fuel Oil/Primary | B95: l-p
A96: =B15&"/"&OFFSET($H$17,0,lang) -> Gas/Primary | B96: g-p
A97: =B16&"/"&OFFSET($H$17,0,lang) -> Nuclear/Primary | B97: n-p
A101: =$B$12&"/"&OFFSET($H$19,0,lang) -> Electricity/Tertiary | B101: e-t
A102: =$B$12&"/"&OFFSET($H$20,0,lang) -> Electricity/Final | B102: e-f
A104: =$B$12&"/"&OFFSET($H$18,0,lang)&"/"&B58 -> Electricity/Secondary/ANG | B104: e-A | C104: =RIGHT(A104,3) -> ANG | D104: =B104 -> e-A
A105: Electricity/Secondary/BOT | B105: e-B | C105: BOT | D105: =B105 -> e-B
A106: Electricity/Secondary/DRC | B106: e-C | C106: DRC | D106: e-C
A107: Electricity/Secondary/LES | B107: e-D | C107: LES | D107: e-D
A108: Electricity/Secondary/MAL | B108: e-E | C108: MAL | D108: e-E
A109: Electricity/Secondary/MOZ | B109: e-F | C109: MOZ | D109: e-F
A110: Electricity/Secondary/NAM | B110: e-G | C110: NAM | D110: e-G
A111: Electricity/Secondary/SAF | B111: e-H | C111: SAF | D111: e-H
A112: Electricity/Secondary/SWA | B112: e-I | C112: SWA | D112: e-I
A113: Electricity/Secondary/TAN | B113: e-J | C113: TAN | D113: e-J
A114: Electricity/Secondary/ZAM | B114: e-K | C114: ZAM | D114: e-K
A115: Electricity/Secondary/ZIM | B115: e-L | C115: ZIM | D115: e-L
B120: Country | C120: Contry Code | D120: Multi-region code | E120: Multi-region id
B121: =E58 -> Angola | C121: =B58 -> ANG | D121: =D58 -> ANr | E121: a
B122: =E59 -> Botswana | C122: =B59 -> BOT | D122: =D59 -> BOr | E122: b
B123: Democratic Republic of Congo | C123: DRC | D123: DRr | E123: c
B124: Lesotho | C124: LES | D124: LEr | E124: d
B125: Malawi | C125: MAL | D125: MAr | E125: e
B126: Mozambique | C126: MOZ | D126: MOr | E126: f
B127: Namibia | C127: NAM | D127: NAr | E127: g
B128: South Africa | C128: SAF | D128: SAr | E128: h
B129: Swaziland | C129: SWA | D129: SWr | E129: i
B130: Tanzania | C130: TAN | D130: TAr | E130: j
B131: Zambia | C131: ZAM | D131: ZAr | E131: k
B132: Zimbabwe | C132: ZIM | D132: ZIr | E132: l
B133: 0 | C133: 0 | D133: 0 | E133: m

Sheet SA System
A1: South African Existing system
E2: Large/small Threshold: | G2: =MAX(G8:G28)/2 -> 332 | M2: Exchange rate: 1 '07US$: | O2: 7 | P2: '07 ZAR
A3: Name of Station | B3: MESSAGE Name | C3: Heat rate | D3: Efficiency | E3: Output 2006 | F3: # units | G3: Max unit capacity | H3: Plant Category | I3: Total Cap | J3: Planned Outage Rate | K3: Forced Outage rate | L3: Availability | M3: Variable Costs | N3: Fixed Costs | O3: Fuel Costs | P3: Year online | Q3: Retire. yr (NIRP) | R3: Life
C4: Btu/kWh | E4: GWh | G4: MW | I4: MW | M4: R/MWh | N4: R/kW | O4: R/GJ
A5: Existing coal Large | B5: EPCOAEXPFLU | C5: =D5*EskomCoalEff!$D$9/D7 -> 0.3517607239 | D5: =SUMPRODUCT(--($H$8:$H$28="large"),D$8:D$28,$I$8:$I$28)/$I$5 -> 0.3540363935 | E5: =SUMIF($H8:$H28,"Large",E8:E28) -> 199706 | F5: =SUMIF($H8:$H28,"Large",F8:F28) -> 54 | G5: =SUMPRODUCT(--($H8:$H28="large"),G8:G28,F8:F28)/F5 -> 564.2777778 | H5: =COUNTIF($H$8:$H$28,"large") -> 10 | I5: =SUMIF($H8:$H28,"large",I8:I28) -> 30471 | J5: =SUMPRODUCT(--($H$8:$H$28="large"),J$8:J$28,$I$8:$I$28)/$I$5 -> 0.07540905779 | K5: =SUMPRODUCT(--($H$8:$H$28="large"),K$8:K$28,$I$8:$I$28)/$I$5 -> 0.0584215221 | L5: =SUMPRODUCT(--($H$8:$H$28="large"),L$8:L$28,$I$8:$I$28)/$I$5 -> 0.8705566227 | M5: =SUMPRODUCT(--($H$8:$H$28="large"),M$8:M$28,$I$8:$I$28)/$I$5 -> 7.214630304 | N5: =SUMPRODUCT(--($H$8:$H$28="large"),N$8:N$28,$I$8:$I$28)/$I$5 -> 175.0981589 | O5: =SUMPRODUCT(--($H8:$H28="large"),O8:O28,I8:I28)/I5 -> 5.06075416 | R5: 55
A6: Existing coal Small | B6: EPCOAEXPFSU | C6: =D6*EskomCoalEff!$D$9/D7 -> 0.2835216483 | D6: =SUMPRODUCT(--($H$8:$H$28="small"),D$8:D$28,$I$8:$I$28)/$I$6 -> 0.2853558542 | E6: =SUMIF($H8:$H28,"small",E8:E28) -> 20118.307 | F6: =SUMIF($H8:$H28,"small",F8:F28) -> 53 | G6: =SUMPRODUCT(--(H8:H28="small"),G8:G28,F8:F28)/F6 -> 115.4150943 | H6: =COUNTIF($H$8:$H$28,"small") -> 9 | I6: =SUMIF($H8:$H28,"small",I8:I28) -> 5054 | J6: =SUMPRODUCT(--($H$8:$H$28="small"),J$8:J$28,$I$8:$I$28)/$I$6 -> 0.08067352592 | K6: =SUMPRODUCT(--($H$8:$H$28="small"),K$8:K$28,$I$8:$I$28)/$I$6 -> 0.1222915315 | L6: =SUMPRODUCT(--($H$8:$H$28="small"),L$8:L$28,$I$8:$I$28)/$I$6 -> 0.8068517437 | M6: =SUMPRODUCT(--($H$8:$H$28="small"),M$8:M$28,$I$8:$I$28)/$I$6 -> 8.843589236 | N6: =SUMPRODUCT(--($H$8:$H$28="small"),N$8:N$28,$I$8:$I$28)/$I$6 -> 245.3282548 | O6: =SUMPRODUCT(--($H8:$H28="small"),O8:O28,I8:I28)/I6 -> 5.505573803 | R6: 55
A7: (De-) Mothballed Coal | D7: =(D5*I5+D6*I6)/(I5+I6) -> 0.3442654872
A8: Camden | C8: 12214 | D8: =1/(C8*1.055/3600) -> 0.2793779495 | E8: 1769 | F8: 8 | G8: 190 | H8: =IF(G8<$G$2,"small","large") -> small | I8: =G8*F8 -> 1520 | J8: 0.0796 | K8: 0.1699 | L8: =(1-J8)*(1-K8) -> 0.76402404 | M8: 7 | N8: 127 | O8: 7.56 | P8: 1986 | Q8: 2022 | R8: 50
A9: Grootvlei | C9: 12638 | D9: =1/(C9*1.055/3600) -> 0.2700049276 | E9: 0 | F9: 6 | G9: 190 | H9: =IF(G9<$G$2,"small","large") -> small | I9: =G9*2 -> 380 | J9: 0.0796 | K9: 0.1699 | L9: =(1-J9)*(1-K9) -> 0.76402404 | M9: 4.39 | N9: 204 | O9: 6.7 | P9: 1988 | R9: 50
A10: Komati | C10: 13382 | D10: 0.2549934445 | E10: 0 | F10: 5 | G10: 101 | H10: =IF(G10<$G$2,"small","large") -> small | I10: =G10*2 -> 202 | J10: 0.0796 | K10: 0.1699 | L10: 0.76402404 | M10: 2.65 | N10: 187 | O10: 5.62 | P10: 1989 | Q10: 2025 | R10: 50
A11: Eskom Coal
A12: Arnot | C12: 10555 | D12: 0.3232896518 | E12: 12683 | F12: 6 | G12: 380 | H12: =IF(G12<$G$2,"small","large") -> large | I12: =G12*F12 -> 2280 | J12: 0.0895 | K12: 0.0715 | L12: 0.84539925 | M12: 10 | N12: 314 | O12: 5.47 | P12: 1975 | Q12: 2024 | R12: 50
A13: Duvha | C13: 9831 | D13: 0.3470981868 | E13: 25246 | F13: 6 | G13: 575 | H13: large | I13: =G13*F13 -> 3450 | J13: 0.0898 | K13: 0.0474 | L13: 0.86705652 | M13: 3 | N13: 169 | O13: 3.73 | P13: 1980 | R13: 50
A14: Hendrina | C14: 10792 | D14: 0.316189981 | E14: 11718 | F14: 10 | G14: 190 | H14: small | I14: 1900 | J14: 0.0737 | K14: 0.0915 | L14: 0.84154355 | M14: 8 | N14: 351 | O14: 3.58 | P14: 1970 | Q14: 2020 | R14: 50
A15: Kendal | C15: 9755 | D15: 0.3498023859 | E15: 27934 | F15: 6 | G15: 640 | H15: large | I15: 3840 | J15: 0.0589 | K15: 0.032 | L15: 0.9109848 | M15: 4 | N15: 122 | O15: 5.02 | P15: 1988 | R15: 50
A16: Kriel | C16: 9510 | D16: 0.3588141193 | E16: 19209 | F16: 6 | G16: 475 | H16: large | I16: 2850 | J16: 0.0698 | K16: 0.0938 | L16: 0.84294724 | M16: 8 | N16: 298 | O16: 3.49 | P16: 1976 | Q16: 2026 | R16: 50
A17: Lethabo | C17: 9671 | D17: 0.3528406861 | E17: 24868 | F17: 6 | G17: 593 | H17: large | I17: 3558 | J17: 0.0805 | K17: 0.0681 | L17: 0.85688205 | M17: 8 | N17: 129 | O17: 5.14 | P17: 1985 | R17: 50
A18: Majuba Dry | C18: 9763 | D18: 0.3495157508 | E18: 8569.604996 | F18: 3 | G18: 617 | H18: large | I18: 1851 | J18: 0.0578 | K18: 0.0578 | L18: 0.88774084 | M18: 7 | N18: 134 | O18: 6.84 | P18: 1996 | R18: 50
A19: Majuba Wet | C19: 9074 | D19: 0.3760549124 | E19: 9222.395004 | F19: 3 | G19: 664 | H19: large | I19: 1992 | J19: 0.0678 | K19: 0.0583 | L19: 0.87785274 | M19: 13 | N19: 90 | O19: 6.84 | P19: 1996 | R19: 50
A20: Matimba | C20: 9648 | D20: 0.3536818278 | E20: 28212 | F20: 6 | G20: 615 | H20: large | I20: 3690 | J20: 0.078 | K20: 0.0549 | L20: 0.8713822 | M20: 6 | N20: 200 | O20: 3.9 | P20: 1987 | R20: 50
A21: Matla | C21: 9692 | D21: 0.3520761736 | E21: 25388 | F21: 6 | G21: 575 | H21: large | I21: 3450 | J21: 0.0546 | K21: 0.0673 | L21: 0.88177458 | M21: 10 | N21: 188 | O21: 2.98 | P21: 1979 | R21: 50
A22: Tutuka | C22: 9100 | D22: 0.3749804698 | E22: 18374 | F22: 6 | G22: 585 | H22: large | I22: 3510 | J22: 0.1009 | K22: 0.0465 | L22: 0.85729185 | M22: 7 | N22: 127 | O22: 8.66 | P22: 1985 | R22: 50
A23: Non-Eskom Coal
A24: Kelvin "A" | C24: 14239 | D24: 0.2396462023 | E24: 230.7690945 | F24: 3 | G24: 25 | H24: =IF(G24<$G$2,"small","large") -> small | I24: 75 | J24: 0.1009 | K24: 0.0938 | L24: 0.81476442 | M24: 18 | N24: 371 | O24: 5.46 | P24: 1982 | Q24: 2016 | R24: 50
A25: Kelvin "B" | C25: 13688 | D25: 0.2492929774 | E25: 941.5379055 | F25: 3 | G25: 51 | H25: =IF(G25<$G$2,"small","large") -> small | I25: 153 | J25: 0.1009 | K25: 0.0938 | L25: 0.81476442 | M25: 18 | N25: 302 | O25: 5.95 | P25: 1982 | Q25: 2025 | R25: 50
A26: Pretoria West | C26: 14545 | D26: 0.2346044878 | E26: 130 | F26: 4 | G26: 25 | H26: =IF(G26<$G$2,"small","large") -> small | I26: 100 | J26: 0.1009 | K26: 0.0938 | L26: 0.81476442 | M26: 18 | N26: 697 | O26: 5.12 | P26: 1982 | Q26: 2018 | R26: 50
A27: Rooiwal | C27: 13688 | D27: 0.2492929774 | E27: 816 | F27: 4 | G27: 51 | H27: =IF(G27<$G$2,"small","large") -> small | I27: 204 | J27: 0.1009 | K27: 0.0938 | L27: 0.81476442 | M27: 17 | N27: 241 | O27: 5.12 | P27: 1982 | R27: 50
A28: Sasol SSF | C28: 13419 | D28: 0.2542903551 | E28: 4513 | F28: 10 | G28: 52 | H28: =IF(G28<$G$2,"small","large") -> small | I28: 520 | J28: 0.0898 | K28: 0.0715 | L28: 0.8451207 | M28: 14 | N28: 138 | O28: 5.72 | P28: 1982 | Q28: 2025 | R28: 50
A29: OCGT liquid fuels | B29: EPODSEXOC | D29: =SUMPRODUCT(D30:D33,$I30:$I33)/$I29 -> 0.3229023526 | F29: =SUM(F30:F33) -> 20 | G29: =SUMPRODUCT(G30:G33,F30:F33)/F29 -> 120 | I29: =SUM(I30:I33) -> 2400 | K29: =SUMPRODUCT(K30:K33,$I30:$I33)/$I29 -> 0.05136 | L29: =SUMPRODUCT(L30:L33,$I30:$I33)/$I29 -> 0.06 | M29: =SUMPRODUCT(M30:M33,$I30:$I33)/$I29 -> 244.55875 | N29: =SUMPRODUCT(N30:N33,$I30:$I33)/$I29 -> 66.1825 | O29: =O30 -> 72.2 | R29: 50
A30: Acacia | C30: 12186 | D30: =1/(C30*1.055/3600) -> 0.2800198814 | E30: 36 | F30: 3 | G30: 57 | I30: =G30*F30 -> 171 | J30: 0.0348 | K30: 0.0455 | L30: 0.06 | M30: 101 | N30: 67 | O30: 72.2 | P30: 1976 | R30: 50
A31: Atlantis | C31: 10432 | D31: =1/(C31*1.055/3600) -> 0.3271014451 | E31: 0 | F31: 9 | G31: 147 | I31: =G31*F31 -> 1323 | J31: 0.0736 | K31: 0.0525 | L31: 0.06 | M31: 268 | N31: 65 | O31: =O30 -> 72.2 | P31: 2007 | R31: 50
A32: Mossel Bay | C32: 10177 | D32: =1/(C32*1.055/3600) -> 0.3352974624 | E32: 0 | F32: 5 | G32: 147 | I32: =G32*F32 -> 735 | J32: 0.0736 | K32: 0.0525 | L32: 0.06 | M32: 268 | N32: 67 | O32: =O31 -> 72.2 | P32: 2007 | R32: 50
A33: Port Rex | C33: 12186 | D33: =1/(C33*1.055/3600) -> 0.2800198814 | E33: 22 | F33: 3 | G33: 57 | I33: =G33*F33 -> 171 | J33: 0.0326 | K33: 0.0435 | L33: 0.06 | M33: 106 | N33: 71 | O33: =O32 -> 72.2 | P33: 1976 | R33: 50
A34: Hydro | B34: EPHYDEX | E34: =SUM(E35:E37) -> 2734 | F34: =SUM(F35:F37) -> 7 | G34: =SUMPRODUCT(G35:G37,F35:F37)/F34 -> 95 | I34: =SUM(I35:I37) -> 665 | L34: =SUMPRODUCT(L35:L37,I35:I37)/I34 -> 0.1507924812 | N34: =SUMPRODUCT(N35:N37,$I35:$I37)/$I34 -> 114.9022556 | P34: dry year: | Q34: 0.1 | R34: 100
A35: Mini Hydros | E35: - | F35: 1 | G35: 65 | I35: =G35*F35 -> 65 | J35: 0.0391 | K35: 0.085 | L35: 0.1378 | N35: 114 | P35: =2005-29 -> 1976 | R35: 100
A36: Gariep | E36: 1325 | F36: 4 | G36: 90 | I36: =G36*F36 -> 360 | J36: 0.0485 | K36: 0.0499 | L36: 0.127 | N36: 115 | P36: 1971 | Q36: 2025 | R36: 100
A37: Vanderkloof | E37: 1409 | F37: 2 | G37: 120 | I37: =G37*F37 -> 240 | J37: 0.0391 | K37: 0.085 | L37: 0.19 | N37: 115 | P37: 1977 | R37: 100
A38: Pumped storage | B38: EPPSGEXST | D38: =76%*(1-3.95%) -> 0.72998 | E38: =SUM(E39:E41) -> 3096 | F38: =SUM(F39:F41) -> 9 | G38: =SUMPRODUCT(G39:G41,F39:F41)/F38 -> 175.5555556 | I38: =SUM(I39:I41) -> 1580 | J38: =SUMPRODUCT(J39:J41,$I39:$I41)/$I38 -> 0.05127721519 | K38: =SUMPRODUCT(K39:K41,$I39:$I41)/$I38 -> 0.06802531646 | L38: =SUMPRODUCT(L39:L41,$I39:$I41)/$I38 -> 0.194 | M38: =SUMPRODUCT(M39:M41,$I39:$I41)/$I38 -> 3.367088608 | N38: =SUMPRODUCT(N39:N41,$I39:$I41)/$I38 -> 59.41772152 | R38: 55
A39: Drakensberg | E39: 2033 | F39: 4 | G39: 250 | I39: =G39*F39 -> 1000 | J39: 0.0551 | K39: 0.078 | L39: 0.188 | M39: 3 | N39: 60 | P39: 1981 | R39: 55
A40: Palmiet | E40: 900 | F40: 2 | G40: 200 | I40: =G40*F40 -> 400 | J40: 0.04 | K40: 0.0386 | L40: 0.245 | M40: 4 | N40: 64 | P40: 1988 | R40: 55
A41: Steenbras | E41: 163 | F41: 3 | G41: 60 | I41: =G41*F41 -> 180 | J41: 0.0551 | K41: 0.078 | L41: 0.114 | M41: 4 | N41: 46 | P41: =2005-34 -> 1971 | Q41: 2023 | R41: 55
A42: PWR nuclear | B42: EPNUCEXPW | C42: 10663 | D42: =1/(C42*1.055/3600) -> 0.3200152185 | E42: 13668 | F42: 2 | G42: 900 | I42: =G42*F42 -> 1800 | J42: 0.1123 | K42: 0.0871 | L42: =(1-J42)*(1-K42) -> 0.81038133 | M42: 10 | N42: 416 | O42: 3.01 | P42: 1984 | R42: 50
A43: Interruptible | B43: EIEX | I43: =SUM(I44:I51) -> 2535 | L43: 0.01 | M43: =SUMPRODUCT(M44:M51,I44:I51)/I43 -> 246.6015779 | R43: 20
A44: BHP Bayside | F44: 1 | G44: 300 | I44: 300 | M44: 119 | P44: 1992
A45: BHP Hillside | F45: 1 | G45: 400 | I45: 400 | M45: 118 | P45: 1992
A46: BHP Hillside | F46: 1 | G46: 400 | I46: 400 | M46: 118 | P46: 2001
A47: Mozal 1 | F47: 1 | G47: 400 | I47: 400 | M47: 53 | P47: 2000
A48: Mozal 2 | F48: 1 | G48: 400 | I48: 400 | M48: 53 | P48: 2003
A49: Skorpion | F49: 1 | G49: 45 | I49: 45 | M49: 115 | P49: 2000
A50: DMP1 | F50: 1 | G50: 405 | I50: 405 | M50: 823 | P50: 2006
A51: DMP2 | F51: 1 | G51: 185 | I51: 185 | M51: 617 | P51: 2006
G55: Thermal Capacity | I55: =I5+I6+I29+I42 -> 39725 | K55: Energy | L55: =(L5*I5+L6*I6+L29*I29+L42*I42)*8.76 -> 282135.4746
G56: Hydro/PS Capacity | I56: =I34+I38 -> 2245 | L56: =I34*L34*8.76 -> 878.42652
G57: Interruptible | I57: =I43 -> 2535
G58: Total without Inter | I58: =SUM(I55:I56) -> 41970 | L58: =SUM(L55:L57) -> 283013.9011

Sheet EskomCoalEff
B1: From Eskom Annual report 2008
D2: 2008 | E2: 2007 | F2: 2006
B3: Average Calorific value | C3: MJ/kg | D3: 18.51 | E3: 19.06 | F3: 19.58
B4: Total Coal consumed | C4: Mt | D4: 125.3 | E4: 119.1 | F4: 112.1
B5: Total coal consumed | C5: PJ | D5: =D4*D3 -> 2319.303 | E5: =E4*E3 -> 2270.046 | F5: =F4*F3 -> 2194.918
B6: Net Elc produced from Coal | C6: GWh | D6: 222908 | E6: 215211 | F6: 206606
B7: Net Elc produced from Coal | C7: PJ | D7: =D6*3.6/1000 -> 802.4688 | E7: =E6*3.6/1000 -> 774.7596 | F7: =F6*3.6/1000 -> 743.7816
B8: Overall Efficiency | D8: =D7/D5 -> 0.345995672 | E8: =E7/E5 -> 0.3412968724 | F8: =F7/F5 -> 0.3388653244
B9: Average efficiency 2006-2008 | D9: =AVERAGE(D8:F8) -> 0.3420526229

Sheet HistCapSA
A1: Historical Capacity of Existing South African Power Stations
A3: Small Coal Stations
A4: Capacity (MW) | B4: year | D4: sum of exist
A5: =D5-SUM(A6:A13) -> 1620.555556 | B5: 1986 | D5: ='SA System'!I6 -> 5054
A6: 380 | B6: 1988
A7: 202.4444444 | B7: 1989
A8: 1900 | B8: 1970
A9: 25 | B9: 1982
A10: 102 | B10: 1982
A11: 100 | B11: 1982
A12: 204 | B12: 1982
A13: 520 | B13: 1982
A14: Year started | C14: 1970 | D14: 1982 | E14: 1986 | F14: 1988 | G14: 1989
A15: Capacity | B15: MW | C15: =ROUND(SUMIF($B$5:$B$13,C14,$A$5:$A$13),0) -> 1900 | D15: =ROUND(SUMIF($B$5:$B$13,D14,$A$5:$A$13),0) -> 951 | E15: =ROUND(SUMIF($B$5:$B$13,E14,$A$5:$A$13),0) -> 1621 | F15: =ROUND(SUMIF($B$5:$B$13,F14,$A$5:$A$13),0) -> 380 | G15: =ROUND(SUMIF($B$5:$B$13,G14,$A$5:$A$13),0) -> 202
A16: ='SA System'!A6 -> Existing coal Small | B16: EPCOAEXPFSU | C16: =C14&" "&C15&" "&D14&" "&D15&" "&E14&" "&E15&" "&F14&" "&F15&" "&G14&" "&G15 -> 1970 1900 1982 951 1986 1621 1988 380 1989 202
A18: Capacity being commissioned
A21: Being commissioned | C21: 380 679 303 101 0
A22: Large Coal Stations
A23: Capacity (MW) | B23: year | D23: sum of exist
A24: 2280 | B24: 1975 | D24: ='SA System'!I5 -> 30471
A25: 3450 | B25: 1980
A26: 3840 | B26: 1988
A27: 2850 | B27: 1976
A28: 3558 | B28: 1985
A29: 1851 | B29: 1996
A30: 1992 | B30: 1996
A31: 3690 | B31: 1987
A32: 3450 | B32: 1979
A33: =D24-SUM(A24:A32) -> 3510 | B33: 1985
A34: Year started | C34: 1975 | D34: 1976 | E34: 1979 | F34: 1980 | G34: 1985 | H34: 1987 | I34: 1988 | J34: 1996
A35: Capacity | B35: MW | C35: =SUMIF($B$24:$B$33,C34,$A$24:$A$33) -> 2280 | D35: =SUMIF($B$24:$B$33,D34,$A$24:$A$33) -> 2850 | E35: 3450 | F35: 3450 | G35: 7068 | H35: 3690 | I35: 3840 | J35: 3843
A36: ='SA System'!A5 -> Existing coal Large | B36: EPCOAEXPFLU | C36: =C34&" "&C35&" "&D34&" "&D35&" "&E34&" "&E35&" "&F34&" "&F35&" "&G34&" "&G35&" "&H34&" "&H35&" "&I34&" "&I35&" "&J34&" "&J35 -> 1975 2280 1976 2850 1979 3450 1980 3450 1985 7068 1987 3690 1988 3840 1996 3843
A38: Capacity being commissioned
C39: 2008 | D39: 2009 | E39: 2010 | F39: 2011
C40: 0 | D40: 0 | E40: =6*20 -> 120
A41: Being commissioned | C41: 120 0
A42: OCGT's
A43: Capacity (MW) | B43: year
A44: ='SA System'!I30 -> 171 | B44: ='SA System'!P30 -> 1976
A45: ='SA System'!I31 -> 1323 | B45: ='SA System'!P31 -> 2007
A46: ='SA System'!I32 -> 735 | B46: ='SA System'!P32 -> 2007
A47: ='SA System'!I33 -> 171 | B47: ='SA System'!P33 -> 1976
A48: Year started | C48: 1976 | D48: 2007
A49: Capacity | B49: MW | C49: =SUMIF($B$44:$B$47,C48,$A$44:$A$47) -> 342 | D49: =SUMIF($B$44:$B$47,D48,$A$44:$A$47) -> 2058
A50: ='SA System'!A29 -> OCGT liquid fuels | B50: EPODSEXOC | C50: =C48&" "&C49&" "&D48&" "&D49 -> 1976 342 2007 2058
A52: Hydro's
A53: Capacity (MW) | B53: year
A54: ='SA System'!I35 -> 65 | B54: ='SA System'!P35 -> 1976
A55: ='SA System'!I36 -> 360 | B55: ='SA System'!P36 -> 1971
A56: ='SA System'!I37 -> 240 | B56: ='SA System'!P37 -> 1977
A57: Year started | C57: 1971 | D57: 1976 | E57: 1977
A58: Capacity | B58: MW | C58: =SUMIF($B$54:$B$56,C57,$A$54:$A$56) -> 360 | D58: =SUMIF($B$54:$B$56,D57,$A$54:$A$56) -> 65 | E58: =SUMIF($B$54:$B$56,E57,$A$54:$A$56) -> 240
A59: ='SA System'!A34 -> Hydro | B59: EPHYDEX | C59: =C57&" "&C58&" "&D57&" "&D58&" "&E57&" "&E58 -> 1971 360 1976 65 1977 240
A61: Pump Storage
A62: Capacity (MW) | B62: year
A63: ='SA System'!I39 -> 1000 | B63: ='SA System'!P39 -> 1981
A64: ='SA System'!I40 -> 400 | B64: ='SA System'!P40 -> 1988
A65: ='SA System'!I41 -> 180 | B65: ='SA System'!P41 -> 1971
A66: Year started | C66: 1971 | D66: 1981 | E66: 1988
A67: Capacity | B67: MW | C67: =SUMIF($B$63:$B$65,C66,$A$63:$A$65) -> 180 | D67: =SUMIF($B$63:$B$65,D66,$A$63:$A$65) -> 1000 | E67: =SUMIF($B$63:$B$65,E66,$A$63:$A$65) -> 400
A68: ='SA System'!A38 -> Pumped storage | B68: EPPSGEXST | C68: =C66&" "&C67&" "&D66&" "&D67&" "&E66&" "&E67 -> 1971 180 1981 1000 1988 400
A70: Nuclear
A71: Capacity (MW) | B71: year
A72: ='SA System'!I42 -> 1800 | B72: ='SA System'!P42 -> 1984
A73: ='SA System'!A42 -> PWR nuclear | B73: EPNUCEXPW | C73: =B72&" "&A72 -> 1984 1800
A75: Interruptible contracts
A76: Capacity (MW) | B76: year
A77: ='SA System'!I44 -> 300 | B77: ='SA System'!P44 -> 1992
A78: ='SA System'!I45 -> 400 | B78: ='SA System'!P45 -> 1992
A79: ='SA System'!I46 -> 400 | B79: ='SA System'!P46 -> 2001
A80: ='SA System'!I47 -> 400 | B80: ='SA System'!P47 -> 2000
A81: ='SA System'!I48 -> 400 | B81: ='SA System'!P48 -> 2003
A82: ='SA System'!I49 -> 45 | B82: ='SA System'!P49 -> 2000
A83: ='SA System'!I50 -> 405 | B83: ='SA System'!P50 -> 2006
A84: ='SA System'!I51 -> 185 | B84: ='SA System'!P51 -> 2006
A85: Year started | C85: 1992 | D85: 2000 | E85: 2001 | F85: 2003 | G85: 2006
A86: Capacity | B86: MW | C86: =SUMIF($B$77:$B$84,C85,$A$77:$A$84) -> 700 | D86: =SUMIF($B$77:$B$84,D85,$A$77:$A$84) -> 445 | E86: =SUMIF($B$77:$B$84,E85,$A$77:$A$84) -> 400 | F86: =SUMIF($B$77:$B$84,F85,$A$77:$A$84) -> 400 | G86: =SUMIF($B$77:$B$84,G85,$A$77:$A$84) -> 590
A87: ='SA System'!A43 -> Interruptible | B87: EIEX | C87: =C85&" "&C86&" "&D85&" "&D86&" "&E85&" "&E86&" "&F85&" "&F86&" "&G85&" "&G86 -> 1992 700 2000 445 2001 400 2003 400 2006 590

Sheet SAPP Thermal Existing
A1: Name of Station | B1: MESSAGE Name with Country Prefix | C1: MESSAGE Name | D1: Unit Capacity | E1: Unit Min Capacity | F1: # of Units | G1: Plant Capacity | H1: Heat Rate (Max Cap) | I1: Efficiency | J1: Fuel | K1: Fixed Fuel Costs | L1: Incremental fuel costs | M1: Variable O&M | N1: Fixed O&M | O1: Planned outage | P1: Forced Outage | Q1: Availability | R1: overnight refurb. cost | S1: Life | T1: Instal year | U1: hist string | V1: model start year | W1: Refurbishment Total Cap | AD1: Refurbishment New Cap | AJ1: refurb string
D2: MW | G2: MW | H2: kJ/kWh | K2: US$/kW | L2: US$/GJ | M2: US$/MWh | N2: US$/kW | R2: US$/kW | V2: =ModelStartYr -> 2010 | W2: 2007 | X2: =W2+1 -> 2008 | Y2: 2009 | Z2: 2010 | AA2: 2011 | AB2: 2012 | AC2: 2013 | AD2: 2008 | AE2: 2009 | AF2: 2010 | AG2: 2011 | AH2: 2012 | AI2: 2013
A3: Angola | B3: =VLOOKUP(A3,NameConvs!$A$53:$B$64,2,FALSE) -> ANG | G3: =G4+G5 -> 263 | Q3: =SUMPRODUCT(Q4:Q5,G4:G5)*8.76 -> 1977.406057 | V3: row#
A4: SCGT | B4: =B3&C4 -> ANGEPGASEXOC | C4: EPGASEXOC | D4: 50 | E4: 25 | F4: 5 | G4: 250 | H4: 18000 | I4: =1/(H4/3600) -> 0.2 | J4: Nat gas | K4: 40 | L4: 2.46 | M4: 4.18 | N4: 19 | O4: 0.0708 | P4: 0.0731 | Q4: =(1-O4)*(1-P4) -> 0.86127548 | S4: 25 | T4: 2000 | U4: =T4&" "&HLOOKUP(V$2-1,$W$2:$AA$38,V4,FALSE) -> 2000 178 | V4: 3 | W4: 143 | X4: 160 | Y4: 178 | Z4: 195 | AA4: 213 | AB4: 230 | AC4: 250 | AD4: =X4-W4 -> 17 | AE4: 18 | AF4: 17 | AG4: 18 | AH4: 17 | AI4: 20 | AJ4: =IF(AD$2>=$V$2,AD4,"")&" "&IF(AE$2>=$V$2,AE4,"")&" "&AF4&" "&AG4&" "&AH4&" "&AI4&" "&0 -> 17 18 17 20 0
A5: Diesel | B5: =B3&C5 -> ANGEPODSEXOC | C5: EPODSEXOC | D5: 13 | E5: 13 | F5: 1 | G5: 13 | H5: 12142 | I5: =1/(H5/3600) -> 0.296491517 | J5: Distillate | K5: 0 | L5: 12.14 | M5: 3 | N5: 0.8 | O5: 0.15 | P5: 0.0577 | Q5: =(1-O5)*(1-P5) -> 0.800955 | S5: 7 | T5: 2006 | U5: =T5&" "&13 -> 2006 13 | V5: =V4+1 -> 4
A6: Botswana | B6: =VLOOKUP(A6,NameConvs!$A$53:$B$64,2,FALSE) -> BOT | G6: =G7 -> 132 | Q6: =SUMPRODUCT(Q7,G7)*8.76 -> 1017.587502 | V6: =V5+1 -> 5
A7: Morupule | B7: =B6&C7 -> BOTEPCOAEXPF | C7: EPCOAEXPF | D7: 30 | E7: 18 | F7: 4 | G7: 132 | H7: 12000 | I7: =1/(H7/3600) -> 0.3 | J7: Coal | K7: 0 | L7: 0.48 | M7: ='SA System'!M6/7 -> 1.263369891 | N7: 56.67 | O7: 0.072 | P7: 0.0517 | Q7: =(1-O7)*(1-P7) -> 0.8800224 | V7: 6
A8: Malawi | B8: =VLOOKUP(A8,NameConvs!$A$53:$B$64,2,FALSE) -> MAL | G8: =G9 -> 36 | Q8: =SUMPRODUCT(Q9,G9)*8.76 -> 252.5891688 | V8: 7
A9: ="Existing "&J10 -> Existing Distillate | B9: =B8&C9 -> MALEPODSEXOC | C9: EPODSEXOC | G9: =SUM(G10:G12) -> 36 | H9: =H10 -> 12142 | I9: =SUMPRODUCT(I10:I12,G10:G12)/G9 -> 0.296491517 | J9: =J10 -> Distillate | K9: 0 | L9: 12.14 | M9: 3 | N9: 0.8 | O9: 0.15 | P9: 0.0577 | Q9: =(1-O9)*(1-P9) -> 0.800955 | V9: 8
A10: Lilongwe | G10: 20 | H10: 12142 | I10: =1/(H10/3600) -> 0.296491517 | J10: Distillate | K10: 0 | L10: 12.14 | M10: 3 | N10: 0.8 | O10: 0.15 | P10: 0.0577 | Q10: 0.800955 | V10: 9
A11: Mzuzu | G11: 6 | H11: 12142 | I11: =1/(H11/3600) -> 0.296491517 | J11: Distillate | K11: 0 | L11: 12.14 | M11: 3 | N11: 0.8 | O11: 0.15 | P11: 0.0577 | Q11: 0.800955 | V11: 10
A12: Blantyre | G12: 10 | H12: 12142 | I12: =1/(H12/3600) -> 0.296491517 | J12: Distillate | L12: 12.14 | M12: 3 | N12: 0.8 | O12: 0.15 | P12: 0.0577 | Q12: 0.800955 | V12: 11
A13: Mozambique | B13: =VLOOKUP(A13,NameConvs!$A$53:$B$64,2,FALSE) -> MOZ | G13: =G14 -> 64 | Q13: =SUMPRODUCT(Q14,G14)*8.76 -> 449.0474112 | V13: 12
A14: ="Existing "&J15 -> Existing Distillate | B14: =B13&C14 -> MOZEPODSEXOC | C14: EPODSEXOC | D14: =SUMPRODUCT(D15:D16,F15:F16)/F14 -> 21.33333333 | E14: =SUMPRODUCT(E15:E16,F15:F16)/F14 -> 10.66666667 | F14: =SUM(F15:F16) -> 3 | G14: =SUM(G15:G16) -> 64 | H14: =H15 -> 12142 | I14: =SUMPRODUCT(I15:I16,G15:G16)/G14 -> 0.296491517 | J14: =J15 -> Distillate | K14: 0 | L14: 12.14 | M14: 3 | N14: 0.8 | O14: 0.15 | P14: 0.0577 | Q14: =(1-O14)*(1-P14) -> 0.800955 | V14: 13
A15: Maputo | D15: 26 | E15: 13 | F15: 2 | G15: 52 | H15: 12142 | I15: =1/(H15/3600) -> 0.296491517 | J15: Distillate | K15: 0 | L15: 12.14 | M15: 3 | N15: 0.8 | O15: 0.15 | P15: 0.0577 | Q15: =(1-O15)*(1-P15) -> 0.800955 | V15: 14
A16: Beira | D16: 12 | E16: 6 | F16: 1 | G16: 12 | H16: 12142 | I16: =1/(H16/3600) -> 0.296491517 | J16: Distillate | K16: 0 | L16: 12.14 | M16: 3 | N16: 0.8 | O16: 0.15 | P16: 0.0577 | Q16: =(1-O16)*(1-P16) -> 0.800955 | V16: 15
A17: Namibia | B17: =VLOOKUP(A17,NameConvs!$A$53:$B$64,2,FALSE) -> NAM | G17: =SUM(G18:G19) -> 144 | Q17: =SUMPRODUCT(Q18:Q19,G18:G19)*8.76 -> 1126.705663 | V17: 16
A18: Van Eck | B18: =B17&C18 -> NAMEPCOAEXPF | C18: EPCOAEXPF | D18: 27 | E18: 12 | F18: 4 | G18: 120 | H18: 12000 | I18: =1/(H18/3600) -> 0.3 | J18: Coal | K18: 65.91 | L18: 0.4 | M18: =M7 -> 1.263369891 | N18: 56.67 | O18: 0.072 | P18: 0.0517 | Q18: =(1-O18)*(1-P18) -> 0.8800224 | S18: 14 | U18: 2000 120 | V18: 17
A19: Paratus | B19: =B17&C19 -> NAMEPODSEXOC | C19: EPODSEXOC | D19: 6 | E19: 2 | F19: 4 | G19: 24 | H19: 12000 | I19: =1/(H19/3600) -> 0.3 | J19: Distillate | K19: 0 | L19: 12.14 | M19: 5.35 | N19: 4.86 | O19: 0.0203 | P19: 0.0211 | Q19: =(1-O19)*(1-P19) -> 0.95902833 | V19: 18
A20: Tanzania | B20: =VLOOKUP(A20,NameConvs!$A$53:$B$64,2,FALSE) -> TAN | G20: =G21+G28 -> 719 | Q20: =(Q21*G21+Q28*G28)*8.76 -> 5932.37405 | V20: 19
A21: Existing NatGas | B21: =B20&C21 -> TANEPGASEXOC | C21: EPGASEXOC | D21: =SUMPRODUCT(D22:D30,F22:F30)/F21 -> 11.44642857 | E21: =SUMPRODUCT(E22:E30,F22:F30)/F21 -> 5.732142857 | F21: =SUM(F22:F30) -> 56 | G21: =SUM(G22:G30) -> 641 | H21: =H22 -> 12000 | I21: =SUMPRODUCT(I22:I30,G22:G30)/G21 -> 0.2995840176 | J21: =J22 -> Nat gas | K21: 0 | L21: 2 | M21: 5.35 | N21: 4.86 | O21: 0.0203 | P21: 0.0211 | Q21: =(1-O21)*(1-P21) -> 0.95902833 | S21: 25 | U21: 1983 140 1998 100 2000 200 2007 45 | V21: 20
A22: SONGAS | D22: 50 | E22: 25 | F22: 4 | G22: 200 | H22: 12000 | I22: =1/(H22/3600) -> 0.3 | J22: Nat gas | K22: 0 | L22: 2 | M22: 5.35 | N22: 4.86 | O22: 0.0203 | P22: 0.0211 | Q22: 0.95902833 | V22: 21
A23: IPTL | D23: 50 | E23: 25 | F23: 2 | G23: 100 | H23: 12000 | I23: =1/(H23/3600) -> 0.3 | J23: Nat gas | K23: 0 | L23: 2 | M23: 5.35 | N23: 4.86 | O23: 0.0203 | P23: 0.0211 | Q23: 0.95902833 | V23: 22
A24: Ubungo Rented Aggreco | D24: 20 | E24: 10 | F24: 2 | G24: 40 | H24: 12000 | I24: 0.3 | J24: Nat gas | K24: 0 | L24: 2 | M24: 5.35 | N24: 4.86 | O24: 0.0203 | P24: 0.0211 | Q24: 0.95902833 | V24: 23
A25: Ubungo Rented Richmo | D25: 20 | E25: 10 | F25: 1 | G25: 20 | H25: 12000 | I25: 0.3 | J25: Nat gas | K25: 0 | L25: 2 | M25: 5.35 | N25: 4.86 | O25: 0.0203 | P25: 0.0211 | Q25: 0.95902833 | V25: 24
A26: Ubungo Rented Richmo | D26: 20 | E26: 10 | F26: 4 | G26: 80 | H26: 12000 | I26: 0.3 | J26: Nat gas | K26: 0 | L26: 2 | M26: 5.35 | N26: 4.86 | O26: 0.0203 | P26: 0.0211 | Q26: 0.95902833 | V26: 25
A27: Tegeta - Wartsila | D27: 45 | E27: 23 | F27: 1 | G27: 45 | H27: 12000 | I27: 0.3 | J27: Nat gas | K27: 0 | L27: 3 | M27: 5.35 | N27: 4.86 | O27: 0.0203 | P27: 0.0211 | Q27: 0.95902833 | V27: 26
A28: ="Existing "&J29 -> Existing Distillate | B28: =B20&C28 -> TANEPODSEXOC | C28: EPODSEXOC | D28: =SUMPRODUCT(D29:D30,F29:F30)/F28 -> 3.714285714 | E28: =SUMPRODUCT(E29:E30,F29:F30)/F28 -> 1.857142857 | F28: =SUM(F29:F30) -> 21 | G28: =SUM(G29:G30) -> 78 | H28: =SUMPRODUCT(H29:H30,F29:F30)/F28 -> 12128.47619 | I28: =SUMPRODUCT(I29:I30,G29:G30)/G28 -> 0.2982907391 | J28: =J29 -> Distillate | K28: 0 | L28: 12.14 | M28: 3 | N28: 0.8 | O28: 0.15 | P28: 0.0577 | Q28: 0.800955 | S28: 25 | U28: 1983 78 | V28: 27
A29: Mwansa - ALSTOM | D29: 20 | E29: 10 | F29: 2 | G29: 40 | H29: 12000 | I29: 0.3 | J29: Distillate | K29: 0 | L29: 12.14 | M29: 3 | N29: 0.8 | O29: 0.15 | P29: 0.0577 | Q29: 0.800955 | V29: 28
A30: Diesel Remote | D30: 2 | E30: 1 | F30: 19 | G30: 38 | H30: 12142 | I30: 0.296491517 | J30: Distillate | K30: 0 | L30: 12.14 | M30: 3 | N30: 0.8 | O30: 0.15 | P30: 0.0577 | Q30: 0.800955 | V30: 29
A31: Zambia | B31: =VLOOKUP(A31,NameConvs!$A$53:$B$64,2,FALSE) -> ZAM | G31: =G32 -> 10 | Q31: =SUMPRODUCT(Q32,G32)*8.76 -> 70.163658 | V31: 30
A32: Diesel | B32: =B31&C32 -> ZAMEPODSEXOC | C32: EPODSEXOC | D32: 10 | E32: 5 | F32: 1 | G32: 10 | H32: 12142 | I32: =1/(H32/3600) -> 0.296491517 | J32: Distillate | K32: 0 | L32: 12.14 | M32: 3 | N32: 0.8 | O32: 0.15 | P32: 0.0577 | Q32: =(1-O32)*(1-P32) -> 0.800955 | V32: 31
A33: Zimbabwe | B33: =VLOOKUP(A33,NameConvs!$A$53:$B$64,2,FALSE) -> ZIM | G33: =G34 -> 360 | Q33: =SUMPRODUCT(Q34,G34)*8.76 -> 2775.238641 | V33: 32
A34: Existing Coal | B34: =B33&C34 -> ZIMEPCOAEXPF | C34: EPCOAEXPF | D34: =SUMPRODUCT(D35:D38,F35:F38)/F34 -> 60.35294118 | E34: =SUMPRODUCT(E35:E38,F35:F38)/F34 -> 32.47058824 | F34: =SUM(F35:F38) -> 17 | G34: =SUM(G35:G38) -> 360 | H34: =H35 -> 12000 | I34: =SUMPRODUCT(I35:I38,G35:G38)/G34 -> 0.3 | J34: =J35 -> Coal | K34: 0 | L34: 0.64 | M34: =M7 -> 1.263369891 | N34: 56.67 | O34: 0.072 | P34: 0.0517 | Q34: =(1-O34)*(1-P34) -> 0.8800224 | R34: 100 | S34: 30 | T34: 2000 | U34: ="2000 "&G34 -> 2000 360 | V34: 33
A35: Hwange 1-6 | D35: 130 | E35: 70 | F35: 6 | G35: 342 | H35: 12000 | I35: 0.3 | J35: Coal | K35: 0 | L35: 0.64 | M35: =M7 -> 1.263369891 | N35: 56.67 | O35: 0.072 | P35: 0.0517 | Q35: =(1-O35)*(1-P35) -> 0.8800224 | V35: 34 | Z35: 0 | AA35: 0 | AB35: 0 | AC35: 100 | AD35: =X35-W35 -> 0 | AE35: 0 | AF35: 0 | AG35: 0 | AH35: 0 | AI35: 100 | AJ35: 150 | AK35: 150 | AM35: =IF(AD$2>=$V$2,AD35,"")&" "&IF(AE$2>=$V$2,AE35,"")&" "&AF35&" "&AG35&" "&AH35&" "&AI35&" "&AJ35&" "&AK35&" "&0 -> 0 0 0 100 150 150 0
A36: Munyati | D36: 20 | E36: 11 | F36: 4 | G36: 10 | H36: 12000 | I36: 0.3 | J36: Coal | K36: 0 | L36: 0.83 | M36: =M35 -> 1.263369891 | N36: 56.67 | O36: 0.072 | P36: 0.0517 | Q36: =(1-O36)*(1-P36) -> 0.8800224 | V36: 35
A37: Bulawayo | D37: 30 | E37: 16 | F37: 3 | G37: 4 | H37: 12000 | I37: 0.3 | J37: Coal | K37: 0 | L37: 0.83 | M37: =M36 -> 1.263369891 | N37: 56.67 | O37: 0.072 | P37: 0.0517 | Q37: =(1-O37)*(1-P37) -> 0.8800224 | V37: 36
A38: Harare | D38: 19 | E38: 10 | F38: 4 | G38: 4 | H38: 12000 | I38: 0.3 | J38: Coal | K38: 0 | L38: 0.83 | M38: =M37 -> 1.263369891 | N38: 56.67 | O38: 0.072 | P38: 0.0517 | Q38: =(1-O38)*(1-P38) -> 0.8800224 | V38: 37
S41: =1994-8 -> 1986
S42: =1986+29 -> 2015

Sheet SAPP Hydro Existing
A1: Name of Station | B1: MESSAGE Name with Country Prefix | C1: MESSAGE name | D1: Unit Capacity | E1: # of Units | F1: Plant Capacity | G1: Average Generation | H1: Dry Year Generation | I1: Variable O&M | J1: Fixed O&M | K1: Planned Outage | L1: Forced Outage | M1: Average CF | N1: Dry Year CF | O1: overnight refurb. cost | P1: Life | Q1: Instal year | R1: hist string | S1: model start year | T1: Refurbishment Total Cap | AA1: Refurbishment New Cap | AG1: refurb string
D2: MW | F2: MW | G2: GWh | H2: GWh | I2: US$/MWh | J2: US$/kW | O2: US$/kW | S2: 2010 | T2: 2010 | U2: =T2+1 -> 2011 | V2: 2012 | W2: 2013 | X2: 2014 | Y2: 2015 | Z2: 2016 | AA2: =T2 -> 2010 | AB2: 2011 | AC2: 2012 | AD2: 2013 | AE2: 2014 | AF2: 2015
A3: Angola | B3: =VLOOKUP(A3,NameConvs!$A$53:$B$64,2,FALSE) -> ANG | F3: =F4+F8 -> 474 | G3: =G4+G8 -> 2595 | H3: =H4+H8 -> 1713 | S3: row#
A4: High Availability | B4: =B3&C4 -> ANGEPHYDEXHA | C4: EPHYDEXHA | D4: =SUMPRODUCT(D5:D7,E5:E7)/E4 -> 56 | E4: =SUM(E5:E7) -> 8 | F4: =SUM(F5:F7) -> 448 | G4: =SUM(G5:G7) -> 2500 | H4: =SUM(H5:H7) -> 1650 | I4: =I5 -> 1.51 | J4: =J5 -> 8.72 | K4: =K5 -> 0.15 | L4: =L5 -> 0.05 | M4: =G4/(F4*8.76) -> 0.6370270711 | N4: =H4/(F4*8.76) -> 0.4204378669 | P4: 100 | S4: 3
A5: Cambambe | D5: 43 | E5: 4 | F5: 172 | G5: 900 | H5: 594 | I5: 1.51 | J5: 8.72 | K5: 0.15 | L5: 0.05 | M5: 0.597 | N5: =H5/(F5*8.76) -> 0.3942338324 | S5: =S4+1 -> 4
A6: Capanda | D6: 130 | E6: 2 | F6: 260 | G6: 1500 | H6: 990 | I6: 1.51 | J6: 8.72 | K6: 0.15 | L6: 0.05 | M6: 0.659 | N6: =H6/(F6*8.76) -> 0.4346680717 | S6: =S5+1 -> 5
A7: Matala | D7: 8 | E7: 2 | F7: 16 | G7: 100 | H7: 66 | I7: 1.51 | J7: 8.72 | K7: 0.15 | L7: 0.05 | M7: 0.713 | N7: 0.470890411 | S7: 6
A8: Low Availability | B8: =B3&C8 -> ANGEPHYDEXLA | C8: EPHYDEXLA | D8: =SUMPRODUCT(D9:D10,E9:E10)/E8 -> 4.333333333 | E8: =SUM(E9:E10) -> 6 | F8: =SUM(F9:F10) -> 26 | G8: =SUM(G9:G10) -> 95 | H8: =SUM(H9:H10) -> 63 | I8: =I9 -> 1.51 | J8: =SUMPRODUCT(J9:J10,F9:F10)/F8 -> 8.72 | K8: =K9 -> 0.15 | L8: =L9 -> 0.05 | M8: =G8/(F8*8.76) -> 0.4171057253 | N8: =H8/(F8*8.76) -> 0.2766069547 | S8: 7
A9: Mabubas | D9: 9 | E9: 2 | F9: 18 | G9: 60 | H9: 40 | I9: 1.51 | J9: 8.72 | K9: 0.15 | L9: 0.05 | M9: 0.381 | N9: 0.2536783359 | S9: 8
A10: Biopio | D10: 2 | E10: 4 | F10: 8 | G10: 35 | H10: 23 | I10: 1.51 | J10: 8.72 | K10: 0.15 | L10: 0.05 | M10: 0.499 | N10: 0.328196347 | S10: 9
A11: Democratic Republic of Congo | B11: =VLOOKUP(A11,NameConvs!$A$53:$B$64,2,FALSE) -> DRC | F11: =F12+F15+F19 -> 2333 | G11: =G12+G15+G19 -> 14259 | H11: =H12+H15+H19 -> 11183 | S11: 10
A12: Inga | B12: =B11&C12 -> DRCEPHYDEXinga | C12: EPHYDEXinga | D12: =SUMPRODUCT(D13:D14,E13:E14)/E12 -> 71.36 | E12: =SUM(E13:E15) -> 25 | F12: =SUM(F13:F14) -> 1784 | G12: =SUM(G13:G14) -> 12000 | H12: =SUM(H13:H14) -> 9411 | I12: =I13 -> 1.51 | J12: =SUMPRODUCT(J13:J14,F13:F14)/F12 -> 8.72 | K12: =K13 -> 0.05 | L12: =L13 -> 0.02 | M12: =G12/(F12*8.76) -> 0.7678604337 | N12: =H12/(F12*8.76) -> 0.6021945451 | O12: 2000 | P12: 100 | Q12: 2000 | R12: =Q12&" "&HLOOKUP(S$2,$T$2:$W$68,S12,FALSE) -> 2000 1330 | S12: 11 | T12: 1330 | U12: =ROUND(T12+($Z12-$T12)/6,0) -> 1406 | V12: =ROUND(U12+($Z12-$T12)/6,0) -> 1482 | W12: =ROUND(V12+($Z12-$T12)/6,0) -> 1558 | X12: =ROUND(W12+($Z12-$T12)/6,0) -> 1634 | Y12: =ROUND(X12+($Z12-$T12)/6,0) -> 1710 | Z12: =SUM(Z13:Z14) -> 1784 | AA12: =U12-T12 -> 76 | AB12: 76 | AC12: 76 | AD12: 76 | AE12: 76 | AF12: 74 | AG12: =IF(AA$2>=$S$2,AA12,"")&" "&IF(AB$2>=$S$2,AB12,"")&" "&AC12&" "&AD12&" "&AE12&" "&AF12&" "&0 -> 76 76 76 76 76 74 0
A13: Inga 1 | D13: 60 | E13: 6 | F13: 360 | G13: 2400 | H13: 1882 | I13: 1.51 | J13: 8.72 | K13: 0.05 | L13: 0.02 | M13: 0.761 | N13: 0.5967782851 | O13: 565 | S13: 12 | T13: 205 | U13: 230 | V13: 256 | W13: 281 | X13: 306 | Y13: 331 | Z13: 360
A14: Inga 2 | D14: 178 | E14: 8 | F14: 1424 | G14: 9600 | H14: 7529 | I14: 1.51 | J14: 8.72 | K14: 0.05 | L14: 0.02 | M14: 0.77 | N14: 0.6035638243 | O14: 709 | S14: 13 | T14: 812 | U14: 911 | V14: 1011 | W14: 1111 | X14: 1210 | Y14: 1310 | Z14: 1424
A15: High Availability | B15: =B11&C15 -> DRCEPHYDEXHA | C15: EPHYDEXHA | D15: =SUMPRODUCT(D16:D18,E16:E18)/E15 -> 36.18181818 | E15: =SUM(E16:E18) -> 11 | F15: =SUM(F16:F18) -> 398 | G15: =SUM(G16:G18) -> 1970 | H15: =SUM(H16:H18) -> 1545 | I15: =I16 -> 1.51 | J15: =J16 -> 8.72 | K15: =K16 -> 0.05 | L15: =L16 -> 0.02 | M15: =G15/(F15*8.76) -> 0.5650398109 | N15: =H15/(F15*8.76) -> 0.4431403593 | O15: =SUMPRODUCT(O16:O18,F16:F18)/F15 -> 881.7437186 | P15: 100 | Q15: 2000 | R15: =Q15&" "&HLOOKUP(S$2,$T$2:$W$68,S15,FALSE) -> 2000 227 | S15: 14 | T15: =SUM(T16:T18) -> 227 | U15: =SUM(U16:U18) -> 255 | V15: 283 | W15: 310 | X15: 339 | Y15: 366 | Z15: 398 | AA15: =U15-T15 -> 28 | AB15: 28 | AC15: 27 | AD15: 29 | AE15: 27 | AF15: 32 | AG15: =IF(AA$2>=$S$2,AA15,"")&" "&IF(AB$2>=$S$2,AB15,"")&" "&AC15&" "&AD15&" "&AE15&" "&AF15&" "&0 -> 28 28 27 29 27 32 0
A16: Nseke | D16: 62 | E16: 4 | F16: 248 | G16: 1200 | H16: 941 | I16: 1.51 | J16: 8.72 | K16: 0.05 | L16: 0.02 | M16: 0.552 | N16: 0.4331455295 | O16: 903 | S16: 15 | T16: 141 | U16: 159 | V16: 176 | W16: 193 | X16: 211 | Y16: 228 | Z16: 248
A17: Nzilo | D17: 27 | E17: 4 | F17: 108 | G17: 570 | H17: 447 | I17: 1.51 | J17: 8.72 | K17: 0.05 | L17: 0.02 | M17: 0.602 | N17: 0.4724759006 | O17: 1037 | S17: 16 | T17: 62 | U17: 69 | V17: 77 | W17: 84 | X17: 92 | Y17: 99 | Z17: 108
A18: Koni | D18: 14 | E18: 3 | F18: 42 | G18: 200 | H18: 157 | I18: 1.51 | J18: 8.72 | K18: 0.05 | L18: 0.02 | M18: 0.544 | N18: 0.4267232007 | O18: 357 | S18: 17 | T18: 24 | U18: 27 | V18: 30 | W18: 33 | X18: 36 | Y18: 39 | Z18: 42
A19: Low Availability | B19: =B11&C19 -> DRCEPHYDEXLA | C19: EPHYDEXLA | D19: =SUMPRODUCT(D20:D22,E20:E22)/E19 -> 11.46153846 | E19: =SUM(E20:E22) -> 13 | F19: =SUM(F20:F22) -> 151 | G19: =SUM(G20:G22) -> 289 | H19: =SUM(H20:H22) -> 227 | I19: =I20 -> 1.51 | J19: =J20 -> 8.72 | K19: =K20 -> 0.05 | L19: =L20 -> 0.02 | M19: =G19/(F19*8.76) -> 0.2184825668 | N19: =H19/(F19*8.76) -> 0.1716108742 | O19: =SUMPRODUCT(O20:O22,F20:F22)/F19 -> 1298.178808 | P19: 100 | Q19: 2000 | R19: =Q19&" "&HLOOKUP(S$2,$T$2:$W$68,S19,FALSE) -> 2000 87 | S19: 18 | T19: =SUM(T20:T22) -> 87 | U19: 97 | V19: 107 | W19: 118 | X19: 129 | Y19: 139 | Z19: 151 | AA19: =U19-T19 -> 10 | AB19: 10 | AC19: 11 | AD19: 11 | AE19: 10 | AF19: 12 | AG19: =IF(AA$2>=$S$2,AA19,"")&" "&IF(AB$2>=$S$2,AB19,"")&" "&AC19&" "&AD19&" "&AE19&" "&AF19&" "&0 -> 10 10 11 11 10 12 0
A20: Mwadingusha | D20: 11 | E20: 6 | F20: 68 | G20: 200 | H20: 157 | I20: 1.51 | J20: 8.72 | K20: 0.05 | L20: 0.02 | M20: 0.336 | N20: 0.2635643298 | O20: 2500 | S20: 19 | T20: 39 | U20: 44 | V20: 48 | W20: 53 | X20: 58 | Y20: 63 | Z20: 68
A21: Zongo | D21: 15 | E21: 5 | F21: 75 | G21: 80 | H21: 63 | I21: 1.51 | J21: 8.72 | K21: 0.05 | L21: 0.02 | M21: 0.121 | N21: 0.09589041096 | O21: 267 | S21: 20 | T21: 43 | U21: 48 | V21: 53 | W21: 59 | X21: 64 | Y21: 69 | Z21: 75
A22: Sanga | D22: 4 | E22: 2 | F22: 8 | G22: 9 | H22: 7 | I22: 1.51 | J22: 8.72 | K22: 0.05 | L22: 0.02 | M22: 0.128 | N22: 0.09988584475 | O22: 750 | S22: 21 | T22: 5 | U22: 5 | V22: 6 | W22: 6 | X22: 7 | Y22: 7 | Z22: 8
A23: Lesotho | B23: =VLOOKUP(A23,NameConvs!$A$53:$B$64,2,FALSE) -> LES | F23: =F24 -> 73 | G23: =G24 -> 414 | H23: =H24 -> 274 | S23: 22
A24: Existing hydro | B24: =B23&C24 -> LESEPHYDEX | C24: EPHYDEX | D24: =SUMPRODUCT(D25:D26,E25:E26)/E24 -> 18.25 | E24: =SUM(E25:E27) -> 4 | F24: =SUM(F25:F26) -> 73 | G24: =SUM(G25:G26) -> 414 | H24: =SUM(H25:H26) -> 274 | I24: =I25 -> 1.51 | J24: =SUMPRODUCT(J25:J26,F25:F26)/F24 -> 8.72 | K24: =K25 -> 0.05 | L24: =L25 -> 0.02 | M24: =G24/(F24*8.76) -> 0.6474010133 | N24: =H24/(F24*8.76) -> 0.4284731344 | S24: 23
A25: Muela | D25: 24 | E25: 3 | F25: 72 | G25: 410 | H25: 271 | I25: 1.51 | J25: 8.72 | K25: 0.05 | L25: 0.02 | M25: 0.65 | N25: 0.4296676814 | S25: 24
A26: Small Hydro | D26: 1 | E26: 1 | F26: 1 | G26: 4 | H26: 3 | I26: 1.51 | J26: 8.72 | K26: 0.05 | L26: 0.02 | M26: 0.457 | N26: 0.3424657534 | S26: 25
A27: Malawi | B27: =VLOOKUP(A27,NameConvs!$A$53:$B$64,2,FALSE) -> MAL | F27: =F28+F31+F34 -> 277.6 | G27: =G28+G31+G34 -> 1391 | H27: =H28+H31+H34 -> 919 | S27: 26
A28: Nkula | B28: =B27&C28 -> MALEPHYDEXnkul | C28: EPHYDEXnkul | D28: =SUMPRODUCT(D29:D30,E29:E30)/E28 -> 3.72 | E28: =SUM(E29:E32) -> 30 | F28: =SUM(F29:F30) -> 121.6 | G28: =SUM(G29:G30) -> 402 | H28: =SUM(H29:H30) -> 265 | I28: =I29 -> 1.51 | J28: =SUMPRODUCT(J29:J30,F29:F30)/F28 -> 8.72 | K28: =K29 -> 0.0685 | L28: =L29 -> 0.02 | M28: =G28/(F28*8.76) -> 0.377388248 | N28: =H28/(F28*8.76) -> 0.2487758351 | S28: 27
A29: Nkula A | D29: 7.2 | E29: 3 | F29: 21.6 | G29: 112 | H29: 74 | I29: 1.51 | J29: 8.72 | K29: 0.0685 | L29: 0.02 | M29: 0.59 | N29: 0.3910874345 | S29: 28
A30: Nkula B | D30: 18 | E30: 5 | F30: 100 | G30: 290 | H30: 191 | I30: 1.51 | J30: 8.72 | K30: 0.0685 | L30: 0.02 | M30: 0.368 | N30: 0.2180365297 | S30: 29
A31: Tedzani | B31: =B27&C31 -> MALEPHYDEXtedz | C31: EPHYDEXtedz | D31: =SUMPRODUCT(D32:D33,E32:E33)/E31 -> 4.577777778 | E31: =SUM(E32:E35) -> 18 | F31: =SUM(F32:F33) -> 88 | G31: =SUM(G32:G33) -> 511 | H31: =SUM(H32:H33) -> 338 | I31: =I32 -> 1.51 | J31: =SUMPRODUCT(J32:J33,F32:F33)/F31 -> 8.72 | K31: =K32 -> 0.0685 | L31: =L32 -> 0.02 | M31: =G31/(F31*8.76) -> 0.6628787879 | N31: =H31/(F31*8.76) -> 0.4384599419 | S31: 30 | AA31: 40 | AG31: =IF(AA$2>=$S$2,AA31,"")&" "&IF(AB$2>=$S$2,AB31,"")&" "&AC31&" "&AD31&" "&AE31&" "&AF31&" "&0 -> 40 0
A32: Tedzani I&II | D32: 9 | E32: 4 | F32: 36 | G32: 255 | H32: 169 | I32: 1.51 | J32: 8.72 | K32: 0.0685 | L32: 0.02 | M32: 0.81 | N32: =N33/M33*M32 -> 0.4770058708 | O32: 300 | S32: 31 | U32: 40 | AA32: 40
A33: Tedzani III | D33: 23.2 | E33: 2 | F33: 52 | G33: 256 | H33: 169 | I33: 1.51 | J33: 8.72 | K33: 0.0685 | L33: 0.01 | M33: 0.63 | N33: 0.3710045662 | S33: 32
A34: Other Hydros | B34: =B27&C34 -> MALEPHYDEXoth | C34: EPHYDEXoth | D34: =SUMPRODUCT(D35:D36,E35:E36)/E34 -> 6.82 | E34: =SUM(E35:E40) -> 10 | F34: =SUM(F35:F36) -> 68 | G34: =SUM(G35:G36) -> 478 | H34: =SUM(H35:H36) -> 316 | I34: =I35 -> 1.51 | J34: =SUMPRODUCT(J35:J36,F35:F36)/F34 -> 8.72 | K34: =K35 -> 0.0685 | L34: =L35 -> 0.02 | M34: =G34/(F34*8.76) -> 0.8024442654 | N34: =H34/(F34*8.76) -> 0.5304861671 | S34: 33
A35: Kapichira I | D35: 32 | E35: 2 | F35: 64 | G35: 469 | H35: 310 | I35: 1.51 | J35: 8.72 | K35: 0.0685 | L35: 0.02 | M35: 0.837 | N35: 0.5529394977 | S35: 34
A36: Wowve | D36: 1.4 | E36: 3 | F36: 4 | G36: 9 | H36: 6 | I36: 1.51 | J36: 8.72 | K36: 0.0685 | L36: 0.01 | M36: 0.245 | N36: 0.1712328767 | S36: 35
A37: Name of Station | B37: MESSAGE Name with Country Prefix | C37: MESSAGE name | D37: Unit Capacity | E37: # of Units | F37: Plant Capacity | G37: Average Generation | H37: Dry Year Generation | I37: Variable O&M | J37: Fixed O&M | K37: Planned Outage | L37: Forced Outage | M37: Average CF | N37: Dry Year CF | O37: overnight Inv. cost | P37: Life | Q37: Instal year | R37: hist string | S37: 36
D38: MW | F38: MW | G38: GWh | H38: GWh | I38: US$/MWh | J38: US$/kW | S38: 37
A39: Mozambique | B39: =VLOOKUP(A39,NameConvs!$A$53:$B$64,2,FALSE) -> MOZ | F39: =F40+F41 -> 2122 | G39: =G40+G41 -> 15604 | H39: =H40+H41 -> 12107 | S39: 38
A40: Cahora Bassa | B40: =B39&C40 -> MOZEPHYDEXcaba | C40: EPHYDEXcaba | D40: 415 | E40: 5 | F40: 2075 | G40: 15300 | H40: 12000 | I40: 1.51 | J40: 8.72 | K40: 0.05 | L40: 0.02 | M40: 0.842 | N40: 0.6601749464 | S40: 39
A41: Other Hydros | B41: =B39&C41 -> MOZEPHYDEXoth | C41: EPHYDEXoth | D41: =SUMPRODUCT(D42:D44,E42:E44)/E41 -> 10.44444444 | E41: =SUM(E42:E44) -> 4.5 | F41: =SUM(F42:F44) -> 47 | G41: =SUM(G42:G44) -> 304 | H41: =SUM(H42:H44) -> 107 | I41: =I42 -> 1.51 | J41: =J42 -> 8.72 | K41: =K42 -> 0.05 | L41: =L42 -> 0.02 | M41: =G41/(F41*8.76) -> 0.7383658797 | N41: =H41/(F41*8.76) -> 0.259885359 | O41: 882 | P41: 100 | Q41: 2000 | R41: =Q41&" "&HLOOKUP(S$2,$T$2:$W$68,S41,FALSE) -> 2000 47 | S41: 40 | T41: =SUM(T42:T44) -> 47 | U41: =SUM(U42:U44) -> 65 | V41: =SUM(V42:V44) -> 82 | AA41: =U41-T41 -> 18 | AB41: =V41-U41 -> 17 | AG41: =IF(AA$2>=$S$2,AA41,"")&" "&IF(AB$2>=$S$2,AB41,"")&" "&AC41&" "&AD41&" "&AE41&" "&AF41&" "&0 -> 18 17 0
A42: Chicamba | D42: 17 | E42: 1 | F42: 17 | G42: 46 | H42: 10 | I42: 1.51 | J42: 8.72 | K42: 0.05 | L42: 0.02 | M42: 0.154 | N42: 0.06715014773 | O42: 882 | S42: 41 | T42: 17 | U42: 26 | V42: 34
A43: Corumana | D43: 6 | E43: 2 | F43: 12 | G43: 21 | H43: 11 | I43: 1.51 | J43: 8.72 | K43: 0.05 | L43: 0.02 | M43: 0.204 | N43: 0.1046423135 | S43: 42 | T43: 12 | U43: 12 | V43: 12
A44: Mavuzi | D44: 12 | E44: 1.5 | F44: 18 | G44: 237 | H44: 86 | I44: 1.51 | J44: 8.72 | K44: 0.05 | L44: 0.02 | M44: 0.752 | N44: 0.5454084221 | O44: 882 | S44: 43 | T44: 18 | U44: 27 | V44: 36
A45: Namibia | B45: =VLOOKUP(A45,NameConvs!$A$53:$B$64,2,FALSE) -> NAM | F45: =F46 -> 240 | G45: =G46 -> 1395 | H45: =H46 -> 921 | S45: 44 | AA45: 0 | AB45: 0 | AC45: 90 | AG45: =IF(AA$2>=$S$2,AA45,"")&" "&IF(AB$2>=$S$2,AB45,"")&" "&AC45&" "&AD45&" "&AE45&" "&AF45&" "&0 -> 0 0 90 0
A46: Ruacana | B46: =B45&C46 -> NAMEPHYDEX | C46: EPHYDEX | D46: 80 | E46: 3 | F46: 240 | G46: 1395 | H46: 921 | I46: 1.51 | J46: 8.72 | K46: 0.05 | L46: 0.02 | M46: 0.664 | N46: 0.4380707763 | S46: 45
A47: Swaziland | B47: =VLOOKUP(A47,NameConvs!$A$53:$B$64,2,FALSE) -> SWA | F47: =F48 -> 62 | G47: =G48 -> 202 | H47: =H48 -> 134 | S47: 46
A48: Hydros | B48: =B47&C48 -> SWAEPHYDEX | C48: EPHYDEX | D48: =SUMPRODUCT(D49:D50,E49:E50)/E48 -> 2.384615385 | E48: =SUM(E49:E52) -> 26 | F48: =SUM(F49:F50) -> 62 | G48: =SUM(G49:G50) -> 202 | H48: =SUM(H49:H50) -> 134 | I48: =I49 -> 1.51 | J48: =SUMPRODUCT(J49:J50,F49:F50)/F48 -> 8.72 | K48: =K49 -> 0.05 | L48: =L49 -> 0.02 | M48: =G48/(F48*8.76) -> 0.3719251731 | N48: =H48/(F48*8.76) -> 0.2467226396 | P48: 100 | R48: 2000 42 2007 20 | S48: 47
A49: Ezulwini, Edwaleni, Magud | D49: 14 | E49: 3 | F49: 42 | G49: 125 | H49: 83 | I49: 1.51 | J49: 8.72 | K49: 0.05 | L49: 0.02 | M49: 0.34 | N49: 0.2255925201 | S49: 48
A50: Maguga | D50: 10 | E50: 2 | F50: 20 | G50: 77 | H50: 51 | I50: 1.51 | J50: 8.72 | K50: 0.05 | L50: 0.02 | M50: 0.437 | N50: 0.2910958904 | S50: 49
A51: Tanzania | B51: =VLOOKUP(A51,NameConvs!$A$53:$B$64,2,FALSE) -> TAN | F51: =F52+F55 -> 561 | G51: =G52 -> 1525 | H51: =H52 -> 1161 | S51: 50
A52: Large Hydros | B52: =B51&C52 -> TANEPHYDEXLU | C52: EPHYDEXLU | D52: =SUMPRODUCT(D53:D54,E53:E54)/E52 -> 18.28571429 | E52: =SUM(E53:E56) -> 21 | F52: =SUM(F53:F54) -> 384 | G52: =SUM(G53:G54) -> 1525 | H52: =SUM(H53:H54) -> 1161 | I52: =I53 -> 0 | J52: =SUMPRODUCT(J53:J54,F53:F54)/F52 -> 5.765625 | K52: =K53 -> 0.05 | L52: =L53 -> 0.02 | M52: =G52/(F52*8.76) -> 0.4533509323 | N52: =H52/(F52*8.76) -> 0.3451412671 | S52: 51
A53: Kidatu | D53: 51 | E53: 4 | F53: 204 | G53: 1013 | H53: 669 | I53: 0 | J53: 6 | K53: 0.05 | L53: 0.02 | M53: 0.567 | N53: 0.3743620736 | S53: 52
A54: Kihansi | D54: 60 | E54: 3 | F54: 180 | G54: 512 | H54: 492 | I54: 0 | J54: 5.5 | K54: 0.05 | L54: 0.02 | M54: 0.325 | N54: =H54/(F54*8.76) -> 0.3120243531 | S54: 53
A55: Other Hydros | B55: =B51&C55 -> TANEPHYDEXoth | C55: EPHYDEXoth | D55: =SUMPRODUCT(D56:D59,E56:E59)/E55 -> 17.8 | E55: =SUM(E56:E59) -> 10 | F55: =SUM(F56:F59) -> 177 | G55: =SUM(G56:G59) -> 812 | H55: =SUM(H56:H59) -> 483 | I55: =I56 -> 0 | J55: =SUMPRODUCT(J56:J59,F56:F59)/F55 -> 11.24293785 | K55: =K56 -> 0.05 | L55: =L56 -> 0.02 | M55: =G55/(F55*8.76) -> 0.5236952764 | N55: =H55/(F55*8.76) -> 0.3115083972 | S55: 54
A56: Mtera | D56: 20 | E56: 4 | F56: 80 | G56: 374 | H56: 195 | I56: 0 | J56: 7 | K56: 0.05 | L56: 0.02 | M56: 0.534 | N56: =H56/(F56*8.76) -> 0.2782534247 | S56: 55
A57: Pangani Falls | D57: 34 | E57: 2 | F57: 68 | G57: 308 | H57: 203 | I57: 0 | J57: 8 | K57: 0.05 | L57: 0.02 | M57: 0.517 | N57: 0.3407869997 | S57: 56
A58: Hale | D58: 11 | E58: 2 | F58: 21 | G58: 93 | H58: 61 | I58: 0 | J58: 30 | K58: 0.05 | L58: 0.02 | M58: 0.506 | N58: =H58/(F58*8.76) -> 0.3315938247 | S58: 57
A59: Nyumba ya Mungu | D59: 4 | E59: 2 | F59: 8 | G59: 37 | H59: 24 | I59: 0 | J59: 32 | K59: 0.05 | L59: 0.02 | M59: 0.528 | N59: 0.3424657534 | S59: 58
A60: Zambia | B60: =VLOOKUP(A60,NameConvs!$A$53:$B$64,2,FALSE) -> ZAM | F60: =F61+F64 -> 1752 | G60: =G61+G64 -> 10043 | H60: =H61+H64 -> 7778 | S60: 59
A61: Large Hydros | B61: =B60&C61 -> ZAMEPHYDEXLU | C61: EPHYDEXLU | D61: =SUMPRODUCT(D62:D63,E62:E63)/E61 -> 42.63157895 | E61: =SUM(E62:E66) -> 38 | F61: =SUM(F62:F63) -> 1620 | G61: =SUM(G62:G63) -> 9256 | H61: =SUM(H62:H63) -> 7259 | I61: =I62 -> 1.51 | J61: =SUMPRODUCT(J62:J63,F62:F63)/F61 -> 8.72 | K61: =K62 -> 0.05 | L61: =L62 -> 0.02 | M61: =G61/(F61*8.76) -> 0.652235188 | N61: =H61/(F61*8.76) -> 0.5115141778 | P61: 100 | Q61: 2000 | R61: =Q61&" "&HLOOKUP(S$2,$T$2:$W$68,S61,FALSE) -> 2000 1200 | S61: 60 | T61: =SUM(T62:T63) -> 1200 | U61: =SUM(U62:U63) -> 1200 | V61: =SUM(V62:V63) -> 1620 | W61: =SUM(W62:W63) -> 1620 | AA61: =U61-T61 -> 0 | AB61: =V61-U61 -> 420 | AG61: =IF(AA$2>=$S$2,AA61,"")&" "&IF(AB$2>=$S$2,AB61,"")&" "&AC61&" "&AD61&" "&AE61&" "&AF61&" "&0 -> 0 420 0
A62: Kariba North | D62: 180 | E62: 4 | F62: 720 | G62: 4000 | H62: 3137 | I62: 1.51 | J62: 8.72 | K62: 0.05 | L62: 0.02 | M62: 0.634 | N62: 0.4973680873 | S62: 61 | T62: 450 | U62: 450 | V62: 720 | W62: 720
A63: Kafue Gorge Upper | D63: 150 | E63: 6 | F63: 900 | G63: 5256 | H63: 4122 | I63: 1.51 | J63: 8.72 | K63: 0.05 | L63: 0.02 | M63: 0.667 | N63: 0.5228310502 | S63: 62 | T63: 750 | U63: 750 | V63: 900 | W63: 900
A64: Other Hydros | B64: =B60&C64 -> ZAMEPHYDEXoth | C64: EPHYDEXoth | D64: =SUMPRODUCT(D65:D66,E65:E66)/E64 -> 7.882352941 | E64: =SUM(E65:E68) -> 17 | F64: =SUM(F65:F66) -> 132 | G64: =SUM(G65:G66) -> 787 | H64: =SUM(H65:H66) -> 519 | I64: =I65 -> 1.51 | J64: =SUMPRODUCT(J65:J66,F65:F66)/F64 -> 8.72 | K64: =K65 -> 0.05 | L64: =L65 -> 0.02 | M64: =G64/(F64*8.76) -> 0.6806074443 | N64: =H64/(F64*8.76) -> 0.448837692 | S64: 63
A65: Victoria | D65: 11 | E65: 10 | F65: 108 | G65: 662 | H65: 437 | I65: 1.51 | J65: 8.72 | K65: 0.05 | L65: 0.02 | M65: 0.7 | N65: 0.4619059699 | S65: 64
A66: Small Hydro | D66: 24 | E66: 1 | F66: 24 | G66: 125 | H66: 82 | I66: 1.51 | J66: 8.72 | K66: 0.05 | L66: 0.02 | M66: 0.6 | N66: 0.3900304414 | S66: 65
A67: Zimbabwe | B67: =VLOOKUP(A67,NameConvs!$A$53:$B$64,2,FALSE) -> ZIM | F67: =F68 -> 750 | G67: =G68 -> 4000 | H67: =H68 -> 3137 | S67: 66
A68: Kariba South | B68: =B67&C68 -> ZIMEPHYDEX | C68: EPHYDEX | D68: 125 | E68: 6 | F68: 750 | G68: 4000 | H68: 3137 | I68: 1.51 | J68: 8.72 | K68: 0.05 | L68: 0.02 | M68: 0.609 | N68: 0.4774733638 | S68: 67

Sheet Total Existing Capacity
A1: Country | B1: short name | C1: Thermal Capacity | D1: Hydro Capacity | E1: Total Capacity | F1: Total Thermal Energy | G1: Max hydro Energy | H1: Max Hydro Energy Dry year | I1: Total Energy | J1: Total Energy Dry Year | O1: Wind Potential
C2: MW | D2: MW | E2: MW | F2: GWh | G2: GWh | H2: GWh | I2: GWh | J2: GWh | N2: Burkina | O2: Average (6 m/s)
A3: =NameConvsw!A$58 -> Angola | B3: =NameConvsw!B58 -> ANG | C3: =SUMIF('SAPP Thermal Existing'!$B$3:$B$39,$B3,'SAPP Thermal Existing'!$G$3:$G$39) -> 263 | D3: =SUMIF('SAPP Hydro Existing'!$B$3:$B$68,$B3,'SAPP Hydro Existing'!$F$3:$F$68) -> 474 | E3: =SUM(C3:D3) -> 737 | F3: =SUMIF('SAPP Thermal Existing'!$B$3:$B$39,$B3,'SAPP Thermal Existing'!$Q$3:$Q$39) -> 1977.406057 | G3: =SUMIF('SAPP Hydro Existing'!$B$3:$B$68,$B3,'SAPP Hydro Existing'!$G$3:$G$68) -> 2595 | H3: =SUMIF('SAPP Hydro Existing'!$B$3:$B$68,$B3,'SAPP Hydro Existing'!$H$3:$H$68) -> 1713 | I3: =SUM(F3:G3) -> 4572.406057 | J3: =H3+F3 -> 3690.406057 | N3: Cote d'Ivoire | O3: Less than average (4.8 m/s)
A4: =NameConvsw!A59 -> Botswana | B4: =NameConvsw!B59 -> BOT | C4: =SUMIF('SAPP Thermal Existing'!$B$3:$B$39,$B4,'SAPP Thermal Existing'!$G$3:$G$39) -> 132 | D4: =SUMIF('SAPP Hydro Existing'!$B$3:$B$68,$B4,'SAPP Hydro Existing'!$F$3:$F$68) -> 0 | E4: 132 | F4: =SUMIF('SAPP Thermal Existing'!$B$3:$B$39,$B4,'SAPP Thermal Existing'!$Q$3:$Q$39) -> 1017.587502 | G4: =SUMIF('SAPP Hydro Existing'!$B$3:$B$68,$B4,'SAPP Hydro Existing'!$G$3:$G$68) -> 0 | H4: =SUMIF('SAPP Hydro Existing'!$B$3:$B$68,$B4,'SAPP Hydro Existing'!$H$3:$H$68) -> 0 | I4: 1017.587502 | J4: 1017.587502 | N4: Gambia | O4: Average (6 m/s)
A5: =NameConvsw!A60 -> Democratic Republic of Congo | B5: =NameConvsw!B60 -> DRC | C5: =SUMIF('SAPP Thermal Existing'!$B$3:$B$39,$B5,'SAPP Thermal Existing'!$G$3:$G$39) -> 0 | D5: =SUMIF('SAPP Hydro Existing'!$B$3:$B$68,$B5,'SAPP Hydro Existing'!$F$3:$F$68) -> 2333 | E5: 2333 | F5: =SUMIF('SAPP Thermal Existing'!$B$3:$B$39,$B5,'SAPP Thermal Existing'!$Q$3:$Q$39) -> 0 | G5: =SUMIF('SAPP Hydro Existing'!$B$3:$B$68,$B5,'SAPP Hydro Existing'!$G$3:$G$68) -> 14259 | H5: =SUMIF('SAPP Hydro Existing'!$B$3:$B$68,$B5,'SAPP Hydro Existing'!$H$3:$H$68) -> 11183 | I5: 14259 | J5: 11183 | N5: Ghana | O5: Average (6 m/s)
A6: =NameConvsw!A61 -> Lesotho | B6: =NameConvsw!B61 -> LES | C6: =SUMIF('SAPP Thermal Existing'!$B$3:$B$39,$B6,'SAPP Thermal Existing'!$G$3:$G$39) -> 0 | D6: =SUMIF('SAPP Hydro Existing'!$B$3:$B$68,$B6,'SAPP Hydro Existing'!$F$3:$F$68) -> 73 | E6: 73 | F6: =SUMIF('SAPP Thermal Existing'!$B$3:$B$39,$B6,'SAPP Thermal Existing'!$Q$3:$Q$39) -> 0 | G6: =SUMIF('SAPP Hydro Existing'!$B$3:$B$68,$B6,'SAPP Hydro Existing'!$G$3:$G$68) -> 414 | H6: =SUMIF('SAPP Hydro Existing'!$B$3:$B$68,$B6,'SAPP Hydro Existing'!$H$3:$H$68) -> 274 | I6: 414 | J6: 274 | N6: Guinea | O6: Good (8 m/s)
A7: =NameConvsw!A62 -> Malawi | B7: =NameConvsw!B62 -> MAL | C7: =SUMIF('SAPP Thermal Existing'!$B$3:$B$39,$B7,'SAPP Thermal Existing'!$G$3:$G$39) -> 36 | D7: =SUMIF('SAPP Hydro Existing'!$B$3:$B$68,$B7,'SAPP Hydro Existing'!$F$3:$F$68) -> 277.6 | E7: 313.6 | F7: =SUMIF('SAPP Thermal Existing'!$B$3:$B$39,$B7,'SAPP Thermal Existing'!$Q$3:$Q$39) -> 252.5891688 | G7: =SUMIF('SAPP Hydro Existing'!$B$3:$B$68,$B7,'SAPP Hydro Existing'!$G$3:$G$68) -> 1391 | H7: =SUMIF('SAPP Hydro Existing'!$B$3:$B$68,$B7,'SAPP Hydro Existing'!$H$3:$H$68) -> 919 | I7: 1643.589169 | J7: 1171.589169 | N7: Guinea-Bissau | O7: Less than average (5 m/s)
A8: =NameConvsw!A63 -> Mozambique | B8: =NameConvsw!B63 -> MOZ | C8: =SUMIF('SAPP Thermal Existing'!$B$3:$B$39,$B8,'SAPP Thermal Existing'!$G$3:$G$39) -> 64 | D8: =SUMIF('SAPP Hydro Existing'!$B$3:$B$68,$B8,'SAPP Hydro Existing'!$F$3:$F$68) -> 2122 | E8: 2186 | F8: =SUMIF('SAPP Thermal Existing'!$B$3:$B$39,$B8,'SAPP Thermal Existing'!$Q$3:$Q$39) -> 449.0474112 | G8: =SUMIF('SAPP Hydro Existing'!$B$3:$B$68,$B8,'SAPP Hydro Existing'!$G$3:$G$68) -> 15604 | H8: =SUMIF('SAPP Hydro Existing'!$B$3:$B$68,$B8,'SAPP Hydro Existing'!$H$3:$H$68) -> 12107 | I8: 16053.04741 | J8: 12556.04741 | N8: Liberia | O8: Poor
A9: =NameConvsw!A64 -> Namibia | B9: =NameConvsw!B64 -> NAM | C9: =SUMIF('SAPP Thermal Existing'!$B$3:$B$39,$B9,'SAPP Thermal Existing'!$G$3:$G$39) -> 144 | D9: =SUMIF('SAPP Hydro Existing'!$B$3:$B$68,$B9,'SAPP Hydro Existing'!$F$3:$F$68) -> 240 | E9: 384 | F9: =SUMIF('SAPP Thermal Existing'!$B$3:$B$39,$B9,'SAPP Thermal Existing'!$Q$3:$Q$39) -> 1126.705663 | G9: =SUMIF('SAPP Hydro Existing'!$B$3:$B$68,$B9,'SAPP Hydro Existing'!$G$3:$G$68) -> 1395 | H9: =SUMIF('SAPP Hydro Existing'!$B$3:$B$68,$B9,'SAPP Hydro Existing'!$H$3:$H$68) -> 921 | I9: 2521.705663 | J9: 2047.705663 | N9: Mali | O9: Good (7.2 m/s)
A10: =NameConvsw!A65 -> South Africa | B10: =NameConvsw!B65 -> SAF | C10: ='SA System'!I5+'SA System'!I6+'SA System'!I29+'SA System'!I42 -> 39725 | D10: ='SA System'!I34 -> 665 | E10: 40390 | F10: =SUMIF('SAPP Thermal Existing'!$B$3:$B$39,$B10,'SAPP Thermal Existing'!$Q$3:$Q$39) -> 0 | G10: ='SA System'!L34*D10*8.76 -> 878.42652 | H10: ='SA System'!Q34*D10*8.76 -> 582.54 | I10: 878.42652 | J10: 582.54 | N10: Niger | O10: Good (8 m/s)
A11: =NameConvsw!A66 -> Swaziland | B11: =NameConvsw!B66 -> SWA | C11: =SUMIF('SAPP Thermal Existing'!$B$3:$B$39,$B11,'SAPP Thermal Existing'!$G$3:$G$39) -> 0 | D11: =SUMIF('SAPP Hydro Existing'!$B$3:$B$68,$B11,'SAPP Hydro Existing'!$F$3:$F$68) -> 62 | E11: 62 | F11: =SUMIF('SAPP Thermal Existing'!$B$3:$B$39,$B11,'SAPP Thermal Existing'!$Q$3:$Q$39) -> 0 | G11: =SUMIF('SAPP Hydro Existing'!$B$3:$B$68,$B11,'SAPP Hydro Existing'!$G$3:$G$68) -> 202 | H11: =SUMIF('SAPP Hydro Existing'!$B$3:$B$68,$B11,'SAPP Hydro Existing'!$H$3:$H$68) -> 134 | I11: 202 | J11: 134 | N11: Nigeria | O11: Good (7.8 m/s)
A12: =NameConvsw!A67 -> Tanzania | B12: =NameConvsw!B67 -> TAN | C12: =SUMIF('SAPP Thermal Existing'!$B$3:$B$39,$B12,'SAPP Thermal Existing'!$G$3:$G$39) -> 719 | D12: =SUMIF('SAPP Hydro Existing'!$B$3:$B$68,$B12,'SAPP Hydro Existing'!$F$3:$F$68) -> 561 | E12: =SUM(C12:D12) -> 1280 | F12: =SUMIF('SAPP Thermal Existing'!$B$3:$B$39,$B12,'SAPP Thermal Existing'!$Q$3:$Q$39) -> 5932.37405 | G12: =SUMIF('SAPP Hydro Existing'!$B$3:$B$68,$B12,'SAPP Hydro Existing'!$G$3:$G$68) -> 1525 | H12: =SUMIF('SAPP Hydro Existing'!$B$3:$B$68,$B12,'SAPP Hydro Existing'!$H$3:$H$68) -> 1161 | I12: 7457.37405 | J12: 7093.37405 | N12: Senegal | O12: Average (6 m/s)
A13: =NameConvsw!A68 -> Zambia | B13: =NameConvsw!B68 -> ZAM | C13: =SUMIF('SAPP Thermal Existing'!$B$3:$B$39,$B13,'SAPP Thermal Existing'!$G$3:$G$39) -> 10 | D13: =SUMIF('SAPP Hydro Existing'!$B$3:$B$68,$B13,'SAPP Hydro Existing'!$F$3:$F$68) -> 1752 | E13: 1762 | F13: =SUMIF('SAPP Thermal Existing'!$B$3:$B$39,$B13,'SAPP Thermal Existing'!$Q$3:$Q$39) -> 70.163658 | G13: =SUMIF('SAPP Hydro Existing'!$B$3:$B$68,$B13,'SAPP Hydro Existing'!$G$3:$G$68) -> 10043 | H13: =SUMIF('SAPP Hydro Existing'!$B$3:$B$68,$B13,'SAPP Hydro Existing'!$H$3:$H$68) -> 7778 | I13: 10113.16366 | J13: 7848.163658 | N13: Sierra Leone | O13: Poor
A14: =NameConvsw!A69 -> Zimbabwe | B14: =NameConvsw!B69 -> ZIM | C14: =SUMIF('SAPP Thermal Existing'!$B$3:$B$39,$B14,'SAPP Thermal Existing'!$G$3:$G$39) -> 360 | D14: =SUMIF('SAPP Hydro Existing'!$B$3:$B$68,$B14,'SAPP Hydro Existing'!$F$3:$F$68) -> 750 | E14: 1110 | F14: =SUMIF('SAPP Thermal Existing'!$B$3:$B$39,$B14,'SAPP Thermal Existing'!$Q$3:$Q$39) -> 2775.238641 | G14: =SUMIF('SAPP Hydro Existing'!$B$3:$B$68,$B14,'SAPP Hydro Existing'!$G$3:$G$68) -> 4000 | H14: =SUMIF('SAPP Hydro Existing'!$B$3:$B$68,$B14,'SAPP Hydro Existing'!$H$3:$H$68) -> 3137 | I14: 6775.238641 | J14: 5912.238641 | N14: Togo/Benin | O14: Average (6 m/s)
A16: Total | C16: =SUM(C3:C15) -> 41453 | D16: =SUM(D3:D15) -> 9309.6 | E16: 50762.6 | F16: 13601.11215 | G16: 52306.42652 | H16: 39909.54 | I16: 65907.53867 | J16: 53510.65215
A18: Country | B18: short name | C18: Thermal Capacity | D18: Hydro Capacity | E18: Total Capacity | G18: Max hydro Energy | H18: Max Hydro Energy Dry year
C19: MW | D19: MW | E19: MW | G19: GWh | H19: GWh
A20: =NameConvsw!A58 -> Angola | B20: =NameConvsw!B58 -> ANG | C20: =SUMIF(SiteSpecific_data!$A$6:$A$82,A20,SiteSpecific_data!$E$6:$E$82) -> 288 | D20: =SUMIF(SiteSpecific_data!$A$6:$A$82,A20,SiteSpecific_data!$D$6:$D$82) -> 6735 | E20: =SUM(C20:D20) -> 7023 | G20: =SUMIF('Oper hydro SiteSpec'!$A$5:$A$43,$B20,'Oper hydro SiteSpec'!$F$5:$F$43) -> 2063 | H20: =SUMIF(SiteSpecific_data!$A$6:$A$82,A20,SiteSpecific_data!$V$6:$V$82) -> 15469.96154 | N20: =G20/(D20*8.76) -> 0.03496693142 | O20: =H20/(D20*8.76) -> 0.2622089598
A21: =NameConvsw!A59 -> Botswana | B21: =NameConvsw!B59 -> BOT | C21: =SUMIF(SiteSpecific_data!$A$6:$A$82,A21,SiteSpecific_data!$E$6:$E$82) -> 3630 | D21: =SUMIF(SiteSpecific_data!$A$6:$A$82,A21,SiteSpecific_data!$D$6:$D$82) -> 0 | E21: 3630 | G21: =SUMIF('Oper hydro SiteSpec'!$A$5:$A$43,$B21,'Oper hydro SiteSpec'!$F$5:$F$43) -> 0 | H21: =SUMIF(SiteSpecific_data!$A$6:$A$82,A21,SiteSpecific_data!$V$6:$V$82) -> 0 | N21: =G21/(D21*8.76) ->  | O21: =H21/(D21*8.76) -> 
A22: =NameConvsw!A60 -> Democratic Republic of Congo | B22: =NameConvsw!B60 -> DRC | C22: =SUMIF(SiteSpecific_data!$A$6:$A$82,A22,SiteSpecific_data!$E$6:$E$82) -> 0 | D22: =SUMIF(SiteSpecific_data!$A$6:$A$82,A22,SiteSpecific_data!$D$6:$D$82) -> 20240 | E22: 20240 | G22: =SUMIF('Oper hydro SiteSpec'!$A$5:$A$43,$B22,'Oper hydro SiteSpec'!$F$5:$F$43) -> 63676 | H22: =SUMIF(SiteSpecific_data!$A$6:$A$82,A22,SiteSpecific_data!$V$6:$V$82) -> 122081.1429 | N22: 0.3591378346 | O22: 0.6885476049
A23: =NameConvsw!A61 -> Lesotho | B23: =NameConvsw!B61 -> LES | C23: =SUMIF(SiteSpecific_data!$A$6:$A$82,A23,SiteSpecific_data!$E$6:$E$82) -> 0 | D23: =SUMIF(SiteSpecific_data!$A$6:$A$82,A23,SiteSpecific_data!$D$6:$D$82) -> 190 | E23: 190 | G23: =SUMIF('Oper hydro SiteSpec'!$A$5:$A$43,$B23,'Oper hydro SiteSpec'!$F$5:$F$43) -> 500 | H23: =SUMIF(SiteSpecific_data!$A$6:$A$82,A23,SiteSpecific_data!$V$6:$V$82) -> 330 | N23: 0.3004085556 | O23: 0.1982696467
A24: =NameConvsw!A62 -> Malawi | B24: =NameConvsw!B62 -> MAL | C24: =SUMIF(SiteSpecific_data!$A$6:$A$82,A24,SiteSpecific_data!$E$6:$E$82) -> 0 | D24: =SUMIF(SiteSpecific_data!$A$6:$A$82,A24,SiteSpecific_data!$D$6:$D$82) -> 614 | E24: 614 | G24: =SUMIF('Oper hydro SiteSpec'!$A$5:$A$43,$B24,'Oper hydro SiteSpec'!$F$5:$F$43) -> 4885 | H24: =SUMIF(SiteSpecific_data!$A$6:$A$82,A24,SiteSpecific_data!$V$6:$V$82) -> 1957.644796 | N24: 0.9082221528 | O24: 0.3639665039
A25: =NameConvsw!A63 -> Mozambique | B25: =NameConvsw!B63 -> MOZ | C25: =SUMIF(SiteSpecific_data!$A$6:$A$82,A25,SiteSpecific_data!$E$6:$E$82) -> 1610 | D25: =SUMIF(SiteSpecific_data!$A$6:$A$82,A25,SiteSpecific_data!$D$6:$D$82) -> 3147 | E25: 4757 | G25: =SUMIF('Oper hydro SiteSpec'!$A$5:$A$43,$B25,'Oper hydro SiteSpec'!$F$5:$F$43) -> 12678 | H25: =SUMIF(SiteSpecific_data!$A$6:$A$82,A25,SiteSpecific_data!$V$6:$V$82) -> 9138.971154 | N25: 0.4598856924 | O25: 0.3315098657
A26: =NameConvsw!A64 -> Namibia | B26: =NameConvsw!B64 -> NAM | C26: =SUMIF(SiteSpecific_data!$A$6:$A$82,A26,SiteSpecific_data!$E$6:$E$82) -> 1074 | D26: =SUMIF(SiteSpecific_data!$A$6:$A$82,A26,SiteSpecific_data!$D$6:$D$82) -> 360 | E26: 1434 | G26: =SUMIF('Oper hydro SiteSpec'!$A$5:$A$43,$B26,'Oper hydro SiteSpec'!$F$5:$F$43) -> 1724 | H26: =SUMIF(SiteSpecific_data!$A$6:$A$82,A26,SiteSpecific_data!$V$6:$V$82) -> 1138 | N26: 0.5466768138 | O26: 0.3608574328
A27: =NameConvsw!A65 -> South Africa | B27: =NameConvsw!B65 -> SAF | C27: =SUMIF(SiteSpecific_data!$A$6:$A$82,A27,SiteSpecific_data!$E$6:$E$82) -> 7704 | D27: =SUMIF(SiteSpecific_data!$A$6:$A$82,A27,SiteSpecific_data!$D$6:$D$82) -> 2832 | E27: 10536 | G27: =SUMIF('Oper hydro SiteSpec'!$A$5:$A$43,$B27,'Oper hydro SiteSpec'!$F$5:$F$43) -> 0 | H27: =SUMIF(SiteSpecific_data!$A$6:$A$82,A27,SiteSpecific_data!$V$6:$V$82) -> 4713.5808 | N27: 0 | O27: 0.19
A28: =NameConvsw!A66 -> Swaziland | B28: =NameConvsw!B66 -> SWA | C28: =SUMIF(SiteSpecific_data!$A$6:$A$82,A28,SiteSpecific_data!$E$6:$E$82) -> 0 | D28: =SUMIF(SiteSpecific_data!$A$6:$A$82,A28,SiteSpecific_data!$D$6:$D$82) -> 0 | E28: 0 | G28: =SUMIF('Oper hydro SiteSpec'!$A$5:$A$43,$B28,'Oper hydro SiteSpec'!$F$5:$F$43) -> 77 | H28: =SUMIF(SiteSpecific_data!$A$6:$A$82,A28,SiteSpecific_data!$V$6:$V$82) -> 0
A29: =NameConvsw!A67 -> Tanzania | B29: =NameConvsw!B67 -> TAN | C29: =SUMIF(SiteSpecific_data!$A$6:$A$82,A29,SiteSpecific_data!$E$6:$E$82) -> 1000 | D29: =SUMIF(SiteSpecific_data!$A$6:$A$82,A29,SiteSpecific_data!$D$6:$D$82) -> 1972 | E29: =SUM(C29:D29) -> 2972 | G29: =SUMIF('Oper hydro SiteSpec'!$A$5:$A$43,$B29,'Oper hydro SiteSpec'!$F$5:$F$43) -> 2825 | H29: =SUMIF(SiteSpecific_data!$A$6:$A$82,A29,SiteSpecific_data!$V$6:$V$82) -> 6279 | N29: 0.1635337649 | O29: 0.3634791186
A30: =NameConvsw!A68 -> Zambia | B30: =NameConvsw!B68 -> ZAM | C30: =SUMIF(SiteSpecific_data!$A$6:$A$82,A30,SiteSpecific_data!$E$6:$E$82) -> 300 | D30: =SUMIF(SiteSpecific_data!$A$6:$A$82,A30,SiteSpecific_data!$D$6:$D$82) -> 4299 | E30: =SUM(C30:D30) -> 4599 | G30: =SUMIF('Oper hydro SiteSpec'!$A$5:$A$43,$B30,'Oper hydro SiteSpec'!$F$5:$F$43) -> 11836 | H30: =SUMIF(SiteSpecific_data!$A$6:$A$82,A30,SiteSpecific_data!$V$6:$V$82) -> 15316.24152 | N30: 0.3142920569 | O30: 0.4067060704
A31: =NameConvsw!A69 -> Zimbabwe | B31: =NameConvsw!B69 -> ZIM | C31: =SUMIF(SiteSpecific_data!$A$6:$A$82,A31,SiteSpecific_data!$E$6:$E$82) -> 2300 | D31: =SUMIF(SiteSpecific_data!$A$6:$A$82,A31,SiteSpecific_data!$D$6:$D$82) -> 1100 | E31: =SUM(C31:D31) -> 3400 | G31: =SUMIF('Oper hydro SiteSpec'!$A$5:$A$43,$B31,'Oper hydro SiteSpec'!$F$5:$F$43) -> 7280 | H31: =SUMIF(SiteSpecific_data!$A$6:$A$82,A31,SiteSpecific_data!$V$6:$V$82) -> 5710 | N31: 0.7555002076 | O31: 0.5925695309
C32: =SUM(C20:C31) -> 17906 | D32: =SUM(D20:D31) -> 41489 | H32: =SUM(H20:H31) -> 182134.5427
C34: 1000 | K34: =K33*1.14 -> 0
A35: Grand Total | C35: =C16+C33 -> 41453 | D35: =D16+D33 -> 9309.6 | E35: 50762.6 | F35: 13601.11215 | G35: 52306.42652 | H35: 39909.54 | I35: 65907.53867 | J35: 53510.65215 | K35: 0
C37: Existing Hydro | F37: Identified Hydro Projects
B38: Country | C38: Capacity | D38: Average Generation | E38: Dry Year Generation | F38: Capacity | G38: Average Generation | H38: Dry year generation
C39: MW | D39: GWh | E39: GWh | F39: MW | G39: GWh | H39: GWh
A40: =B20 -> ANG | B40: =A20 -> Angola | C40: =D3 -> 474 | D40: =G3 -> 2595 | E40: =H3 -> 1713 | F40: =D20 -> 6735 | G40: 23437.90385 | H40: 15469.96154 | J40: =D40/(8.76*$C40) -> 0.6249638749 | K40: =E40/(8.76*$C40) -> 0.4125484076 | L40: =G40/($F40*8.76) -> 0.3972620341 | M40: =H40/($F40*8.76) -> 0.2622089598
A41: BOT | B41: Botswana | C41: =D4 -> 0 | D41: 0 | E41: 0 | F41: 0 | G41: 0 | H41: 0 | J41: =D41/(8.76*$C41) ->  | K41: =E41/(8.76*$C41) ->  | L41: =G41/($F41*8.76) ->  | M41: =H41/($F41*8.76) -> 
A42: DRC | B42: Democratic Republic of Congo | C42: 2333 | D42: 14259 | E42: 11183 | F42: 20240 | G42: 122806 | H42: 96316.85714 | J42: 0.6977024115 | K42: 0.5471916732 | L42: 0.6926358583 | M42: 0.5432349316 | O42: =H42/G42 -> 0.7843009067
A43: LES | B43: Lesotho | C43: 73 | D43: 414 | E43: 274 | F43: 190 | G43: 500 | H43: 330 | J43: 0.6474010133 | K43: 0.4284731344 | L43: 0.3004085556 | M43: 0.1982696467 | O43: =H43/G43 -> 0.66
A44: MAL | B44: Malawi | C44: 277.6 | D44: 1391 | E44: 919 | F44: 614 | G44: 2966.00905 | H44: 1957.644796 | J44: 0.572009922 | K44: 0.3779130973 | L44: 0.5514421954 | M44: 0.3639665039 | O44: 0.6600265756
A45: MOZ | B45: Mozambique | C45: 2122 | D45: 15604 | E45: 12107 | F45: 3147 | G45: 15953.55079 | H45: 9138.971154 | J45: 0.8394338072 | K45: 0.6513089659 | L45: 0.5787040347 | M45: 0.3315098657 | O45: 0.5728487202
A46: NAM | B46: Namibia | C46: 240 | D46: 1395 | E46: 921 | F46: 360 | G46: 1724 | H46: 1138 | J46: 0.6635273973 | K46: 0.4380707763 | L46: 0.5466768138 | M46: 0.3608574328 | O46: 0.6600928074
A47: SAF | B47: South Africa | C47: 665 | D47: 878.42652 | E47: 582.54 | F47: 0 | G47: 0 | H47: 0 | J47: 0.1507924812 | K47: 0.1
A48: SWA | B48: Swaziland | C48: 62 | D48: 202 | E48: 134 | F48: 0 | G48: 0 | H48: 0 | J48: 0.3719251731 | K48: 0.2467226396
A49: TAN | B49: Tanzania | C49: 561 | D49: 1525 | E49: =H12 -> 1161 | F49: 1972 | G49: 6891 | H49: 6279 | J49: 0.3103150766 | K49: 0.2362464288 | L49: 0.3989066104 | M49: 0.3634791186 | O49: 0.9111885067
A50: ZAM | B50: Zambia | C50: 1752 | D50: 10043 | E50: 7778 | F50: 4299 | G50: 22631.6512 | H50: 15316.24152 | J50: 0.6543728238 | K50: 0.5067919768 | L50: 0.6009587873 | M50: 0.4067060704 | O50: 0.6767619994
A51: ZIM | B51: Zimbabwe | C51: 750 | D51: 4000 | E51: 3137 | F51: 1100 | G51: 7280 | H51: 5710 | J51: 0.6088280061 | K51: 0.4774733638 | L51: 0.7555002076 | M51: 0.5925695309 | O51: 0.7843406593
B52: Total | C52: =SUM(C40:C51) -> 9309.6 | D52: 52306.42652 | E52: 39909.54 | F52: 38657 | G52: 204190.1149 | H52: 151656.6761 | J52: 0.6413866606 | K52: 0.4893747918 | L52: 0.6029793788 | M52: 0.4478465984 | O52: 0.7427229091
C55: Capacity | D55: Fuel Mix (in terms of capacity)
C56: MW | G56: 8.76
B57: =B40 -> Angola | C57: =C3 -> 263 | D57: 66% Gas, remainder Diesel
B58: =B41 -> Botswana | C58: =C4 -> 132 | D58: Coal
B59: DRC | C59: 0
B60: Lesotho | C60: 0
B61: Malawi | C61: 36 | D61: Diesel
B62: Mozambique | C62: 64 | D62: Diesel
B63: Namibia | C63: 144 | D63: 80% coal, remainder Diesel | G63: =108/132 -> 0.8181818182
B64: South Africa | C64: 40400 | D64: 6% Diesel, 4% Nuclear, remainder Coal
B65: Swaziland | C65: 0
B66: Tanzania | C66: 719 | D66: 11% Diesel, remainder Gas | G66: =78/C66 -> 0.1084840056
B67: Zambia | C67: 10 | D67: Diesel
B68: Zimbabwe | C68: 360 | D68: Coal
B76: Oil | C76: coal | D76: gas | E76: hydro | F76: biomass | G76: wind | H76: solar
B77: 83 | E77: 260
B78: 80 | E78: 135
B79: 60 | E79: 860
B80: 20 | E80: 5480
B81: 38
B82: 7
A83: Angola | B83: =SUM(B77:B82) -> 288 | C83: =SUM(C77:C82) -> 0 | D83: 0 | E83: 6735 | F83: 0 | G83: 0 | H83: 0
C85: 1200
C86: 2430
A87: Botswana | C87: =SUM(C85:C86) -> 3630
E89: 240
E90: 20000
A91: DRC | E91: =SUM(E89:E90) -> 20240
E93: 110
E94: 80
A95: Lesotho | E95: =SUM(E93:E94) -> 190 | G95: 65
E96: 64
E97: 100
E98: 100
E99: 200
E100: 150
A101: Malawi | E101: =SUM(E96:E100) -> 614 | F101: 18
E102: 183
E103: 40
E104: 179
C105: 750 | E105: 1500
C106: 450 | E106: 1245
A107: Mozambique | C107: =SUM(C102:C106) -> 1200 | D107: 410 | E107: =SUM(E102:E106) -> 3147
A109: Namibia | C109: 300 | D109: 774 | E109: 360 | G109: 60
C112: 4332 | H112: 200
C113: 4338 | H113: 1449
A114: South Africa | C114: =SUM(C112:C113) -> 8670 | D114: 260 | F114: 130 | G114: 1849 | H114: =SUM(H112:H113) -> 1649
A117: Swaziland | C117: 1000 | F117: 85
E118: 358
E119: 21
E120: 53
E121: 222
C122: 400 | E122: 118
C123: 200 | E123: 1200
A124: Tanzania | C124: =SUM(C118:C123) -> 600 | D124: 400 | E124: =SUM(E118:E123) -> 1972 | F124: 85
E125: 21
E126: 120
E127: 360
E128: 255
E129: 84
E130: 500
E131: 301
E132: 543
E133: 326
E134: 800
E135: 750
E136: 220
E137: 40
A138: Zambia | B138: 50 | C138: 300 | E138: =SUM(E125:E137) -> 4320
C140: 600 | E140: 300
C141: 1400 | E141: 800
A142: Zimbabwe | C142: =SUM(C140:C141) -> 2000 | D142: 300 | E142: =SUM(E140:E141) -> 1100 | F142: 90
B146: =B76 -> Oil | C146: =C76 -> coal | D146: gas | E146: hydro | F146: biomass | G146: wind | H146: solar
A147: Angola | B147: =SUMIF($A$83:$A$142,$A147,B$83:B$142) -> 288 | C147: =SUMIF($A$83:$A$142,$A147,C$83:C$142) -> 0 | D147: 0 | E147: 6735 | F147: 0 | G147: 0 | H147: 0
A148: Botswana | B148: =SUMIF($A$83:$A$142,$A148,B$83:B$142) -> 0 | C148: 3630 | D148: 0 | E148: 0 | F148: 0 | G148: 0 | H148: 0
A149: DRC | B149: 0 | C149: 0 | D149: 0 | E149: 20240 | F149: 0 | G149: 0 | H149: 0
A150: Lesotho | B150: 0 | C150: 0 | D150: 0 | E150: 190 | F150: 0 | G150: 65 | H150: 0
A151: Malawi | B151: 0 | C151: 0 | D151: 0 | E151: 614 | F151: 18 | G151: 0 | H151: 0
A152: Mozambique | B152: 0 | C152: 1200 | D152: 410 | E152: 3147 | F152: 0 | G152: 0 | H152: 0
A153: Namibia | B153: 0 | C153: 300 | D153: 774 | E153: 360 | F153: 0 | G153: 60 | H153: 0
A154: South Africa | B154: 0 | C154: 8670 | D154: 260 | E154: 0 | F154: 130 | G154: 1849 | H154: 1649
A155: Swaziland | B155: 0 | C155: 1000 | D155: 0 | E155: 0 | F155: 85 | G155: 0 | H155: 0
A156: Tanzania | B156: 0 | C156: 600 | D156: 400 | E156: 1972 | F156: 85 | G156: 0 | H156: 0
A157: Zambia | B157: 50 | C157: 300 | D157: 0 | E157: 4320 | F157: 0 | G157: 0 | H157: 0
A158: Zimbabwe | B158: 0 | C158: 2000 | D158: 300 | E158: 1100 | F158: 90 | G158: 0 | H158: 0
A159: Total | B159: =SUM(B147:B158) -> 338 | C159: =SUM(C147:C158) -> 17700 | D159: 2144 | E159: 38678 | F159: 408 | G159: 1974 | H159: 1649

Sheet VS
B1: Discount Rate | C1: 0.1
B3: Abréviation | D3: CC | E3: GT | F3: ST | G3: DI | H3: HYD | I3: BIO | J3: SOL | K3: WND | M3: DI | N3: SOLPV | O3: SOLCS
G4: DDO | M4: HFO
B5: Consommation spécifique nette | C5: [GJ/MWh] | D5: 8.8 | E5: 12.7 | F5: 10.8 | G5: 10.4 | H5: / | I5: 9.6 | M5: 9.5
B6: Durée de vie | C6: [années] | D6: 25 | E6: 25 | F6: 35 | G6: 30 | H6: 50 | I6: 30 | J6: =I6 -> 30 | K6: =J6 -> 30 | M6: 30 | N6: 20 | O6: =J6 -> 30
B7: Indisponibilité fortuite | C7: [%] | D7: 0.08 | E7: 0.08 | F7: 0.08 | G7: 0.1 | H7: 0.05 | I7: =F7 -> 0.08 | J7: 0.02 | K7: 0.7 | M7: 0.1 | N7: 0.75 | O7: =J7 -> 0.02
B8: Indisponibilité planifiée | C8: [h/an] | D8: 613 | E8: 613 | F8: 613 | G8: 960 | H8: 570 | I8: =0.07*8760 -> 613.2 | J8: =((1-0.41)*8760)/(1-J7) -> 5273.877551 | K8: 0 | M8: 960 | N8: 0 | O8: =J8 -> 5273.877551
B9: Coûts O&M variables | C9: [$/MWh] | D9: 2 | E9: 2.5 | F9: 3.1 | G9: 10 | H9: 2 | I9: 0 | J9: =I9 -> 0 | K9: 10 | M9: 10
B10: Coûts O&M Fixes | C10: $/kW/yr | I10: 129.6 | J10: 82 | K10: 17 | N10: 20 | O10: 82
B11: Cout investissement | C11: $/kW | D11: =D18*D19 -> 956.5696 | E11: =E18*E19 -> 633.15 | F11: =F18*F19 -> 2488.6656 | G11: =G18*G19 -> 1123.5 | H11: 2400 | I11: =I18*I19 -> 3603.528 | J11: 5207 | K11: 1750 | M11: =M18*M19 -> 1417.5 | N11: 3660 | O11: 5207
B12: Facteur d’utilisation hydro | D12: / | E12: / | F12: / | G12: / | H12: 49.2% | J12: /
B13: Energie hydro | D13: / | E13: / | F13: / | G13: / | H13: 76% * énergie | J13: /
B14: annuelle garantie | H14: annuelle
H15: moyenne
D16: =(1-D8/8760)*(1-D7) -> 0.8556210046 | E16: =(1-E8/8760)*(1-E7) -> 0.8556210046 | F16: 0.8556210046 | G16: 0.801369863 | H16: 0.8881849315 | I16: 0.8556 | J16: 0.39 | K16: 0.3 | L16: 1 | M16: 0.801369863 | N16: 0.25 | O16: 0.39
B18: Overnight Cost | D18: 896 | E18: 603 | F18: 2160 | G18: 1070 | I18: 3240 | M18: 1350
B19: Time (construction schedule) | C19: Apprec. Fact | D19: =SUMPRODUCT($C$20:$C$27,D$20:D$27) -> 1.0676 | E19: =SUMPRODUCT($C$20:$C$27,E$20:E$27) -> 1.05 | F19: =SUMPRODUCT($C$20:$C$27,F$20:F$27) -> 1.15216 | G19: =SUMPRODUCT($C$20:$C$27,G$20:G$27) -> 1.05 | I19: =SUMPRODUCT($C$20:$C$27,I$20:I$27) -> 1.1122 | M19: =SUMPRODUCT($C$20:$C$27,M$20:M$27) -> 1.05
B20: 0 | C20: 1 | D20: 0.5 | E20: 0.5 | F20: 0.2 | G20: 0.5 | I20: 0.45 | M20: 0.5
B21: 1 | C21: =1+C1 -> 1.1 | D21: 0.34 | E21: 0.5 | F21: 0.32 | G21: 0.5 | I21: 0.25 | M21: 0.5
B22: 2 | C22: =(1+$C$1)^B22 -> 1.21 | D22: 0.16 | F22: 0.32 | I22: 0.1
B23: 3 | C23: 1.331 | F23: 0.16 | I23: 0.2
B24: 4 | C24: 1.4641
B25: 5 | C25: 1.61051
B26: 6 | C26: 1.771561
B27: 7 | C27: 1.9487171
B29: Efficiency | D29: =1/(D5/3.6) -> 0.4090909091 | E29: =1/(E5/3.6) -> 0.2834645669 | F29: =1/(F5/3.6) -> 0.3333333333 | G29: =1/(G5/3.6) -> 0.3461538462 | I29: =1/(I5/3.6) -> 0.375 | M29: =1/(M5/3.6) -> 0.3789473684

Sheet MSG_Exist
A1: 1 | B1: =A1+1 -> 2 | C1: =B1+1 -> 3 | D1: 4 | E1: 5 | F1: 6 | G1: 7 | H1: 8 | I1: 9 | J1: 10 | K1: 11 | L1: =K1+1 -> 12 | M1: =L1+1 -> 13 | N1: 14 | O1: =N1+1 -> 15 | P1: 16 | Q1: 17 | R1: 18 | S1: 19 | T1: 20 | U1: 21 | V1: 22 | W1: 23 | X1: 24 | Y1: 25 | Z1: 26 | AA1: 27 | AB1: 28
A2: English | B2: MESSAGE Name | C2: Main Input | D2: Main Output | E2: name | F2: Main Input | G2: Main Output (switch c) | H2: var costs (switch c) | I2: plant factor | J2: operation time | K2: Plant life | L2: Refurb. Costs | M2: Fixed Costs | N2: bdc (up) | O2: hist. cap. (switch hc)
A3: French | B3: Nom MESSAGE | C3: intrant principal | D3: extrant principal | E3: nom | F3: =C3 -> intrant principal | G3: extrant principal (ast: c) | H3: couts var | I3: facteur d'installation | J3: temps de fonctionnement | K3: duree de vie | L3: Refurb. Costs | M3: couts fixes | N3: =N2 -> bdc (up) | O3: cap. Hist. (ast: hc)
A4: Monetary conversion | B4: 1
V5: Fuel data | X5: Data for results
A6: With country prefix | B6: Angloa | C6: =OFFSET(C$2,lang,0) -> Main Input | D6: Main Output | E6: name | F6: Main Input | G6: Main Output (switch c) | H6: var costs (switch c) | I6: plant factor | J6: operation time | K6: Plant life | L6: Refurb. Costs | M6: Fixed Costs | N6: bdc (up) | O6: hist. cap. (switch hc) | P6: technology type | Q6: Project Name | X6: Fuel Costs | Y6: emission factor | Z6: Investment cost | AA6: life | AB6: annualized cost
B7: =OFFSET(B$2,lang,0) -> MESSAGE Name | E7: alt | H7: US$'00/kWyr | L7: US$'00/kW | M7: US$'00/kW/yr | N7: MW | O7: MW | S7: Firm Capacity | T7: Renewable? | U7: Loss Factor | V7: Input Fuel | W7: Output Fuel | X7: $/kWyr | Y7: ton/kWyr | Z7: $/kW | AB7: $/kw-yr
A8: ANGEPGASEXOC | B8: =VLOOKUP($A8,'SAPP Thermal Existing'!$B$3:$Q$59,2,FALSE) -> EPGASEXOC | C8: Gas/Primary | D8: Electricity/Secondary | E8: a | F8: 1 | G8: =VLOOKUP($A8,'SAPP Thermal Existing'!$B$3:$Q$59,8,FALSE) -> 0.2 | H8: =VLOOKUP($A8,'SAPP Thermal Existing'!$B$3:$Q$59,12,FALSE)*8.76*CurAdj -> 39.24094136 | I8: =1-VLOOKUP($A8,'SAPP Thermal Existing'!$B$3:$Q$59,15,FALSE) -> 0.9269 | J8: =VLOOKUP($A8,'SAPP Thermal Existing'!$B$3:$Q$59,16,FALSE)/I8 -> 0.9292 | K8: 25 | M8: =VLOOKUP($A8,'SAPP Thermal Existing'!$B$3:$Q$59,13,FALSE)*CurAdj -> 20.36163416 | N8: ='SAPP Thermal Existing'!AJ4 -> 17 18 17 20 0 | O8: ='SAPP Thermal Existing'!U4 -> 2000 178 | P8: DI | Q8: Refurbishments of Thermal Plants | S8: 1 | T8: =IF(OR(MID(B8,3,1)="W",MID(B8,3,1)="S",MID(B8,3,1)="H",MID(B8,3,1)="B",MID(B8,3,2)="GE"),1,0) -> 0 | U8: =IF(W8="e-t",1,SUMIF(NameConvsw!$B$58:$B$70,LEFT(A8,3),NameConvsw!$H$58:$H$70)) -> 1 | V8: =VLOOKUP(C8,EnergyForms,2,FALSE) -> g-p | W8: =IF(ISNA(VLOOKUP(D8&"/"&LEFT(A8,3),EnergyForms2,2,FALSE)),VLOOKUP(D8,EnergyForms,2,FALSE),VLOOKUP(D8&"/"&LEFT(A8,3),EnergyForms2,2,FALSE)) -> e-A | X8: =SUMIF(MSG_Fueldata!$A$2:$A$209,LEFT($A8,3)&MID(B8,3,3),MSG_Fueldata!$E$2:$E$209)/$G8 -> 0 | Y8: =SUMIF(MSG_Fueldata!$A$2:$A$209,LEFT($A8,3)&MID(B8,3,3),MSG_Fueldata!$F$2:$F$209)/$G8 -> 8.85 | Z8: =IF(AND(P8="DI",MID(B8,3,3)="OHF"),VS!$M$11,SUMIF(VS!$D$3:$K$3,P8,VS!$D$11:$K$11)) -> 1123.5 | AA8: =K8 -> 25 | AB8: =-PMT(disc_rate,AA8,Z8) -> 123.7738291
A9: ANGEPODSEXOC | B9: =VLOOKUP(A9,'SAPP Thermal Existing'!$B$3:$Q$59,2,FALSE) -> EPODSEXOC | C9: Diesel/Primary | D9: Electricity/Secondary | E9: a | F9: 1 | G9: =VLOOKUP($A9,'SAPP Thermal Existing'!$B$3:$Q$59,8,FALSE) -> 0.296491517 | H9: =VLOOKUP($A9,'SAPP Thermal Existing'!$B$3:$Q$59,12,FALSE)*8.76*CurAdj -> 28.16335505 | I9: =1-VLOOKUP($A9,'SAPP Thermal Existing'!$B$3:$Q$59,15,FALSE) -> 0.9423 | J9: =VLOOKUP($A9,'SAPP Thermal Existing'!$B$3:$Q$59,16,FALSE)/I9 -> 0.85 | K9: 25 | M9: =VLOOKUP($A9,'SAPP Thermal Existing'!$B$3:$Q$59,13,FALSE)*CurAdj -> 0.8573319648 | N9: 0 | O9: =2000&" "&VLOOKUP($A9,'SAPP Thermal Existing'!$B$3:$Q$59,6,FALSE) -> 2000 13 | P9: DI | S9: 1 | T9: =IF(OR(MID(B9,3,1)="W",MID(B9,3,1)="S",MID(B9,3,1)="H",MID(B9,3,1)="B",MID(B9,3,2)="GE"),1,0) -> 0 | U9: =IF(W9="e-t",1,SUMIF(NameConvsw!$B$58:$B$70,LEFT(A9,3),NameConvsw!$H$58:$H$70)) -> 1 | V9: =VLOOKUP(C9,EnergyForms,2,FALSE) -> o-p | W9: =IF(ISNA(VLOOKUP(D9&"/"&LEFT(A9,3),EnergyForms2,2,FALSE)),VLOOKUP(D9,EnergyForms,2,FALSE),VLOOKUP(D9&"/"&LEFT(A9,3),EnergyForms2,2,FALSE)) -> e-A | X9: =SUMIF(MSG_Fueldata!$A$2:$A$125,LEFT($A9,3)&MID(B9,3,3),MSG_Fueldata!$E$2:$E$125)/$G9 -> 0 | Y9: =SUMIF(MSG_Fueldata!$A$2:$A$209,LEFT($A9,3)&MID(B9,3,3),MSG_Fueldata!$F$2:$F$209)/$G9 -> 7.878375554 | Z9: =IF(AND(P9="DI",MID(B9,3,3)="OHF"),VS!$M$11,SUMIF(VS!$D$3:$K$3,P9,VS!$D$11:$K$11)) -> 1123.5 | AA9: =K9 -> 25 | AB9: =-PMT(disc_rate,AA9,Z9) -> 123.7738291
A10: ANGEPHYDEXHA | B10: =VLOOKUP($A10,'SAPP Hydro Existing'!$B$4:$N$96,2,FALSE) -> EPHYDEXHA | D10: Electricity/Secondary | E10: a | F10: ="" ->  | G10: 1 | H10: =VLOOKUP($A10,'SAPP Hydro Existing'!$B$4:$N$96,8,FALSE)*8.76*CurAdj -> 14.17555537 | I10: =1-VLOOKUP($A10,'SAPP Hydro Existing'!$B$4:$N$96,11,FALSE) -> 0.95 | J10: =IF(dryear,VLOOKUP($A10,'SAPP Hydro Existing'!$B$4:$N$96,13,FALSE),VLOOKUP($A10,'SAPP Hydro Existing'!$B$4:$N$96,12,FALSE))/I10 -> 0.4425661757 | K10: 100 | M10: =VLOOKUP($A10,'SAPP Hydro Existing'!$B$4:$N$96,9,FALSE)*CurAdj -> 9.344918417 | N10: ='SAPP Hydro Existing'!AG4 -> 0 | O10: =2000&" "&VLOOKUP($A10,'SAPP Hydro Existing'!$B$4:$N$96,5,FALSE) -> 2000 448 | P10: =MID(B10,3,3) -> HYD | S10: 1 | T10: 1 | U10: =IF(W10="e-t",1,SUMIF(NameConvsw!$B$58:$B$70,LEFT(A10,3),NameConvsw!$H$58:$H$70)) -> 1 | W10: =IF(ISNA(VLOOKUP(D10&"/"&LEFT(A10,3),EnergyForms2,2,FALSE)),VLOOKUP(D10,EnergyForms,2,FALSE),VLOOKUP(D10&"/"&LEFT(A10,3),EnergyForms2,2,FALSE)) -> e-A | Z10: =IF(AND(P10="DI",MID(B10,3,3)="OHF"),VS!$M$11,SUMIF(VS!$D$3:$K$3,P10,VS!$D$11:$K$11)) -> 2400 | AA10: =K10 -> 100 | AB10: =-PMT(disc_rate,AA10,Z10) -> 240.017417
A11: ANGEPHYDEXLA | B11: =VLOOKUP(A11,'SAPP Hydro Existing'!$B$4:$N$96,2,FALSE) -> EPHYDEXLA | D11: Electricity/Secondary | E11: b | F11: ="" ->  | G11: 1 | H11: =VLOOKUP($A11,'SAPP Hydro Existing'!$B$4:$N$96,8,FALSE)*8.76*CurAdj -> 14.17555537 | I11: =1-VLOOKUP($A11,'SAPP Hydro Existing'!$B$4:$N$96,11,FALSE) -> 0.95 | J11: =IF(dryear,VLOOKUP($A11,'SAPP Hydro Existing'!$B$4:$N$96,13,FALSE),VLOOKUP($A11,'SAPP Hydro Existing'!$B$4:$N$96,12,FALSE))/I11 -> 0.2911652155 | K11: 100 | M11: =VLOOKUP($A11,'SAPP Hydro Existing'!$B$4:$N$96,9,FALSE)*CurAdj -> 9.344918417 | N11: 0 | O11: =2000&" "&VLOOKUP($A11,'SAPP Hydro Existing'!$B$4:$N$96,5,FALSE) -> 2000 26 | P11: =MID(B11,3,3) -> HYD | S11: =S9 -> 1 | T11: =IF(OR(MID(B11,3,1)="W",MID(B11,3,1)="S",MID(B11,3,1)="H",MID(B11,3,1)="B",MID(B11,3,2)="GE"),1,0) -> 1 | U11: =IF(W11="e-t",1,SUMIF(NameConvsw!$B$58:$B$70,LEFT(A11,3),NameConvsw!$H$58:$H$70)) -> 1 | W11: =W9 -> e-A | Z11: =IF(AND(P11="DI",MID(B11,3,3)="OHF"),VS!$M$11,SUMIF(VS!$D$3:$K$3,P11,VS!$D$11:$K$11)) -> 2400 | AA11: =K11 -> 100 | AB11: =-PMT(disc_rate,AA11,Z11) -> 240.017417
A12: =LEFT(A11,3) -> ANG | B12: 4 | C12: =ROW()-B12-1 -> 7
A14: With country prefix | B14: Botswana | C14: =OFFSET(C$2,lang,0) -> Main Input | D14: Main Output | E14: name | F14: Main Input | G14: Main Output (switch c) | H14: var costs (switch c) | I14: plant factor | J14: operation time | K14: Plant life | L14: Refurb. Costs | M14: Fixed Costs | N14: bdc (up) | O14: hist. cap. (switch hc) | P14: technology type | X14: Fuel Costs | Y14: emission factor | Z14: Investment cost | AA14: life | AB14: annualized cost
B15: =OFFSET(B$2,lang,0) -> MESSAGE Name | E15: alt | H15: US$'00/kWyr | L15: US$'00/kW | M15: US$'00/kW/yr | N15: MW | O15: MW | V15: Input Fuel | W15: Output Fuel | X15: $/kWyr | Y15: ton/kWyr | Z15: $/kW | AB15: $/kw-yr
A16: BOTEPCOAEXPF | B16: =VLOOKUP($A16,'SAPP Thermal Existing'!$B$3:$Q$59,2,FALSE) -> EPCOAEXPF | C16: Coal/Primary | D16: Electricity/Secondary | E16: a | F16: 1 | G16: =VLOOKUP($A16,'SAPP Thermal Existing'!$B$3:$Q$59,8,FALSE) -> 0.3 | H16: =VLOOKUP($A16,'SAPP Thermal Existing'!$B$3:$Q$59,12,FALSE)*8.76*CurAdj -> 11.86024493 | I16: =1-VLOOKUP($A16,'SAPP Thermal Existing'!$B$3:$Q$59,15,FALSE) -> 0.9483 | J16: =VLOOKUP($A16,'SAPP Thermal Existing'!$B$3:$Q$59,16,FALSE)/I16 -> 0.928 | K16: 35 | M16: =VLOOKUP($A16,'SAPP Thermal Existing'!$B$3:$Q$59,13,FALSE)*CurAdj -> 60.73125306 | N16: 0 | O16: =2000&" "&VLOOKUP($A16,'SAPP Thermal Existing'!$B$3:$Q$59,6,FALSE) -> 2000 132 | P16: ST | S16: 1 | T16: =IF(OR(MID(B16,3,1)="W",MID(B16,3,1)="S",MID(B16,3,1)="H",MID(B16,3,1)="B",MID(B16,3,2)="GE"),1,0) -> 0 | U16: =IF(W16="e-t",1,SUMIF(NameConvsw!$B$58:$B$70,LEFT(A16,3),NameConvsw!$H$58:$H$70)) -> 1 | V16: =VLOOKUP(C16,EnergyForms,2,FALSE) -> c-p | W16: =IF(ISNA(VLOOKUP(D16&"/"&LEFT(A16,3),EnergyForms2,2,FALSE)),VLOOKUP(D16,EnergyForms,2,FALSE),VLOOKUP(D16&"/"&LEFT(A16,3),EnergyForms2,2,FALSE)) -> e-B | X16: =SUMIF(MSG_Fueldata!$A$2:$A$209,LEFT($A16,3)&MID(B16,3,3),MSG_Fueldata!$E$2:$E$209)/$G16 -> 0 | Y16: =SUMIF(MSG_Fueldata!$A$2:$A$209,LEFT($A16,3)&MID(B16,3,3),MSG_Fueldata!$F$2:$F$209)/$G16 -> 10.13333333 | Z16: =IF(AND(P16="DI",MID(B16,3,3)="OHF"),VS!$M$11,SUMIF(VS!$D$3:$K$3,P16,VS!$D$11:$K$11)) -> 2488.6656 | AA16: =K16 -> 35 | AB16: =-PMT(disc_rate,AA16,Z16) -> 258.0490022
A17: =LEFT(A16,3) -> BOT | B17: 1 | C17: =ROW()-B17-1 -> 15
A19: With country prefix | B19: DRC | C19: =OFFSET(C$2,lang,0) -> Main Input | D19: Main Output | E19: name | F19: Main Input | G19: Main Output (switch c) | H19: var costs (switch c) | I19: plant factor | J19: operation time | K19: Plant life | L19: Refurb. Costs | M19: Fixed Costs | N19: bdc (up) | O19: hist. cap. (switch hc) | P19: technology type | X19: Fuel Costs | Y19: emission factor | Z19: Investment cost | AA19: life | AB19: annualized cost
B20: =OFFSET(B$2,lang,0) -> MESSAGE Name | E20: alt | H20: US$'00/kWyr | L20: US$'00/kW | M20: US$'00/kW/yr | N20: MW | O20: MW | V20: Input Fuel | W20: Output Fuel | X20: $/kWyr | Y20: ton/kWyr | Z20: $/kW | AB20: $/kw-yr
A21: DRCEPHYDEXinga | B21: =VLOOKUP($A21,'SAPP Hydro Existing'!$B$4:$N$96,2,FALSE) -> EPHYDEXinga | D21: Electricity/Secondary | E21: a | F21: ="" ->  | G21: 1 | H21: =VLOOKUP($A21,'SAPP Hydro Existing'!$B$4:$N$96,8,FALSE)*8.76*CurAdj -> 14.17555537 | I21: =1-VLOOKUP($A21,'SAPP Hydro Existing'!$B$4:$N$96,11,FALSE) -> 0.98 | J21: =IF(dryear,VLOOKUP($A21,'SAPP Hydro Existing'!$B$4:$N$96,13,FALSE),VLOOKUP($A21,'SAPP Hydro Existing'!$B$4:$N$96,12,FALSE))/I21 -> 0.6144842297 | K21: 100 | L21: 2000 | M21: =VLOOKUP($A21,'SAPP Hydro Existing'!$B$4:$N$96,9,FALSE)*CurAdj -> 9.344918417 | N21: ='SAPP Hydro Existing'!AG12 -> 76 76 76 76 76 74 0 | O21: ='SAPP Hydro Existing'!R12 -> 2000 1330 | P21: =MID(B21,3,3) -> HYD | Q21: Refurbishments of Inga 1&2 | S21: 1 | T21: 1 | U21: =IF(W21="e-t",1,SUMIF(NameConvsw!$B$58:$B$70,LEFT(A21,3),NameConvsw!$H$58:$H$70)) -> 1 | W21: =IF(ISNA(VLOOKUP(D21&"/"&LEFT(A21,3),EnergyForms2,2,FALSE)),VLOOKUP(D21,EnergyForms,2,FALSE),VLOOKUP(D21&"/"&LEFT(A21,3),EnergyForms2,2,FALSE)) -> e-C | Z21: =IF(AND(P21="DI",MID(B21,3,3)="OHF"),VS!$M$11,SUMIF(VS!$D$3:$K$3,P21,VS!$D$11:$K$11)) -> 2400 | AA21: =K21 -> 100 | AB21: =-PMT(disc_rate,AA21,Z21) -> 240.017417
A22: DRCEPHYDEXHA | B22: =VLOOKUP($A22,'SAPP Hydro Existing'!$B$4:$N$96,2,FALSE) -> EPHYDEXHA | D22: Electricity/Secondary | E22: b | F22: ="" ->  | G22: 1 | H22: =VLOOKUP($A22,'SAPP Hydro Existing'!$B$4:$N$96,8,FALSE)*8.76*CurAdj -> 14.17555537 | I22: =1-VLOOKUP($A22,'SAPP Hydro Existing'!$B$4:$N$96,11,FALSE) -> 0.98 | J22: =IF(dryear,VLOOKUP($A22,'SAPP Hydro Existing'!$B$4:$N$96,13,FALSE),VLOOKUP($A22,'SAPP Hydro Existing'!$B$4:$N$96,12,FALSE))/I22 -> 0.4521840401 | K22: 100 | L22: =VLOOKUP(A22,'SAPP Hydro Existing'!$B$3:$O$68,14,FALSE)*CurAdj -> 944.9338434 | M22: =VLOOKUP($A22,'SAPP Hydro Existing'!$B$4:$N$96,9,FALSE)*CurAdj -> 9.344918417 | N22: ='SAPP Hydro Existing'!AG15 -> 28 28 27 29 27 32 0 | O22: ='SAPP Hydro Existing'!R15 -> 2000 227 | P22: =MID(B22,3,3) -> HYD | Q22: Refurbishments of hydro (Nseke, Nzilo, Koni) | S22: 1 | T22: 1 | U22: =IF(W22="e-t",1,SUMIF(NameConvsw!$B$58:$B$70,LEFT(A22,3),NameConvsw!$H$58:$H$70)) -> 1 | W22: =IF(ISNA(VLOOKUP(D22&"/"&LEFT(A22,3),EnergyForms2,2,FALSE)),VLOOKUP(D22,EnergyForms,2,FALSE),VLOOKUP(D22&"/"&LEFT(A22,3),EnergyForms2,2,FALSE)) -> e-C | Z22: =IF(AND(P22="DI",MID(B22,3,3)="OHF"),VS!$M$11,SUMIF(VS!$D$3:$K$3,P22,VS!$D$11:$K$11)) -> 2400 | AA22: =K22 -> 100 | AB22: =-PMT(disc_rate,AA22,Z22) -> 240.017417
A23: DRCEPHYDEXLA | B23: =VLOOKUP(A23,'SAPP Hydro Existing'!$B$4:$N$96,2,FALSE) -> EPHYDEXLA | D23: Electricity/Secondary | E23: c | F23: ="" ->  | G23: 1 | H23: =VLOOKUP($A23,'SAPP Hydro Existing'!$B$4:$N$96,8,FALSE)*8.76*CurAdj -> 14.17555537 | I23: =1-VLOOKUP($A23,'SAPP Hydro Existing'!$B$4:$N$96,11,FALSE) -> 0.98 | J23: =IF(dryear,VLOOKUP($A23,'SAPP Hydro Existing'!$B$4:$N$96,13,FALSE),VLOOKUP($A23,'SAPP Hydro Existing'!$B$4:$N$96,12,FALSE))/I23 -> 0.175113137 | K23: 100 | L23: =VLOOKUP(A23,'SAPP Hydro Existing'!$B$3:$O$68,14,FALSE)*CurAdj -> 1391.212735 | M23: =VLOOKUP($A23,'SAPP Hydro Existing'!$B$4:$N$96,9,FALSE)*CurAdj -> 9.344918417 | N23: ='SAPP Hydro Existing'!AG19 -> 10 10 11 11 10 12 0 | O23: ='SAPP Hydro Existing'!R19 -> 2000 87 | P23: =MID(B23,3,3) -> HYD | Q23: Refurbishments of hydro (Mwadingusha, Zongo, Sanga) | S23: 1 | T23: =IF(OR(MID(B23,3,1)="W",MID(B23,3,1)="S",MID(B23,3,1)="H",MID(B23,3,1)="B",MID(B23,3,2)="GE"),1,0) -> 1 | U23: =IF(W23="e-t",1,SUMIF(NameConvsw!$B$58:$B$70,LEFT(A23,3),NameConvsw!$H$58:$H$70)) -> 1 | W23: =IF(ISNA(VLOOKUP(D23&"/"&LEFT(A23,3),EnergyForms2,2,FALSE)),VLOOKUP(D23,EnergyForms,2,FALSE),VLOOKUP(D23&"/"&LEFT(A23,3),EnergyForms2,2,FALSE)) -> e-C | X23: =SUMIF(MSG_Fueldata!$A$2:$A$209,LEFT($A23,3)&MID(B23,3,3),MSG_Fueldata!$E$2:$E$209)/$G23 -> 0 | Y23: =SUMIF(MSG_Fueldata!$A$2:$A$209,LEFT($A23,3)&MID(B23,3,3),MSG_Fueldata!$F$2:$F$209)/$G23 -> 0 | Z23: =IF(AND(P23="DI",MID(B23,3,3)="OHF"),VS!$M$11,SUMIF(VS!$D$3:$K$3,P23,VS!$D$11:$K$11)) -> 2400 | AA23: =K23 -> 100 | AB23: =-PMT(disc_rate,AA23,Z23) -> 240.017417
A24: =LEFT(A23,3) -> DRC | B24: 3 | C24: =ROW()-B24-1 -> 20
A26: With country prefix | B26: Lesotho | C26: =OFFSET(C$2,lang,0) -> Main Input | D26: Main Output | E26: name | F26: Main Input | G26: Main Output (switch c) | H26: var costs (switch c) | I26: plant factor | J26: operation time | K26: Plant life | L26: Refurb. Costs | M26: Fixed Costs | N26: bdc (up) | O26: hist. cap. (switch hc) | P26: technology type | X26: Fuel Costs | Y26: emission factor | Z26: Investment cost | AA26: life | AB26: annualized cost
B27: =OFFSET(B$2,lang,0) -> MESSAGE Name | E27: alt | H27: US$'00/kWyr | L27: US$'00/kW | M27: US$'00/kW/yr | N27: MW | O27: MW | V27: Input Fuel | W27: Output Fuel | X27: $/kWyr | Y27: ton/kWyr | Z27: $/kW | AB27: $/kw-yr
A28: LESEPHYDEX | B28: =VLOOKUP(A28,'SAPP Hydro Existing'!$B$4:$N$96,2,FALSE) -> EPHYDEX | D28: Electricity/Secondary | E28: a | F28: ="" ->  | G28: 1 | H28: =VLOOKUP($A28,'SAPP Hydro Existing'!$B$4:$N$96,8,FALSE)*8.76*CurAdj -> 14.17555537 | I28: =1-VLOOKUP($A28,'SAPP Hydro Existing'!$B$4:$N$96,11,FALSE) -> 0.98 | J28: =IF(dryear,VLOOKUP($A28,'SAPP Hydro Existing'!$B$4:$N$96,13,FALSE),VLOOKUP($A28,'SAPP Hydro Existing'!$B$4:$N$96,12,FALSE))/I28 -> 0.4372174841 | K28: 100 | M28: =VLOOKUP($A28,'SAPP Hydro Existing'!$B$4:$N$96,9,FALSE)*CurAdj -> 9.344918417 | N28: 0 | O28: =2000&" "&VLOOKUP($A28,'SAPP Hydro Existing'!$B$4:$N$96,5,FALSE) -> 2000 73 | P28: =MID(B28,3,3) -> HYD | S28: 1 | T28: =IF(OR(MID(B28,3,1)="W",MID(B28,3,1)="S",MID(B28,3,1)="H",MID(B28,3,1)="B",MID(B28,3,2)="GE"),1,0) -> 1 | U28: =IF(W28="e-t",1,SUMIF(NameConvsw!$B$58:$B$70,LEFT(A28,3),NameConvsw!$H$58:$H$70)) -> 1 | W28: =IF(ISNA(VLOOKUP(D28&"/"&LEFT(A28,3),EnergyForms2,2,FALSE)),VLOOKUP(D28,EnergyForms,2,FALSE),VLOOKUP(D28&"/"&LEFT(A28,3),EnergyForms2,2,FALSE)) -> e-D | X28: =SUMIF(MSG_Fueldata!$A$2:$A$209,LEFT($A28,3)&MID(B28,3,3),MSG_Fueldata!$E$2:$E$209)/$G28 -> 0 | Y28: =SUMIF(MSG_Fueldata!$A$2:$A$209,LEFT($A28,3)&MID(B28,3,3),MSG_Fueldata!$F$2:$F$209)/$G28 -> 0 | Z28: =IF(AND(P28="DI",MID(B28,3,3)="OHF"),VS!$M$11,SUMIF(VS!$D$3:$K$3,P28,VS!$D$11:$K$11)) -> 2400 | AA28: =K28 -> 100 | AB28: =-PMT(disc_rate,AA28,Z28) -> 240.017417
A29: =LEFT(A28,3) -> LES | B29: 1 | C29: =ROW()-B29-1 -> 27
A31: With country prefix | B31: Malawi | C31: =OFFSET(C$2,lang,0) -> Main Input | D31: Main Output | E31: name | F31: Main Input | G31: Main Output (switch c) | H31: var costs (switch c) | I31: plant factor | J31: operation time | K31: Plant life | L31: Refurb. Costs | M31: Fixed Costs | N31: bdc (up) | O31: hist. cap. (switch hc) | P31: technology type | X31: Fuel Costs | Y31: emission factor | Z31: Investment cost | AA31: life | AB31: annualized cost
B32: =OFFSET(B$2,lang,0) -> MESSAGE Name | E32: alt | H32: US$'00/kWyr | L32: US$'00/kW | M32: US$'00/kW/yr | N32: MW | O32: MW | V32: Input Fuel | W32: Output Fuel | X32: $/kWyr | Y32: ton/kWyr | Z32: $/kW | AB32: $/kw-yr
A33: MALEPODSEXOC | B33: =VLOOKUP($A33,'SAPP Thermal Existing'!$B$3:$Q$59,2,FALSE) -> EPODSEXOC | C33: Diesel/Primary | D33: Electricity/Secondary | E33: a | F33: 1 | G33: =VLOOKUP($A33,'SAPP Thermal Existing'!$B$3:$Q$59,8,FALSE) -> 0.296491517 | H33: =VLOOKUP($A33,'SAPP Thermal Existing'!$B$3:$Q$59,12,FALSE)*8.76*CurAdj -> 28.16335505 | I33: =1-VLOOKUP($A33,'SAPP Thermal Existing'!$B$3:$Q$59,15,FALSE) -> 0.9423 | J33: =VLOOKUP($A33,'SAPP Thermal Existing'!$B$3:$Q$59,16,FALSE)/I33 -> 0.85 | K33: 25 | M33: =VLOOKUP($A33,'SAPP Thermal Existing'!$B$3:$Q$59,13,FALSE)*CurAdj -> 0.8573319648 | N33: 0 | O33: =2000&" "&VLOOKUP($A33,'SAPP Thermal Existing'!$B$3:$Q$59,6,FALSE) -> 2000 36 | P33: DI | S33: 1 | T33: =IF(OR(MID(B33,3,1)="W",MID(B33,3,1)="S",MID(B33,3,1)="H",MID(B33,3,1)="B",MID(B33,3,2)="GE"),1,0) -> 0 | U33: =IF(W33="e-t",1,SUMIF(NameConvsw!$B$58:$B$70,LEFT(A33,3),NameConvsw!$H$58:$H$70)) -> 1 | V33: =VLOOKUP(C33,EnergyForms,2,FALSE) -> o-p | W33: =IF(ISNA(VLOOKUP(D33&"/"&LEFT(A33,3),EnergyForms2,2,FALSE)),VLOOKUP(D33,EnergyForms,2,FALSE),VLOOKUP(D33&"/"&LEFT(A33,3),EnergyForms2,2,FALSE)) -> e-E | X33: =SUMIF(MSG_Fueldata!$A$2:$A$209,LEFT($A33,3)&MID(B33,3,3),MSG_Fueldata!$E$2:$E$209)/$G33 -> 0 | Y33: =SUMIF(MSG_Fueldata!$A$2:$A$209,LEFT($A33,3)&MID(B33,3,3),MSG_Fueldata!$F$2:$F$209)/$G33 -> 7.878375554 | Z33: =IF(AND(P33="DI",MID(B33,3,3)="OHF"),VS!$M$11,SUMIF(VS!$D$3:$K$3,P33,VS!$D$11:$K$11)) -> 1123.5 | AA33: =K33 -> 25 | AB33: =-PMT(disc_rate,AA33,Z33) -> 123.7738291
A34: MALEPHYDEXnkul | B34: =VLOOKUP($A34,'SAPP Hydro Existing'!$B$4:$N$96,2,FALSE) -> EPHYDEXnkul | D34: Electricity/Secondary | E34: a | F34: ="" ->  | G34: 1 | H34: =VLOOKUP($A34,'SAPP Hydro Existing'!$B$4:$N$96,8,FALSE)*8.76*CurAdj -> 14.17555537 | I34: =1-VLOOKUP($A34,'SAPP Hydro Existing'!$B$4:$N$96,11,FALSE) -> 0.98 | J34: =IF(dryear,VLOOKUP($A34,'SAPP Hydro Existing'!$B$4:$N$96,13,FALSE),VLOOKUP($A34,'SAPP Hydro Existing'!$B$4:$N$96,12,FALSE))/I34 -> 0.253852893 | K34: 100 | M34: =VLOOKUP($A34,'SAPP Hydro Existing'!$B$4:$N$96,9,FALSE)*CurAdj -> 9.344918417 | N34: 0 | O34: =2000&" "&VLOOKUP($A34,'SAPP Hydro Existing'!$B$4:$N$96,5,FALSE) -> 2000 121.6 | P34: =MID(B34,3,3) -> HYD | S34: =S33 -> 1 | T34: =IF(OR(MID(B34,3,1)="W",MID(B34,3,1)="S",MID(B34,3,1)="H",MID(B34,3,1)="B",MID(B34,3,2)="GE"),1,0) -> 1 | U34: =IF(W34="e-t",1,SUMIF(NameConvsw!$B$58:$B$70,LEFT(A34,3),NameConvsw!$H$58:$H$70)) -> 1 | W34: =IF(ISNA(VLOOKUP(D34&"/"&LEFT(A34,3),EnergyForms2,2,FALSE)),VLOOKUP(D34,EnergyForms,2,FALSE),VLOOKUP(D34&"/"&LEFT(A34,3),EnergyForms2,2,FALSE)) -> e-E | X34: =SUMIF(MSG_Fueldata!$A$2:$A$209,LEFT($A34,3)&MID(B34,3,3),MSG_Fueldata!$E$2:$E$209)/$G34 -> 0 | Y34: =SUMIF(MSG_Fueldata!$A$2:$A$209,LEFT($A34,3)&MID(B34,3,3),MSG_Fueldata!$F$2:$F$209)/$G34 -> 0 | Z34: =IF(AND(P34="DI",MID(B34,3,3)="OHF"),VS!$M$11,SUMIF(VS!$D$3:$K$3,P34,VS!$D$11:$K$11)) -> 2400 | AA34: =K34 -> 100 | AB34: =-PMT(disc_rate,AA34,Z34) -> 240.017417
A35: MALEPHYDEXtedz | B35: =VLOOKUP($A35,'SAPP Hydro Existing'!$B$4:$N$96,2,FALSE) -> EPHYDEXtedz | D35: Electricity/Secondary | E35: b | F35: ="" ->  | G35: 1 | H35: =VLOOKUP($A35,'SAPP Hydro Existing'!$B$4:$N$96,8,FALSE)*8.76*CurAdj -> 14.17555537 | I35: =1-VLOOKUP($A35,'SAPP Hydro Existing'!$B$4:$N$96,11,FALSE) -> 0.98 | J35: =IF(dryear,VLOOKUP($A35,'SAPP Hydro Existing'!$B$4:$N$96,13,FALSE),VLOOKUP($A35,'SAPP Hydro Existing'!$B$4:$N$96,12,FALSE))/I35 -> 0.447408104 | K35: 100 | M35: =VLOOKUP($A35,'SAPP Hydro Existing'!$B$4:$N$96,9,FALSE)*CurAdj -> 9.344918417 | N35: 0 | O35: =2000&" "&VLOOKUP($A35,'SAPP Hydro Existing'!$B$4:$N$96,5,FALSE) -> 2000 88 | P35: =MID(B35,3,3) -> HYD | S35: =S34 -> 1 | T35: =IF(OR(MID(B35,3,1)="W",MID(B35,3,1)="S",MID(B35,3,1)="H",MID(B35,3,1)="B",MID(B35,3,2)="GE"),1,0) -> 1 | U35: =IF(W35="e-t",1,SUMIF(NameConvsw!$B$58:$B$70,LEFT(A35,3),NameConvsw!$H$58:$H$70)) -> 1 | W35: =W34 -> e-E | Z35: =IF(AND(P35="DI",MID(B35,3,3)="OHF"),VS!$M$11,SUMIF(VS!$D$3:$K$3,P35,VS!$D$11:$K$11)) -> 2400 | AA35: =K35 -> 100 | AB35: =-PMT(disc_rate,AA35,Z35) -> 240.017417
A36: MALEPHYDEXoth | B36: =VLOOKUP(A36,'SAPP Hydro Existing'!$B$4:$N$96,2,FALSE) -> EPHYDEXoth | D36: Electricity/Secondary | E36: c | F36: ="" ->  | G36: 1 | H36: =VLOOKUP($A36,'SAPP Hydro Existing'!$B$4:$N$96,8,FALSE)*8.76*CurAdj -> 14.17555537 | I36: =1-VLOOKUP($A36,'SAPP Hydro Existing'!$B$4:$N$96,11,FALSE) -> 0.98 | J36: =IF(dryear,VLOOKUP($A36,'SAPP Hydro Existing'!$B$4:$N$96,13,FALSE),VLOOKUP($A36,'SAPP Hydro Existing'!$B$4:$N$96,12,FALSE))/I36 -> 0.5413124154 | K36: 100 | M36: =VLOOKUP($A36,'SAPP Hydro Existing'!$B$4:$N$96,9,FALSE)*CurAdj -> 9.344918417 | N36: 0 | O36: =2000&" "&VLOOKUP($A36,'SAPP Hydro Existing'!$B$4:$N$96,5,FALSE) -> 2000 68 | P36: =MID(B36,3,3) -> HYD | S36: =S35 -> 1 | T36: =IF(OR(MID(B36,3,1)="W",MID(B36,3,1)="S",MID(B36,3,1)="H",MID(B36,3,1)="B",MID(B36,3,2)="GE"),1,0) -> 1 | U36: =IF(W36="e-t",1,SUMIF(NameConvsw!$B$58:$B$70,LEFT(A36,3),NameConvsw!$H$58:$H$70)) -> 1 | W36: =W35 -> e-E | Z36: =IF(AND(P36="DI",MID(B36,3,3)="OHF"),VS!$M$11,SUMIF(VS!$D$3:$K$3,P36,VS!$D$11:$K$11)) -> 2400 | AA36: =K36 -> 100 | AB36: =-PMT(disc_rate,AA36,Z36) -> 240.017417
A37: =LEFT(A36,3) -> MAL | B37: 4 | C37: =ROW()-B37-1 -> 32
A39: With country prefix | B39: Mozambique | C39: =OFFSET(C$2,lang,0) -> Main Input | D39: Main Output | E39: name | F39: Main Input | G39: Main Output (switch c) | H39: var costs (switch c) | I39: plant factor | J39: operation time | K39: Plant life | L39: Refurb. Costs | M39: Fixed Costs | N39: bdc (up) | O39: hist. cap. (switch hc) | P39: technology type | X39: Fuel Costs | Y39: emission factor | Z39: Investment cost | AA39: life | AB39: annualized cost
B40: =OFFSET(B$2,lang,0) -> MESSAGE Name | E40: alt | H40: US$'00/kWyr | L40: US$'00/kW | M40: US$'00/kW/yr | N40: MW | O40: MW | V40: Input Fuel | W40: Output Fuel | X40: $/kWyr | Y40: ton/kWyr | Z40: $/kW | AB40: $/kw-yr
A41: MOZEPODSEXOC | B41: =VLOOKUP($A41,'SAPP Thermal Existing'!$B$3:$Q$59,2,FALSE) -> EPODSEXOC | C41: Diesel/Primary | D41: Electricity/Secondary | E41: a | F41: 1 | G41: =VLOOKUP($A41,'SAPP Thermal Existing'!$B$3:$Q$59,8,FALSE) -> 0.296491517 | H41: =VLOOKUP($A41,'SAPP Thermal Existing'!$B$3:$Q$59,12,FALSE)*8.76*CurAdj -> 28.16335505 | I41: =1-VLOOKUP($A41,'SAPP Thermal Existing'!$B$3:$Q$59,15,FALSE) -> 0.9423 | J41: =VLOOKUP($A41,'SAPP Thermal Existing'!$B$3:$Q$59,16,FALSE)/I41 -> 0.85 | K41: 25 | M41: =VLOOKUP($A41,'SAPP Thermal Existing'!$B$3:$Q$59,13,FALSE)*CurAdj -> 0.8573319648 | N41: 0 | O41: =2000&" "&VLOOKUP($A41,'SAPP Thermal Existing'!$B$3:$Q$59,6,FALSE) -> 2000 64 | P41: DI | S41: 1 | T41: =IF(OR(MID(B41,3,1)="W",MID(B41,3,1)="S",MID(B41,3,1)="H",MID(B41,3,1)="B",MID(B41,3,2)="GE"),1,0) -> 0 | U41: =IF(W41="e-t",1,SUMIF(NameConvsw!$B$58:$B$70,LEFT(A41,3),NameConvsw!$H$58:$H$70)) -> 1 | V41: =VLOOKUP(C41,EnergyForms,2,FALSE) -> o-p | W41: =IF(ISNA(VLOOKUP(D41&"/"&LEFT(A41,3),EnergyForms2,2,FALSE)),VLOOKUP(D41,EnergyForms,2,FALSE),VLOOKUP(D41&"/"&LEFT(A41,3),EnergyForms2,2,FALSE)) -> e-F | X41: =SUMIF(MSG_Fueldata!$A$2:$A$209,LEFT($A41,3)&MID(B41,3,3),MSG_Fueldata!$E$2:$E$209)/$G41 -> 0 | Y41: =SUMIF(MSG_Fueldata!$A$2:$A$209,LEFT($A41,3)&MID(B41,3,3),MSG_Fueldata!$F$2:$F$209)/$G41 -> 7.878375554 | Z41: =IF(AND(P41="DI",MID(B41,3,3)="OHF"),VS!$M$11,SUMIF(VS!$D$3:$K$3,P41,VS!$D$11:$K$11)) -> 1123.5 | AA41: =K41 -> 25 | AB41: =-PMT(disc_rate,AA41,Z41) -> 123.7738291
A42: MOZEPHYDEXcaba | B42: =VLOOKUP($A42,'SAPP Hydro Existing'!$B$4:$N$96,2,FALSE) -> EPHYDEXcaba | D42: Electricity/Secondary | E42: a | F42: ="" ->  | G42: 1 | H42: =VLOOKUP($A42,'SAPP Hydro Existing'!$B$4:$N$96,8,FALSE)*8.76*CurAdj -> 14.17555537 | I42: =1-VLOOKUP($A42,'SAPP Hydro Existing'!$B$4:$N$96,11,FALSE) -> 0.98 | J42: =IF(dryear,VLOOKUP($A42,'SAPP Hydro Existing'!$B$4:$N$96,13,FALSE),VLOOKUP($A42,'SAPP Hydro Existing'!$B$4:$N$96,12,FALSE))/I42 -> 0.6736479044 | K42: 100 | M42: =VLOOKUP($A42,'SAPP Hydro Existing'!$B$4:$N$96,9,FALSE)*CurAdj -> 9.344918417 | N42: 0 | O42: =2000&" "&VLOOKUP($A42,'SAPP Hydro Existing'!$B$4:$N$96,5,FALSE) -> 2000 2075 | P42: =MID(B42,3,3) -> HYD | S42: 1 | T42: =IF(OR(MID(B42,3,1)="W",MID(B42,3,1)="S",MID(B42,3,1)="H",MID(B42,3,1)="B",MID(B42,3,2)="GE"),1,0) -> 1 | U42: =IF(W42="e-t",1,SUMIF(NameConvsw!$B$58:$B$70,LEFT(A42,3),NameConvsw!$H$58:$H$70)) -> 1 | W42: =W41 -> e-F | X42: 0 | Y42: 0 | Z42: =IF(AND(P42="DI",MID(B42,3,3)="OHF"),VS!$M$11,SUMIF(VS!$D$3:$K$3,P42,VS!$D$11:$K$11)) -> 2400 | AA42: =K42 -> 100 | AB42: =-PMT(disc_rate,AA42,Z42) -> 240.017417
A43: MOZEPHYDEXoth | B43: =VLOOKUP(A43,'SAPP Hydro Existing'!$B$4:$N$96,2,FALSE) -> EPHYDEXoth | D43: Electricity/Secondary | E43: b | F43: ="" ->  | G43: 1 | H43: =VLOOKUP($A43,'SAPP Hydro Existing'!$B$4:$N$96,8,FALSE)*8.76*CurAdj -> 14.17555537 | I43: =1-VLOOKUP($A43,'SAPP Hydro Existing'!$B$4:$N$96,11,FALSE) -> 0.98 | J43: =IF(dryear,VLOOKUP($A43,'SAPP Hydro Existing'!$B$4:$N$96,13,FALSE),VLOOKUP($A43,'SAPP Hydro Existing'!$B$4:$N$96,12,FALSE))/I43 -> 0.2651891418 | K43: 100 | M43: =VLOOKUP($A43,'SAPP Hydro Existing'!$B$4:$N$96,9,FALSE)*CurAdj -> 9.344918417 | N43: ='SAPP Hydro Existing'!AG41 -> 18 17 0 | O43: ='SAPP Hydro Existing'!R41 -> 2000 47 | P43: =MID(B43,3,3) -> HYD | Q43: Refurbishments of Chicamba, Corumana and Mavuzi Hydro | S43: 1 | T43: =IF(OR(MID(B43,3,1)="W",MID(B43,3,1)="S",MID(B43,3,1)="H",MID(B43,3,1)="B",MID(B43,3,2)="GE"),1,0) -> 1 | U43: =IF(W43="e-t",1,SUMIF(NameConvsw!$B$58:$B$70,LEFT(A43,3),NameConvsw!$H$58:$H$70)) -> 1 | W43: =W42 -> e-F | X43: 0 | Y43: 0 | Z43: =IF(AND(P43="DI",MID(B43,3,3)="OHF"),VS!$M$11,SUMIF(VS!$D$3:$K$3,P43,VS!$D$11:$K$11)) -> 2400 | AA43: =K43 -> 100 | AB43: =-PMT(disc_rate,AA43,Z43) -> 240.017417
A44: =LEFT(A43,3) -> MOZ | B44: 3 | C44: =ROW()-B44-1 -> 40
A46: With country prefix | B46: Namibia | C46: =OFFSET(C$2,lang,0) -> Main Input | D46: Main Output | E46: name | F46: Main Input | G46: Main Output (switch c) | H46: var costs (switch c) | I46: plant factor | J46: operation time | K46: Plant life | L46: Refurb. Costs | M46: Fixed Costs | N46: bdc (up) | O46: hist. cap. (switch hc) | P46: technology type | X46: Fuel Costs | Y46: emission factor | Z46: Investment cost | AA46: life | AB46: annualized cost
B47: =OFFSET(B$2,lang,0) -> MESSAGE Name | E47: alt | H47: US$'00/kWyr | L47: US$'00/kW | M47: US$'00/kW/yr | N47: MW | O47: MW | V47: Input Fuel | W47: Output Fuel | X47: $/kWyr | Y47: ton/kWyr | Z47: $/kW | AB47: $/kw-yr
A48: NAMEPCOAEXPF | B48: =VLOOKUP($A48,'SAPP Thermal Existing'!$B$3:$Q$59,2,FALSE) -> EPCOAEXPF | C48: Coal/Primary | D48: Electricity/Secondary | E48: a | F48: 1 | G48: =VLOOKUP($A48,'SAPP Thermal Existing'!$B$3:$Q$59,8,FALSE) -> 0.3 | H48: =VLOOKUP($A48,'SAPP Thermal Existing'!$B$3:$Q$59,12,FALSE)*8.76*CurAdj -> 11.86024493 | I48: =1-VLOOKUP($A48,'SAPP Thermal Existing'!$B$3:$Q$59,15,FALSE) -> 0.9483 | J48: =VLOOKUP($A48,'SAPP Thermal Existing'!$B$3:$Q$59,16,FALSE)/I48 -> 0.928 | K48: 35 | M48: =VLOOKUP($A48,'SAPP Thermal Existing'!$B$3:$Q$59,13,FALSE)*CurAdj -> 60.73125306 | N48: 0 | O48: =2000&" "&VLOOKUP($A48,'SAPP Thermal Existing'!$B$3:$Q$59,6,FALSE) -> 2000 120 | P48: ST | S48: 1 | T48: =IF(OR(MID(B48,3,1)="W",MID(B48,3,1)="S",MID(B48,3,1)="H",MID(B48,3,1)="B",MID(B48,3,2)="GE"),1,0) -> 0 | U48: =IF(W48="e-t",1,SUMIF(NameConvsw!$B$58:$B$70,LEFT(A48,3),NameConvsw!$H$58:$H$70)) -> 1 | V48: =VLOOKUP(C48,EnergyForms,2,FALSE) -> c-p | W48: =IF(ISNA(VLOOKUP(D48&"/"&LEFT(A48,3),EnergyForms2,2,FALSE)),VLOOKUP(D48,EnergyForms,2,FALSE),VLOOKUP(D48&"/"&LEFT(A48,3),EnergyForms2,2,FALSE)) -> e-G | X48: =SUMIF(MSG_Fueldata!$A$2:$A$209,LEFT($A48,3)&MID(B48,3,3),MSG_Fueldata!$E$2:$E$209)/$G48 -> 0 | Y48: =SUMIF(MSG_Fueldata!$A$2:$A$209,LEFT($A48,3)&MID(B48,3,3),MSG_Fueldata!$F$2:$F$209)/$G48 -> 10.13333333 | Z48: =IF(AND(P48="DI",MID(B48,3,3)="OHF"),VS!$M$11,SUMIF(VS!$D$3:$K$3,P48,VS!$D$11:$K$11)) -> 2488.6656 | AA48: =K48 -> 35 | AB48: =-PMT(disc_rate,AA48,Z48) -> 258.0490022
A49: NAMEPODSEXOC | B49: =VLOOKUP(A49,'SAPP Thermal Existing'!$B$3:$Q$59,2,FALSE) -> EPODSEXOC | C49: Diesel/Primary | D49: Electricity/Secondary | E49: a | F49: 1 | G49: =VLOOKUP($A49,'SAPP Thermal Existing'!$B$3:$Q$59,8,FALSE) -> 0.3 | H49: =VLOOKUP($A49,'SAPP Thermal Existing'!$B$3:$Q$59,12,FALSE)*8.76*CurAdj -> 50.22464983 | I49: =1-VLOOKUP($A49,'SAPP Thermal Existing'!$B$3:$Q$59,15,FALSE) -> 0.9789 | J49: =VLOOKUP($A49,'SAPP Thermal Existing'!$B$3:$Q$59,16,FALSE)/I49 -> 0.9797 | K49: 35 | M49: =VLOOKUP($A49,'SAPP Thermal Existing'!$B$3:$Q$59,13,FALSE)*CurAdj -> 5.208291686 | N49: 0 | O49: =2000&" "&VLOOKUP($A49,'SAPP Thermal Existing'!$B$3:$Q$59,6,FALSE) -> 2000 24 | P49: DI | S49: =S48 -> 1 | T49: =IF(OR(MID(B49,3,1)="W",MID(B49,3,1)="S",MID(B49,3,1)="H",MID(B49,3,1)="B",MID(B49,3,2)="GE"),1,0) -> 0 | U49: =IF(W49="e-t",1,SUMIF(NameConvsw!$B$58:$B$70,LEFT(A49,3),NameConvsw!$H$58:$H$70)) -> 1 | V49: =VLOOKUP(C49,EnergyForms,2,FALSE) -> o-p | W49: =W48 -> e-G | X49: 0 | Y49: =SUMIF(MSG_Fueldata!$A$2:$A$209,LEFT($A49,3)&MID(B49,3,3),MSG_Fueldata!$F$2:$F$209)/$G49 -> 7.7862384 | Z49: =IF(AND(P49="DI",MID(B49,3,3)="OHF"),VS!$M$11,SUMIF(VS!$D$3:$K$3,P49,VS!$D$11:$K$11)) -> 1123.5 | AA49: =K49 -> 35 | AB49: =-PMT(disc_rate,AA49,Z49) -> 116.4953837
A50: NAMEPHYDEX | B50: =VLOOKUP($A50,'SAPP Hydro Existing'!$B$4:$N$96,2,FALSE) -> EPHYDEX | D50: Electricity/Secondary | E50: a | F50: ="" ->  | G50: 1 | H50: =VLOOKUP($A50,'SAPP Hydro Existing'!$B$4:$N$96,8,FALSE)*8.76*CurAdj -> 14.17555537 | I50: =1-VLOOKUP($A50,'SAPP Hydro Existing'!$B$4:$N$96,11,FALSE) -> 0.98 | J50: =IF(dryear,VLOOKUP($A50,'SAPP Hydro Existing'!$B$4:$N$96,13,FALSE),VLOOKUP($A50,'SAPP Hydro Existing'!$B$4:$N$96,12,FALSE))/I50 -> 0.4470109962 | K50: 100 | M50: =VLOOKUP($A50,'SAPP Hydro Existing'!$B$4:$N$96,9,FALSE)*CurAdj -> 9.344918417 | N50: ='SAPP Hydro Existing'!AG45 -> 0 0 90 0 | O50: =2000&" "&VLOOKUP($A50,'SAPP Hydro Existing'!$B$4:$N$96,5,FALSE) -> 2000 240 | P50: =MID(B50,3,3) -> HYD | S50: 1 | T50: =IF(OR(MID(B50,3,1)="W",MID(B50,3,1)="S",MID(B50,3,1)="H",MID(B50,3,1)="B",MID(B50,3,2)="GE"),1,0) -> 1 | U50: =IF(W50="e-t",1,SUMIF(NameConvsw!$B$58:$B$70,LEFT(A50,3),NameConvsw!$H$58:$H$70)) -> 1 | W50: =W49 -> e-G | X50: 0 | Y50: 0 | Z50: =IF(AND(P50="DI",MID(B50,3,3)="OHF"),VS!$M$11,SUMIF(VS!$D$3:$K$3,P50,VS!$D$11:$K$11)) -> 2400 | AA50: =K50 -> 100 | AB50: =-PMT(disc_rate,AA50,Z50) -> 240.017417
A51: =LEFT(A50,3) -> NAM | B51: 3 | C51: =ROW()-B51-1 -> 47
A53: With country prefix | B53: South Africa | C53: =OFFSET(C$2,lang,0) -> Main Input | D53: Main Output | E53: name | F53: Main Input | G53: Main Output (switch c) | H53: var costs (switch c) | I53: plant factor | J53: operation time | K53: Plant life | L53: Refurb. Costs | M53: Fixed Costs | N53: bdc (up) | O53: hist. cap. (switch hc) | P53: technology type | X53: Fuel Costs | Y53: emission factor | Z53: Investment cost | AA53: life | AB53: annualized cost
B54: =OFFSET(B$2,lang,0) -> MESSAGE Name | E54: alt | H54: US$'00/kWyr | L54: US$'00/kW | M54: US$'00/kW/yr | N54: MW | O54: MW | V54: Input Fuel | W54: Output Fuel | X54: $/kWyr | Y54: ton/kWyr | Z54: $/kW | AB54: $/kw-yr
A55: ="SAF"&B55 -> SAFEPCOAEXPFLU | B55: EPCOAEXPFLU | C55: Coal/Primary | D55: Electricity/Secondary | E55: a | F55: 1 | G55: =VLOOKUP($B55,'SA System'!$B$5:$R$51,3,FALSE) -> 0.3540363935 | H55: =VLOOKUP($B55,'SA System'!$B$5:$R$51,12,FALSE)/'SA System'!$O$2*8.76*CurAdj -> 9.675628323 | I55: =1-VLOOKUP($B55,'SA System'!$B$5:$R$51,10,FALSE) -> 0.9415784779 | J55: =VLOOKUP($B55,'SA System'!$B$5:$R$51,11,FALSE)/I55 -> 0.9245714968 | K55: =VLOOKUP($B55,'SA System'!$B$5:$R$51,17,FALSE) -> 55 | M55: =VLOOKUP($B55,'SA System'!$B$5:$R$51,13,FALSE)/'SA System'!$O$2*CurAdj -> 26.80665154 | N55: 0 | O55: =VLOOKUP($B55,HistCapSA!$B$16:$C$87,2,FALSE) -> 1975 2280 1976 2850 1979 3450 1980 3450 1985 7068 1987 3690 1988 3840 1996 3843 | P55: ST | S55: 1 | T55: =IF(OR(MID(B55,3,1)="W",MID(B55,3,1)="S",MID(B55,3,1)="H",MID(B55,3,1)="B",MID(B55,3,2)="GE"),1,0) -> 0 | U55: =IF(W55="e-t",1,SUMIF(NameConvsw!$B$58:$B$70,LEFT(A55,3),NameConvsw!$H$58:$H$70)) -> 1 | V55: =VLOOKUP(C55,EnergyForms,2,FALSE) -> c-p | W55: =IF(ISNA(VLOOKUP(D55&"/"&LEFT(A55,3),EnergyForms2,2,FALSE)),VLOOKUP(D55,EnergyForms,2,FALSE),VLOOKUP(D55&"/"&LEFT(A55,3),EnergyForms2,2,FALSE)) -> e-H | X55: =SUMIF(MSG_Fueldata!$A$2:$A$209,LEFT($A55,3)&MID(B55,3,3),MSG_Fueldata!$E$2:$E$209)/$G55 -> 0 | Y55: =SUMIF(MSG_Fueldata!$A$2:$A$209,LEFT($A55,3)&MID(B55,3,3),MSG_Fueldata!$F$2:$F$209)/$G55 -> 8.586687854 | Z55: =IF(AND(P55="DI",MID(B55,3,3)="OHF"),VS!$M$11,SUMIF(VS!$D$3:$K$3,P55,VS!$D$11:$K$11)) -> 2488.6656 | AA55: =K55 -> 55 | AB55: =-PMT(disc_rate,AA55,Z55) -> 250.189902
A56: ="SAF"&B56 -> SAFEPCOAEXPFSU | B56: EPCOAEXPFSU | C56: Coal/Primary | D56: Electricity/Secondary | E56: b | F56: 1 | G56: =VLOOKUP($B56,'SA System'!$B$5:$R$51,3,FALSE) -> 0.2853558542 | H56: =VLOOKUP($B56,'SA System'!$B$5:$R$51,12,FALSE)/'SA System'!$O$2*8.76*CurAdj -> 11.86024493 | I56: =1-VLOOKUP($B56,'SA System'!$B$5:$R$51,10,FALSE) -> 0.8777084685 | J56: =VLOOKUP($B56,'SA System'!$B$5:$R$51,11,FALSE)/I56 -> 0.9192707745 | K56: =VLOOKUP($B56,'SA System'!$B$5:$R$51,17,FALSE) -> 55 | M56: =VLOOKUP($B56,'SA System'!$B$5:$R$51,13,FALSE)/'SA System'!$O$2*CurAdj -> 37.55852764 | N56: =HistCapSA!C21 -> 380 679 303 101 0 | O56: =VLOOKUP($B56,HistCapSA!$B$16:$C$87,2,FALSE) -> 1970 1900 1982 951 1986 1621 1988 380 1989 202 | P56: ST | Q56: Refurbishments of Camden, Grootvlei and Komati | S56: 1 | T56: =IF(OR(MID(B56,3,1)="W",MID(B56,3,1)="S",MID(B56,3,1)="H",MID(B56,3,1)="B",MID(B56,3,2)="GE"),1,0) -> 0 | U56: =IF(W56="e-t",1,SUMIF(NameConvsw!$B$58:$B$70,LEFT(A56,3),NameConvsw!$H$58:$H$70)) -> 1 | V56: =VLOOKUP(C56,EnergyForms,2,FALSE) -> c-p | W56: =IF(ISNA(VLOOKUP(D56&"/"&LEFT(A56,3),EnergyForms2,2,FALSE)),VLOOKUP(D56,EnergyForms,2,FALSE),VLOOKUP(D56&"/"&LEFT(A56,3),EnergyForms2,2,FALSE)) -> e-H | X56: =SUMIF(MSG_Fueldata!$A$2:$A$209,LEFT($A56,3)&MID(B56,3,3),MSG_Fueldata!$E$2:$E$209)/$G56 -> 0 | Y56: =SUMIF(MSG_Fueldata!$A$2:$A$209,LEFT($A56,3)&MID(B56,3,3),MSG_Fueldata!$F$2:$F$209)/$G56 -> 10.65336476 | Z56: =IF(AND(P56="DI",MID(B56,3,3)="OHF"),VS!$M$11,SUMIF(VS!$D$3:$K$3,P56,VS!$D$11:$K$11)) -> 2488.6656 | AA56: =K56 -> 55 | AB56: =-PMT(disc_rate,AA56,Z56) -> 250.189902
A57: SAFEPODSEXOC | B57: EPODSEXOC | C57: Diesel/Primary | D57: Electricity/Secondary | E57: a | F57: 1 | G57: =VLOOKUP($B57,'SA System'!$B$5:$R$51,3,FALSE) -> 0.3229023526 | H57: =VLOOKUP($B57,'SA System'!$B$5:$R$51,12,FALSE)/'SA System'!$O$2*8.76*CurAdj -> 327.9807098 | I57: =1-VLOOKUP($B57,'SA System'!$B$5:$R$51,10,FALSE) -> 0.94864 | J57: =VLOOKUP($B57,'SA System'!$B$5:$R$51,11,FALSE)/I57 -> 0.06324843987 | K57: =VLOOKUP($B57,'SA System'!$B$5:$R$51,17,FALSE) -> 50 | M57: =VLOOKUP($B57,'SA System'!$B$5:$R$51,13,FALSE)/'SA System'!$O$2*CurAdj -> 10.13220942 | N57: 0 | O57: =VLOOKUP($B57,HistCapSA!$B$16:$C$87,2,FALSE) -> 1976 342 2007 2058 | P57: DI | S57: =S55 -> 1 | T57: 0 | U57: =IF(W57="e-t",1,SUMIF(NameConvsw!$B$58:$B$70,LEFT(A57,3),NameConvsw!$H$58:$H$70)) -> 1 | V57: =VLOOKUP(C57,EnergyForms,2,FALSE) -> o-p | W57: =IF(ISNA(VLOOKUP(D57&"/"&LEFT(A57,3),EnergyForms2,2,FALSE)),VLOOKUP(D57,EnergyForms,2,FALSE),VLOOKUP(D57&"/"&LEFT(A57,3),EnergyForms2,2,FALSE)) -> e-H | X57: =SUMIF(MSG_Fueldata!$A$2:$A$209,LEFT($A57,3)&MID(B57,3,3),MSG_Fueldata!$E$2:$E$209)/$G57 -> 0 | Y57: =SUMIF(MSG_Fueldata!$A$2:$A$209,LEFT($A57,3)&MID(B57,3,3),MSG_Fueldata!$F$2:$F$209)/$G57 -> 7.233987308 | Z57: =IF(AND(P57="DI",MID(B57,3,3)="OHF"),VS!$M$11,SUMIF(VS!$D$3:$K$3,P57,VS!$D$11:$K$11)) -> 1123.5 | AA57: 50 | AB57: 113.315282
A58: SAFEPHYDEX | B58: EPHYDEX | D58: Electricity/Secondary | E58: a | F58: ="" ->  | G58: 1 | H58: =VLOOKUP($B58,'SA System'!$B$5:$R$51,12,FALSE)/'SA System'!$O$2*8.76*CurAdj -> 0 | I58: =1-VLOOKUP($B58,'SA System'!$B$5:$R$51,10,FALSE) -> 1 | J58: =VLOOKUP($B58,'SA System'!$B$5:$R$51,11,FALSE)/I58 -> 0.1507924812 | K58: =VLOOKUP($B58,'SA System'!$B$5:$R$51,17,FALSE) -> 100 | M58: =VLOOKUP($B58,'SA System'!$B$5:$R$51,13,FALSE)/'SA System'!$O$2*CurAdj -> 17.59096011 | N58: 0 | O58: =VLOOKUP($B58,HistCapSA!$B$16:$C$87,2,FALSE) -> 1971 360 1976 65 1977 240 | P58: HYD | S58: =S57 -> 1 | T58: 1 | U58: =IF(W58="e-t",1,SUMIF(NameConvsw!$B$58:$B$70,LEFT(A58,3),NameConvsw!$H$58:$H$70)) -> 1 | W58: =IF(ISNA(VLOOKUP(D58&"/"&LEFT(A58,3),EnergyForms2,2,FALSE)),VLOOKUP(D58,EnergyForms,2,FALSE),VLOOKUP(D58&"/"&LEFT(A58,3),EnergyForms2,2,FALSE)) -> e-H | X58: =SUMIF(MSG_Fueldata!$A$2:$A$209,LEFT($A58,3)&MID(B58,3,3),MSG_Fueldata!$E$2:$E$209)/$G58 -> 0 | Y58: =SUMIF(MSG_Fueldata!$A$2:$A$209,LEFT($A58,3)&MID(B58,3,3),MSG_Fueldata!$F$2:$F$209)/$G58 -> 0 | Z58: =IF(AND(P58="DI",MID(B58,3,3)="OHF"),VS!$M$11,SUMIF(VS!$D$3:$K$3,P58,VS!$D$11:$K$11)) -> 2400 | AA58: 100 | AB58: 240.017417
A59: SAFEPNUCEXPW | B59: EPNUCEXPW | C59: Nuclear/Primary | D59: Electricity/Secondary | E59: a | F59: 1 | G59: =VLOOKUP($B59,'SA System'!$B$5:$R$51,3,FALSE) -> 0.3200152185 | H59: =VLOOKUP($B59,'SA System'!$B$5:$R$51,12,FALSE)/'SA System'!$O$2*8.76*CurAdj -> 13.41112145 | I59: =1-VLOOKUP($B59,'SA System'!$B$5:$R$51,10,FALSE) -> 0.9129 | J59: =VLOOKUP($B59,'SA System'!$B$5:$R$51,11,FALSE)/I59 -> 0.8877 | K59: 100 | M59: =VLOOKUP($B59,'SA System'!$B$5:$R$51,13,FALSE)/'SA System'!$O$2*CurAdj -> 63.68751739 | N59: 0 | O59: =VLOOKUP($B59,HistCapSA!$B$16:$C$87,2,FALSE) -> 1984 1800 | P59: ST | S59: =S58 -> 1 | T59: 0 | U59: =IF(W59="e-t",1,SUMIF(NameConvsw!$B$58:$B$70,LEFT(A59,3),NameConvsw!$H$58:$H$70)) -> 1 | V59: =VLOOKUP(C59,EnergyForms,2,FALSE) -> n-p | W59: =IF(ISNA(VLOOKUP(D59&"/"&LEFT(A59,3),EnergyForms2,2,FALSE)),VLOOKUP(D59,EnergyForms,2,FALSE),VLOOKUP(D59&"/"&LEFT(A59,3),EnergyForms2,2,FALSE)) -> e-H | X59: =SUMIF(MSG_Fueldata!$A$2:$A$209,LEFT($A59,3)&MID(B59,3,3),MSG_Fueldata!$E$2:$E$209)/$G59 -> 0 | Y59: =SUMIF(MSG_Fueldata!$A$2:$A$209,LEFT($A59,3)&MID(B59,3,3),MSG_Fueldata!$F$2:$F$209)/$G59 -> 0 | Z59: =IF(AND(P59="DI",MID(B59,3,3)="OHF"),VS!$M$11,SUMIF(VS!$D$3:$K$3,P59,VS!$D$11:$K$11)) -> 2488.6656 | AA59: 100 | AB59: 248.8846205
A60: SAFEPPSGEXSP | B60: EPPSGEXSP | C60: Electricity/Secondary | D60: ElcDummy/Secondary | E60: a | F60: 1 | G60: =VLOOKUP($B61,'SA System'!$B$5:$R$51,3,FALSE) -> 0.72998 | H60: 0 | I60: 1 | J60: 1 | K60: 100 | M60: 0 | O60: =O59 -> 1984 1800 | P60: HYD | S60: =S59 -> 1 | T60: 0 | U60: =IF(W60="e-t",1,SUMIF(NameConvsw!$B$58:$B$70,LEFT(A60,3),NameConvsw!$H$58:$H$70)) -> 1 | V60: =W59 -> e-H | W60: d-H | X60: 0 | Y60: 0 | Z60: =IF(AND(P60="DI",MID(B60,3,3)="OHF"),VS!$M$11,SUMIF(VS!$D$3:$K$3,P60,VS!$D$11:$K$11)) -> 2400 | AA60: 100 | AB60: 240.017417
A61: SAFEPPSGEXST | B61: EPPSGEXST | D61: Electricity/Secondary | E61: b | F61: ="" ->  | G61: 1 | H61: =VLOOKUP($B61,'SA System'!$B$5:$R$51,12,FALSE)/'SA System'!$O$2*8.76*CurAdj -> 4.515643425 | I61: =1-VLOOKUP($B61,'SA System'!$B$5:$R$51,10,FALSE) -> 0.9319746835 | J61: =VLOOKUP($B61,'SA System'!$B$5:$R$51,11,FALSE)/I61 -> 0.2081601608 | K61: 100 | M61: =VLOOKUP($B61,'SA System'!$B$5:$R$51,13,FALSE)/'SA System'!$O$2*CurAdj -> 9.096555703 | N61: 0 | O61: =VLOOKUP($B61,HistCapSA!$B$16:$C$87,2,FALSE) -> 1971 180 1981 1000 1988 400 | P61: HYD | S61: =S60 -> 1 | T61: 0 | U61: =IF(W61="e-t",1,SUMIF(NameConvsw!$B$58:$B$70,LEFT(A61,3),NameConvsw!$H$58:$H$70)) -> 1 | W61: =W59 -> e-H | X61: 0 | Y61: 0 | Z61: =IF(AND(P61="DI",MID(B61,3,3)="OHF"),VS!$M$11,SUMIF(VS!$D$3:$K$3,P61,VS!$D$11:$K$11)) -> 2400 | AA61: 100 | AB61: 240.017417
A62: =LEFT(A61,3) -> SAF | B62: 7 | C62: =ROW()-B62-1 -> 54
A64: With country prefix | B64: Swaziland | C64: =OFFSET(C$2,lang,0) -> Main Input | D64: Main Output | E64: name | F64: Main Input | G64: Main Output (switch c) | H64: var costs (switch c) | I64: plant factor | J64: operation time | K64: Plant life | L64: Refurb. Costs | M64: Fixed Costs | N64: bdc (up) | O64: hist. cap. (switch hc) | P64: technology type | X64: Fuel Costs | Y64: emission factor | Z64: Investment cost | AA64: life | AB64: annualized cost
B65: =OFFSET(B$2,lang,0) -> MESSAGE Name | E65: alt | H65: US$'00/kWyr | L65: US$'00/kW | M65: US$'00/kW/yr | N65: MW | O65: MW | V65: Input Fuel | W65: Output Fuel | X65: $/kWyr | Y65: ton/kWyr | Z65: $/kW | AB65: $/kw-yr
A66: SWAEPHYDEX | B66: =VLOOKUP($A66,'SAPP Hydro Existing'!$B$4:$N$96,2,FALSE) -> EPHYDEX | D66: Electricity/Secondary | E66: a | F66: ="" ->  | G66: 1 | H66: =VLOOKUP($A66,'SAPP Hydro Existing'!$B$4:$N$96,8,FALSE)*8.76*CurAdj -> 14.17555537 | I66: =1-VLOOKUP($A66,'SAPP Hydro Existing'!$B$4:$N$96,11,FALSE) -> 0.98 | J66: =IF(dryear,VLOOKUP($A66,'SAPP Hydro Existing'!$B$4:$N$96,13,FALSE),VLOOKUP($A66,'SAPP Hydro Existing'!$B$4:$N$96,12,FALSE))/I66 -> 0.2517577955 | K66: 100 | M66: =VLOOKUP($A66,'SAPP Hydro Existing'!$B$4:$N$96,9,FALSE)*CurAdj -> 9.344918417 | N66: 0 | O66: =2000&" "&VLOOKUP($A66,'SAPP Hydro Existing'!$B$4:$N$96,5,FALSE) -> 2000 62 | P66: =MID(B66,3,3) -> HYD | S66: 1 | T66: =IF(OR(MID(B66,3,1)="W",MID(B66,3,1)="S",MID(B66,3,1)="H",MID(B66,3,1)="B",MID(B66,3,2)="GE"),1,0) -> 1 | U66: =IF(W66="e-t",1,SUMIF(NameConvsw!$B$58:$B$70,LEFT(A66,3),NameConvsw!$H$58:$H$70)) -> 1 | W66: =IF(ISNA(VLOOKUP(D66&"/"&LEFT(A66,3),EnergyForms2,2,FALSE)),VLOOKUP(D66,EnergyForms,2,FALSE),VLOOKUP(D66&"/"&LEFT(A66,3),EnergyForms2,2,FALSE)) -> e-I | X66: 0 | Y66: 0 | Z66: =IF(AND(P66="DI",MID(B66,3,3)="OHF"),VS!$M$11,SUMIF(VS!$D$3:$K$3,P66,VS!$D$11:$K$11)) -> 2400 | AA66: =K66 -> 100 | AB66: =-PMT(disc_rate,AA66,Z66) -> 240.017417
A67: =LEFT(A66,3) -> SWA | B67: 1 | C67: =ROW()-B67-1 -> 65
A69: With country prefix | B69: Tanzania | C69: =OFFSET(C$2,lang,0) -> Main Input | D69: Main Output | E69: name | F69: Main Input | G69: Main Output (switch c) | H69: var costs (switch c) | I69: plant factor | J69: operation time | K69: Plant life | L69: Refurb. Costs | M69: Fixed Costs | N69: bdc (up) | O69: hist. cap. (switch hc) | P69: technology type | X69: Fuel Costs | Y69: emission factor | Z69: Investment cost | AA69: life | AB69: annualized cost
B70: =OFFSET(B$2,lang,0) -> MESSAGE Name | E70: alt | H70: US$'00/kWyr | L70: US$'00/kW | M70: US$'00/kW/yr | N70: MW | O70: MW | V70: Input Fuel | W70: Output Fuel | X70: $/kWyr | Y70: ton/kWyr | Z70: $/kW | AB70: $/kw-yr
A71: TANEPGASEXOC | B71: =VLOOKUP($A71,'SAPP Thermal Existing'!$B$3:$Q$59,2,FALSE) -> EPGASEXOC | C71: Gas/Primary | D71: Electricity/Secondary | E71: a | F71: 1 | G71: =VLOOKUP($A71,'SAPP Thermal Existing'!$B$3:$Q$59,8,FALSE) -> 0.2995840176 | H71: =VLOOKUP($A71,'SAPP Thermal Existing'!$B$3:$Q$59,12,FALSE)*8.76*CurAdj -> 50.22464983 | I71: =1-VLOOKUP($A71,'SAPP Thermal Existing'!$B$3:$Q$59,15,FALSE) -> 0.9789 | J71: =VLOOKUP($A71,'SAPP Thermal Existing'!$B$3:$Q$59,16,FALSE)/I71 -> 0.9797 | K71: 25 | M71: =VLOOKUP($A71,'SAPP Thermal Existing'!$B$3:$Q$59,13,FALSE)*CurAdj -> 5.208291686 | N71: 0 0 100 0 | O71: =2000&" "&VLOOKUP($A71,'SAPP Thermal Existing'!$B$3:$Q$59,6,FALSE) -> 2000 641 | P71: DI | Q71: Reburbishments/upgrade of Ubongo | S71: 1 | T71: =IF(OR(MID(B71,3,1)="W",MID(B71,3,1)="S",MID(B71,3,1)="H",MID(B71,3,1)="B",MID(B71,3,2)="GE"),1,0) -> 0 | U71: =IF(W71="e-t",1,SUMIF(NameConvsw!$B$58:$B$70,LEFT(A71,3),NameConvsw!$H$58:$H$70)) -> 1 | V71: =VLOOKUP(C71,EnergyForms,2,FALSE) -> g-p | W71: =IF(ISNA(VLOOKUP(D71&"/"&LEFT(A71,3),EnergyForms2,2,FALSE)),VLOOKUP(D71,EnergyForms,2,FALSE),VLOOKUP(D71&"/"&LEFT(A71,3),EnergyForms2,2,FALSE)) -> e-J | X71: =SUMIF(MSG_Fueldata!$A$2:$A$209,LEFT($A71,3)&MID(B71,3,3),MSG_Fueldata!$E$2:$E$209)/$G71 -> 0 | Y71: =SUMIF(MSG_Fueldata!$A$2:$A$209,LEFT($A71,3)&MID(B71,3,3),MSG_Fueldata!$F$2:$F$209)/$G71 -> 5.908192346 | Z71: =IF(AND(P71="DI",MID(B71,3,3)="OHF"),VS!$M$11,SUMIF(VS!$D$3:$K$3,P71,VS!$D$11:$K$11)) -> 1123.5 | AA71: =K71 -> 25 | AB71: =-PMT(disc_rate,AA71,Z71) -> 123.7738291
A72: TANEPODSEXOC | B72: =VLOOKUP(A72,'SAPP Thermal Existing'!$B$3:$Q$59,2,FALSE) -> EPODSEXOC | C72: Diesel/Primary | D72: Electricity/Secondary | E72: a | F72: 1 | G72: =VLOOKUP($A72,'SAPP Thermal Existing'!$B$3:$Q$59,8,FALSE) -> 0.2982907391 | H72: =VLOOKUP($A72,'SAPP Thermal Existing'!$B$3:$Q$59,12,FALSE)*8.76*CurAdj -> 28.16335505 | I72: =1-VLOOKUP($A72,'SAPP Thermal Existing'!$B$3:$Q$59,15,FALSE) -> 0.9423 | J72: =VLOOKUP($A72,'SAPP Thermal Existing'!$B$3:$Q$59,16,FALSE)/I72 -> 0.85 | K72: 25 | M72: =VLOOKUP($A72,'SAPP Thermal Existing'!$B$3:$Q$59,13,FALSE)*CurAdj -> 0.8573319648 | N72: 0 0 60 0 | O72: =2000&" "&VLOOKUP($A72,'SAPP Thermal Existing'!$B$3:$Q$59,6,FALSE) -> 2000 78 | P72: DI | Q72: Reburbishments/upgrade of Mwanza HFO | S72: =S71 -> 1 | T72: =IF(OR(MID(B72,3,1)="W",MID(B72,3,1)="S",MID(B72,3,1)="H",MID(B72,3,1)="B",MID(B72,3,2)="GE"),1,0) -> 0 | U72: =IF(W72="e-t",1,SUMIF(NameConvsw!$B$58:$B$70,LEFT(A72,3),NameConvsw!$H$58:$H$70)) -> 1 | V72: =VLOOKUP(C72,EnergyForms,2,FALSE) -> o-p | W72: =IF(ISNA(VLOOKUP(D72&"/"&LEFT(A72,3),EnergyForms2,2,FALSE)),VLOOKUP(D72,EnergyForms,2,FALSE),VLOOKUP(D72&"/"&LEFT(A72,3),EnergyForms2,2,FALSE)) -> e-J | X72: =SUMIF(MSG_Fueldata!$A$2:$A$209,LEFT($A72,3)&MID(B72,3,3),MSG_Fueldata!$E$2:$E$209)/$G72 -> 0 | Y72: =SUMIF(MSG_Fueldata!$A$2:$A$209,LEFT($A72,3)&MID(B72,3,3),MSG_Fueldata!$F$2:$F$209)/$G72 -> 7.830854981 | Z72: =IF(AND(P72="DI",MID(B72,3,3)="OHF"),VS!$M$11,SUMIF(VS!$D$3:$K$3,P72,VS!$D$11:$K$11)) -> 1123.5 | AA72: =K72 -> 25 | AB72: =-PMT(disc_rate,AA72,Z72) -> 123.7738291
A73: TANEPHYDEXLU | B73: =VLOOKUP($A73,'SAPP Hydro Existing'!$B$4:$N$96,2,FALSE) -> EPHYDEXLU | D73: Electricity/Secondary | E73: a | F73: ="" ->  | G73: 1 | H73: =VLOOKUP($A73,'SAPP Hydro Existing'!$B$4:$N$96,8,FALSE)*8.76*CurAdj -> 0 | I73: =1-VLOOKUP($A73,'SAPP Hydro Existing'!$B$4:$N$96,11,FALSE) -> 0.98 | J73: =IF(dryear,VLOOKUP($A73,'SAPP Hydro Existing'!$B$4:$N$96,13,FALSE),VLOOKUP($A73,'SAPP Hydro Existing'!$B$4:$N$96,12,FALSE))/I73 -> 0.3521849665 | K73: 100 | M73: =VLOOKUP($A73,'SAPP Hydro Existing'!$B$4:$N$96,9,FALSE) -> 5.765625 | N73: 0 | O73: =2000&" "&VLOOKUP($A73,'SAPP Hydro Existing'!$B$4:$N$96,5,FALSE) -> 2000 384 | P73: =MID(B73,3,3) -> HYD | S73: 1 | T73: =IF(OR(MID(B73,3,1)="W",MID(B73,3,1)="S",MID(B73,3,1)="H",MID(B73,3,1)="B",MID(B73,3,2)="GE"),1,0) -> 1 | U73: =IF(W73="e-t",1,SUMIF(NameConvsw!$B$58:$B$70,LEFT(A73,3),NameConvsw!$H$58:$H$70)) -> 1 | W73: =IF(ISNA(VLOOKUP(D73&"/"&LEFT(A73,3),EnergyForms2,2,FALSE)),VLOOKUP(D73,EnergyForms,2,FALSE),VLOOKUP(D73&"/"&LEFT(A73,3),EnergyForms2,2,FALSE)) -> e-J | X73: 0 | Y73: 0 | Z73: =IF(AND(P73="DI",MID(B73,3,3)="OHF"),VS!$M$11,SUMIF(VS!$D$3:$K$3,P73,VS!$D$11:$K$11)) -> 2400 | AA73: =K73 -> 100 | AB73: =-PMT(disc_rate,AA73,Z73) -> 240.017417
A74: TANEPHYDEXoth | B74: =VLOOKUP(A74,'SAPP Hydro Existing'!$B$4:$N$96,2,FALSE) -> EPHYDEXoth | D74: Electricity/Secondary | E74: b | F74: ="" ->  | G74: 1 | H74: =VLOOKUP($A74,'SAPP Hydro Existing'!$B$4:$N$96,8,FALSE)*8.76*CurAdj -> 0 | I74: =1-VLOOKUP($A74,'SAPP Hydro Existing'!$B$4:$N$96,11,FALSE) -> 0.98 | J74: =IF(dryear,VLOOKUP($A74,'SAPP Hydro Existing'!$B$4:$N$96,13,FALSE),VLOOKUP($A74,'SAPP Hydro Existing'!$B$4:$N$96,12,FALSE))/I74 -> 0.3178657114 | K74: 100 | M74: =VLOOKUP($A74,'SAPP Hydro Existing'!$B$4:$N$96,9,FALSE) -> 11.24293785 | N74: 0 | O74: =2000&" "&VLOOKUP($A74,'SAPP Hydro Existing'!$B$4:$N$96,5,FALSE) -> 2000 177 | P74: =MID(B74,3,3) -> HYD | S74: 1 | T74: =IF(OR(MID(B74,3,1)="W",MID(B74,3,1)="S",MID(B74,3,1)="H",MID(B74,3,1)="B",MID(B74,3,2)="GE"),1,0) -> 1 | U74: =IF(W74="e-t",1,SUMIF(NameConvsw!$B$58:$B$70,LEFT(A74,3),NameConvsw!$H$58:$H$70)) -> 1 | W74: =IF(ISNA(VLOOKUP(D74&"/"&LEFT(A74,3),EnergyForms2,2,FALSE)),VLOOKUP(D74,EnergyForms,2,FALSE),VLOOKUP(D74&"/"&LEFT(A74,3),EnergyForms2,2,FALSE)) -> e-J | X74: 0 | Y74: 0 | Z74: =IF(AND(P74="DI",MID(B74,3,3)="OHF"),VS!$M$11,SUMIF(VS!$D$3:$K$3,P74,VS!$D$11:$K$11)) -> 2400 | AA74: =K74 -> 100 | AB74: =-PMT(disc_rate,AA74,Z74) -> 240.017417
A75: =LEFT(A74,3) -> TAN | B75: 4 | C75: =ROW()-B75-1 -> 70
A77: With country prefix | B77: Zambia | C77: =OFFSET(C$2,lang,0) -> Main Input | D77: Main Output | E77: name | F77: Main Input | G77: Main Output (switch c) | H77: var costs (switch c) | I77: plant factor | J77: operation time | K77: Plant life | L77: Refurb. Costs | M77: Fixed Costs | N77: bdc (up) | O77: hist. cap. (switch hc) | P77: technology type | X77: Fuel Costs | Y77: emission factor | Z77: Investment cost | AA77: life | AB77: annualized cost
B78: =OFFSET(B$2,lang,0) -> MESSAGE Name | E78: alt | H78: US$'00/kWyr | L78: US$'00/kW | M78: US$'00/kW/yr | N78: MW | O78: MW | V78: Input Fuel | W78: Output Fuel | X78: $/kWyr | Y78: ton/kWyr | Z78: $/kW | AB78: $/kw-yr
A79: ZAMEPODSEXOC | B79: =VLOOKUP($A79,'SAPP Thermal Existing'!$B$3:$Q$59,2,FALSE) -> EPODSEXOC | C79: Diesel/Primary | D79: Electricity/Secondary | E79: a | F79: 1 | G79: =VLOOKUP($A79,'SAPP Thermal Existing'!$B$3:$Q$59,8,FALSE) -> 0.296491517 | H79: =VLOOKUP($A79,'SAPP Thermal Existing'!$B$3:$Q$59,12,FALSE)*8.76*CurAdj -> 28.16335505 | I79: =1-VLOOKUP($A79,'SAPP Thermal Existing'!$B$3:$Q$59,15,FALSE) -> 0.9423 | J79: =VLOOKUP($A79,'SAPP Thermal Existing'!$B$3:$Q$59,16,FALSE)/I79 -> 0.85 | K79: 100 | M79: =VLOOKUP($A79,'SAPP Thermal Existing'!$B$3:$Q$59,13,FALSE)*CurAdj -> 0.8573319648 | N79: 0 | O79: =2000&" "&VLOOKUP($A79,'SAPP Thermal Existing'!$B$3:$Q$59,6,FALSE) -> 2000 10 | P79: DI | S79: 1 | T79: =IF(OR(MID(B79,3,1)="W",MID(B79,3,1)="S",MID(B79,3,1)="H",MID(B79,3,1)="B",MID(B79,3,2)="GE"),1,0) -> 0 | U79: =IF(W79="e-t",1,SUMIF(NameConvsw!$B$58:$B$70,LEFT(A79,3),NameConvsw!$H$58:$H$70)) -> 1 | V79: =VLOOKUP(C79,EnergyForms,2,FALSE) -> o-p | W79: =IF(ISNA(VLOOKUP(D79&"/"&LEFT(A79,3),EnergyForms2,2,FALSE)),VLOOKUP(D79,EnergyForms,2,FALSE),VLOOKUP(D79&"/"&LEFT(A79,3),EnergyForms2,2,FALSE)) -> e-K | X79: =SUMIF(MSG_Fueldata!$A$2:$A$209,LEFT($A79,3)&MID(B79,3,3),MSG_Fueldata!$E$2:$E$209)/$G79 -> 0 | Y79: =SUMIF(MSG_Fueldata!$A$2:$A$209,LEFT($A79,3)&MID(B79,3,3),MSG_Fueldata!$F$2:$F$209)/$G79 -> 7.878375554 | Z79: =IF(AND(P79="DI",MID(B79,3,3)="OHF"),VS!$M$11,SUMIF(VS!$D$3:$K$3,P79,VS!$D$11:$K$11)) -> 1123.5 | AA79: =K79 -> 100 | AB79: =-PMT(disc_rate,AA79,Z79) -> 112.3581533
A80: ZAMEPHYDEXLU | B80: =VLOOKUP($A80,'SAPP Hydro Existing'!$B$4:$N$96,2,FALSE) -> EPHYDEXLU | D80: Electricity/Secondary | E80: a | F80: ="" ->  | G80: 1 | H80: =VLOOKUP($A80,'SAPP Hydro Existing'!$B$4:$N$96,8,FALSE)*8.76*CurAdj -> 14.17555537 | I80: =1-VLOOKUP($A80,'SAPP Hydro Existing'!$B$4:$N$96,11,FALSE) -> 0.98 | J80: =IF(dryear,VLOOKUP($A80,'SAPP Hydro Existing'!$B$4:$N$96,13,FALSE),VLOOKUP($A80,'SAPP Hydro Existing'!$B$4:$N$96,12,FALSE))/I80 -> 0.5219532427 | K80: 100 | M80: =VLOOKUP($A80,'SAPP Hydro Existing'!$B$4:$N$96,9,FALSE)*CurAdj -> 9.344918417 | N80: ='SAPP Hydro Existing'!AG61 -> 0 420 0 | O80: ='SAPP Hydro Existing'!R61 -> 2000 1200 | P80: HYD | Q80: Refurbishments of Kariba North and Kafue Gorge Upper | S80: =S79 -> 1 | T80: =IF(OR(MID(B80,3,1)="W",MID(B80,3,1)="S",MID(B80,3,1)="H",MID(B80,3,1)="B",MID(B80,3,2)="GE"),1,0) -> 1 | U80: =IF(W80="e-t",1,SUMIF(NameConvsw!$B$58:$B$70,LEFT(A80,3),NameConvsw!$H$58:$H$70)) -> 1 | W80: =IF(ISNA(VLOOKUP(D80&"/"&LEFT(A80,3),EnergyForms2,2,FALSE)),VLOOKUP(D80,EnergyForms,2,FALSE),VLOOKUP(D80&"/"&LEFT(A80,3),EnergyForms2,2,FALSE)) -> e-K | X80: =SUMIF(MSG_Fueldata!$A$2:$A$209,LEFT($A80,3)&MID(B80,3,3),MSG_Fueldata!$E$2:$E$209)/$G80 -> 0 | Y80: =SUMIF(MSG_Fueldata!$A$2:$A$209,LEFT($A80,3)&MID(B80,3,3),MSG_Fueldata!$F$2:$F$209)/$G80 -> 0 | Z80: =IF(AND(P80="DI",MID(B80,3,3)="OHF"),VS!$M$11,SUMIF(VS!$D$3:$K$3,P80,VS!$D$11:$K$11)) -> 2400 | AA80: =K80 -> 100 | AB80: =-PMT(disc_rate,AA80,Z80) -> 240.017417
A81: ZAMEPHYDEXoth | B81: =VLOOKUP(A81,'SAPP Hydro Existing'!$B$4:$N$96,2,FALSE) -> EPHYDEXoth | D81: Electricity/Secondary | E81: b | F81: ="" ->  | G81: 1 | H81: =VLOOKUP($A81,'SAPP Hydro Existing'!$B$4:$N$96,8,FALSE)*8.76*CurAdj -> 14.17555537 | I81: =1-VLOOKUP($A81,'SAPP Hydro Existing'!$B$4:$N$96,11,FALSE) -> 0.98 | J81: =IF(dryear,VLOOKUP($A81,'SAPP Hydro Existing'!$B$4:$N$96,13,FALSE),VLOOKUP($A81,'SAPP Hydro Existing'!$B$4:$N$96,12,FALSE))/I81 -> 0.4579976449 | K81: 100 | M81: =VLOOKUP($A81,'SAPP Hydro Existing'!$B$4:$N$96,9,FALSE)*CurAdj -> 9.344918417 | N81: 0 | O81: =2000&" "&VLOOKUP($A81,'SAPP Hydro Existing'!$B$4:$N$96,5,FALSE) -> 2000 132 | P81: HYD | S81: 1 | T81: =IF(OR(MID(B81,3,1)="W",MID(B81,3,1)="S",MID(B81,3,1)="H",MID(B81,3,1)="B",MID(B81,3,2)="GE"),1,0) -> 1 | U81: =IF(W81="e-t",1,SUMIF(NameConvsw!$B$58:$B$70,LEFT(A81,3),NameConvsw!$H$58:$H$70)) -> 1 | W81: =IF(ISNA(VLOOKUP(D81&"/"&LEFT(A81,3),EnergyForms2,2,FALSE)),VLOOKUP(D81,EnergyForms,2,FALSE),VLOOKUP(D81&"/"&LEFT(A81,3),EnergyForms2,2,FALSE)) -> e-K | X81: =SUMIF(MSG_Fueldata!$A$2:$A$209,LEFT($A81,3)&MID(B81,3,3),MSG_Fueldata!$E$2:$E$209)/$G81 -> 0 | Y81: =SUMIF(MSG_Fueldata!$A$2:$A$209,LEFT($A81,3)&MID(B81,3,3),MSG_Fueldata!$F$2:$F$209)/$G81 -> 0 | Z81: =IF(AND(P81="DI",MID(B81,3,3)="OHF"),VS!$M$11,SUMIF(VS!$D$3:$K$3,P81,VS!$D$11:$K$11)) -> 2400 | AA81: =K81 -> 100 | AB81: =-PMT(disc_rate,AA81,Z81) -> 240.017417
A82: =LEFT(A81,3) -> ZAM | B82: 3 | C82: =ROW()-B82-1 -> 78
A84: With country prefix | B84: Zimbabwe | C84: =OFFSET(C$2,lang,0) -> Main Input | D84: Main Output | E84: name | F84: Main Input | G84: Main Output (switch c) | H84: var costs (switch c) | I84: plant factor | J84: operation time | K84: Plant life | L84: Refurb. Costs | M84: Fixed Costs | N84: bdc (up) | O84: hist. cap. (switch hc) | P84: technology type | X84: Fuel Costs | Y84: emission factor | Z84: Investment cost | AA84: life | AB84: annualized cost
B85: =OFFSET(B$2,lang,0) -> MESSAGE Name | E85: alt | H85: US$'00/kWyr | L85: US$'00/kW | M85: US$'00/kW/yr | N85: MW | O85: MW | V85: Input Fuel | W85: Output Fuel | X85: $/kWyr | Y85: ton/kWyr | Z85: $/kW | AB85: $/kw-yr
A86: ZIMEPCOAEXPF | B86: =VLOOKUP(A86,'SAPP Thermal Existing'!$B$3:$Q$59,2,FALSE) -> EPCOAEXPF | C86: Coal/Primary | D86: Electricity/Secondary | E86: a | F86: 1 | G86: =VLOOKUP($A86,'SAPP Thermal Existing'!$B$3:$Q$59,8,FALSE) -> 0.3 | H86: =VLOOKUP($A86,'SAPP Thermal Existing'!$B$3:$Q$59,12,FALSE)*8.76*CurAdj -> 11.86024493 | I86: =1-VLOOKUP($A86,'SAPP Thermal Existing'!$B$3:$Q$59,15,FALSE) -> 0.9483 | J86: =VLOOKUP($A86,'SAPP Thermal Existing'!$B$3:$Q$59,16,FALSE)/I86 -> 0.928 | K86: 100 | L86: ='SAPP Thermal Existing'!R34*CurAdj -> 107.1664956 | M86: =VLOOKUP($A86,'SAPP Thermal Existing'!$B$3:$Q$59,13,FALSE)*CurAdj -> 60.73125306 | N86: ='SAPP Thermal Existing'!AM35 -> 0 0 0 100 150 150 0 | O86: ='SAPP Thermal Existing'!U34 -> 2000 360 | P86: ST | Q86: Refurbishments of Hwange Coal | S86: 1 | T86: =IF(OR(MID(B86,3,1)="W",MID(B86,3,1)="S",MID(B86,3,1)="H",MID(B86,3,1)="B",MID(B86,3,2)="GE"),1,0) -> 0 | U86: =IF(W86="e-t",1,SUMIF(NameConvsw!$B$58:$B$70,LEFT(A86,3),NameConvsw!$H$58:$H$70)) -> 1 | V86: =VLOOKUP(C86,EnergyForms,2,FALSE) -> c-p | W86: =IF(ISNA(VLOOKUP(D86&"/"&LEFT(A86,3),EnergyForms2,2,FALSE)),VLOOKUP(D86,EnergyForms,2,FALSE),VLOOKUP(D86&"/"&LEFT(A86,3),EnergyForms2,2,FALSE)) -> e-L | X86: 0 | Y86: 0 | Z86: =IF(AND(P86="DI",MID(B86,3,3)="OHF"),VS!$M$11,SUMIF(VS!$D$3:$K$3,P86,VS!$D$11:$K$11)) -> 2488.6656 | AA86: =K86 -> 100 | AB86: =-PMT(disc_rate,AA86,Z86) -> 248.8846205
A87: ZIMEPHYDEX | B87: =VLOOKUP(A87,'SAPP Hydro Existing'!$B$4:$N$96,2,FALSE) -> EPHYDEX | D87: Electricity/Secondary | E87: a | F87: ="" ->  | G87: 1 | H87: =VLOOKUP($A87,'SAPP Hydro Existing'!$B$4:$N$96,8,FALSE)*8.76*CurAdj -> 14.17555537 | I87: =1-VLOOKUP($A87,'SAPP Hydro Existing'!$B$4:$N$96,11,FALSE) -> 0.98 | J87: =IF(dryear,VLOOKUP($A87,'SAPP Hydro Existing'!$B$4:$N$96,13,FALSE),VLOOKUP($A87,'SAPP Hydro Existing'!$B$4:$N$96,12,FALSE))/I87 -> 0.4872177181 | K87: 100 | M87: =VLOOKUP($A87,'SAPP Hydro Existing'!$B$4:$N$96,9,FALSE)*CurAdj -> 9.344918417 | N87: 0 | O87: =2000&" "&VLOOKUP($A87,'SAPP Hydro Existing'!$B$4:$N$96,5,FALSE) -> 2000 750 | P87: =MID(B87,3,3) -> HYD | S87: 1 | T87: =IF(OR(MID(B87,3,1)="W",MID(B87,3,1)="S",MID(B87,3,1)="H",MID(B87,3,1)="B",MID(B87,3,2)="GE"),1,0) -> 1 | U87: =IF(W87="e-t",1,SUMIF(NameConvsw!$B$58:$B$70,LEFT(A87,3),NameConvsw!$H$58:$H$70)) -> 1 | W87: =W86 -> e-L | X87: 0 | Y87: 0 | Z87: =IF(AND(P87="DI",MID(B87,3,3)="OHF"),VS!$M$11,SUMIF(VS!$D$3:$K$3,P87,VS!$D$11:$K$11)) -> 2400 | AA87: =K87 -> 100 | AB87: =-PMT(disc_rate,AA87,Z87) -> 240.017417
A88: =LEFT(A87,3) -> ZIM | B88: 2 | C88: =ROW()-B88-1 -> 85

Sheet adb_exist
A1: country | B1: Tech count | C1: Start row | D1: Param size
A2: =adb_all!$B$1 -> ZIM | B2: =SUMIF(MSG_Exist!$A$6:$A$88,A2,MSG_Exist!$B$6:$B$88) -> 2 | C2: =SUMIF(MSG_Exist!$A$6:$A$88,A2,MSG_Exist!$C$6:$C$88) -> 85 | D2: =ROW(B19)-ROW(B3) -> 16
A3: =A2 -> ZIM | B3: *
A4: =C2 -> 85 | B4: =OFFSET(MSG_Exist!$B$1,A4,0) -> EPCOAEXPF | C4: =VLOOKUP(A3&B4,MSG_Exist!$A$6:$N$88,MSG_Exist!E$1,FALSE) -> a
C5: =IF(E5="","","minp") -> minp | D5: =IF(E5="","",VLOOKUP($A3&$B4,MSG_Exist!$A$6:$V$88,MSG_Exist!V$1,FALSE)) -> c-p | E5: =VLOOKUP($A3&$B4,MSG_Exist!$A$6:$O$88,MSG_Exist!F$1,0) -> 1
C6: moutp | D6: =VLOOKUP($A3&$B4,MSG_Exist!$A$6:$W$88,MSG_Exist!W$1,FALSE) -> e-L | E6: c | F6: =ROUND(VLOOKUP($A3&$B4,MSG_Exist!$A$6:$O$88,MSG_Exist!G$1,0),3) -> 0.3
C7: plf | D7: c | E7: =ROUND(VLOOKUP($A3&$B4,MSG_Exist!$A$6:$O$88,MSG_Exist!I$1,0),3) -> 0.948
C8: pll | D8: c | E8: =VLOOKUP($A3&$B4,MSG_Exist!$A$6:$O$88,MSG_Exist!K$1,0) -> 100
C9: fom | D9: c | E9: =ROUND(VLOOKUP($A3&$B4,MSG_Exist!$A$6:$O$88,MSG_Exist!M$1,0),3) -> 60.731
C10: vom | D10: c | E10: =ROUND(VLOOKUP($A3&$B4,MSG_Exist!$A$6:$O$88,MSG_Exist!H$1,0),3) -> 11.86
C11: hisc | D11: 0 | E11: hc | F11: =VLOOKUP($A3&$B4,MSG_Exist!$A$6:$O$88,MSG_Exist!O$1,0) -> 2000 360
C12: optm | D12: c | E12: =ROUND(VLOOKUP($A3&$B4,MSG_Exist!$A$6:$O$88,MSG_Exist!J$1,0),3) -> 0.928
C13: bdc | D13: up | E13: ts | F13: =VLOOKUP($A3&$B4,MSG_Exist!$A$6:$O$88,MSG_Exist!N$1,0) -> 0 0 0 100 150 150 0
C14: con1c | D14: RM:tin | E14: c | F14: =ROUND(VLOOKUP($A3&$B4,MSG_Exist!$A$6:$S$88,MSG_Exist!S$1,0),3) -> 1
C15: con1a | D15: RE | E15: c | F15: =ROUND(SUMPRODUCT(--(A3&B4=MSG_Exist!$A$8:$A$104),MSG_Exist!$T$8:$T$104,MSG_Exist!$U$8:$U$104),3) -> 0
C16: con1a | D16: DOM | E16: c | F16: =ROUND(SUMPRODUCT(--(A3&B4=MSG_Exist!$A$8:$A$104),MSG_Exist!$U$8:$U$104),3) -> 1
C17: =IF($F17="","","consa") ->  | D17: =IF($F17="","","PSd1:tin") ->  | E17: =IF($F17="","","c") ->  | F17: =IF(LEFT(D6,1)="d",1,IF(LEFT(B4,4)="EPPS",-1,"")) -> 
B18: #
A19: =A3 -> ZIM | B19: *
A20: =A4+1 -> 86 | B20: =OFFSET(MSG_Exist!$B$1,A20,0) -> EPHYDEX | C20: =VLOOKUP(A19&B20,MSG_Exist!$A$6:$N$88,MSG_Exist!E$1,FALSE) -> a
C21: =IF(E21="","","minp") ->  | D21: =IF(E21="","",VLOOKUP($A19&$B20,MSG_Exist!$A$6:$V$88,MSG_Exist!V$1,FALSE)) ->  | E21: =VLOOKUP($A19&$B20,MSG_Exist!$A$6:$O$88,MSG_Exist!F$1,0) -> 
C22: moutp | D22: =VLOOKUP($A19&$B20,MSG_Exist!$A$6:$W$88,MSG_Exist!W$1,FALSE) -> e-L | E22: c | F22: =ROUND(VLOOKUP($A19&$B20,MSG_Exist!$A$6:$O$88,MSG_Exist!G$1,0),3) -> 1
C23: plf | D23: c | E23: =ROUND(VLOOKUP($A19&$B20,MSG_Exist!$A$6:$O$88,MSG_Exist!I$1,0),3) -> 0.98
C24: pll | D24: c | E24: =VLOOKUP($A19&$B20,MSG_Exist!$A$6:$O$88,MSG_Exist!K$1,0) -> 100
C25: fom | D25: c | E25: =ROUND(VLOOKUP($A19&$B20,MSG_Exist!$A$6:$O$88,MSG_Exist!M$1,0),3) -> 9.345
C26: vom | D26: c | E26: =ROUND(VLOOKUP($A19&$B20,MSG_Exist!$A$6:$O$88,MSG_Exist!H$1,0),3) -> 14.176
C27: hisc | D27: 0 | E27: hc | F27: =VLOOKUP($A19&$B20,MSG_Exist!$A$6:$O$88,MSG_Exist!O$1,0) -> 2000 750
C28: optm | D28: c | E28: =ROUND(VLOOKUP($A19&$B20,MSG_Exist!$A$6:$O$88,MSG_Exist!J$1,0),3) -> 0.487
C29: bdc | D29: up | E29: ts | F29: =VLOOKUP($A19&$B20,MSG_Exist!$A$6:$O$88,MSG_Exist!N$1,0) -> 0
C30: con1c | D30: RM:tin | E30: c | F30: =ROUND(VLOOKUP($A19&$B20,MSG_Exist!$A$6:$S$88,MSG_Exist!S$1,0),3) -> 1
C31: con1a | D31: RE | E31: c | F31: =ROUND(SUMPRODUCT(--(A19&B20=MSG_Exist!$A$8:$A$104),MSG_Exist!$T$8:$T$104,MSG_Exist!$U$8:$U$104),3) -> 1
C32: con1a | D32: DOM | E32: c | F32: =ROUND(SUMPRODUCT(--(A19&B20=MSG_Exist!$A$8:$A$104),MSG_Exist!$U$8:$U$104),3) -> 1
C33: =IF($F33="","","consa") ->  | D33: =IF($F33="","","PSd1:tin") ->  | E33: =IF($F33="","","c") ->  | F33: =IF(LEFT(D22,1)="d",1,IF(LEFT(B20,4)="EPPS",-1,"")) -> 
B34: #
A35: =A19 -> ZIM | B35: *
A36: =A20+1 -> 87 | B36: =OFFSET(MSG_Exist!$B$1,A36,0) -> 2 | C36: =VLOOKUP(A35&B36,MSG_Exist!$A$6:$N$88,MSG_Exist!E$1,FALSE) -> 
C37: =IF(E37="","","minp") ->  | D37: =IF(E37="","",VLOOKUP($A35&$B36,MSG_Exist!$A$6:$V$88,MSG_Exist!V$1,FALSE)) ->  | E37: =VLOOKUP($A35&$B36,MSG_Exist!$A$6:$O$88,MSG_Exist!F$1,0) -> 
C38: moutp | D38: =VLOOKUP($A35&$B36,MSG_Exist!$A$6:$W$88,MSG_Exist!W$1,FALSE) ->  | E38: c | F38: =ROUND(VLOOKUP($A35&$B36,MSG_Exist!$A$6:$O$88,MSG_Exist!G$1,0),3) -> 
C39: plf | D39: c | E39: =ROUND(VLOOKUP($A35&$B36,MSG_Exist!$A$6:$O$88,MSG_Exist!I$1,0),3) -> 
C40: pll | D40: c | E40: =VLOOKUP($A35&$B36,MSG_Exist!$A$6:$O$88,MSG_Exist!K$1,0) -> 
C41: fom | D41: c | E41: =ROUND(VLOOKUP($A35&$B36,MSG_Exist!$A$6:$O$88,MSG_Exist!M$1,0),3) -> 
C42: vom | D42: c | E42: =ROUND(VLOOKUP($A35&$B36,MSG_Exist!$A$6:$O$88,MSG_Exist!H$1,0),3) -> 
C43: hisc | D43: 0 | E43: hc | F43: =VLOOKUP($A35&$B36,MSG_Exist!$A$6:$O$88,MSG_Exist!O$1,0) -> 
C44: optm | D44: c | E44: =ROUND(VLOOKUP($A35&$B36,MSG_Exist!$A$6:$O$88,MSG_Exist!J$1,0),3) -> 
C45: bdc | D45: up | E45: ts | F45: =VLOOKUP($A35&$B36,MSG_Exist!$A$6:$O$88,MSG_Exist!N$1,0) -> 
C46: con1c | D46: RM:tin | E46: c | F46: =ROUND(VLOOKUP($A35&$B36,MSG_Exist!$A$6:$S$88,MSG_Exist!S$1,0),3) -> 
C47: con1a | D47: RE | E47: c | F47: =ROUND(SUMPRODUCT(--(A35&B36=MSG_Exist!$A$8:$A$104),MSG_Exist!$T$8:$T$104,MSG_Exist!$U$8:$U$104),3) -> 0
C48: con1a | D48: DOM | E48: c | F48: =ROUND(SUMPRODUCT(--(A35&B36=MSG_Exist!$A$8:$A$104),MSG_Exist!$U$8:$U$104),3) -> 0
C49: =IF($F49="","","consa") ->  | D49: =IF($F49="","","PSd1:tin") ->  | E49: =IF($F49="","","c") ->  | F49: =IF(LEFT(D38,1)="d",1,IF(LEFT(B36,4)="EPPS",-1,"")) -> 
B50: #
A51: =A35 -> ZIM | B51: *
A52: =A36+1 -> 88 | B52: =OFFSET(MSG_Exist!$B$1,A52,0) -> 0 | C52: =VLOOKUP(A51&B52,MSG_Exist!$A$6:$N$88,MSG_Exist!E$1,FALSE) -> 
C53: =IF(E53="","","minp") ->  | D53: =IF(E53="","",VLOOKUP($A51&$B52,MSG_Exist!$A$6:$V$88,MSG_Exist!V$1,FALSE)) ->  | E53: =VLOOKUP($A51&$B52,MSG_Exist!$A$6:$O$88,MSG_Exist!F$1,0) -> 
C54: moutp | D54: =VLOOKUP($A51&$B52,MSG_Exist!$A$6:$W$88,MSG_Exist!W$1,FALSE) ->  | E54: c | F54: =ROUND(VLOOKUP($A51&$B52,MSG_Exist!$A$6:$O$88,MSG_Exist!G$1,0),3) -> 
C55: plf | D55: c | E55: =ROUND(VLOOKUP($A51&$B52,MSG_Exist!$A$6:$O$88,MSG_Exist!I$1,0),3) -> 
C56: pll | D56: c | E56: =VLOOKUP($A51&$B52,MSG_Exist!$A$6:$O$88,MSG_Exist!K$1,0) -> 
C57: fom | D57: c | E57: =ROUND(VLOOKUP($A51&$B52,MSG_Exist!$A$6:$O$88,MSG_Exist!M$1,0),3) -> 
C58: vom | D58: c | E58: =ROUND(VLOOKUP($A51&$B52,MSG_Exist!$A$6:$O$88,MSG_Exist!H$1,0),3) -> 
C59: hisc | D59: 0 | E59: hc | F59: =VLOOKUP($A51&$B52,MSG_Exist!$A$6:$O$88,MSG_Exist!O$1,0) -> 
C60: optm | D60: c | E60: =ROUND(VLOOKUP($A51&$B52,MSG_Exist!$A$6:$O$88,MSG_Exist!J$1,0),3) -> 
C61: bdc | D61: up | E61: ts | F61: =VLOOKUP($A51&$B52,MSG_Exist!$A$6:$O$88,MSG_Exist!N$1,0) -> 
C62: con1c | D62: RM:tin | E62: c | F62: =ROUND(VLOOKUP($A51&$B52,MSG_Exist!$A$6:$S$88,MSG_Exist!S$1,0),3) -> 
C63: con1a | D63: RE | E63: c | F63: =ROUND(SUMPRODUCT(--(A51&B52=MSG_Exist!$A$8:$A$104),MSG_Exist!$T$8:$T$104,MSG_Exist!$U$8:$U$104),3) -> 0
C64: con1a | D64: DOM | E64: c | F64: =ROUND(SUMPRODUCT(--(A51&B52=MSG_Exist!$A$8:$A$104),MSG_Exist!$U$8:$U$104),3) -> 0
C65: =IF($F65="","","consa") ->  | D65: =IF($F65="","","PSd1:tin") ->  | E65: =IF($F65="","","c") ->  | F65: =IF(LEFT(D54,1)="d",1,IF(LEFT(B52,4)="EPPS",-1,"")) -> 
B66: #
A67: =A51 -> ZIM | B67: *
A68: =A52+1 -> 89 | B68: =OFFSET(MSG_Exist!$B$1,A68,0) -> 0 | C68: =VLOOKUP(A67&B68,MSG_Exist!$A$6:$N$88,MSG_Exist!E$1,FALSE) -> 
C69: =IF(E69="","","minp") ->  | D69: =IF(E69="","",VLOOKUP($A67&$B68,MSG_Exist!$A$6:$V$88,MSG_Exist!V$1,FALSE)) ->  | E69: =VLOOKUP($A67&$B68,MSG_Exist!$A$6:$O$88,MSG_Exist!F$1,0) -> 
C70: moutp | D70: =VLOOKUP($A67&$B68,MSG_Exist!$A$6:$W$88,MSG_Exist!W$1,FALSE) ->  | E70: c | F70: =ROUND(VLOOKUP($A67&$B68,MSG_Exist!$A$6:$O$88,MSG_Exist!G$1,0),3) -> 
C71: plf | D71: c | E71: =ROUND(VLOOKUP($A67&$B68,MSG_Exist!$A$6:$O$88,MSG_Exist!I$1,0),3) -> 
C72: pll | D72: c | E72: =VLOOKUP($A67&$B68,MSG_Exist!$A$6:$O$88,MSG_Exist!K$1,0) -> 
C73: fom | D73: c | E73: =ROUND(VLOOKUP($A67&$B68,MSG_Exist!$A$6:$O$88,MSG_Exist!M$1,0),3) -> 
C74: vom | D74: c | E74: =ROUND(VLOOKUP($A67&$B68,MSG_Exist!$A$6:$O$88,MSG_Exist!H$1,0),3) -> 
C75: hisc | D75: 0 | E75: hc | F75: =VLOOKUP($A67&$B68,MSG_Exist!$A$6:$O$88,MSG_Exist!O$1,0) -> 
C76: optm | D76: c | E76: =ROUND(VLOOKUP($A67&$B68,MSG_Exist!$A$6:$O$88,MSG_Exist!J$1,0),3) -> 
C77: bdc | D77: up | E77: ts | F77: =VLOOKUP($A67&$B68,MSG_Exist!$A$6:$O$88,MSG_Exist!N$1,0) -> 
C78: con1c | D78: RM:tin | E78: c | F78: =ROUND(VLOOKUP($A67&$B68,MSG_Exist!$A$6:$S$88,MSG_Exist!S$1,0),3) -> 
C79: con1a | D79: RE | E79: c | F79: =ROUND(SUMPRODUCT(--(A67&B68=MSG_Exist!$A$8:$A$104),MSG_Exist!$T$8:$T$104,MSG_Exist!$U$8:$U$104),3) -> 0
C80: con1a | D80: DOM | E80: c | F80: =ROUND(SUMPRODUCT(--(A67&B68=MSG_Exist!$A$8:$A$104),MSG_Exist!$U$8:$U$104),3) -> 0
C81: =IF($F81="","","consa") ->  | D81: =IF($F81="","","PSd1:tin") ->  | E81: =IF($F81="","","c") ->  | F81: =IF(LEFT(D70,1)="d",1,IF(LEFT(B68,4)="EPPS",-1,"")) -> 
B82: #
A83: =A67 -> ZIM | B83: *
A84: =A68+1 -> 90 | B84: =OFFSET(MSG_Exist!$B$1,A84,0) -> 0 | C84: =VLOOKUP(A83&B84,MSG_Exist!$A$6:$N$88,MSG_Exist!E$1,FALSE) -> 
C85: =IF(E85="","","minp") ->  | D85: =IF(E85="","",VLOOKUP($A83&$B84,MSG_Exist!$A$6:$V$88,MSG_Exist!V$1,FALSE)) ->  | E85: =VLOOKUP($A83&$B84,MSG_Exist!$A$6:$O$88,MSG_Exist!F$1,0) -> 
C86: moutp | D86: =VLOOKUP($A83&$B84,MSG_Exist!$A$6:$W$88,MSG_Exist!W$1,FALSE) ->  | E86: c | F86: =ROUND(VLOOKUP($A83&$B84,MSG_Exist!$A$6:$O$88,MSG_Exist!G$1,0),3) -> 
C87: plf | D87: c | E87: =ROUND(VLOOKUP($A83&$B84,MSG_Exist!$A$6:$O$88,MSG_Exist!I$1,0),3) -> 
C88: pll | D88: c | E88: =VLOOKUP($A83&$B84,MSG_Exist!$A$6:$O$88,MSG_Exist!K$1,0) -> 
C89: fom | D89: c | E89: =ROUND(VLOOKUP($A83&$B84,MSG_Exist!$A$6:$O$88,MSG_Exist!M$1,0),3) -> 
C90: vom | D90: c | E90: =ROUND(VLOOKUP($A83&$B84,MSG_Exist!$A$6:$O$88,MSG_Exist!H$1,0),3) -> 
C91: hisc | D91: 0 | E91: hc | F91: =VLOOKUP($A83&$B84,MSG_Exist!$A$6:$O$88,MSG_Exist!O$1,0) -> 
C92: optm | D92: c | E92: =ROUND(VLOOKUP($A83&$B84,MSG_Exist!$A$6:$O$88,MSG_Exist!J$1,0),3) -> 
C93: bdc | D93: up | E93: ts | F93: =VLOOKUP($A83&$B84,MSG_Exist!$A$6:$O$88,MSG_Exist!N$1,0) -> 
C94: con1c | D94: RM:tin | E94: c | F94: =ROUND(VLOOKUP($A83&$B84,MSG_Exist!$A$6:$S$88,MSG_Exist!S$1,0),3) -> 
C95: con1a | D95: RE | E95: c | F95: =ROUND(SUMPRODUCT(--(A83&B84=MSG_Exist!$A$8:$A$104),MSG_Exist!$T$8:$T$104,MSG_Exist!$U$8:$U$104),3) -> 0
C96: con1a | D96: DOM | E96: c | F96: =ROUND(SUMPRODUCT(--(A83&B84=MSG_Exist!$A$8:$A$104),MSG_Exist!$U$8:$U$104),3) -> 0
C97: =IF($F97="","","consa") ->  | D97: =IF($F97="","","PSd1:tin") ->  | E97: =IF($F97="","","c") ->  | F97: =IF(LEFT(D86,1)="d",1,IF(LEFT(B84,4)="EPPS",-1,"")) -> 
B98: #
A99: =A83 -> ZIM | B99: *
A100: =A84+1 -> 91 | B100: =OFFSET(MSG_Exist!$B$1,A100,0) -> 0 | C100: =VLOOKUP(A99&B100,MSG_Exist!$A$6:$N$88,MSG_Exist!E$1,FALSE) -> 
C101: =IF(E101="","","minp") ->  | D101: =IF(E101="","",VLOOKUP($A99&$B100,MSG_Exist!$A$6:$V$88,MSG_Exist!V$1,FALSE)) ->  | E101: =VLOOKUP($A99&$B100,MSG_Exist!$A$6:$O$88,MSG_Exist!F$1,0) -> 
C102: moutp | D102: =VLOOKUP($A99&$B100,MSG_Exist!$A$6:$W$88,MSG_Exist!W$1,FALSE) ->  | E102: c | F102: =ROUND(VLOOKUP($A99&$B100,MSG_Exist!$A$6:$O$88,MSG_Exist!G$1,0),3) -> 
C103: plf | D103: c | E103: =ROUND(VLOOKUP($A99&$B100,MSG_Exist!$A$6:$O$88,MSG_Exist!I$1,0),3) -> 
C104: pll | D104: c | E104: =VLOOKUP($A99&$B100,MSG_Exist!$A$6:$O$88,MSG_Exist!K$1,0) -> 
C105: fom | D105: c | E105: =ROUND(VLOOKUP($A99&$B100,MSG_Exist!$A$6:$O$88,MSG_Exist!M$1,0),3) -> 
C106: vom | D106: c | E106: =ROUND(VLOOKUP($A99&$B100,MSG_Exist!$A$6:$O$88,MSG_Exist!H$1,0),3) -> 
C107: hisc | D107: 0 | E107: hc | F107: =VLOOKUP($A99&$B100,MSG_Exist!$A$6:$O$88,MSG_Exist!O$1,0) -> 
C108: optm | D108: c | E108: =ROUND(VLOOKUP($A99&$B100,MSG_Exist!$A$6:$O$88,MSG_Exist!J$1,0),3) -> 
C109: bdc | D109: up | E109: ts | F109: =VLOOKUP($A99&$B100,MSG_Exist!$A$6:$O$88,MSG_Exist!N$1,0) -> 
C110: con1c | D110: RM:tin | E110: c | F110: =ROUND(VLOOKUP($A99&$B100,MSG_Exist!$A$6:$S$88,MSG_Exist!S$1,0),3) -> 
C111: con1a | D111: RE | E111: c | F111: =ROUND(SUMPRODUCT(--(A99&B100=MSG_Exist!$A$8:$A$104),MSG_Exist!$T$8:$T$104,MSG_Exist!$U$8:$U$104),3) -> 0
C112: con1a | D112: DOM | E112: c | F112: =ROUND(SUMPRODUCT(--(A99&B100=MSG_Exist!$A$8:$A$104),MSG_Exist!$U$8:$U$104),3) -> 0
C113: =IF($F113="","","consa") ->  | D113: =IF($F113="","","PSd1:tin") ->  | E113: =IF($F113="","","c") ->  | F113: =IF(LEFT(D102,1)="d",1,IF(LEFT(B100,4)="EPPS",-1,"")) -> 
B114: #
A115: =A99 -> ZIM | B115: *
A116: =A100+1 -> 92 | B116: =OFFSET(MSG_Exist!$B$1,A116,0) -> 0 | C116: =VLOOKUP(A115&B116,MSG_Exist!$A$6:$N$88,MSG_Exist!E$1,FALSE) -> 
C117: =IF(E117="","","minp") ->  | D117: =IF(E117="","",VLOOKUP($A115&$B116,MSG_Exist!$A$6:$V$88,MSG_Exist!V$1,FALSE)) ->  | E117: =VLOOKUP($A115&$B116,MSG_Exist!$A$6:$O$88,MSG_Exist!F$1,0) -> 
C118: moutp | D118: =VLOOKUP($A115&$B116,MSG_Exist!$A$6:$W$88,MSG_Exist!W$1,FALSE) ->  | E118: c | F118: =ROUND(VLOOKUP($A115&$B116,MSG_Exist!$A$6:$O$88,MSG_Exist!G$1,0),3) -> 
C119: plf | D119: c | E119: =ROUND(VLOOKUP($A115&$B116,MSG_Exist!$A$6:$O$88,MSG_Exist!I$1,0),3) -> 
C120: pll | D120: c | E120: =VLOOKUP($A115&$B116,MSG_Exist!$A$6:$O$88,MSG_Exist!K$1,0) -> 
C121: fom | D121: c | E121: =ROUND(VLOOKUP($A115&$B116,MSG_Exist!$A$6:$O$88,MSG_Exist!M$1,0),3) -> 
C122: vom | D122: c | E122: =ROUND(VLOOKUP($A115&$B116,MSG_Exist!$A$6:$O$88,MSG_Exist!H$1,0),3) -> 
C123: hisc | D123: 0 | E123: hc | F123: =VLOOKUP($A115&$B116,MSG_Exist!$A$6:$O$88,MSG_Exist!O$1,0) -> 
C124: optm | D124: c | E124: =ROUND(VLOOKUP($A115&$B116,MSG_Exist!$A$6:$O$88,MSG_Exist!J$1,0),3) -> 
C125: bdc | D125: up | E125: ts | F125: =VLOOKUP($A115&$B116,MSG_Exist!$A$6:$O$88,MSG_Exist!N$1,0) -> 
C126: con1c | D126: RM:tin | E126: c | F126: =ROUND(VLOOKUP($A115&$B116,MSG_Exist!$A$6:$S$88,MSG_Exist!S$1,0),3) -> 
C127: con1a | D127: RE | E127: c | F127: =ROUND(SUMPRODUCT(--(A115&B116=MSG_Exist!$A$8:$A$104),MSG_Exist!$T$8:$T$104,MSG_Exist!$U$8:$U$104),3) -> 0
C128: con1a | D128: DOM | E128: c | F128: =ROUND(SUMPRODUCT(--(A115&B116=MSG_Exist!$A$8:$A$104),MSG_Exist!$U$8:$U$104),3) -> 0
C129: =IF($F129="","","consa") ->  | D129: =IF($F129="","","PSd1:tin") ->  | E129: =IF($F129="","","c") ->  | F129: =IF(LEFT(D118,1)="d",1,IF(LEFT(B116,4)="EPPS",-1,"")) -> 
B130: #

Sheet adb_exist2
A2: =adb_exist!B3 -> *
A3: =adb_exist!B4&" "&adb_exist!C4 -> EPCOAEXPF a
A4: =adb_exist!B5&" "&adb_exist!C5&" "&adb_exist!D5&" "&adb_exist!E5 -> minp c-p 1
A5: =adb_exist!B6&" "&adb_exist!C6&" "&adb_exist!D6&" "&adb_exist!E6&" "&adb_exist!F6 -> moutp e-L c 0.3
A6: =adb_exist!B7&" "&adb_exist!C7&" "&adb_exist!D7&" "&adb_exist!E7&" "&adb_exist!F7 -> plf c 0.948
A7: =adb_exist!B8&" "&adb_exist!C8&" "&adb_exist!D8&" "&adb_exist!E8&" "&adb_exist!F8 -> pll c 100
A8: =adb_exist!B9&" "&adb_exist!C9&" "&adb_exist!D9&" "&adb_exist!E9&" "&adb_exist!F9 -> fom c 60.731
A9: =adb_exist!B10&" "&adb_exist!C10&" "&adb_exist!D10&" "&adb_exist!E10&" "&adb_exist!F10 -> vom c 11.86
A10: =adb_exist!B11&" "&adb_exist!C11&" "&adb_exist!D11&" "&adb_exist!E11&" "&adb_exist!F11 -> hisc 0 hc 2000 360
A11: =adb_exist!B12&" "&adb_exist!C12&" "&adb_exist!D12&" "&adb_exist!E12&" "&adb_exist!F12 -> optm c 0.928
A12: =adb_exist!B13&" "&adb_exist!C13&" "&adb_exist!D13&" "&adb_exist!E13&" "&adb_exist!F13 -> bdc up ts 0 0 0 100 150 150 0
A13: =adb_exist!B14&" "&adb_exist!C14&" "&adb_exist!D14&" "&adb_exist!E14&" "&adb_exist!F14 -> con1c RM:tin c 1
A14: =adb_exist!B15&" "&adb_exist!C15&" "&adb_exist!D15&" "&adb_exist!E15&" "&adb_exist!F15 -> con1a RE c 0
A15: =adb_exist!B16&" "&adb_exist!C16&" "&adb_exist!D16&" "&adb_exist!E16&" "&adb_exist!F16 -> con1a DOM c 1
A16: =adb_exist!B17&" "&adb_exist!C17&" "&adb_exist!D17&" "&adb_exist!E17&" "&adb_exist!F17 -> 
A17: =adb_exist!B18&" "&adb_exist!C18&" "&adb_exist!D18&" "&adb_exist!E18&" "&adb_exist!F18 -> #
A18: =adb_exist!B19&" "&adb_exist!C19&" "&adb_exist!D19&" "&adb_exist!E19&" "&adb_exist!F19 -> *
A19: =adb_exist!B20&" "&adb_exist!C20&" "&adb_exist!D20&" "&adb_exist!E20&" "&adb_exist!F20 -> EPHYDEX a
A20: =adb_exist!B21&" "&adb_exist!C21&" "&adb_exist!D21&" "&adb_exist!E21&" "&adb_exist!F21 -> 
A21: =adb_exist!B22&" "&adb_exist!C22&" "&adb_exist!D22&" "&adb_exist!E22&" "&adb_exist!F22 -> moutp e-L c 1
A22: =adb_exist!B23&" "&adb_exist!C23&" "&adb_exist!D23&" "&adb_exist!E23&" "&adb_exist!F23 -> plf c 0.98
A23: =adb_exist!B24&" "&adb_exist!C24&" "&adb_exist!D24&" "&adb_exist!E24&" "&adb_exist!F24 -> pll c 100
A24: =adb_exist!B25&" "&adb_exist!C25&" "&adb_exist!D25&" "&adb_exist!E25&" "&adb_exist!F25 -> fom c 9.345
A25: =adb_exist!B26&" "&adb_exist!C26&" "&adb_exist!D26&" "&adb_exist!E26&" "&adb_exist!F26 -> vom c 14.176
A26: =adb_exist!B27&" "&adb_exist!C27&" "&adb_exist!D27&" "&adb_exist!E27&" "&adb_exist!F27 -> hisc 0 hc 2000 750
A27: =adb_exist!B28&" "&adb_exist!C28&" "&adb_exist!D28&" "&adb_exist!E28&" "&adb_exist!F28 -> optm c 0.487
A28: =adb_exist!B29&" "&adb_exist!C29&" "&adb_exist!D29&" "&adb_exist!E29&" "&adb_exist!F29 -> bdc up ts 0
A29: =adb_exist!B30&" "&adb_exist!C30&" "&adb_exist!D30&" "&adb_exist!E30&" "&adb_exist!F30 -> con1c RM:tin c 1
A30: =adb_exist!B31&" "&adb_exist!C31&" "&adb_exist!D31&" "&adb_exist!E31&" "&adb_exist!F31 -> con1a RE c 1
A31: =adb_exist!B32&" "&adb_exist!C32&" "&adb_exist!D32&" "&adb_exist!E32&" "&adb_exist!F32 -> con1a DOM c 1
A32: =adb_exist!B33&" "&adb_exist!C33&" "&adb_exist!D33&" "&adb_exist!E33&" "&adb_exist!F33 -> 
A33: =adb_exist!B34&" "&adb_exist!C34&" "&adb_exist!D34&" "&adb_exist!E34&" "&adb_exist!F34 -> #
A34: =adb_exist!B35&" "&adb_exist!C35&" "&adb_exist!D35&" "&adb_exist!E35&" "&adb_exist!F35 -> *
A35: =adb_exist!B36&" "&adb_exist!C36&" "&adb_exist!D36&" "&adb_exist!E36&" "&adb_exist!F36 -> 
A36: =adb_exist!B37&" "&adb_exist!C37&" "&adb_exist!D37&" "&adb_exist!E37&" "&adb_exist!F37 -> 
A37: =adb_exist!B38&" "&adb_exist!C38&" "&adb_exist!D38&" "&adb_exist!E38&" "&adb_exist!F38 -> 
A38: =adb_exist!B39&" "&adb_exist!C39&" "&adb_exist!D39&" "&adb_exist!E39&" "&adb_exist!F39 -> 
A39: =adb_exist!B40&" "&adb_exist!C40&" "&adb_exist!D40&" "&adb_exist!E40&" "&adb_exist!F40 -> 
A40: =adb_exist!B41&" "&adb_exist!C41&" "&adb_exist!D41&" "&adb_exist!E41&" "&adb_exist!F41 -> 
A41: =adb_exist!B42&" "&adb_exist!C42&" "&adb_exist!D42&" "&adb_exist!E42&" "&adb_exist!F42 -> 
A42: =adb_exist!B43&" "&adb_exist!C43&" "&adb_exist!D43&" "&adb_exist!E43&" "&adb_exist!F43 -> 
A43: =adb_exist!B44&" "&adb_exist!C44&" "&adb_exist!D44&" "&adb_exist!E44&" "&adb_exist!F44 -> 
A44: =adb_exist!B45&" "&adb_exist!C45&" "&adb_exist!D45&" "&adb_exist!E45&" "&adb_exist!F45 -> 
A45: =adb_exist!B46&" "&adb_exist!C46&" "&adb_exist!D46&" "&adb_exist!E46&" "&adb_exist!F46 -> 
A46: =adb_exist!B47&" "&adb_exist!C47&" "&adb_exist!D47&" "&adb_exist!E47&" "&adb_exist!F47 -> con1a RE c 0
A47: =adb_exist!B48&" "&adb_exist!C48&" "&adb_exist!D48&" "&adb_exist!E48&" "&adb_exist!F48 -> con1a DOM c 0
A48: =adb_exist!B49&" "&adb_exist!C49&" "&adb_exist!D49&" "&adb_exist!E49&" "&adb_exist!F49 -> 
A49: =adb_exist!B50&" "&adb_exist!C50&" "&adb_exist!D50&" "&adb_exist!E50&" "&adb_exist!F50 -> #
A50: =adb_exist!B51&" "&adb_exist!C51&" "&adb_exist!D51&" "&adb_exist!E51&" "&adb_exist!F51 -> *
A51: =adb_exist!B52&" "&adb_exist!C52&" "&adb_exist!D52&" "&adb_exist!E52&" "&adb_exist!F52 -> 
A52: =adb_exist!B53&" "&adb_exist!C53&" "&adb_exist!D53&" "&adb_exist!E53&" "&adb_exist!F53 -> 
A53: =adb_exist!B54&" "&adb_exist!C54&" "&adb_exist!D54&" "&adb_exist!E54&" "&adb_exist!F54 -> 
A54: =adb_exist!B55&" "&adb_exist!C55&" "&adb_exist!D55&" "&adb_exist!E55&" "&adb_exist!F55 -> 
A55: =adb_exist!B56&" "&adb_exist!C56&" "&adb_exist!D56&" "&adb_exist!E56&" "&adb_exist!F56 -> 
A56: =adb_exist!B57&" "&adb_exist!C57&" "&adb_exist!D57&" "&adb_exist!E57&" "&adb_exist!F57 -> 
A57: =adb_exist!B58&" "&adb_exist!C58&" "&adb_exist!D58&" "&adb_exist!E58&" "&adb_exist!F58 -> 
A58: =adb_exist!B59&" "&adb_exist!C59&" "&adb_exist!D59&" "&adb_exist!E59&" "&adb_exist!F59 -> 
A59: =adb_exist!B60&" "&adb_exist!C60&" "&adb_exist!D60&" "&adb_exist!E60&" "&adb_exist!F60 -> 
A60: =adb_exist!B61&" "&adb_exist!C61&" "&adb_exist!D61&" "&adb_exist!E61&" "&adb_exist!F61 -> 
A61: =adb_exist!B62&" "&adb_exist!C62&" "&adb_exist!D62&" "&adb_exist!E62&" "&adb_exist!F62 -> 
A62: =adb_exist!B63&" "&adb_exist!C63&" "&adb_exist!D63&" "&adb_exist!E63&" "&adb_exist!F63 -> con1a RE c 0
A63: =adb_exist!B64&" "&adb_exist!C64&" "&adb_exist!D64&" "&adb_exist!E64&" "&adb_exist!F64 -> con1a DOM c 0
A64: =adb_exist!B65&" "&adb_exist!C65&" "&adb_exist!D65&" "&adb_exist!E65&" "&adb_exist!F65 -> 
A65: =adb_exist!B66&" "&adb_exist!C66&" "&adb_exist!D66&" "&adb_exist!E66&" "&adb_exist!F66 -> #
A66: =adb_exist!B67&" "&adb_exist!C67&" "&adb_exist!D67&" "&adb_exist!E67&" "&adb_exist!F67 -> *
A67: =adb_exist!B68&" "&adb_exist!C68&" "&adb_exist!D68&" "&adb_exist!E68&" "&adb_exist!F68 -> 
A68: =adb_exist!B69&" "&adb_exist!C69&" "&adb_exist!D69&" "&adb_exist!E69&" "&adb_exist!F69 -> 
A69: =adb_exist!B70&" "&adb_exist!C70&" "&adb_exist!D70&" "&adb_exist!E70&" "&adb_exist!F70 -> 
A70: =adb_exist!B71&" "&adb_exist!C71&" "&adb_exist!D71&" "&adb_exist!E71&" "&adb_exist!F71 -> 
A71: =adb_exist!B72&" "&adb_exist!C72&" "&adb_exist!D72&" "&adb_exist!E72&" "&adb_exist!F72 -> 
A72: =adb_exist!B73&" "&adb_exist!C73&" "&adb_exist!D73&" "&adb_exist!E73&" "&adb_exist!F73 -> 
A73: =adb_exist!B74&" "&adb_exist!C74&" "&adb_exist!D74&" "&adb_exist!E74&" "&adb_exist!F74 -> 
A74: =adb_exist!B75&" "&adb_exist!C75&" "&adb_exist!D75&" "&adb_exist!E75&" "&adb_exist!F75 -> 
A75: =adb_exist!B76&" "&adb_exist!C76&" "&adb_exist!D76&" "&adb_exist!E76&" "&adb_exist!F76 -> 
A76: =adb_exist!B77&" "&adb_exist!C77&" "&adb_exist!D77&" "&adb_exist!E77&" "&adb_exist!F77 -> 
A77: =adb_exist!B78&" "&adb_exist!C78&" "&adb_exist!D78&" "&adb_exist!E78&" "&adb_exist!F78 -> 
A78: =adb_exist!B79&" "&adb_exist!C79&" "&adb_exist!D79&" "&adb_exist!E79&" "&adb_exist!F79 -> con1a RE c 0
A79: =adb_exist!B80&" "&adb_exist!C80&" "&adb_exist!D80&" "&adb_exist!E80&" "&adb_exist!F80 -> con1a DOM c 0
A80: =adb_exist!B81&" "&adb_exist!C81&" "&adb_exist!D81&" "&adb_exist!E81&" "&adb_exist!F81 -> 
A81: =adb_exist!B82&" "&adb_exist!C82&" "&adb_exist!D82&" "&adb_exist!E82&" "&adb_exist!F82 -> #
A82: =adb_exist!B83&" "&adb_exist!C83&" "&adb_exist!D83&" "&adb_exist!E83&" "&adb_exist!F83 -> *
A83: =adb_exist!B84&" "&adb_exist!C84&" "&adb_exist!D84&" "&adb_exist!E84&" "&adb_exist!F84 -> 
A84: =adb_exist!B85&" "&adb_exist!C85&" "&adb_exist!D85&" "&adb_exist!E85&" "&adb_exist!F85 -> 
A85: =adb_exist!B86&" "&adb_exist!C86&" "&adb_exist!D86&" "&adb_exist!E86&" "&adb_exist!F86 -> 
A86: =adb_exist!B87&" "&adb_exist!C87&" "&adb_exist!D87&" "&adb_exist!E87&" "&adb_exist!F87 -> 
A87: =adb_exist!B88&" "&adb_exist!C88&" "&adb_exist!D88&" "&adb_exist!E88&" "&adb_exist!F88 -> 
A88: =adb_exist!B89&" "&adb_exist!C89&" "&adb_exist!D89&" "&adb_exist!E89&" "&adb_exist!F89 -> 
A89: =adb_exist!B90&" "&adb_exist!C90&" "&adb_exist!D90&" "&adb_exist!E90&" "&adb_exist!F90 -> 
A90: =adb_exist!B91&" "&adb_exist!C91&" "&adb_exist!D91&" "&adb_exist!E91&" "&adb_exist!F91 -> 
A91: =adb_exist!B92&" "&adb_exist!C92&" "&adb_exist!D92&" "&adb_exist!E92&" "&adb_exist!F92 -> 
A92: =adb_exist!B93&" "&adb_exist!C93&" "&adb_exist!D93&" "&adb_exist!E93&" "&adb_exist!F93 -> 
A93: =adb_exist!B94&" "&adb_exist!C94&" "&adb_exist!D94&" "&adb_exist!E94&" "&adb_exist!F94 -> 
A94: =adb_exist!B95&" "&adb_exist!C95&" "&adb_exist!D95&" "&adb_exist!E95&" "&adb_exist!F95 -> con1a RE c 0
A95: =adb_exist!B96&" "&adb_exist!C96&" "&adb_exist!D96&" "&adb_exist!E96&" "&adb_exist!F96 -> con1a DOM c 0
A96: =adb_exist!B97&" "&adb_exist!C97&" "&adb_exist!D97&" "&adb_exist!E97&" "&adb_exist!F97 -> 
A97: =adb_exist!B98&" "&adb_exist!C98&" "&adb_exist!D98&" "&adb_exist!E98&" "&adb_exist!F98 -> #
A98: =adb_exist!B99&" "&adb_exist!C99&" "&adb_exist!D99&" "&adb_exist!E99&" "&adb_exist!F99 -> *
A99: =adb_exist!B100&" "&adb_exist!C100&" "&adb_exist!D100&" "&adb_exist!E100&" "&adb_exist!F100 -> 
A100: =adb_exist!B101&" "&adb_exist!C101&" "&adb_exist!D101&" "&adb_exist!E101&" "&adb_exist!F101 -> 
A101: =adb_exist!B102&" "&adb_exist!C102&" "&adb_exist!D102&" "&adb_exist!E102&" "&adb_exist!F102 -> 
A102: =adb_exist!B103&" "&adb_exist!C103&" "&adb_exist!D103&" "&adb_exist!E103&" "&adb_exist!F103 -> 
A103: =adb_exist!B104&" "&adb_exist!C104&" "&adb_exist!D104&" "&adb_exist!E104&" "&adb_exist!F104 -> 
A104: =adb_exist!B105&" "&adb_exist!C105&" "&adb_exist!D105&" "&adb_exist!E105&" "&adb_exist!F105 -> 
A105: =adb_exist!B106&" "&adb_exist!C106&" "&adb_exist!D106&" "&adb_exist!E106&" "&adb_exist!F106 -> 
A106: =adb_exist!B107&" "&adb_exist!C107&" "&adb_exist!D107&" "&adb_exist!E107&" "&adb_exist!F107 -> 
A107: =adb_exist!B108&" "&adb_exist!C108&" "&adb_exist!D108&" "&adb_exist!E108&" "&adb_exist!F108 -> 
A108: =adb_exist!B109&" "&adb_exist!C109&" "&adb_exist!D109&" "&adb_exist!E109&" "&adb_exist!F109 -> 
A109: =adb_exist!B110&" "&adb_exist!C110&" "&adb_exist!D110&" "&adb_exist!E110&" "&adb_exist!F110 -> 
A110: =adb_exist!B111&" "&adb_exist!C111&" "&adb_exist!D111&" "&adb_exist!E111&" "&adb_exist!F111 -> con1a RE c 0
A111: =adb_exist!B112&" "&adb_exist!C112&" "&adb_exist!D112&" "&adb_exist!E112&" "&adb_exist!F112 -> con1a DOM c 0
A112: =adb_exist!B113&" "&adb_exist!C113&" "&adb_exist!D113&" "&adb_exist!E113&" "&adb_exist!F113 -> 
A113: =adb_exist!B114&" "&adb_exist!C114&" "&adb_exist!D114&" "&adb_exist!E114&" "&adb_exist!F114 -> #
A114: =adb_exist!B115&" "&adb_exist!C115&" "&adb_exist!D115&" "&adb_exist!E115&" "&adb_exist!F115 -> *
A115: =adb_exist!B116&" "&adb_exist!C116&" "&adb_exist!D116&" "&adb_exist!E116&" "&adb_exist!F116 -> 
A116: =adb_exist!B117&" "&adb_exist!C117&" "&adb_exist!D117&" "&adb_exist!E117&" "&adb_exist!F117 -> 
A117: =adb_exist!B118&" "&adb_exist!C118&" "&adb_exist!D118&" "&adb_exist!E118&" "&adb_exist!F118 -> 
A118: =adb_exist!B119&" "&adb_exist!C119&" "&adb_exist!D119&" "&adb_exist!E119&" "&adb_exist!F119 -> 
A119: =adb_exist!B120&" "&adb_exist!C120&" "&adb_exist!D120&" "&adb_exist!E120&" "&adb_exist!F120 -> 
A120: =adb_exist!B121&" "&adb_exist!C121&" "&adb_exist!D121&" "&adb_exist!E121&" "&adb_exist!F121 -> 
A121: =adb_exist!B122&" "&adb_exist!C122&" "&adb_exist!D122&" "&adb_exist!E122&" "&adb_exist!F122 -> 
A122: =adb_exist!B123&" "&adb_exist!C123&" "&adb_exist!D123&" "&adb_exist!E123&" "&adb_exist!F123 -> 
A123: =adb_exist!B124&" "&adb_exist!C124&" "&adb_exist!D124&" "&adb_exist!E124&" "&adb_exist!F124 -> 
A124: =adb_exist!B125&" "&adb_exist!C125&" "&adb_exist!D125&" "&adb_exist!E125&" "&adb_exist!F125 -> 
A125: =adb_exist!B126&" "&adb_exist!C126&" "&adb_exist!D126&" "&adb_exist!E126&" "&adb_exist!F126 -> 
A126: =adb_exist!B127&" "&adb_exist!C127&" "&adb_exist!D127&" "&adb_exist!E127&" "&adb_exist!F127 -> con1a RE c 0
A127: =adb_exist!B128&" "&adb_exist!C128&" "&adb_exist!D128&" "&adb_exist!E128&" "&adb_exist!F128 -> con1a DOM c 0
A128: =adb_exist!B129&" "&adb_exist!C129&" "&adb_exist!D129&" "&adb_exist!E129&" "&adb_exist!F129 -> 
A129: =adb_exist!B130&" "&adb_exist!C130&" "&adb_exist!D130&" "&adb_exist!E130&" "&adb_exist!F130 -> #
A130: =adb_exist!B131&" "&adb_exist!C131&" "&adb_exist!D131&" "&adb_exist!E131&" "&adb_exist!F131 -> 
A131: =adb_exist!B132&" "&adb_exist!C132&" "&adb_exist!D132&" "&adb_exist!E132&" "&adb_exist!F132 -> 
A132: =adb_exist!B133&" "&adb_exist!C133&" "&adb_exist!D133&" "&adb_exist!E133&" "&adb_exist!F133 -> 

Sheet Oper therm SiteSpec
B1: Name | C1: Unit Net Capacity | D1: Unit Min. Net Capacity | E1: # of Units | F1: Plant Net Capacity | G1: Heat Rate @ Max Capacity | H1: Heat Rate @ Min Capacity | I1: Fuel | J1: Fixed Fuel Cost | K1: Incremental Fuel Cost | L1: Variable O&M Cost | M1: Fixed O&M Cost | N1: Planned Maintenance Rate | O1: Forced Outage Rate
C2: MW | D2: MW | F2: MW | G2: kJ/kWh | H2: kJ/kWh | J2: US$/kW/yr | K2: US$/GJ | L2: US$/MWh | M2: US$/kW/yr
B3: South Africa | C3: 2 | D3: =C3+1 -> 3 | E3: =D3+1 -> 4 | F3: 5 | G3: 6 | H3: 7 | I3: 8 | J3: 9 | K3: 10 | L3: 11 | M3: 12 | N3: 13 | O3: 14
B4: CF (Dry with FGD) | C4: 642 | D4: 435 | E4: 6 | F4: 3852 | G4: 9730 | H4: 10022 | I4: Coal | J4: 32.95 | K4: 0.2 | L4: 0.96 | M4: 20 | N4: 0.072 | O4: 0.0517
B5: Angola
B6: Benguela Thermal | C6: 83 | D6: 42 | E6: 1 | F6: 83 | G6: 10909 | H6: 12873 | I6: Distillate | J6: 0 | K6: 12.14 | L6: 4.18 | M6: 19 | N6: 0.0708 | O6: 0.0731
B7: Botswana
B8: Morupule B coal | C8: 150 | D8: 100 | E8: 8 | F8: 1200 | G8: 10865 | H8: 11191 | I8: Coal | J8: 0 | K8: 0.48 | L8: 4.18 | M8: 38 | N8: 0.072 | O8: 0.0517
B9: Mmamabula coal | C9: 810 | D9: 435 | E9: 3 | F9: 2430 | G9: 9730 | H9: 10022 | I9: Coal | J9: 32.95 | K9: 0.2 | L9: 0.96 | M9: 20 | N9: 0.072 | O9: 0.0517
B10: Malawi
B11: Lilongwe | C11: 20 | D11: 10 | E11: 1 | F11: 20 | G11: 12142 | H11: 13398 | I11: Distillate | J11: 0 | K11: 12.14 | L11: 3 | M11: 0.8 | N11: 0.15 | O11: 0.0577
B12: Mzuzu | C12: 6 | D12: 3 | E12: 1 | F12: 6 | G12: 12142 | H12: 13398 | I12: Distillate | J12: 0 | K12: 12.14 | L12: 3 | M12: 0.8 | N12: 0.15 | O12: 0.0577
B13: Blantyre | C13: 10 | D13: 5 | E13: 1 | F13: 10 | G13: 12142 | H13: 13398 | I13: Distillate | J13: 0 | K13: 12.14 | L13: 3 | M13: 0.8 | N13: 0.15 | O13: 0.0577
B14: Mozambique
B15: Temane (Aggreko) gas | C15: 375 | D15: 188 | E15: 2 | F15: 750 | G15: 6792 | H15: 8015 | I15: Nat gas | J15: 0 | K15: 2 | L15: 4.18 | M15: 19 | N15: 0.0708 | O15: 0.0731
B16: Moatize coal | C16: 500 | D16: 269 | E16: 3 | F16: 1500 | G16: 9730 | H16: 10022 | I16: Coal | J16: 0 | K16: 0.36 | L16: 0.96 | M16: 19.97 | N16: 0.072 | O16: 0.0517
B17: Namibia
B18: Kudu gas | C18: 387 | D18: 50 | E18: 2 | F18: 774 | G18: 6792 | H18: 8200 | I18: Nat gas | J18: 40 | K18: 2.46 | L18: 1.64 | M18: 0 | N18: 0.02 | O18: 0.04
B19: Walvis coal | C19: 200 | D19: 107 | E19: 2 | F19: 400 | G19: 9730 | H19: 10022 | I19: Coal | J19: 0 | K19: 0.4 | L19: 0.96 | M19: 19.97 | N19: 0.072 | O19: 0.0517
B20: Swaziland
B21: Lubombo coal | C21: 500 | D21: 269 | E21: 2 | F21: 1000 | G21: 9730 | H21: 10022 | I21: Coal | J21: 42.84 | K21: 0.26 | L21: 0.96 | M21: 20 | N21: 0.072 | O21: 0.0517
B22: Tanzania
B23: Mchuchuma coal | C23: 200 | D23: 107 | E23: 2 | F23: 400 | G23: 10865 | H23: 11191 | I23: Coal | J23: 0 | K23: 1.19 | L23: 4.18 | M23: 38.32 | N23: 0.072 | O23: 0.0517
B24: Kiwira coal | C24: 50 | D24: 27 | E24: 4 | F24: 200 | G24: 12000 | H24: 12360 | I24: Coal | J24: 0 | K24: 1.19 | L24: 7.4 | M24: 56.67 | N24: 0.072 | O24: 0.0517
B25: Kinyerezi gas | C25: 100 | D25: 50 | E25: 2 | F25: 200 | G25: 8500 | H25: 10030 | I25: Nat gas | J25: 0 | K25: 2 | L25: 1.45 | M25: 24.01 | N25: 0.0873 | O25: 0.0646
B26: Ubungo - Wartsila | C26: 50 | D26: 25 | E26: 2 | F26: 100 | G26: 12000 | H26: 14160 | I26: Nat gas | J26: 0 | K26: 2 | L26: 5.35 | M26: 4.86 | N26: 0.0203 | O26: 0.0211
B27: Zimbabwe
B28: Hwange 7-8 coal | C28: 300 | D28: 161 | E28: 2 | F28: 600 | G28: 9730 | H28: 10022 | I28: Coal | J28: 0 | K28: 0.64 | L28: 0.96 | M28: 19.97 | N28: 0.072 | O28: 0.0517
B29: Lupane gas | C29: 150 | D29: 75 | E29: 2 | F29: 300 | G29: 6792 | H29: 8015 | I29: Methane | J29: 0 | K29: 2 | L29: 1.45 | M29: 24.01 | N29: 0.0873 | O29: 0.0646
B30: Gokwe North coal | C30: 350 | D30: 188 | E30: 4 | F30: 1400 | G30: 9730 | H30: 10022 | I30: Coal | J30: 0 | K30: 0.64 | L30: 0.96 | M30: 19.97 | N30: 0.072 | O30: 0.0517

Sheet Oper hydro SiteSpec
B1: Plant Name | C1: Unit Net Capacity | D1: Number of Units | E1: Plant Net Capacity | F1: Average Generation | G1: Dry Year Generation | H1: Variable O&M Cost | I1: Fixed O&M Cost | J1: Planned Maintenance Rate | K1: Forced Outage Rate | L1: Capacity Factor/ Efficiency (for Pumped Storage) | M1: Capacity Factor dry year)
C2: MW | E2: MW | F2: GWh | G2: GWh | H2: US$/MWh | I2: US$/kW/yr
B3: South Africa | C3: 2 | D3: =C3+1 -> 3 | E3: =D3+1 -> 4 | F3: 5 | G3: 6 | H3: 7 | I3: 8 | J3: 9 | K3: 10 | L3: 11 | M3: 12
B4: Pumped-Storage | C4: 333 | D4: 3 | E4: 999 | F4: N/A | G4: N/A | H4: 1.51 | I4: 8.7 | J4: 0.0459 | K4: 0.0459 | L4: 0.76
A5: ANG | B5: Angola | E5: =SUM(E6:E9) -> 580 | F5: =SUM(F6:F9) -> 2063 | G5: =SUM(G6:G9) -> 1362
B6: Capanda II hydro | C6: 130 | D6: 2 | E6: 260 | F6: 900 | G6: 594 | H6: 1.51 | I6: 8.72 | J6: 0.15 | K6: 0.05 | L6: =F6/(E6*8.76) -> 0.3951527924 | M6: =G6/(E6*8.76) -> 0.260800843 | P6: =26400/(6580*8.76) -> 0.4580089104 | Q6: =72303/(18267*8.76) -> 0.4518403199
B7: Cambambe II hydro | C7: 130 | D7: 2 | E7: 260 | F7: 900 | G7: 594 | H7: 1.51 | I7: 8.72 | J7: 0.15 | K7: 0.05 | L7: =F7/(E7*8.76) -> 0.3951527924 | M7: =G7/(E7*8.76) -> 0.260800843
B8: Kuanza Basin
B9: Gove hydro | C9: 20 | D9: 3 | E9: 60 | F9: 263 | G9: 174 | H9: 1.51 | I9: 8.72 | J9: 0.15 | K9: 0.05 | L9: =F9/(E9*8.76) -> 0.5003805175 | M9: =G9/(E9*8.76) -> 0.3310502283
A10: DRC | B10: Democratic Republic of Congo | E10: =SUM(E11:E13) -> 9740 | F10: =SUM(F11:F13) -> 63676 | G10: =SUM(G11:G13) -> 49941.14286
B11: Busanga hydro | C11: 60 | D11: 4 | E11: 240 | F11: 1261 | G11: 989 | H11: 1.51 | I11: 8.72 | J11: 0.05 | K11: 0.02 | L11: =F11/(E11*8.76) -> 0.5997907154 | M11: =G11/(E11*8.76) -> 0.4704147641
B12: Inga 3 hydro | C12: 250 | D12: 14 | E12: 3500 | F12: 22995 | G12: 18035 | H12: 1.51 | I12: 8.72 | J12: 0.05 | K12: 0.02 | L12: =F12/(E12*8.76) -> 0.75 | M12: =G12/(E12*8.76) -> 0.5882257012
B13: Grand Inga | E13: 6000 | F13: =E13*L13*8.76 -> 39420 | G13: =E13*M13*8.76 -> 30917.14286 | L13: =L12 -> 0.75 | M13: =M12 -> 0.5882257012
A14: LES | B14: Lesotho | E14: =SUM(E15:E16) -> 190 | F14: =SUM(F15:F16) -> 500 | G14: =SUM(G15:G16) -> 330
B15: Muela 2 hydro | C15: 37 | D15: 3 | E15: 110 | F15: 90 | G15: 59 | H15: 1.51 | I15: 8.72 | J15: 0.05 | K15: 0.02 | L15: =F15/(E15*8.76) -> 0.09339975093 | M15: =G15/(E15*8.76) -> 0.06122872561
B16: Oxbow hydro | C16: 40 | D16: 2 | E16: 80 | F16: 410 | G16: 271 | H16: 1.51 | I16: 8.72 | J16: 0.05 | K16: 0.02 | L16: =F16/(E16*8.76) -> 0.5850456621 | M16: =G16/(E16*8.76) -> 0.3867009132
A17: MAL | B17: Malawi | E17: =SUM(E18:E22) -> 1004 | F17: =SUM(F18:F22) -> 4885 | G17: =SUM(G18:G22) -> 3224
B18: Kapichira II hydro | C18: 32 | D18: 2 | E18: 64 | F18: 213 | G18: 141 | H18: 1.51 | I18: 8.72 | J18: 0.05 | K18: 0.02 | L18: =F18/(E18*8.76) -> 0.3799229452 | M18: =G18/(E18*8.76) -> 0.2514982877
B19: Songwe hydro | C19: 49 | D19: 7 | E19: 340 | F19: 1352 | G19: 892 | H19: 1.51 | I19: 8.72 | J19: 0.05 | K19: 0.02 | L19: =F19/(E19*8.76) -> 0.4539349987 | M19: =G19/(E19*8.76) -> 0.2994896589
B20: Fufu hydro | C20: 50 | D20: 2 | E20: 100 | F20: 570 | G20: 376 | H20: 1.51 | I20: 8.72 | J20: 0.05 | K20: 0.02 | L20: =F20/(E20*8.76) -> 0.6506849315 | M20: =G20/(E20*8.76) -> 0.4292237443
B21: Kholombizo hydro | C21: 60 | D21: 4 | E21: 240 | F21: 1500 | G21: 990 | H21: 1.51 | I21: 8.72 | J21: 0.05 | K21: 0.02 | L21: =F21/(E21*8.76) -> 0.7134703196 | M21: =G21/(E21*8.76) -> 0.470890411
B22: Mpatamanga hydro | C22: 65 | D22: 4 | E22: 260 | F22: 1250 | G22: 825 | H22: 1.51 | I22: 8.72 | J22: 0.05 | K22: 0.02 | L22: =F22/(E22*8.76) -> 0.5488233228 | M22: =G22/(E22*8.76) -> 0.362223393
A23: MOZ | B23: Mozambique | E23: =SUM(E24:E27) -> 2369 | F23: =SUM(F24:F27) -> 12678 | G23: =SUM(G24:G27) -> 7680
B24: Massingir hydro | C24: 20 | D24: 2 | E24: 40 | F24: 123 | G24: 75 | H24: 1.51 | I24: 8.72 | J24: 0.05 | K24: 0.02 | L24: =F24/(E24*8.76) -> 0.3510273973 | M24: =G24/(E24*8.76) -> 0.2140410959
B25: Quedas & Ocua hydro | C25: 30 | D25: 6 | E25: 179 | F25: 650 | G25: 352 | H25: 1.51 | I25: 8.72 | J25: 0.05 | K25: 0.02 | L25: =F25/(E25*8.76) -> 0.4145302416 | M25: =G25/(E25*8.76) -> 0.2244840693
B26: Mphanda Nkuwa hydro | C26: 325 | D26: 4 | E26: 1300 | F26: 9070 | G26: 7253 | H26: 1.51 | I26: 8.72 | J26: 0.05 | K26: 0.02 | L26: =F26/(E26*8.76) -> 0.796452406 | M26: =G26/(E26*8.76) -> 0.6368984896
B27: HCB North Bank hydro | C27: 283 | D27: 3 | E27: 850 | F27: 2835 | G27: 0 | H27: 1.51 | I27: 8.72 | J27: 0.05 | K27: 0.02 | L27: =F27/(E27*8.76) -> 0.3807413376 | M27: =G27/(E27*8.76) -> 0
A28: NAM | B28: Namibia | E28: =SUM(E29) -> 360 | F28: =SUM(F29) -> 1724 | G28: =SUM(G29) -> 1138
B29: Baynes hydro | C29: 90 | D29: 4 | E29: 360 | F29: 1724 | G29: 1138 | H29: 1.51 | I29: 8.72 | J29: 0.05 | K29: 0.02 | L29: =F29/(E29*8.76) -> 0.5466768138 | M29: =G29/(E29*8.76) -> 0.3608574328
A30: SWA | B30: Swaziland | E30: =SUM(E31) -> 20 | F30: =SUM(F31) -> 77 | G30: =SUM(G31) -> 51
B31: Maguga hydro | C31: 10 | D31: 2 | E31: 20 | F31: 77 | G31: 51 | H31: 1.51 | I31: 8.72 | J31: 0.05 | K31: 0.02 | L31: =F31/(E31*8.76) -> 0.4394977169 | M31: =G31/(E31*8.76) -> 0.2910958904
A32: TAN | B32: Tanzania | E32: =SUM(E33:E34) -> 580 | F32: =SUM(F33:F34) -> 2825 | G32: =SUM(G33:G34) -> 1865
B33: Ruhudji | C33: 90 | D33: 4 | E33: 358 | F33: 1800 | G33: 1188 | H33: 1.51 | I33: 8.72 | J33: 0.05 | K33: 0.02 | L33: =F33/(E33*8.76) -> 0.5739649499 | M33: =G33/(E33*8.76) -> 0.3788168669
B34: Rumakali | C34: 74 | D34: 3 | E34: 222 | F34: 1025 | G34: 677 | H34: 1.51 | I34: 8.72 | J34: 0.05 | K34: 0.02 | L34: =F34/(E34*8.76) -> 0.5270681641 | M34: =G34/(E34*8.76) -> 0.3481220947
A35: ZAM | B35: Zambia | E35: =SUM(E36:E40) -> 2250 | F35: =SUM(F36:F40) -> 11836 | G35: =SUM(G36:G40) -> 9067
B36: Kariba North Extension hydro | C36: 180 | D36: 2 | E36: 360 | F36: 1183 | G36: 928 | H36: 1.51 | I36: 8.72 | J36: 0.05 | K36: 0.02 | L36: =F36/(E36*8.76) -> 0.3751268392 | M36: =G36/(E36*8.76) -> 0.2942668696
B37: Kafue Gorge Lower hydro | C37: 150 | D37: 5 | E37: 750 | F37: 3000 | G37: 2330 | H37: 1.51 | I37: 8.72 | J37: 0.05 | K37: 0.02 | L37: =F37/(E37*8.76) -> 0.4566210046 | M37: =G37/(E37*8.76) -> 0.3546423135
B38: Batoka Gorge hydro | C38: 200 | D38: 4 | E38: 800 | F38: 6097 | G38: 4782 | H38: 1.51 | I38: 8.72 | J38: 0.05 | K38: 0.02 | L38: =F38/(E38*8.76) -> 0.8700057078 | M38: =G38/(E38*8.76) -> 0.6823630137
B39: Itezhi-Tezhi hydro | C39: 60 | D39: 2 | E39: 120 | F39: 676 | G39: 446 | H39: 1.51 | I39: 8.72 | J39: 0.05 | K39: 0.02 | L39: =F39/(E39*8.76) -> 0.6430745814 | M39: =G39/(E39*8.76) -> 0.4242770167
B40: Kalungwishi hydro | C40: 55 | D40: 4 | E40: 220 | F40: 880 | G40: 581 | H40: 1.51 | I40: 8.72 | J40: 0.05 | K40: 0.02 | L40: =F40/(E40*8.76) -> 0.4566210046 | M40: =G40/(E40*8.76) -> 0.3014736405
A41: ZIM | B41: Zimbabwe | E41: =SUM(E42:E44) -> 1100 | F41: =SUM(F42:F44) -> 7280 | G41: =SUM(G42:G44) -> 5710
B42: Kariba South Extension hydro | C42: 150 | D42: 2 | E42: 300 | F42: 1183 | G42: 928 | H42: 1.51 | I42: 8.72 | J42: 0.05 | K42: 0.02 | L42: =F42/(E42*8.76) -> 0.450152207 | M42: =G42/(E42*8.76) -> 0.3531202435
B43: Batoka Gorge hydro | C43: 200 | D43: 4 | E43: 800 | F43: 6097 | G43: 4782 | H43: 1.51 | I43: 8.72 | J43: 0.05 | K43: 0.02 | L43: =F43/(E43*8.76) -> 0.8700057078 | M43: =G43/(E43*8.76) -> 0.6823630137

Sheet SiteSpecific_data
A1: Thermal column indices | M1: =HLOOKUP(M4,'Oper therm SiteSpec'!$C$1:$O$3,3,FALSE) -> 6 | O1: =HLOOKUP(O4,'Oper therm SiteSpec'!$C$1:$O$3,3,FALSE) -> 8 | P1: =HLOOKUP(P4,'Oper therm SiteSpec'!$C$1:$O$3,3,FALSE) -> 9 | Q1: =HLOOKUP(Q4,'Oper therm SiteSpec'!$C$1:$O$3,3,FALSE) -> 10 | R1: =HLOOKUP(R4,'Oper therm SiteSpec'!$C$1:$O$3,3,FALSE) -> 11 | S1: =HLOOKUP(S4,'Oper therm SiteSpec'!$C$1:$O$3,3,FALSE) -> 12 | T1: =HLOOKUP(T4,'Oper therm SiteSpec'!$C$1:$O$3,3,FALSE) -> 13 | U1: =HLOOKUP(U4,'Oper therm SiteSpec'!$C$1:$O$3,3,FALSE) -> 14
A2: Hydro column indices | R2: 7 | S2: 8 | T2: 9 | U2: 10 | V2: 11 | AC2: Update based on SADC MoU SAPP priority Projects July 2012
B3: 1 | C3: =B3+1 -> 2 | D3: =C3+1 -> 3 | E3: 4 | F3: 5 | G3: 6 | H3: 7 | I3: 8 | J3: 9 | K3: 10 | L3: =K3+1 -> 11 | M3: 12 | N3: 13 | O3: 14 | P3: 15 | Q3: 16 | R3: 17 | S3: 18 | T3: 19 | U3: 20 | V3: 21 | W3: 22 | X3: 23 | Y3: 24 | Z3: 25 | AA3: 26
A4: Project Name | B4: MESSAGE name | C4: Type: Hydro/ Thermal | D4: Committed? | E4: Capacity | F4: Max annual build rate | G4: Total Overnight Capital Cost | H4: Overnight Capital Cost | I4: Plant type | J4: PV/overnight ratio | K4: PV Investment Costs | L4: First year project can be operational | M4: Heat Rate @ Max Capacity | N4: Efficiency | O4: Fuel | P4: Fixed Fuel Cost | Q4: Incremental Fuel Cost | R4: Variable O&M Cost | S4: Fixed O&M Cost | T4: Planned Maintenance Rate | U4: Forced Outage Rate | V4: Capacity Factor | W4: Life | X4: First year | Y4: bdc (fx) | Z4: bdc(up) | AA4: Project name
A5: Site Specific Provided by SAPP | E5: MW | F5: MW/yr | G5: M$ | H5: $/kW | K5: $/kW | M5: kJ/kWh | P5: US$/kW/yr | Q5: US$/GJ | R5: US$/MWh | S5: US$/kW/yr | AB5: 2010 | AC5: =AB5+1 -> 2011 | AD5: =AC5+1 -> 2012 | AE5: 2013 | AF5: 2014 | AG5: 2015 | AH5: 2016 | AI5: 2017 | AJ5: 2018 | AK5: 2019 | AL5: 2020 | AM5: 2021 | AN5: 2022
A6: Angola | D6: =SUMIF($C7:$C16,"H",$E7:$E16) -> 6735 | E6: =SUMIF($C7:$C16,"T",$E7:$E16) -> 288 | V6: =SUMPRODUCT(--(C7:C16="H"),E7:E16,V7:V16)*8.76 -> 15469.96154
A7: ='Oper therm SiteSpec'!B6 -> Benguela Thermal | B7: EPODSNCOCben | C7: T | D7: Yes | E7: 83 | F7: =IF(E7<1000,E7,IF(E7>3000,E7/3,E7/2)) -> 83 | G7: 58 | H7: 701 | I7: Open-Cycle Gas Turbine diesel | J7: =VLOOKUP(I7,GenericSourceData!$A$42:$AC$60,29,FALSE) -> 1.0305 | K7: =J7*H7 -> 722.3805 | L7: 2010 | M7: =VLOOKUP($A7,'Oper therm SiteSpec'!$B$3:$O$30,M$1,FALSE) -> 10909 | N7: =1/(M7/3600) -> 0.33000275 | O7: =VLOOKUP($A7,'Oper therm SiteSpec'!$B$3:$O$30,O$1,FALSE) -> Distillate | P7: =VLOOKUP($A7,'Oper therm SiteSpec'!$B$3:$O$30,P$1,FALSE) -> 0 | Q7: =VLOOKUP($A7,'Oper therm SiteSpec'!$B$3:$O$30,Q$1,FALSE) -> 12.14 | R7: =VLOOKUP($A7,'Oper therm SiteSpec'!$B$3:$O$30,R$1,FALSE) -> 4.18 | S7: =VLOOKUP($A7,'Oper therm SiteSpec'!$B$3:$O$30,S$1,FALSE) -> 19 | T7: =VLOOKUP($A7,'Oper therm SiteSpec'!$B$3:$O$30,T$1,FALSE) -> 0.0708 | U7: =VLOOKUP($A7,'Oper therm SiteSpec'!$B$3:$O$30,U$1,FALSE) -> 0.0731 | V7: =(1-T7)*(1-U7) -> 0.86127548 | W7: =VLOOKUP(I7,GenericSourceData!$A$42:$AD$60,30,FALSE) -> 25 | X7: =IF(D7<>"yes",L7,"") ->  | Y7: =IF(D7="yes",AB7&" "&AC7&" "&AD7&" "&AE7&" "&AF7&" "&AG7&" "&AH7&" "&AI7&" "&AJ7&" "&AK7&" "&AL7&" "&AM7&" "&AN7,"") -> 83 0 0 0 0 0 0 0 0 0 0 0 0 | Z7: =IF(D7<>"yes",F7,"") ->  | AA7: =A7 -> Benguela Thermal | AB7: =IF(AB$5=$L7,$F7,IF(AB$5>$L7,MIN($F7,$E7-SUM(AA7:$AB7)),0)) -> 83 | AC7: =IF(AC$5=$L7,$F7,IF(AC$5>$L7,MIN($F7,$E7-SUM(AB7:$AB7)),0)) -> 0 | AD7: =IF(AD$5=$L7,$F7,IF(AD$5>$L7,MIN($F7,$E7-SUM($AB7:AC7)),0)) -> 0 | AE7: =IF(AE$5=$L7,$F7,IF(AE$5>$L7,MIN($F7,$E7-SUM($AB7:AD7)),0)) -> 0 | AF7: =IF(AF$5=$L7,$F7,IF(AF$5>$L7,MIN($F7,$E7-SUM($AB7:AE7)),0)) -> 0 | AG7: =IF(AG$5=$L7,$F7,IF(AG$5>$L7,MIN($F7,$E7-SUM($AB7:AF7)),0)) -> 0 | AH7: =IF(AH$5=$L7,$F7,IF(AH$5>$L7,MIN($F7,$E7-SUM($AB7:AG7)),0)) -> 0 | AI7: =IF(AI$5=$L7,$F7,IF(AI$5>$L7,MIN($F7,$E7-SUM($AB7:AH7)),0)) -> 0 | AJ7: =IF(AJ$5=$L7,$F7,IF(AJ$5>$L7,MIN($F7,$E7-SUM($AB7:AI7)),0)) -> 0 | AK7: =IF(AK$5=$L7,$F7,IF(AK$5>$L7,MIN($F7,$E7-SUM($AB7:AJ7)),0)) -> 0 | AL7: =IF(AL$5=$L7,$F7,IF(AL$5>$L7,MIN($F7,$E7-SUM($AB7:AK7)),0)) -> 0 | AM7: =IF(AM$5=$L7,$F7,IF(AM$5>$L7,MIN($F7,$E7-SUM($AB7:AL7)),0)) -> 0 | AN7: =IF(AN$5=$L7,$F7,IF(AN$5>$L7,MIN($F7,$E7-SUM($AB7:AM7)),0)) -> 0
A8: TG-40 | B8: EPODSNUOCt40 | C8: T | E8: 80 | F8: =IF(E8<1000,E8,IF(E8>3000,E8/3,E8/2)) -> 80 | G8: 51 | H8: 640 | I8: Open-Cycle Gas Turbine diesel | J8: =VLOOKUP(I8,GenericSourceData!$A$42:$AC$60,29,FALSE) -> 1.0305 | K8: =J8*H8 -> 659.52 | L8: 2010 | M8: =M7 -> 10909 | N8: =N7 -> 0.33000275 | O8: Distillate | P8: 0 | Q8: 12.14 | R8: 4.18 | S8: 19 | T8: 0.0708 | U8: 0.0731 | V8: 0.86127548 | W8: =VLOOKUP(I8,GenericSourceData!$A$42:$AD$60,30,FALSE) -> 25 | X8: 2010 | Z8: 80 | AA8: =A8 -> TG-40 | AB8: =IF(AB$5=$L8,$F8,IF(AB$5>$L8,MIN($F8,$E8-SUM(AA8:$AB8)),0)) -> 80 | AC8: =IF(AC$5=$L8,$F8,IF(AC$5>$L8,MIN($F8,$E8-SUM(AB8:$AB8)),0)) -> 0 | AD8: =IF(AD$5=$L8,$F8,IF(AD$5>$L8,MIN($F8,$E8-SUM($AB8:AC8)),0)) -> 0 | AE8: =IF(AE$5=$L8,$F8,IF(AE$5>$L8,MIN($F8,$E8-SUM($AB8:AD8)),0)) -> 0 | AF8: =IF(AF$5=$L8,$F8,IF(AF$5>$L8,MIN($F8,$E8-SUM($AB8:AE8)),0)) -> 0 | AG8: =IF(AG$5=$L8,$F8,IF(AG$5>$L8,MIN($F8,$E8-SUM($AB8:AF8)),0)) -> 0 | AH8: =IF(AH$5=$L8,$F8,IF(AH$5>$L8,MIN($F8,$E8-SUM($AB8:AG8)),0)) -> 0 | AI8: =IF(AI$5=$L8,$F8,IF(AI$5>$L8,MIN($F8,$E8-SUM($AB8:AH8)),0)) -> 0 | AJ8: =IF(AJ$5=$L8,$F8,IF(AJ$5>$L8,MIN($F8,$E8-SUM($AB8:AI8)),0)) -> 0 | AK8: =IF(AK$5=$L8,$F8,IF(AK$5>$L8,MIN($F8,$E8-SUM($AB8:AJ8)),0)) -> 0 | AL8: =IF(AL$5=$L8,$F8,IF(AL$5>$L8,MIN($F8,$E8-SUM($AB8:AK8)),0)) -> 0 | AM8: =IF(AM$5=$L8,$F8,IF(AM$5>$L8,MIN($F8,$E8-SUM($AB8:AL8)),0)) -> 0 | AN8: =IF(AN$5=$L8,$F8,IF(AN$5>$L8,MIN($F8,$E8-SUM($AB8:AM8)),0)) -> 0
A9: TG-60 | B9: EPODSNUOCt60 | C9: T | E9: 60 | F9: 60 | G9: 33 | H9: 550 | I9: Open-Cycle Gas Turbine diesel | J9: =VLOOKUP(I9,GenericSourceData!$A$42:$AC$60,29,FALSE) -> 1.0305 | K9: 566.775 | L9: 2010 | M9: =M8 -> 10909 | N9: 0.33000275 | O9: Distillate | P9: 0 | Q9: 12.14 | R9: 4.18 | S9: 19 | T9: 0.0708 | U9: 0.0731 | V9: 0.86127548 | W9: =VLOOKUP(I9,GenericSourceData!$A$42:$AD$60,30,FALSE) -> 25 | X9: 2010 | Z9: 60 | AA9: TG-60 | AB9: =IF(AB$5=$L9,$F9,IF(AB$5>$L9,MIN($F9,$E9-SUM(AA9:$AB9)),0)) -> 60 | AC9: =IF(AC$5=$L9,$F9,IF(AC$5>$L9,MIN($F9,$E9-SUM(AB9:$AB9)),0)) -> 0 | AD9: =IF(AD$5=$L9,$F9,IF(AD$5>$L9,MIN($F9,$E9-SUM($AB9:AC9)),0)) -> 0 | AE9: =IF(AE$5=$L9,$F9,IF(AE$5>$L9,MIN($F9,$E9-SUM($AB9:AD9)),0)) -> 0 | AF9: =IF(AF$5=$L9,$F9,IF(AF$5>$L9,MIN($F9,$E9-SUM($AB9:AE9)),0)) -> 0 | AG9: =IF(AG$5=$L9,$F9,IF(AG$5>$L9,MIN($F9,$E9-SUM($AB9:AF9)),0)) -> 0 | AH9: =IF(AH$5=$L9,$F9,IF(AH$5>$L9,MIN($F9,$E9-SUM($AB9:AG9)),0)) -> 0 | AI9: =IF(AI$5=$L9,$F9,IF(AI$5>$L9,MIN($F9,$E9-SUM($AB9:AH9)),0)) -> 0 | AJ9: =IF(AJ$5=$L9,$F9,IF(AJ$5>$L9,MIN($F9,$E9-SUM($AB9:AI9)),0)) -> 0 | AK9: =IF(AK$5=$L9,$F9,IF(AK$5>$L9,MIN($F9,$E9-SUM($AB9:AJ9)),0)) -> 0 | AL9: =IF(AL$5=$L9,$F9,IF(AL$5>$L9,MIN($F9,$E9-SUM($AB9:AK9)),0)) -> 0 | AM9: =IF(AM$5=$L9,$F9,IF(AM$5>$L9,MIN($F9,$E9-SUM($AB9:AL9)),0)) -> 0 | AN9: =IF(AN$5=$L9,$F9,IF(AN$5>$L9,MIN($F9,$E9-SUM($AB9:AM9)),0)) -> 0
A10: TG-20 | B10: EPODSNCOCt20 | C10: T | D10: Yes | E10: 20 | F10: 20 | G10: 16 | H10: 820 | I10: Open-Cycle Gas Turbine diesel | J10: =VLOOKUP(I10,GenericSourceData!$A$42:$AC$60,29,FALSE) -> 1.0305 | K10: 845.01 | L10: 2010 | M10: =M9 -> 10909 | N10: 0.33000275 | O10: Distillate | P10: 0 | Q10: 12.14 | R10: 4.18 | S10: 19 | T10: 0.0708 | U10: 0.0731 | V10: 0.86127548 | W10: =VLOOKUP(I10,GenericSourceData!$A$42:$AD$60,30,FALSE) -> 25 | Y10: 20 0 0 0 0 0 0 0 0 0 0 0 0 | AA10: TG-20 | AB10: =IF(AB$5=$L10,$F10,IF(AB$5>$L10,MIN($F10,$E10-SUM(AA10:$AB10)),0)) -> 20 | AC10: =IF(AC$5=$L10,$F10,IF(AC$5>$L10,MIN($F10,$E10-SUM(AB10:$AB10)),0)) -> 0 | AD10: =IF(AD$5=$L10,$F10,IF(AD$5>$L10,MIN($F10,$E10-SUM($AB10:AC10)),0)) -> 0 | AE10: =IF(AE$5=$L10,$F10,IF(AE$5>$L10,MIN($F10,$E10-SUM($AB10:AD10)),0)) -> 0 | AF10: =IF(AF$5=$L10,$F10,IF(AF$5>$L10,MIN($F10,$E10-SUM($AB10:AE10)),0)) -> 0 | AG10: =IF(AG$5=$L10,$F10,IF(AG$5>$L10,MIN($F10,$E10-SUM($AB10:AF10)),0)) -> 0 | AH10: =IF(AH$5=$L10,$F10,IF(AH$5>$L10,MIN($F10,$E10-SUM($AB10:AG10)),0)) -> 0 | AI10: =IF(AI$5=$L10,$F10,IF(AI$5>$L10,MIN($F10,$E10-SUM($AB10:AH10)),0)) -> 0 | AJ10: =IF(AJ$5=$L10,$F10,IF(AJ$5>$L10,MIN($F10,$E10-SUM($AB10:AI10)),0)) -> 0 | AK10: =IF(AK$5=$L10,$F10,IF(AK$5>$L10,MIN($F10,$E10-SUM($AB10:AJ10)),0)) -> 0 | AL10: =IF(AL$5=$L10,$F10,IF(AL$5>$L10,MIN($F10,$E10-SUM($AB10:AK10)),0)) -> 0 | AM10: =IF(AM$5=$L10,$F10,IF(AM$5>$L10,MIN($F10,$E10-SUM($AB10:AL10)),0)) -> 0 | AN10: =IF(AN$5=$L10,$F10,IF(AN$5>$L10,MIN($F10,$E10-SUM($AB10:AM10)),0)) -> 0
A11: TG-12.5 | B11: EPODSNCOCt12 | C11: T | D11: Yes | E11: 38 | F11: 38 | G11: 34 | H11: 900 | I11: Open-Cycle Gas Turbine diesel | J11: =VLOOKUP(I11,GenericSourceData!$A$42:$AC$60,29,FALSE) -> 1.0305 | K11: 927.45 | L11: 2010 | M11: =M10 -> 10909 | N11: 0.33000275 | O11: Distillate | P11: 0 | Q11: 12.14 | R11: 4.18 | S11: 19 | T11: 0.0708 | U11: 0.0731 | V11: 0.86127548 | W11: =VLOOKUP(I11,GenericSourceData!$A$42:$AD$60,30,FALSE) -> 25 | Y11: 38 0 0 0 0 0 0 0 0 0 0 0 0 | AA11: TG-12.5 | AB11: =IF(AB$5=$L11,$F11,IF(AB$5>$L11,MIN($F11,$E11-SUM(AA11:$AB11)),0)) -> 38 | AC11: =IF(AC$5=$L11,$F11,IF(AC$5>$L11,MIN($F11,$E11-SUM(AB11:$AB11)),0)) -> 0 | AD11: =IF(AD$5=$L11,$F11,IF(AD$5>$L11,MIN($F11,$E11-SUM($AB11:AC11)),0)) -> 0 | AE11: =IF(AE$5=$L11,$F11,IF(AE$5>$L11,MIN($F11,$E11-SUM($AB11:AD11)),0)) -> 0 | AF11: =IF(AF$5=$L11,$F11,IF(AF$5>$L11,MIN($F11,$E11-SUM($AB11:AE11)),0)) -> 0 | AG11: =IF(AG$5=$L11,$F11,IF(AG$5>$L11,MIN($F11,$E11-SUM($AB11:AF11)),0)) -> 0 | AH11: =IF(AH$5=$L11,$F11,IF(AH$5>$L11,MIN($F11,$E11-SUM($AB11:AG11)),0)) -> 0 | AI11: =IF(AI$5=$L11,$F11,IF(AI$5>$L11,MIN($F11,$E11-SUM($AB11:AH11)),0)) -> 0 | AJ11: =IF(AJ$5=$L11,$F11,IF(AJ$5>$L11,MIN($F11,$E11-SUM($AB11:AI11)),0)) -> 0 | AK11: =IF(AK$5=$L11,$F11,IF(AK$5>$L11,MIN($F11,$E11-SUM($AB11:AJ11)),0)) -> 0 | AL11: =IF(AL$5=$L11,$F11,IF(AL$5>$L11,MIN($F11,$E11-SUM($AB11:AK11)),0)) -> 0 | AM11: =IF(AM$5=$L11,$F11,IF(AM$5>$L11,MIN($F11,$E11-SUM($AB11:AL11)),0)) -> 0 | AN11: =IF(AN$5=$L11,$F11,IF(AN$5>$L11,MIN($F11,$E11-SUM($AB11:AM11)),0)) -> 0
A12: Diesels | B12: EPODSNCOCdie | C12: T | D12: Yes | E12: 7 | F12: 7 | G12: 8 | H12: 1200 | I12: Open-Cycle Gas Turbine diesel | J12: =VLOOKUP(I12,GenericSourceData!$A$42:$AC$60,29,FALSE) -> 1.0305 | K12: 1236.6 | L12: 2010 | M12: =M11 -> 10909 | N12: 0.33000275 | O12: Distillate | P12: 0 | Q12: 12.14 | R12: 4.18 | S12: 19 | T12: 0.0708 | U12: 0.0731 | V12: 0.86127548 | W12: =VLOOKUP(I12,GenericSourceData!$A$42:$AD$60,30,FALSE) -> 25 | Y12: 7 0 0 0 0 0 0 0 0 0 0 0 0 | AA12: Diesels | AB12: =IF(AB$5=$L12,$F12,IF(AB$5>$L12,MIN($F12,$E12-SUM(AA12:$AB12)),0)) -> 7 | AC12: =IF(AC$5=$L12,$F12,IF(AC$5>$L12,MIN($F12,$E12-SUM(AB12:$AB12)),0)) -> 0 | AD12: =IF(AD$5=$L12,$F12,IF(AD$5>$L12,MIN($F12,$E12-SUM($AB12:AC12)),0)) -> 0 | AE12: =IF(AE$5=$L12,$F12,IF(AE$5>$L12,MIN($F12,$E12-SUM($AB12:AD12)),0)) -> 0 | AF12: =IF(AF$5=$L12,$F12,IF(AF$5>$L12,MIN($F12,$E12-SUM($AB12:AE12)),0)) -> 0 | AG12: =IF(AG$5=$L12,$F12,IF(AG$5>$L12,MIN($F12,$E12-SUM($AB12:AF12)),0)) -> 0 | AH12: =IF(AH$5=$L12,$F12,IF(AH$5>$L12,MIN($F12,$E12-SUM($AB12:AG12)),0)) -> 0 | AI12: =IF(AI$5=$L12,$F12,IF(AI$5>$L12,MIN($F12,$E12-SUM($AB12:AH12)),0)) -> 0 | AJ12: =IF(AJ$5=$L12,$F12,IF(AJ$5>$L12,MIN($F12,$E12-SUM($AB12:AI12)),0)) -> 0 | AK12: =IF(AK$5=$L12,$F12,IF(AK$5>$L12,MIN($F12,$E12-SUM($AB12:AJ12)),0)) -> 0 | AL12: =IF(AL$5=$L12,$F12,IF(AL$5>$L12,MIN($F12,$E12-SUM($AB12:AK12)),0)) -> 0 | AM12: =IF(AM$5=$L12,$F12,IF(AM$5>$L12,MIN($F12,$E12-SUM($AB12:AL12)),0)) -> 0 | AN12: =IF(AN$5=$L12,$F12,IF(AN$5>$L12,MIN($F12,$E12-SUM($AB12:AM12)),0)) -> 0
A13: ='Oper hydro SiteSpec'!B6 -> Capanda II hydro | B13: EPHYDNCcap | C13: H | D13: Yes | E13: 260 | F13: 260 | G13: 344 | H13: 1323 | I13: Hydro | J13: =VLOOKUP(I13,GenericSourceData!$A$42:$AC$60,29,FALSE) -> 1 | K13: 1323 | L13: 2010 | R13: =VLOOKUP($A13,'Oper hydro SiteSpec'!$B$3:$L$43,R$2,FALSE) -> 1.51 | S13: =VLOOKUP($A13,'Oper hydro SiteSpec'!$B$3:$L$43,S$2,FALSE) -> 8.72 | T13: =VLOOKUP($A13,'Oper hydro SiteSpec'!$B$3:$L$43,T$2,FALSE) -> 0.15 | U13: =VLOOKUP($A13,'Oper hydro SiteSpec'!$B$3:$L$43,U$2,FALSE) -> 0.05 | V13: =IF(dryear,VLOOKUP($A13,'Oper hydro SiteSpec'!$B$3:$M$43,V$2+1,FALSE),VLOOKUP($A13,'Oper hydro SiteSpec'!$B$3:$L$43,V$2,FALSE)) -> 0.260800843 | W13: =VLOOKUP(I13,GenericSourceData!$A$42:$AD$60,30,FALSE) -> 50 | Y13: 260 0 0 0 0 0 0 0 0 0 0 0 0 | AA13: Capanda II hydro | AB13: =IF(AB$5=$L13,$F13,IF(AB$5>$L13,MIN($F13,$E13-SUM(AA13:$AB13)),0)) -> 260 | AC13: =IF(AC$5=$L13,$F13,IF(AC$5>$L13,MIN($F13,$E13-SUM(AB13:$AB13)),0)) -> 0 | AD13: =IF(AD$5=$L13,$F13,IF(AD$5>$L13,MIN($F13,$E13-SUM($AB13:AC13)),0)) -> 0 | AE13: =IF(AE$5=$L13,$F13,IF(AE$5>$L13,MIN($F13,$E13-SUM($AB13:AD13)),0)) -> 0 | AF13: =IF(AF$5=$L13,$F13,IF(AF$5>$L13,MIN($F13,$E13-SUM($AB13:AE13)),0)) -> 0 | AG13: =IF(AG$5=$L13,$F13,IF(AG$5>$L13,MIN($F13,$E13-SUM($AB13:AF13)),0)) -> 0 | AH13: =IF(AH$5=$L13,$F13,IF(AH$5>$L13,MIN($F13,$E13-SUM($AB13:AG13)),0)) -> 0 | AI13: =IF(AI$5=$L13,$F13,IF(AI$5>$L13,MIN($F13,$E13-SUM($AB13:AH13)),0)) -> 0 | AJ13: =IF(AJ$5=$L13,$F13,IF(AJ$5>$L13,MIN($F13,$E13-SUM($AB13:AI13)),0)) -> 0 | AK13: =IF(AK$5=$L13,$F13,IF(AK$5>$L13,MIN($F13,$E13-SUM($AB13:AJ13)),0)) -> 0 | AL13: =IF(AL$5=$L13,$F13,IF(AL$5>$L13,MIN($F13,$E13-SUM($AB13:AK13)),0)) -> 0 | AM13: =IF(AM$5=$L13,$F13,IF(AM$5>$L13,MIN($F13,$E13-SUM($AB13:AL13)),0)) -> 0 | AN13: =IF(AN$5=$L13,$F13,IF(AN$5>$L13,MIN($F13,$E13-SUM($AB13:AM13)),0)) -> 0
A14: ='Oper hydro SiteSpec'!B9 -> Gove hydro | B14: EPHYDNCgov | C14: H | D14: Yes | E14: =60+50+25 -> 135 | F14: 135 | G14: 58 | H14: 967 | I14: Hydro | J14: =VLOOKUP(I14,GenericSourceData!$A$42:$AC$60,29,FALSE) -> 1 | K14: 967 | L14: 2012 | R14: =VLOOKUP($A14,'Oper hydro SiteSpec'!$B$3:$L$43,R$2,FALSE) -> 1.51 | S14: =VLOOKUP($A14,'Oper hydro SiteSpec'!$B$3:$L$43,S$2,FALSE) -> 8.72 | T14: =VLOOKUP($A14,'Oper hydro SiteSpec'!$B$3:$L$43,T$2,FALSE) -> 0.15 | U14: =VLOOKUP($A14,'Oper hydro SiteSpec'!$B$3:$L$43,U$2,FALSE) -> 0.05 | V14: =IF(dryear,VLOOKUP($A14,'Oper hydro SiteSpec'!$B$3:$M$43,V$2+1,FALSE),VLOOKUP($A14,'Oper hydro SiteSpec'!$B$3:$L$43,V$2,FALSE)) -> 0.3310502283 | W14: =VLOOKUP(I14,GenericSourceData!$A$42:$AD$60,30,FALSE) -> 50 | Y14: 0 0 135 0 0 0 0 0 0 0 0 0 0 | AA14: Gove hydro | AB14: =IF(AB$5=$L14,$F14,IF(AB$5>$L14,MIN($F14,$E14-SUM(AA14:$AB14)),0)) -> 0 | AC14: =IF(AC$5=$L14,$F14,IF(AC$5>$L14,MIN($F14,$E14-SUM(AB14:$AB14)),0)) -> 0 | AD14: =IF(AD$5=$L14,$F14,IF(AD$5>$L14,MIN($F14,$E14-SUM($AB14:AC14)),0)) -> 135 | AE14: =IF(AE$5=$L14,$F14,IF(AE$5>$L14,MIN($F14,$E14-SUM($AB14:AD14)),0)) -> 0 | AF14: =IF(AF$5=$L14,$F14,IF(AF$5>$L14,MIN($F14,$E14-SUM($AB14:AE14)),0)) -> 0 | AG14: =IF(AG$5=$L14,$F14,IF(AG$5>$L14,MIN($F14,$E14-SUM($AB14:AF14)),0)) -> 0 | AH14: =IF(AH$5=$L14,$F14,IF(AH$5>$L14,MIN($F14,$E14-SUM($AB14:AG14)),0)) -> 0 | AI14: =IF(AI$5=$L14,$F14,IF(AI$5>$L14,MIN($F14,$E14-SUM($AB14:AH14)),0)) -> 0 | AJ14: =IF(AJ$5=$L14,$F14,IF(AJ$5>$L14,MIN($F14,$E14-SUM($AB14:AI14)),0)) -> 0 | AK14: =IF(AK$5=$L14,$F14,IF(AK$5>$L14,MIN($F14,$E14-SUM($AB14:AJ14)),0)) -> 0 | AL14: =IF(AL$5=$L14,$F14,IF(AL$5>$L14,MIN($F14,$E14-SUM($AB14:AK14)),0)) -> 0 | AM14: =IF(AM$5=$L14,$F14,IF(AM$5>$L14,MIN($F14,$E14-SUM($AB14:AL14)),0)) -> 0 | AN14: =IF(AN$5=$L14,$F14,IF(AN$5>$L14,MIN($F14,$E14-SUM($AB14:AM14)),0)) -> 0
A15: ='Oper hydro SiteSpec'!B7 -> Cambambe II hydro | B15: EPHYDNCcam | C15: H | D15: Yes | E15: =80+80+700 -> 860 | F15: 860 | G15: 772 | H15: 2969 | I15: Hydro | J15: =VLOOKUP(I15,GenericSourceData!$A$42:$AC$60,29,FALSE) -> 1 | K15: 2969 | L15: 2012 | R15: =VLOOKUP($A15,'Oper hydro SiteSpec'!$B$3:$L$43,R$2,FALSE) -> 1.51 | S15: =VLOOKUP($A15,'Oper hydro SiteSpec'!$B$3:$L$43,S$2,FALSE) -> 8.72 | T15: =VLOOKUP($A15,'Oper hydro SiteSpec'!$B$3:$L$43,T$2,FALSE) -> 0.15 | U15: =VLOOKUP($A15,'Oper hydro SiteSpec'!$B$3:$L$43,U$2,FALSE) -> 0.05 | V15: =IF(dryear,VLOOKUP($A15,'Oper hydro SiteSpec'!$B$3:$M$43,V$2+1,FALSE),VLOOKUP($A15,'Oper hydro SiteSpec'!$B$3:$L$43,V$2,FALSE)) -> 0.260800843 | W15: =VLOOKUP(I15,GenericSourceData!$A$42:$AD$60,30,FALSE) -> 50 | Y15: 0 0 80 0 80 0 700 0 0 0 0 0 0 | AA15: Cambambe II hydro | AB15: =IF(AB$5=$L15,$F15,IF(AB$5>$L15,MIN($F15,$E15-SUM(AA15:$AB15)),0)) -> 0 | AC15: =IF(AC$5=$L15,$F15,IF(AC$5>$L15,MIN($F15,$E15-SUM(AB15:$AB15)),0)) -> 0 | AD15: 80 | AE15: 0 | AF15: 80 | AG15: 0 | AH15: =IF(AH$5=$L15,$F15,IF(AH$5>$L15,MIN($F15,$E15-SUM($AB15:AG15)),0)) -> 700 | AI15: =IF(AI$5=$L15,$F15,IF(AI$5>$L15,MIN($F15,$E15-SUM($AB15:AH15)),0)) -> 0 | AJ15: =IF(AJ$5=$L15,$F15,IF(AJ$5>$L15,MIN($F15,$E15-SUM($AB15:AI15)),0)) -> 0 | AK15: =IF(AK$5=$L15,$F15,IF(AK$5>$L15,MIN($F15,$E15-SUM($AB15:AJ15)),0)) -> 0 | AL15: =IF(AL$5=$L15,$F15,IF(AL$5>$L15,MIN($F15,$E15-SUM($AB15:AK15)),0)) -> 0 | AM15: =IF(AM$5=$L15,$F15,IF(AM$5>$L15,MIN($F15,$E15-SUM($AB15:AL15)),0)) -> 0 | AN15: =IF(AN$5=$L15,$F15,IF(AN$5>$L15,MIN($F15,$E15-SUM($AB15:AM15)),0)) -> 0
A16: Kuanza Basin | B16: EPHYDNUkba | C16: H | E16: =6580-580-520 -> 5480 | F16: =IF(E16<1000,E16,IF(E16>3000,E16/6,E16/2)) -> 913.3333333 | H16: =AVERAGE(H13:H15) -> 1753 | J16: 1 | K16: 1753 | L16: 2014 | R16: =R15 -> 1.51 | S16: 8.72 | T16: 0.15 | U16: 0.05 | V16: 0.260800843 | W16: 50 | X16: 2014 | Y16: =IF(D16="yes",AB16&" "&AC16&" "&AD16&" "&AE16&" "&AF16&" "&AG16&" "&AH16&" "&AI16&" "&AJ16&" "&AK16&" "&AL16&" "&AM16&" "&AN16,"") ->  | Z16: =IF(D16<>"yes",F16,"") -> 913.3333333 | AA16: Kuanza Basin
A17: Botswana | E17: =SUMIF($C18:$C19,"T",$E18:$E19) -> 3630 | AA17: Botswana
A18: ='Oper therm SiteSpec'!B8 -> Morupule B coal | B18: EPCOANUSCmor | C18: T | D18: Yes | E18: 1200 | F18: 600 | G18: 1200 | H18: 1000 | I18: Supercritical Coal | J18: =VLOOKUP(I18,GenericSourceData!$A$42:$AC$60,29,FALSE) -> 1.1810985 | K18: 1181.0985 | L18: 2012 | M18: =VLOOKUP($A18,'Oper therm SiteSpec'!$B$3:$O$30,M$1,FALSE) -> 10865 | N18: =1/(M18/3600) -> 0.3313391624 | O18: =VLOOKUP($A18,'Oper therm SiteSpec'!$B$3:$O$30,O$1,FALSE) -> Coal | P18: =VLOOKUP($A18,'Oper therm SiteSpec'!$B$3:$O$30,P$1,FALSE) -> 0 | Q18: =VLOOKUP($A18,'Oper therm SiteSpec'!$B$3:$O$30,Q$1,FALSE) -> 0.48 | R18: =VLOOKUP($A18,'Oper therm SiteSpec'!$B$3:$O$30,R$1,FALSE) -> 4.18 | S18: =VLOOKUP($A18,'Oper therm SiteSpec'!$B$3:$O$30,S$1,FALSE) -> 38 | T18: =VLOOKUP($A18,'Oper therm SiteSpec'!$B$3:$O$30,T$1,FALSE) -> 0.072 | U18: =VLOOKUP($A18,'Oper therm SiteSpec'!$B$3:$O$30,U$1,FALSE) -> 0.0517 | V18: =(1-T18)*(1-U18) -> 0.8800224 | W18: =VLOOKUP(I18,GenericSourceData!$A$42:$AD$60,30,FALSE) -> 35 | X18: =IF(D18<>"yes",L18,"") ->  | Y18: =IF(D18="yes",AB18&" "&AC18&" "&AD18&" "&AE18&" "&AF18&" "&AG18&" "&AH18&" "&AI18&" "&AJ18&" "&AK18&" "&AL18&" "&AM18&" "&AN18,"") -> 0 0 600 0 0 300 300 0 0 0 0 0 0 | Z18: =IF(D18<>"yes",F18,"") ->  | AA18: Morupule B coal | AB18: =IF(AB$5=$L18,$F18,IF(AB$5>$L18,MIN($F18,$E18-SUM(AA18:$AB18)),0)) -> 0 | AC18: =IF(AC$5=$L18,$F18,IF(AC$5>$L18,MIN($F18,$E18-SUM(AB18:$AB18)),0)) -> 0 | AD18: =IF(AD$5=$L18,$F18,IF(AD$5>$L18,MIN($F18,$E18-SUM($AB18:AC18)),0)) -> 600 | AE18: 0 | AF18: 0 | AG18: 300 | AH18: =IF(AH$5=$L18,$F18,IF(AH$5>$L18,MIN($F18,$E18-SUM($AB18:AG18)),0)) -> 300 | AI18: =IF(AI$5=$L18,$F18,IF(AI$5>$L18,MIN($F18,$E18-SUM($AB18:AH18)),0)) -> 0 | AJ18: =IF(AJ$5=$L18,$F18,IF(AJ$5>$L18,MIN($F18,$E18-SUM($AB18:AI18)),0)) -> 0 | AK18: =IF(AK$5=$L18,$F18,IF(AK$5>$L18,MIN($F18,$E18-SUM($AB18:AJ18)),0)) -> 0 | AL18: =IF(AL$5=$L18,$F18,IF(AL$5>$L18,MIN($F18,$E18-SUM($AB18:AK18)),0)) -> 0 | AM18: =IF(AM$5=$L18,$F18,IF(AM$5>$L18,MIN($F18,$E18-SUM($AB18:AL18)),0)) -> 0 | AN18: =IF(AN$5=$L18,$F18,IF(AN$5>$L18,MIN($F18,$E18-SUM($AB18:AM18)),0)) -> 0
A19: ='Oper therm SiteSpec'!B9 -> Mmamabula coal | B19: EPCOANUSCmma | C19: T | E19: 2430 | F19: 1215 | G19: 5400 | H19: 2222 | I19: Supercritical Coal | J19: =VLOOKUP(I19,GenericSourceData!$A$42:$AC$60,29,FALSE) -> 1.1810985 | K19: 2624.400867 | L19: 2015 | M19: =VLOOKUP($A19,'Oper therm SiteSpec'!$B$3:$O$30,M$1,FALSE) -> 9730 | N19: =1/(M19/3600) -> 0.3699897225 | O19: =VLOOKUP($A19,'Oper therm SiteSpec'!$B$3:$O$30,O$1,FALSE) -> Coal | P19: =VLOOKUP($A19,'Oper therm SiteSpec'!$B$3:$O$30,P$1,FALSE) -> 32.95 | Q19: =VLOOKUP($A19,'Oper therm SiteSpec'!$B$3:$O$30,Q$1,FALSE) -> 0.2 | R19: =VLOOKUP($A19,'Oper therm SiteSpec'!$B$3:$O$30,R$1,FALSE) -> 0.96 | S19: =VLOOKUP($A19,'Oper therm SiteSpec'!$B$3:$O$30,S$1,FALSE) -> 20 | T19: =VLOOKUP($A19,'Oper therm SiteSpec'!$B$3:$O$30,T$1,FALSE) -> 0.072 | U19: =VLOOKUP($A19,'Oper therm SiteSpec'!$B$3:$O$30,U$1,FALSE) -> 0.0517 | V19: =(1-T19)*(1-U19) -> 0.8800224 | W19: =VLOOKUP(I19,GenericSourceData!$A$42:$AD$60,30,FALSE) -> 35 | X19: =IF(D19<>"yes",L19,"") -> 2015 | Y19: =IF(D19="yes",AB19&" "&AC19&" "&AD19&" "&AE19&" "&AF19&" "&AG19&" "&AH19&" "&AI19&" "&AJ19&" "&AK19&" "&AL19&" "&AM19&" "&AN19,"") ->  | Z19: =IF(D19<>"yes",F19,"") -> 1215 | AA19: Mmamabula coal | AB19: =IF(AB$5=$L19,$F19,IF(AB$5>$L19,MIN($F19,$E19-SUM(AA19:$AB19)),0)) -> 0 | AC19: =IF(AC$5=$L19,$F19,IF(AC$5>$L19,MIN($F19,$E19-SUM(AB19:$AB19)),0)) -> 0 | AD19: =IF(AD$5=$L19,$F19,IF(AD$5>$L19,MIN($F19,$E19-SUM($AB19:AC19)),0)) -> 0 | AE19: =IF(AE$5=$L19,$F19,IF(AE$5>$L19,MIN($F19,$E19-SUM($AB19:AD19)),0)) -> 0 | AF19: =IF(AF$5=$L19,$F19,IF(AF$5>$L19,MIN($F19,$E19-SUM($AB19:AE19)),0)) -> 0 | AG19: =IF(AG$5=$L19,$F19,IF(AG$5>$L19,MIN($F19,$E19-SUM($AB19:AF19)),0)) -> 1215 | AH19: =IF(AH$5=$L19,$F19,IF(AH$5>$L19,MIN($F19,$E19-SUM($AB19:AG19)),0)) -> 1215 | AI19: =IF(AI$5=$L19,$F19,IF(AI$5>$L19,MIN($F19,$E19-SUM($AB19:AH19)),0)) -> 0 | AJ19: =IF(AJ$5=$L19,$F19,IF(AJ$5>$L19,MIN($F19,$E19-SUM($AB19:AI19)),0)) -> 0 | AK19: =IF(AK$5=$L19,$F19,IF(AK$5>$L19,MIN($F19,$E19-SUM($AB19:AJ19)),0)) -> 0 | AL19: =IF(AL$5=$L19,$F19,IF(AL$5>$L19,MIN($F19,$E19-SUM($AB19:AK19)),0)) -> 0 | AM19: =IF(AM$5=$L19,$F19,IF(AM$5>$L19,MIN($F19,$E19-SUM($AB19:AL19)),0)) -> 0 | AN19: =IF(AN$5=$L19,$F19,IF(AN$5>$L19,MIN($F19,$E19-SUM($AB19:AM19)),0)) -> 0
A20: Democratic Republic of Congo | D20: =SUMIF($C21:$C23,"H",$E21:$E23)-E22 -> 20240 | V20: =SUMPRODUCT(--(C21:C23="H"),E21:E23,V21:V23)*8.76 -> 122081.1429 | AA20: Democratic Republic of Congo
A21: ='Oper hydro SiteSpec'!B11 -> Busanga hydro | B21: EPHYDUCbus | C21: H | E21: 240 | F21: 240 | G21: 300 | H21: 1250 | I21: Hydro | J21: =VLOOKUP(I21,GenericSourceData!$A$42:$AC$60,29,FALSE) -> 1 | K21: 1250 | L21: 2015 | R21: =VLOOKUP($A21,'Oper hydro SiteSpec'!$B$3:$L$43,R$2,FALSE) -> 1.51 | S21: =VLOOKUP($A21,'Oper hydro SiteSpec'!$B$3:$L$43,S$2,FALSE) -> 8.72 | T21: =VLOOKUP($A21,'Oper hydro SiteSpec'!$B$3:$L$43,T$2,FALSE) -> 0.05 | U21: =VLOOKUP($A21,'Oper hydro SiteSpec'!$B$3:$L$43,U$2,FALSE) -> 0.02 | V21: =IF(dryear,VLOOKUP($A21,'Oper hydro SiteSpec'!$B$3:$M$43,V$2+1,FALSE),VLOOKUP($A21,'Oper hydro SiteSpec'!$B$3:$L$43,V$2,FALSE)) -> 0.4704147641 | W21: =VLOOKUP(I21,GenericSourceData!$A$42:$AD$60,30,FALSE) -> 50 | X21: =IF(D21<>"yes",L21,"") -> 2015 | Y21: =IF(D21="yes",AB21&" "&AC21&" "&AD21&" "&AE21&" "&AF21&" "&AG21&" "&AH21&" "&AI21&" "&AJ21&" "&AK21&" "&AL21&" "&AM21&" "&AN21,"") ->  | Z21: =IF(D21<>"yes",F21,"") -> 240 | AA21: Busanga hydro | AB21: =IF(AB$5=$L21,$F21,IF(AB$5>$L21,MIN($F21,$E21-SUM(AA21:$AB21)),0)) -> 0 | AC21: =IF(AC$5=$L21,$F21,IF(AC$5>$L21,MIN($F21,$E21-SUM(AB21:$AB21)),0)) -> 0 | AD21: =IF(AD$5=$L21,$F21,IF(AD$5>$L21,MIN($F21,$E21-SUM($AB21:AC21)),0)) -> 0 | AE21: =IF(AE$5=$L21,$F21,IF(AE$5>$L21,MIN($F21,$E21-SUM($AB21:AD21)),0)) -> 0 | AF21: =IF(AF$5=$L21,$F21,IF(AF$5>$L21,MIN($F21,$E21-SUM($AB21:AE21)),0)) -> 0 | AG21: =IF(AG$5=$L21,$F21,IF(AG$5>$L21,MIN($F21,$E21-SUM($AB21:AF21)),0)) -> 240 | AH21: =IF(AH$5=$L21,$F21,IF(AH$5>$L21,MIN($F21,$E21-SUM($AB21:AG21)),0)) -> 0 | AI21: =IF(AI$5=$L21,$F21,IF(AI$5>$L21,MIN($F21,$E21-SUM($AB21:AH21)),0)) -> 0 | AJ21: =IF(AJ$5=$L21,$F21,IF(AJ$5>$L21,MIN($F21,$E21-SUM($AB21:AI21)),0)) -> 0 | AK21: =IF(AK$5=$L21,$F21,IF(AK$5>$L21,MIN($F21,$E21-SUM($AB21:AJ21)),0)) -> 0 | AL21: =IF(AL$5=$L21,$F21,IF(AL$5>$L21,MIN($F21,$E21-SUM($AB21:AK21)),0)) -> 0 | AM21: =IF(AM$5=$L21,$F21,IF(AM$5>$L21,MIN($F21,$E21-SUM($AB21:AL21)),0)) -> 0 | AN21: =IF(AN$5=$L21,$F21,IF(AN$5>$L21,MIN($F21,$E21-SUM($AB21:AM21)),0)) -> 0
A22: ='Oper hydro SiteSpec'!B12 -> Inga 3 hydro | B22: EPHYDUCin3 | C22: H | E22: 3500 | F22: 1166.666667 | G22: 1730 | H22: 494 | I22: Hydro | J22: =VLOOKUP(I22,GenericSourceData!$A$42:$AC$60,29,FALSE) -> 1 | K22: 494 | L22: 2020 | R22: =VLOOKUP($A22,'Oper hydro SiteSpec'!$B$3:$L$43,R$2,FALSE) -> 1.51 | S22: =VLOOKUP($A22,'Oper hydro SiteSpec'!$B$3:$L$43,S$2,FALSE) -> 8.72 | T22: =VLOOKUP($A22,'Oper hydro SiteSpec'!$B$3:$L$43,T$2,FALSE) -> 0.05 | U22: =VLOOKUP($A22,'Oper hydro SiteSpec'!$B$3:$L$43,U$2,FALSE) -> 0.02 | V22: =IF(dryear,VLOOKUP($A22,'Oper hydro SiteSpec'!$B$3:$M$43,V$2+1,FALSE),VLOOKUP($A22,'Oper hydro SiteSpec'!$B$3:$L$43,V$2,FALSE)) -> 0.5882257012 | W22: =VLOOKUP(I22,GenericSourceData!$A$42:$AD$60,30,FALSE) -> 50 | X22: =IF(D22<>"yes",L22,"") -> 2020 | Y22: =IF(D22="yes",AB22&" "&AC22&" "&AD22&" "&AE22&" "&AF22&" "&AG22&" "&AH22&" "&AI22&" "&AJ22&" "&AK22&" "&AL22&" "&AM22&" "&AN22,"") ->  | Z22: =IF(D22<>"yes",F22,"") -> 1166.666667 | AA22: Inga 3 hydro | AB22: =IF(AB$5=$L22,$F22,IF(AB$5>$L22,MIN($F22,$E22-SUM(AA22:$AB22)),0)) -> 0 | AC22: =IF(AC$5=$L22,$F22,IF(AC$5>$L22,MIN($F22,$E22-SUM(AB22:$AB22)),0)) -> 0 | AD22: =IF(AD$5=$L22,$F22,IF(AD$5>$L22,MIN($F22,$E22-SUM($AB22:AC22)),0)) -> 0 | AE22: =IF(AE$5=$L22,$F22,IF(AE$5>$L22,MIN($F22,$E22-SUM($AB22:AD22)),0)) -> 0 | AF22: =IF(AF$5=$L22,$F22,IF(AF$5>$L22,MIN($F22,$E22-SUM($AB22:AE22)),0)) -> 0 | AG22: =IF(AG$5=$L22,$F22,IF(AG$5>$L22,MIN($F22,$E22-SUM($AB22:AF22)),0)) -> 0 | AH22: =IF(AH$5=$L22,$F22,IF(AH$5>$L22,MIN($F22,$E22-SUM($AB22:AG22)),0)) -> 0 | AI22: =IF(AI$5=$L22,$F22,IF(AI$5>$L22,MIN($F22,$E22-SUM($AB22:AH22)),0)) -> 0 | AJ22: =IF(AJ$5=$L22,$F22,IF(AJ$5>$L22,MIN($F22,$E22-SUM($AB22:AI22)),0)) -> 0 | AK22: =IF(AK$5=$L22,$F22,IF(AK$5>$L22,MIN($F22,$E22-SUM($AB22:AJ22)),0)) -> 0 | AL22: =IF(AL$5=$L22,$F22,IF(AL$5>$L22,MIN($F22,$E22-SUM($AB22:AK22)),0)) -> 1166.666667 | AM22: =IF(AM$5=$L22,$F22,IF(AM$5>$L22,MIN($F22,$E22-SUM($AB22:AL22)),0)) -> 1166.666667 | AN22: =IF(AN$5=$L22,$F22,IF(AN$5>$L22,MIN($F22,$E22-SUM($AB22:AM22)),0)) -> 1166.666667
A23: ='Oper hydro SiteSpec'!B13 -> Grand Inga | B23: EPHYDUCgin | C23: H | E23: 20000 | F23: =IF(E23<1000,E23,IF(E23>3000,E23/6,E23/2)) -> 3333.333333 | G23: 4025 | H23: 671 | I23: Hydro | J23: =VLOOKUP(I23,GenericSourceData!$A$42:$AC$60,29,FALSE) -> 1 | K23: 671 | L23: 2018 | R23: =R22 -> 1.51 | S23: =S22 -> 8.72 | T23: =T22 -> 0.05 | U23: =U22 -> 0.02 | V23: =V22 -> 0.5882257012 | W23: =VLOOKUP(I23,GenericSourceData!$A$42:$AD$60,30,FALSE) -> 50 | X23: =IF(D23<>"yes",L23,"") -> 2018 | Y23: =IF(D23="yes",AB23&" "&AC23&" "&AD23&" "&AE23&" "&AF23&" "&AG23&" "&AH23&" "&AI23&" "&AJ23&" "&AK23&" "&AL23&" "&AM23&" "&AN23,"") ->  | Z23: =IF(D23<>"yes",F23,"") -> 3333.333333 | AA23: Grand Inga | AB23: =IF(AB$5=$L23,$F23,IF(AB$5>$L23,MIN($F23,$E23-SUM(AA23:$AB23)),0)) -> 0 | AC23: =IF(AC$5=$L23,$F23,IF(AC$5>$L23,MIN($F23,$E23-SUM(AB23:$AB23)),0)) -> 0 | AD23: =IF(AD$5=$L23,$F23,IF(AD$5>$L23,MIN($F23,$E23-SUM($AB23:AC23)),0)) -> 0 | AE23: =IF(AE$5=$L23,$F23,IF(AE$5>$L23,MIN($F23,$E23-SUM($AB23:AD23)),0)) -> 0 | AF23: =IF(AF$5=$L23,$F23,IF(AF$5>$L23,MIN($F23,$E23-SUM($AB23:AE23)),0)) -> 0 | AG23: =IF(AG$5=$L23,$F23,IF(AG$5>$L23,MIN($F23,$E23-SUM($AB23:AF23)),0)) -> 0 | AH23: =IF(AH$5=$L23,$F23,IF(AH$5>$L23,MIN($F23,$E23-SUM($AB23:AG23)),0)) -> 0 | AI23: =IF(AI$5=$L23,$F23,IF(AI$5>$L23,MIN($F23,$E23-SUM($AB23:AH23)),0)) -> 0 | AJ23: =IF(AJ$5=$L23,$F23,IF(AJ$5>$L23,MIN($F23,$E23-SUM($AB23:AI23)),0)) -> 3333.333333 | AK23: =IF(AK$5=$L23,$F23,IF(AK$5>$L23,MIN($F23,$E23-SUM($AB23:AJ23)),0)) -> 3333.333333 | AL23: =IF(AL$5=$L23,$F23,IF(AL$5>$L23,MIN($F23,$E23-SUM($AB23:AK23)),0)) -> 3333.333333 | AM23: =IF(AM$5=$L23,$F23,IF(AM$5>$L23,MIN($F23,$E23-SUM($AB23:AL23)),0)) -> 3333.333333 | AN23: =IF(AN$5=$L23,$F23,IF(AN$5>$L23,MIN($F23,$E23-SUM($AB23:AM23)),0)) -> 3333.333333
A24: Lesotho | D24: =SUMIF($C25:$C26,"H",$E25:$E26) -> 190 | V24: =SUMPRODUCT(--(C25:C26="H"),E25:E26,V25:V26)*8.76 -> 330 | AA24: Lesotho
A25: ='Oper hydro SiteSpec'!B15 -> Muela 2 hydro | B25: EPHYDNUmu2 | C25: H | D25: yes | E25: 110 | F25: 110 | G25: 213 | H25: 1938 | I25: Hydro | J25: =VLOOKUP(I25,GenericSourceData!$A$42:$AC$60,29,FALSE) -> 1 | K25: 1938 | L25: 2016 | R25: =VLOOKUP($A25,'Oper hydro SiteSpec'!$B$3:$L$43,R$2,FALSE) -> 1.51 | S25: =VLOOKUP($A25,'Oper hydro SiteSpec'!$B$3:$L$43,S$2,FALSE) -> 8.72 | T25: =VLOOKUP($A25,'Oper hydro SiteSpec'!$B$3:$L$43,T$2,FALSE) -> 0.05 | U25: =VLOOKUP($A25,'Oper hydro SiteSpec'!$B$3:$L$43,U$2,FALSE) -> 0.02 | V25: =IF(dryear,VLOOKUP($A25,'Oper hydro SiteSpec'!$B$3:$M$43,V$2+1,FALSE),VLOOKUP($A25,'Oper hydro SiteSpec'!$B$3:$L$43,V$2,FALSE)) -> 0.06122872561 | W25: =VLOOKUP(I25,GenericSourceData!$A$42:$AD$60,30,FALSE) -> 50 | X25: =IF(D25<>"yes",L25,"") ->  | Y25: =IF(D25="yes",AB25&" "&AC25&" "&AD25&" "&AE25&" "&AF25&" "&AG25&" "&AH25&" "&AI25&" "&AJ25&" "&AK25&" "&AL25&" "&AM25&" "&AN25,"") -> 0 0 0 0 0 0 110 0 0 0 0 0 0 | Z25: =IF(D25<>"yes",F25,"") ->  | AA25: Muela 2 hydro | AB25: =IF(AB$5=$L25,$F25,IF(AB$5>$L25,MIN($F25,$E25-SUM(AA25:$AB25)),0)) -> 0 | AC25: =IF(AC$5=$L25,$F25,IF(AC$5>$L25,MIN($F25,$E25-SUM(AB25:$AB25)),0)) -> 0 | AD25: =IF(AD$5=$L25,$F25,IF(AD$5>$L25,MIN($F25,$E25-SUM($AB25:AC25)),0)) -> 0 | AE25: =IF(AE$5=$L25,$F25,IF(AE$5>$L25,MIN($F25,$E25-SUM($AB25:AD25)),0)) -> 0 | AF25: =IF(AF$5=$L25,$F25,IF(AF$5>$L25,MIN($F25,$E25-SUM($AB25:AE25)),0)) -> 0 | AG25: =IF(AG$5=$L25,$F25,IF(AG$5>$L25,MIN($F25,$E25-SUM($AB25:AF25)),0)) -> 0 | AH25: =IF(AH$5=$L25,$F25,IF(AH$5>$L25,MIN($F25,$E25-SUM($AB25:AG25)),0)) -> 110 | AI25: =IF(AI$5=$L25,$F25,IF(AI$5>$L25,MIN($F25,$E25-SUM($AB25:AH25)),0)) -> 0 | AJ25: =IF(AJ$5=$L25,$F25,IF(AJ$5>$L25,MIN($F25,$E25-SUM($AB25:AI25)),0)) -> 0 | AK25: =IF(AK$5=$L25,$F25,IF(AK$5>$L25,MIN($F25,$E25-SUM($AB25:AJ25)),0)) -> 0 | AL25: =IF(AL$5=$L25,$F25,IF(AL$5>$L25,MIN($F25,$E25-SUM($AB25:AK25)),0)) -> 0 | AM25: =IF(AM$5=$L25,$F25,IF(AM$5>$L25,MIN($F25,$E25-SUM($AB25:AL25)),0)) -> 0 | AN25: =IF(AN$5=$L25,$F25,IF(AN$5>$L25,MIN($F25,$E25-SUM($AB25:AM25)),0)) -> 0
A26: ='Oper hydro SiteSpec'!B16 -> Oxbow hydro | B26: EPHYDNUoxb | C26: H | E26: 80 | F26: 80 | G26: 155 | H26: 1938 | I26: Hydro | J26: =VLOOKUP(I26,GenericSourceData!$A$42:$AC$60,29,FALSE) -> 1 | K26: 1938 | L26: 2017 | R26: =VLOOKUP($A26,'Oper hydro SiteSpec'!$B$3:$L$43,R$2,FALSE) -> 1.51 | S26: =VLOOKUP($A26,'Oper hydro SiteSpec'!$B$3:$L$43,S$2,FALSE) -> 8.72 | T26: =VLOOKUP($A26,'Oper hydro SiteSpec'!$B$3:$L$43,T$2,FALSE) -> 0.05 | U26: =VLOOKUP($A26,'Oper hydro SiteSpec'!$B$3:$L$43,U$2,FALSE) -> 0.02 | V26: =IF(dryear,VLOOKUP($A26,'Oper hydro SiteSpec'!$B$3:$M$43,V$2+1,FALSE),VLOOKUP($A26,'Oper hydro SiteSpec'!$B$3:$L$43,V$2,FALSE)) -> 0.3867009132 | W26: =VLOOKUP(I26,GenericSourceData!$A$42:$AD$60,30,FALSE) -> 50 | X26: =IF(D26<>"yes",L26,"") -> 2017 | Y26: =IF(D26="yes",AB26&" "&AC26&" "&AD26&" "&AE26&" "&AF26&" "&AG26&" "&AH26&" "&AI26&" "&AJ26&" "&AK26&" "&AL26&" "&AM26&" "&AN26,"") ->  | Z26: =IF(D26<>"yes",F26,"") -> 80 | AA26: Oxbow hydro | AB26: =IF(AB$5=$L26,$F26,IF(AB$5>$L26,MIN($F26,$E26-SUM(AA26:$AB26)),0)) -> 0 | AC26: =IF(AC$5=$L26,$F26,IF(AC$5>$L26,MIN($F26,$E26-SUM(AB26:$AB26)),0)) -> 0 | AD26: =IF(AD$5=$L26,$F26,IF(AD$5>$L26,MIN($F26,$E26-SUM($AB26:AC26)),0)) -> 0 | AE26: =IF(AE$5=$L26,$F26,IF(AE$5>$L26,MIN($F26,$E26-SUM($AB26:AD26)),0)) -> 0 | AF26: =IF(AF$5=$L26,$F26,IF(AF$5>$L26,MIN($F26,$E26-SUM($AB26:AE26)),0)) -> 0 | AG26: =IF(AG$5=$L26,$F26,IF(AG$5>$L26,MIN($F26,$E26-SUM($AB26:AF26)),0)) -> 0 | AH26: =IF(AH$5=$L26,$F26,IF(AH$5>$L26,MIN($F26,$E26-SUM($AB26:AG26)),0)) -> 0 | AI26: =IF(AI$5=$L26,$F26,IF(AI$5>$L26,MIN($F26,$E26-SUM($AB26:AH26)),0)) -> 80 | AJ26: =IF(AJ$5=$L26,$F26,IF(AJ$5>$L26,MIN($F26,$E26-SUM($AB26:AI26)),0)) -> 0 | AK26: =IF(AK$5=$L26,$F26,IF(AK$5>$L26,MIN($F26,$E26-SUM($AB26:AJ26)),0)) -> 0 | AL26: =IF(AL$5=$L26,$F26,IF(AL$5>$L26,MIN($F26,$E26-SUM($AB26:AK26)),0)) -> 0 | AM26: =IF(AM$5=$L26,$F26,IF(AM$5>$L26,MIN($F26,$E26-SUM($AB26:AL26)),0)) -> 0 | AN26: =IF(AN$5=$L26,$F26,IF(AN$5>$L26,MIN($F26,$E26-SUM($AB26:AM26)),0)) -> 0
A27: Malawi | D27: =SUMIF($C28:$C32,"H",$E28:$E32) -> 614 | V27: =SUMPRODUCT(E28:E32,V28:V32)*8.76 -> 1957.644796 | AA27: Malawi
A28: ='Oper hydro SiteSpec'!B18 -> Kapichira II hydro | B28: EPHYDNUka2 | C28: H | E28: 64 | F28: 64 | G28: 50 | H28: 781 | I28: Hydro | J28: =VLOOKUP(I28,GenericSourceData!$A$42:$AC$60,29,FALSE) -> 1 | K28: 781 | L28: 2013 | R28: =VLOOKUP($A28,'Oper hydro SiteSpec'!$B$3:$L$43,R$2,FALSE) -> 1.51 | S28: =VLOOKUP($A28,'Oper hydro SiteSpec'!$B$3:$L$43,S$2,FALSE) -> 8.72 | T28: =VLOOKUP($A28,'Oper hydro SiteSpec'!$B$3:$L$43,T$2,FALSE) -> 0.05 | U28: =VLOOKUP($A28,'Oper hydro SiteSpec'!$B$3:$L$43,U$2,FALSE) -> 0.02 | V28: =IF(dryear,VLOOKUP($A28,'Oper hydro SiteSpec'!$B$3:$M$43,V$2+1,FALSE),VLOOKUP($A28,'Oper hydro SiteSpec'!$B$3:$L$43,V$2,FALSE)) -> 0.2514982877 | W28: =VLOOKUP(I28,GenericSourceData!$A$42:$AD$60,30,FALSE) -> 50 | X28: =IF(D28<>"yes",L28,"") -> 2013 | Y28: =IF(D28="yes",AB28&" "&AC28&" "&AD28&" "&AE28&" "&AF28&" "&AG28&" "&AH28&" "&AI28&" "&AJ28&" "&AK28&" "&AL28&" "&AM28&" "&AN28,"") ->  | Z28: =IF(D28<>"yes",F28,"") -> 64 | AA28: Kapichira II hydro | AB28: =IF(AB$5=$L28,$F28,IF(AB$5>$L28,MIN($F28,$E28-SUM(AA28:$AB28)),0)) -> 0 | AC28: =IF(AC$5=$L28,$F28,IF(AC$5>$L28,MIN($F28,$E28-SUM(AB28:$AB28)),0)) -> 0 | AD28: =IF(AD$5=$L28,$F28,IF(AD$5>$L28,MIN($F28,$E28-SUM($AB28:AC28)),0)) -> 0 | AE28: =IF(AE$5=$L28,$F28,IF(AE$5>$L28,MIN($F28,$E28-SUM($AB28:AD28)),0)) -> 64 | AF28: =IF(AF$5=$L28,$F28,IF(AF$5>$L28,MIN($F28,$E28-SUM($AB28:AE28)),0)) -> 0 | AG28: =IF(AG$5=$L28,$F28,IF(AG$5>$L28,MIN($F28,$E28-SUM($AB28:AF28)),0)) -> 0 | AH28: =IF(AH$5=$L28,$F28,IF(AH$5>$L28,MIN($F28,$E28-SUM($AB28:AG28)),0)) -> 0 | AI28: =IF(AI$5=$L28,$F28,IF(AI$5>$L28,MIN($F28,$E28-SUM($AB28:AH28)),0)) -> 0 | AJ28: =IF(AJ$5=$L28,$F28,IF(AJ$5>$L28,MIN($F28,$E28-SUM($AB28:AI28)),0)) -> 0 | AK28: =IF(AK$5=$L28,$F28,IF(AK$5>$L28,MIN($F28,$E28-SUM($AB28:AJ28)),0)) -> 0 | AL28: =IF(AL$5=$L28,$F28,IF(AL$5>$L28,MIN($F28,$E28-SUM($AB28:AK28)),0)) -> 0 | AM28: =IF(AM$5=$L28,$F28,IF(AM$5>$L28,MIN($F28,$E28-SUM($AB28:AL28)),0)) -> 0 | AN28: =IF(AN$5=$L28,$F28,IF(AN$5>$L28,MIN($F28,$E28-SUM($AB28:AM28)),0)) -> 0
A29: ='Oper hydro SiteSpec'!B20 -> Fufu hydro | B29: EPHYDNUfuf | C29: H | E29: 100 | F29: 100 | G29: 141 | H29: 1410 | I29: Hydro | J29: =VLOOKUP(I29,GenericSourceData!$A$42:$AC$60,29,FALSE) -> 1 | K29: 1410 | L29: 2015 | R29: =VLOOKUP($A29,'Oper hydro SiteSpec'!$B$3:$L$43,R$2,FALSE) -> 1.51 | S29: =VLOOKUP($A29,'Oper hydro SiteSpec'!$B$3:$L$43,S$2,FALSE) -> 8.72 | T29: =VLOOKUP($A29,'Oper hydro SiteSpec'!$B$3:$L$43,T$2,FALSE) -> 0.05 | U29: =VLOOKUP($A29,'Oper hydro SiteSpec'!$B$3:$L$43,U$2,FALSE) -> 0.02 | V29: =IF(dryear,VLOOKUP($A29,'Oper hydro SiteSpec'!$B$3:$M$43,V$2+1,FALSE),VLOOKUP($A29,'Oper hydro SiteSpec'!$B$3:$L$43,V$2,FALSE)) -> 0.4292237443 | W29: =VLOOKUP(I29,GenericSourceData!$A$42:$AD$60,30,FALSE) -> 50 | X29: =IF(D29<>"yes",L29,"") -> 2015 | Y29: =IF(D29="yes",AB29&" "&AC29&" "&AD29&" "&AE29&" "&AF29&" "&AG29&" "&AH29&" "&AI29&" "&AJ29&" "&AK29&" "&AL29&" "&AM29&" "&AN29,"") ->  | Z29: =IF(D29<>"yes",F29,"") -> 100 | AA29: Fufu hydro | AB29: =IF(AB$5=$L29,$F29,IF(AB$5>$L29,MIN($F29,$E29-SUM(AA29:$AB29)),0)) -> 0 | AC29: =IF(AC$5=$L29,$F29,IF(AC$5>$L29,MIN($F29,$E29-SUM(AB29:$AB29)),0)) -> 0 | AD29: =IF(AD$5=$L29,$F29,IF(AD$5>$L29,MIN($F29,$E29-SUM($AB29:AC29)),0)) -> 0 | AE29: =IF(AE$5=$L29,$F29,IF(AE$5>$L29,MIN($F29,$E29-SUM($AB29:AD29)),0)) -> 0 | AF29: =IF(AF$5=$L29,$F29,IF(AF$5>$L29,MIN($F29,$E29-SUM($AB29:AE29)),0)) -> 0 | AG29: =IF(AG$5=$L29,$F29,IF(AG$5>$L29,MIN($F29,$E29-SUM($AB29:AF29)),0)) -> 100 | AH29: =IF(AH$5=$L29,$F29,IF(AH$5>$L29,MIN($F29,$E29-SUM($AB29:AG29)),0)) -> 0 | AI29: =IF(AI$5=$L29,$F29,IF(AI$5>$L29,MIN($F29,$E29-SUM($AB29:AH29)),0)) -> 0 | AJ29: =IF(AJ$5=$L29,$F29,IF(AJ$5>$L29,MIN($F29,$E29-SUM($AB29:AI29)),0)) -> 0 | AK29: =IF(AK$5=$L29,$F29,IF(AK$5>$L29,MIN($F29,$E29-SUM($AB29:AJ29)),0)) -> 0 | AL29: =IF(AL$5=$L29,$F29,IF(AL$5>$L29,MIN($F29,$E29-SUM($AB29:AK29)),0)) -> 0 | AM29: =IF(AM$5=$L29,$F29,IF(AM$5>$L29,MIN($F29,$E29-SUM($AB29:AL29)),0)) -> 0 | AN29: =IF(AN$5=$L29,$F29,IF(AN$5>$L29,MIN($F29,$E29-SUM($AB29:AM29)),0)) -> 0
A30: ='Oper hydro SiteSpec'!B21 -> Kholombizo hydro | B30: EPHYDNUkho | C30: H | E30: 100 | F30: 100 | G30: 391 | H30: 1629 | I30: Hydro | J30: =VLOOKUP(I30,GenericSourceData!$A$42:$AC$60,29,FALSE) -> 1 | K30: 1629 | L30: 2018 | R30: =VLOOKUP($A30,'Oper hydro SiteSpec'!$B$3:$L$43,R$2,FALSE) -> 1.51 | S30: =VLOOKUP($A30,'Oper hydro SiteSpec'!$B$3:$L$43,S$2,FALSE) -> 8.72 | T30: =VLOOKUP($A30,'Oper hydro SiteSpec'!$B$3:$L$43,T$2,FALSE) -> 0.05 | U30: =VLOOKUP($A30,'Oper hydro SiteSpec'!$B$3:$L$43,U$2,FALSE) -> 0.02 | V30: =IF(dryear,VLOOKUP($A30,'Oper hydro SiteSpec'!$B$3:$M$43,V$2+1,FALSE),VLOOKUP($A30,'Oper hydro SiteSpec'!$B$3:$L$43,V$2,FALSE)) -> 0.470890411 | W30: =VLOOKUP(I30,GenericSourceData!$A$42:$AD$60,30,FALSE) -> 50 | X30: =IF(D30<>"yes",L30,"") -> 2018 | Y30: =IF(D30="yes",AB30&" "&AC30&" "&AD30&" "&AE30&" "&AF30&" "&AG30&" "&AH30&" "&AI30&" "&AJ30&" "&AK30&" "&AL30&" "&AM30&" "&AN30,"") ->  | Z30: =IF(D30<>"yes",F30,"") -> 100 | AA30: Kholombizo hydro | AB30: =IF(AB$5=$L30,$F30,IF(AB$5>$L30,MIN($F30,$E30-SUM(AA30:$AB30)),0)) -> 0 | AC30: =IF(AC$5=$L30,$F30,IF(AC$5>$L30,MIN($F30,$E30-SUM(AB30:$AB30)),0)) -> 0 | AD30: =IF(AD$5=$L30,$F30,IF(AD$5>$L30,MIN($F30,$E30-SUM($AB30:AC30)),0)) -> 0 | AE30: =IF(AE$5=$L30,$F30,IF(AE$5>$L30,MIN($F30,$E30-SUM($AB30:AD30)),0)) -> 0 | AF30: =IF(AF$5=$L30,$F30,IF(AF$5>$L30,MIN($F30,$E30-SUM($AB30:AE30)),0)) -> 0 | AG30: =IF(AG$5=$L30,$F30,IF(AG$5>$L30,MIN($F30,$E30-SUM($AB30:AF30)),0)) -> 0 | AH30: =IF(AH$5=$L30,$F30,IF(AH$5>$L30,MIN($F30,$E30-SUM($AB30:AG30)),0)) -> 0 | AI30: =IF(AI$5=$L30,$F30,IF(AI$5>$L30,MIN($F30,$E30-SUM($AB30:AH30)),0)) -> 0 | AJ30: =IF(AJ$5=$L30,$F30,IF(AJ$5>$L30,MIN($F30,$E30-SUM($AB30:AI30)),0)) -> 100 | AK30: =IF(AK$5=$L30,$F30,IF(AK$5>$L30,MIN($F30,$E30-SUM($AB30:AJ30)),0)) -> 0 | AL30: =IF(AL$5=$L30,$F30,IF(AL$5>$L30,MIN($F30,$E30-SUM($AB30:AK30)),0)) -> 0 | AM30: =IF(AM$5=$L30,$F30,IF(AM$5>$L30,MIN($F30,$E30-SUM($AB30:AL30)),0)) -> 0 | AN30: =IF(AN$5=$L30,$F30,IF(AN$5>$L30,MIN($F30,$E30-SUM($AB30:AM30)),0)) -> 0
A31: ='Oper hydro SiteSpec'!B22 -> Mpatamanga hydro | B31: EPHYDNUmpa | C31: H | E31: 200 | F31: 200 | G31: 397 | H31: 1527 | I31: Hydro | J31: =VLOOKUP(I31,GenericSourceData!$A$42:$AC$60,29,FALSE) -> 1 | K31: 1527 | L31: 2020 | R31: =VLOOKUP($A31,'Oper hydro SiteSpec'!$B$3:$L$43,R$2,FALSE) -> 1.51 | S31: =VLOOKUP($A31,'Oper hydro SiteSpec'!$B$3:$L$43,S$2,FALSE) -> 8.72 | T31: =VLOOKUP($A31,'Oper hydro SiteSpec'!$B$3:$L$43,T$2,FALSE) -> 0.05 | U31: =VLOOKUP($A31,'Oper hydro SiteSpec'!$B$3:$L$43,U$2,FALSE) -> 0.02 | V31: =IF(dryear,VLOOKUP($A31,'Oper hydro SiteSpec'!$B$3:$M$43,V$2+1,FALSE),VLOOKUP($A31,'Oper hydro SiteSpec'!$B$3:$L$43,V$2,FALSE)) -> 0.362223393 | W31: =VLOOKUP(I31,GenericSourceData!$A$42:$AD$60,30,FALSE) -> 50 | X31: =IF(D31<>"yes",L31,"") -> 2020 | Y31: =IF(D31="yes",AB31&" "&AC31&" "&AD31&" "&AE31&" "&AF31&" "&AG31&" "&AH31&" "&AI31&" "&AJ31&" "&AK31&" "&AL31&" "&AM31&" "&AN31,"") ->  | Z31: =IF(D31<>"yes",F31,"") -> 200 | AA31: Mpatamanga hydro | AB31: =IF(AB$5=$L31,$F31,IF(AB$5>$L31,MIN($F31,$E31-SUM(AA31:$AB31)),0)) -> 0 | AC31: =IF(AC$5=$L31,$F31,IF(AC$5>$L31,MIN($F31,$E31-SUM(AB31:$AB31)),0)) -> 0 | AD31: =IF(AD$5=$L31,$F31,IF(AD$5>$L31,MIN($F31,$E31-SUM($AB31:AC31)),0)) -> 0 | AE31: =IF(AE$5=$L31,$F31,IF(AE$5>$L31,MIN($F31,$E31-SUM($AB31:AD31)),0)) -> 0 | AF31: =IF(AF$5=$L31,$F31,IF(AF$5>$L31,MIN($F31,$E31-SUM($AB31:AE31)),0)) -> 0 | AG31: =IF(AG$5=$L31,$F31,IF(AG$5>$L31,MIN($F31,$E31-SUM($AB31:AF31)),0)) -> 0 | AH31: =IF(AH$5=$L31,$F31,IF(AH$5>$L31,MIN($F31,$E31-SUM($AB31:AG31)),0)) -> 0 | AI31: =IF(AI$5=$L31,$F31,IF(AI$5>$L31,MIN($F31,$E31-SUM($AB31:AH31)),0)) -> 0 | AJ31: =IF(AJ$5=$L31,$F31,IF(AJ$5>$L31,MIN($F31,$E31-SUM($AB31:AI31)),0)) -> 0 | AK31: =IF(AK$5=$L31,$F31,IF(AK$5>$L31,MIN($F31,$E31-SUM($AB31:AJ31)),0)) -> 0 | AL31: =IF(AL$5=$L31,$F31,IF(AL$5>$L31,MIN($F31,$E31-SUM($AB31:AK31)),0)) -> 200 | AM31: =IF(AM$5=$L31,$F31,IF(AM$5>$L31,MIN($F31,$E31-SUM($AB31:AL31)),0)) -> 0 | AN31: =IF(AN$5=$L31,$F31,IF(AN$5>$L31,MIN($F31,$E31-SUM($AB31:AM31)),0)) -> 0
A32: ='Oper hydro SiteSpec'!B19 -> Songwe hydro | B32: EPHYDNUson | C32: H | E32: 150 | F32: 150 | G32: 425 | H32: 1250 | I32: Hydro | J32: =VLOOKUP(I32,GenericSourceData!$A$42:$AC$60,29,FALSE) -> 1 | K32: 1250 | L32: 2014 | R32: =VLOOKUP($A32,'Oper hydro SiteSpec'!$B$3:$L$43,R$2,FALSE) -> 1.51 | S32: =VLOOKUP($A32,'Oper hydro SiteSpec'!$B$3:$L$43,S$2,FALSE) -> 8.72 | T32: =VLOOKUP($A32,'Oper hydro SiteSpec'!$B$3:$L$43,T$2,FALSE) -> 0.05 | U32: =VLOOKUP($A32,'Oper hydro SiteSpec'!$B$3:$L$43,U$2,FALSE) -> 0.02 | V32: =IF(dryear,VLOOKUP($A32,'Oper hydro SiteSpec'!$B$3:$M$43,V$2+1,FALSE),VLOOKUP($A32,'Oper hydro SiteSpec'!$B$3:$L$43,V$2,FALSE)) -> 0.2994896589 | W32: =VLOOKUP(I32,GenericSourceData!$A$42:$AD$60,30,FALSE) -> 50 | X32: =IF(D32<>"yes",L32,"") -> 2014 | Y32: =IF(D32="yes",AB32&" "&AC32&" "&AD32&" "&AE32&" "&AF32&" "&AG32&" "&AH32&" "&AI32&" "&AJ32&" "&AK32&" "&AL32&" "&AM32&" "&AN32,"") ->  | Z32: =IF(D32<>"yes",F32,"") -> 150 | AA32: Songwe hydro | AB32: =IF(AB$5=$L32,$F32,IF(AB$5>$L32,MIN($F32,$E32-SUM(AA32:$AB32)),0)) -> 0 | AC32: =IF(AC$5=$L32,$F32,IF(AC$5>$L32,MIN($F32,$E32-SUM(AB32:$AB32)),0)) -> 0 | AD32: =IF(AD$5=$L32,$F32,IF(AD$5>$L32,MIN($F32,$E32-SUM($AB32:AC32)),0)) -> 0 | AE32: =IF(AE$5=$L32,$F32,IF(AE$5>$L32,MIN($F32,$E32-SUM($AB32:AD32)),0)) -> 0 | AF32: =IF(AF$5=$L32,$F32,IF(AF$5>$L32,MIN($F32,$E32-SUM($AB32:AE32)),0)) -> 150 | AG32: =IF(AG$5=$L32,$F32,IF(AG$5>$L32,MIN($F32,$E32-SUM($AB32:AF32)),0)) -> 0 | AH32: =IF(AH$5=$L32,$F32,IF(AH$5>$L32,MIN($F32,$E32-SUM($AB32:AG32)),0)) -> 0 | AI32: =IF(AI$5=$L32,$F32,IF(AI$5>$L32,MIN($F32,$E32-SUM($AB32:AH32)),0)) -> 0 | AJ32: =IF(AJ$5=$L32,$F32,IF(AJ$5>$L32,MIN($F32,$E32-SUM($AB32:AI32)),0)) -> 0 | AK32: =IF(AK$5=$L32,$F32,IF(AK$5>$L32,MIN($F32,$E32-SUM($AB32:AJ32)),0)) -> 0 | AL32: =IF(AL$5=$L32,$F32,IF(AL$5>$L32,MIN($F32,$E32-SUM($AB32:AK32)),0)) -> 0 | AM32: =IF(AM$5=$L32,$F32,IF(AM$5>$L32,MIN($F32,$E32-SUM($AB32:AL32)),0)) -> 0 | AN32: =IF(AN$5=$L32,$F32,IF(AN$5>$L32,MIN($F32,$E32-SUM($AB32:AM32)),0)) -> 0
A33: Mozambique | D33: =SUMIF($C34:$C41,"H",$E34:$E41) -> 3147 | E33: =SUMIF($C34:$C41,"T",$E34:$E41) -> 1610 | V33: =SUMPRODUCT(--(C34:C41="H"),E34:E41,V34:V41)*8.76 -> 9138.971154 | AA33: Mozambique
A34: ='Oper therm SiteSpec'!B15 -> Temane (Aggreko) gas | B34: EPGASNUCCtem | C34: T | D34: yes | E34: =110+160+140 -> 410 | F34: 410 | G34: 370 | H34: 493 | I34: Combined Cycle Gas Turbine | J34: =VLOOKUP(I34,GenericSourceData!$A$42:$AC$60,29,FALSE) -> 1.099155 | K34: 541.883415 | L34: 2011 | M34: =VLOOKUP($A34,'Oper therm SiteSpec'!$B$3:$O$30,M$1,FALSE) -> 6792 | N34: =1/(M34/3600) -> 0.5300353357 | O34: =VLOOKUP($A34,'Oper therm SiteSpec'!$B$3:$O$30,O$1,FALSE) -> Nat gas | P34: =VLOOKUP($A34,'Oper therm SiteSpec'!$B$3:$O$30,P$1,FALSE) -> 0 | Q34: =VLOOKUP($A34,'Oper therm SiteSpec'!$B$3:$O$30,Q$1,FALSE) -> 2 | R34: =VLOOKUP($A34,'Oper therm SiteSpec'!$B$3:$O$30,R$1,FALSE) -> 4.18 | S34: =VLOOKUP($A34,'Oper therm SiteSpec'!$B$3:$O$30,S$1,FALSE) -> 19 | T34: =VLOOKUP($A34,'Oper therm SiteSpec'!$B$3:$O$30,T$1,FALSE) -> 0.0708 | U34: =VLOOKUP($A34,'Oper therm SiteSpec'!$B$3:$O$30,U$1,FALSE) -> 0.0731 | V34: =(1-T34)*(1-U34) -> 0.86127548 | W34: =VLOOKUP(I34,GenericSourceData!$A$42:$AD$60,30,FALSE) -> 25 | X34: =IF(D34<>"yes",L34,"") ->  | Y34: =IF(D34="yes",AB34&" "&AC34&" "&AD34&" "&AE34&" "&AF34&" "&AG34&" "&AH34&" "&AI34&" "&AJ34&" "&AK34&" "&AL34&" "&AM34&" "&AN34,"") -> 0 0 110 0 300 0 0 0 0 0 0 0 0 | Z34: =IF(D34<>"yes",F34,"") ->  | AA34: Temane (Aggreko) gas | AB34: =IF(AB$5=$L34,$F34,IF(AB$5>$L34,MIN($F34,$E34-SUM(AA34:$AB34)),0)) -> 0 | AC34: 0 | AD34: 110 | AE34: 0 | AF34: =IF(AF$5=$L34,$F34,IF(AF$5>$L34,MIN($F34,$E34-SUM($AB34:AE34)),0)) -> 300 | AG34: =IF(AG$5=$L34,$F34,IF(AG$5>$L34,MIN($F34,$E34-SUM($AB34:AF34)),0)) -> 0 | AH34: =IF(AH$5=$L34,$F34,IF(AH$5>$L34,MIN($F34,$E34-SUM($AB34:AG34)),0)) -> 0 | AI34: =IF(AI$5=$L34,$F34,IF(AI$5>$L34,MIN($F34,$E34-SUM($AB34:AH34)),0)) -> 0 | AJ34: =IF(AJ$5=$L34,$F34,IF(AJ$5>$L34,MIN($F34,$E34-SUM($AB34:AI34)),0)) -> 0 | AK34: =IF(AK$5=$L34,$F34,IF(AK$5>$L34,MIN($F34,$E34-SUM($AB34:AJ34)),0)) -> 0 | AL34: =IF(AL$5=$L34,$F34,IF(AL$5>$L34,MIN($F34,$E34-SUM($AB34:AK34)),0)) -> 0 | AM34: =IF(AM$5=$L34,$F34,IF(AM$5>$L34,MIN($F34,$E34-SUM($AB34:AL34)),0)) -> 0 | AN34: =IF(AN$5=$L34,$F34,IF(AN$5>$L34,MIN($F34,$E34-SUM($AB34:AM34)),0)) -> 0
A35: ='Oper therm SiteSpec'!B16 -> Moatize coal | B35: EPCOANUSCmoa | C35: T | D35: yes | E35: 750 | F35: =750/2 -> 375 | G35: 2700 | H35: 1800 | I35: Supercritical Coal | J35: =VLOOKUP(I35,GenericSourceData!$A$42:$AC$60,29,FALSE) -> 1.1810985 | K35: 2125.9773 | L35: 2015 | M35: =VLOOKUP($A35,'Oper therm SiteSpec'!$B$3:$O$30,M$1,FALSE) -> 9730 | N35: =1/(M35/3600) -> 0.3699897225 | O35: =VLOOKUP($A35,'Oper therm SiteSpec'!$B$3:$O$30,O$1,FALSE) -> Coal | P35: =VLOOKUP($A35,'Oper therm SiteSpec'!$B$3:$O$30,P$1,FALSE) -> 0 | Q35: =VLOOKUP($A35,'Oper therm SiteSpec'!$B$3:$O$30,Q$1,FALSE) -> 0.36 | R35: =VLOOKUP($A35,'Oper therm SiteSpec'!$B$3:$O$30,R$1,FALSE) -> 0.96 | S35: =VLOOKUP($A35,'Oper therm SiteSpec'!$B$3:$O$30,S$1,FALSE) -> 19.97 | T35: =VLOOKUP($A35,'Oper therm SiteSpec'!$B$3:$O$30,T$1,FALSE) -> 0.072 | U35: =VLOOKUP($A35,'Oper therm SiteSpec'!$B$3:$O$30,U$1,FALSE) -> 0.0517 | V35: =(1-T35)*(1-U35) -> 0.8800224 | W35: =VLOOKUP(I35,GenericSourceData!$A$42:$AD$60,30,FALSE) -> 35 | Y35: 0 0 0 0 0 375 375 0 0 0 0 0 0 | AA35: Moatize coal | AB35: =IF(AB$5=$L35,$F35,IF(AB$5>$L35,MIN($F35,$E35-SUM(AA35:$AB35)),0)) -> 0 | AC35: =IF(AC$5=$L35,$F35,IF(AC$5>$L35,MIN($F35,$E35-SUM(AB35:$AB35)),0)) -> 0 | AD35: =IF(AD$5=$L35,$F35,IF(AD$5>$L35,MIN($F35,$E35-SUM($AB35:AC35)),0)) -> 0 | AE35: =IF(AE$5=$L35,$F35,IF(AE$5>$L35,MIN($F35,$E35-SUM($AB35:AD35)),0)) -> 0 | AF35: =IF(AF$5=$L35,$F35,IF(AF$5>$L35,MIN($F35,$E35-SUM($AB35:AE35)),0)) -> 0 | AG35: =IF(AG$5=$L35,$F35,IF(AG$5>$L35,MIN($F35,$E35-SUM($AB35:AF35)),0)) -> 375 | AH35: =IF(AH$5=$L35,$F35,IF(AH$5>$L35,MIN($F35,$E35-SUM($AB35:AG35)),0)) -> 375 | AI35: =IF(AI$5=$L35,$F35,IF(AI$5>$L35,MIN($F35,$E35-SUM($AB35:AH35)),0)) -> 0 | AJ35: =IF(AJ$5=$L35,$F35,IF(AJ$5>$L35,MIN($F35,$E35-SUM($AB35:AI35)),0)) -> 0 | AK35: =IF(AK$5=$L35,$F35,IF(AK$5>$L35,MIN($F35,$E35-SUM($AB35:AJ35)),0)) -> 0 | AL35: =IF(AL$5=$L35,$F35,IF(AL$5>$L35,MIN($F35,$E35-SUM($AB35:AK35)),0)) -> 0 | AM35: =IF(AM$5=$L35,$F35,IF(AM$5>$L35,MIN($F35,$E35-SUM($AB35:AL35)),0)) -> 0 | AN35: =IF(AN$5=$L35,$F35,IF(AN$5>$L35,MIN($F35,$E35-SUM($AB35:AM35)),0)) -> 0
A36: Benga Coal | B36: EPCOANUSCben | C36: T | E36: 450 | F36: 450 | G36: 800 | H36: =G36/E36*1000 -> 1777.777778 | I36: Supercritical Coal | J36: =VLOOKUP(I36,GenericSourceData!$A$42:$AC$60,29,FALSE) -> 1.1810985 | K36: 2099.730667 | L36: 2015 | M36: =M35 -> 9730 | N36: =N35 -> 0.3699897225 | O36: Coal | P36: 0 | Q36: 0.36 | R36: 0.96 | S36: 19.97 | T36: 0.072 | U36: 0.0517 | V36: 0.8800224 | W36: =VLOOKUP(I36,GenericSourceData!$A$42:$AD$60,30,FALSE) -> 35 | X36: 2015 | Z36: 450 | AA36: Benga Coal | AB36: =IF(AB$5=$L36,$F36,IF(AB$5>$L36,MIN($F36,$E36-SUM(AA36:$AB36)),0)) -> 0 | AC36: =IF(AC$5=$L36,$F36,IF(AC$5>$L36,MIN($F36,$E36-SUM(AB36:$AB36)),0)) -> 0 | AD36: =IF(AD$5=$L36,$F36,IF(AD$5>$L36,MIN($F36,$E36-SUM($AB36:AC36)),0)) -> 0 | AE36: =IF(AE$5=$L36,$F36,IF(AE$5>$L36,MIN($F36,$E36-SUM($AB36:AD36)),0)) -> 0 | AF36: =IF(AF$5=$L36,$F36,IF(AF$5>$L36,MIN($F36,$E36-SUM($AB36:AE36)),0)) -> 0 | AG36: =IF(AG$5=$L36,$F36,IF(AG$5>$L36,MIN($F36,$E36-SUM($AB36:AF36)),0)) -> 450 | AH36: =IF(AH$5=$L36,$F36,IF(AH$5>$L36,MIN($F36,$E36-SUM($AB36:AG36)),0)) -> 0 | AI36: =IF(AI$5=$L36,$F36,IF(AI$5>$L36,MIN($F36,$E36-SUM($AB36:AH36)),0)) -> 0 | AJ36: =IF(AJ$5=$L36,$F36,IF(AJ$5>$L36,MIN($F36,$E36-SUM($AB36:AI36)),0)) -> 0 | AK36: =IF(AK$5=$L36,$F36,IF(AK$5>$L36,MIN($F36,$E36-SUM($AB36:AJ36)),0)) -> 0 | AL36: =IF(AL$5=$L36,$F36,IF(AL$5>$L36,MIN($F36,$E36-SUM($AB36:AK36)),0)) -> 0 | AM36: =IF(AM$5=$L36,$F36,IF(AM$5>$L36,MIN($F36,$E36-SUM($AB36:AL36)),0)) -> 0 | AN36: =IF(AN$5=$L36,$F36,IF(AN$5>$L36,MIN($F36,$E36-SUM($AB36:AM36)),0)) -> 0
A37: Lurio Hydro | B37: EPHYDNUlur | C37: H | E37: 183 | F37: 183 | G37: 340 | H37: =G37/E37*1000 -> 1857.923497 | I37: Hydro | J37: =VLOOKUP(I37,GenericSourceData!$A$42:$AC$60,29,FALSE) -> 1 | K37: 1857.923497 | L37: 2020 | R37: =R38 -> 1.51 | S37: =S38 -> 8.72 | T37: =T38 -> 0.05 | U37: =U38 -> 0.02 | V37: =V38 -> 0.2140410959 | W37: =VLOOKUP(I37,GenericSourceData!$A$42:$AD$60,30,FALSE) -> 50 | X37: 2020 | Z37: 183 | AA37: Lurio Hydro | AB37: =IF(AB$5=$L37,$F37,IF(AB$5>$L37,MIN($F37,$E37-SUM(AA37:$AB37)),0)) -> 0 | AC37: =IF(AC$5=$L37,$F37,IF(AC$5>$L37,MIN($F37,$E37-SUM(AB37:$AB37)),0)) -> 0 | AD37: =IF(AD$5=$L37,$F37,IF(AD$5>$L37,MIN($F37,$E37-SUM($AB37:AC37)),0)) -> 0 | AE37: =IF(AE$5=$L37,$F37,IF(AE$5>$L37,MIN($F37,$E37-SUM($AB37:AD37)),0)) -> 0 | AF37: =IF(AF$5=$L37,$F37,IF(AF$5>$L37,MIN($F37,$E37-SUM($AB37:AE37)),0)) -> 0 | AG37: =IF(AG$5=$L37,$F37,IF(AG$5>$L37,MIN($F37,$E37-SUM($AB37:AF37)),0)) -> 0 | AH37: =IF(AH$5=$L37,$F37,IF(AH$5>$L37,MIN($F37,$E37-SUM($AB37:AG37)),0)) -> 0 | AI37: =IF(AI$5=$L37,$F37,IF(AI$5>$L37,MIN($F37,$E37-SUM($AB37:AH37)),0)) -> 0 | AJ37: =IF(AJ$5=$L37,$F37,IF(AJ$5>$L37,MIN($F37,$E37-SUM($AB37:AI37)),0)) -> 0 | AK37: =IF(AK$5=$L37,$F37,IF(AK$5>$L37,MIN($F37,$E37-SUM($AB37:AJ37)),0)) -> 0 | AL37: =IF(AL$5=$L37,$F37,IF(AL$5>$L37,MIN($F37,$E37-SUM($AB37:AK37)),0)) -> 183 | AM37: =IF(AM$5=$L37,$F37,IF(AM$5>$L37,MIN($F37,$E37-SUM($AB37:AL37)),0)) -> 0 | AN37: =IF(AN$5=$L37,$F37,IF(AN$5>$L37,MIN($F37,$E37-SUM($AB37:AM37)),0)) -> 0
A38: ='Oper hydro SiteSpec'!B24 -> Massingir hydro | B38: EPHYDNUmas | C38: H | D38: yes | E38: 40 | F38: 40 | G38: 55 | H38: 1375 | I38: Hydro | J38: =VLOOKUP(I38,GenericSourceData!$A$42:$AC$60,29,FALSE) -> 1 | K38: 1375 | L38: 2010 | R38: =VLOOKUP($A38,'Oper hydro SiteSpec'!$B$3:$L$43,R$2,FALSE) -> 1.51 | S38: =VLOOKUP($A38,'Oper hydro SiteSpec'!$B$3:$L$43,S$2,FALSE) -> 8.72 | T38: =VLOOKUP($A38,'Oper hydro SiteSpec'!$B$3:$L$43,T$2,FALSE) -> 0.05 | U38: =VLOOKUP($A38,'Oper hydro SiteSpec'!$B$3:$L$43,U$2,FALSE) -> 0.02 | V38: =IF(dryear,VLOOKUP($A38,'Oper hydro SiteSpec'!$B$3:$M$43,V$2+1,FALSE),VLOOKUP($A38,'Oper hydro SiteSpec'!$B$3:$L$43,V$2,FALSE)) -> 0.2140410959 | W38: =VLOOKUP(I38,GenericSourceData!$A$42:$AD$60,30,FALSE) -> 50 | Y38: 40 0 0 0 0 0 0 0 0 0 0 0 0 | AA38: Massingir hydro | AB38: =IF(AB$5=$L38,$F38,IF(AB$5>$L38,MIN($F38,$E38-SUM(AA38:$AB38)),0)) -> 40 | AC38: =IF(AC$5=$L38,$F38,IF(AC$5>$L38,MIN($F38,$E38-SUM(AB38:$AB38)),0)) -> 0 | AD38: =IF(AD$5=$L38,$F38,IF(AD$5>$L38,MIN($F38,$E38-SUM($AB38:AC38)),0)) -> 0 | AE38: =IF(AE$5=$L38,$F38,IF(AE$5>$L38,MIN($F38,$E38-SUM($AB38:AD38)),0)) -> 0 | AF38: =IF(AF$5=$L38,$F38,IF(AF$5>$L38,MIN($F38,$E38-SUM($AB38:AE38)),0)) -> 0 | AG38: =IF(AG$5=$L38,$F38,IF(AG$5>$L38,MIN($F38,$E38-SUM($AB38:AF38)),0)) -> 0 | AH38: =IF(AH$5=$L38,$F38,IF(AH$5>$L38,MIN($F38,$E38-SUM($AB38:AG38)),0)) -> 0 | AI38: =IF(AI$5=$L38,$F38,IF(AI$5>$L38,MIN($F38,$E38-SUM($AB38:AH38)),0)) -> 0 | AJ38: =IF(AJ$5=$L38,$F38,IF(AJ$5>$L38,MIN($F38,$E38-SUM($AB38:AI38)),0)) -> 0 | AK38: =IF(AK$5=$L38,$F38,IF(AK$5>$L38,MIN($F38,$E38-SUM($AB38:AJ38)),0)) -> 0 | AL38: =IF(AL$5=$L38,$F38,IF(AL$5>$L38,MIN($F38,$E38-SUM($AB38:AK38)),0)) -> 0 | AM38: =IF(AM$5=$L38,$F38,IF(AM$5>$L38,MIN($F38,$E38-SUM($AB38:AL38)),0)) -> 0 | AN38: =IF(AN$5=$L38,$F38,IF(AN$5>$L38,MIN($F38,$E38-SUM($AB38:AM38)),0)) -> 0
A39: ='Oper hydro SiteSpec'!B25 -> Quedas & Ocua hydro | B39: EPHYDNUqno | C39: H | E39: 179 | F39: 179 | G39: 339 | H39: 1894 | I39: Hydro | J39: =VLOOKUP(I39,GenericSourceData!$A$42:$AC$60,29,FALSE) -> 1 | K39: 1894 | L39: 2011 | R39: =VLOOKUP($A39,'Oper hydro SiteSpec'!$B$3:$L$43,R$2,FALSE) -> 1.51 | S39: =VLOOKUP($A39,'Oper hydro SiteSpec'!$B$3:$L$43,S$2,FALSE) -> 8.72 | T39: =VLOOKUP($A39,'Oper hydro SiteSpec'!$B$3:$L$43,T$2,FALSE) -> 0.05 | U39: =VLOOKUP($A39,'Oper hydro SiteSpec'!$B$3:$L$43,U$2,FALSE) -> 0.02 | V39: =IF(dryear,VLOOKUP($A39,'Oper hydro SiteSpec'!$B$3:$M$43,V$2+1,FALSE),VLOOKUP($A39,'Oper hydro SiteSpec'!$B$3:$L$43,V$2,FALSE)) -> 0.2244840693 | W39: =VLOOKUP(I39,GenericSourceData!$A$42:$AD$60,30,FALSE) -> 50 | X39: 2011 | Z39: 179 | AA39: Quedas & Ocua hydro | AB39: =IF(AB$5=$L39,$F39,IF(AB$5>$L39,MIN($F39,$E39-SUM(AA39:$AB39)),0)) -> 0 | AC39: =IF(AC$5=$L39,$F39,IF(AC$5>$L39,MIN($F39,$E39-SUM(AB39:$AB39)),0)) -> 179 | AD39: =IF(AD$5=$L39,$F39,IF(AD$5>$L39,MIN($F39,$E39-SUM($AB39:AC39)),0)) -> 0 | AE39: =IF(AE$5=$L39,$F39,IF(AE$5>$L39,MIN($F39,$E39-SUM($AB39:AD39)),0)) -> 0 | AF39: =IF(AF$5=$L39,$F39,IF(AF$5>$L39,MIN($F39,$E39-SUM($AB39:AE39)),0)) -> 0 | AG39: =IF(AG$5=$L39,$F39,IF(AG$5>$L39,MIN($F39,$E39-SUM($AB39:AF39)),0)) -> 0 | AH39: =IF(AH$5=$L39,$F39,IF(AH$5>$L39,MIN($F39,$E39-SUM($AB39:AG39)),0)) -> 0 | AI39: =IF(AI$5=$L39,$F39,IF(AI$5>$L39,MIN($F39,$E39-SUM($AB39:AH39)),0)) -> 0 | AJ39: =IF(AJ$5=$L39,$F39,IF(AJ$5>$L39,MIN($F39,$E39-SUM($AB39:AI39)),0)) -> 0 | AK39: =IF(AK$5=$L39,$F39,IF(AK$5>$L39,MIN($F39,$E39-SUM($AB39:AJ39)),0)) -> 0 | AL39: =IF(AL$5=$L39,$F39,IF(AL$5>$L39,MIN($F39,$E39-SUM($AB39:AK39)),0)) -> 0 | AM39: =IF(AM$5=$L39,$F39,IF(AM$5>$L39,MIN($F39,$E39-SUM($AB39:AL39)),0)) -> 0 | AN39: =IF(AN$5=$L39,$F39,IF(AN$5>$L39,MIN($F39,$E39-SUM($AB39:AM39)),0)) -> 0
A40: ='Oper hydro SiteSpec'!B26 -> Mphanda Nkuwa hydro | B40: EPHYDNUmpn | C40: H | E40: 1500 | F40: 750 | G40: 2000 | H40: 1538 | I40: Hydro | J40: =VLOOKUP(I40,GenericSourceData!$A$42:$AC$60,29,FALSE) -> 1 | K40: 1538 | L40: 2017 | R40: =VLOOKUP($A40,'Oper hydro SiteSpec'!$B$3:$L$43,R$2,FALSE) -> 1.51 | S40: =VLOOKUP($A40,'Oper hydro SiteSpec'!$B$3:$L$43,S$2,FALSE) -> 8.72 | T40: =VLOOKUP($A40,'Oper hydro SiteSpec'!$B$3:$L$43,T$2,FALSE) -> 0.05 | U40: =VLOOKUP($A40,'Oper hydro SiteSpec'!$B$3:$L$43,U$2,FALSE) -> 0.02 | V40: =IF(dryear,VLOOKUP($A40,'Oper hydro SiteSpec'!$B$3:$M$43,V$2+1,FALSE),VLOOKUP($A40,'Oper hydro SiteSpec'!$B$3:$L$43,V$2,FALSE)) -> 0.6368984896 | W40: =VLOOKUP(I40,GenericSourceData!$A$42:$AD$60,30,FALSE) -> 50 | X40: 2017 | Z40: 750 | AA40: Mphanda Nkuwa hydro | AB40: =IF(AB$5=$L40,$F40,IF(AB$5>$L40,MIN($F40,$E40-SUM(AA40:$AB40)),0)) -> 0 | AC40: =IF(AC$5=$L40,$F40,IF(AC$5>$L40,MIN($F40,$E40-SUM(AB40:$AB40)),0)) -> 0 | AD40: =IF(AD$5=$L40,$F40,IF(AD$5>$L40,MIN($F40,$E40-SUM($AB40:AC40)),0)) -> 0 | AE40: =IF(AE$5=$L40,$F40,IF(AE$5>$L40,MIN($F40,$E40-SUM($AB40:AD40)),0)) -> 0 | AF40: =IF(AF$5=$L40,$F40,IF(AF$5>$L40,MIN($F40,$E40-SUM($AB40:AE40)),0)) -> 0 | AG40: =IF(AG$5=$L40,$F40,IF(AG$5>$L40,MIN($F40,$E40-SUM($AB40:AF40)),0)) -> 0 | AH40: =IF(AH$5=$L40,$F40,IF(AH$5>$L40,MIN($F40,$E40-SUM($AB40:AG40)),0)) -> 0 | AI40: =IF(AI$5=$L40,$F40,IF(AI$5>$L40,MIN($F40,$E40-SUM($AB40:AH40)),0)) -> 750 | AJ40: =IF(AJ$5=$L40,$F40,IF(AJ$5>$L40,MIN($F40,$E40-SUM($AB40:AI40)),0)) -> 750 | AK40: =IF(AK$5=$L40,$F40,IF(AK$5>$L40,MIN($F40,$E40-SUM($AB40:AJ40)),0)) -> 0 | AL40: =IF(AL$5=$L40,$F40,IF(AL$5>$L40,MIN($F40,$E40-SUM($AB40:AK40)),0)) -> 0 | AM40: =IF(AM$5=$L40,$F40,IF(AM$5>$L40,MIN($F40,$E40-SUM($AB40:AL40)),0)) -> 0 | AN40: =IF(AN$5=$L40,$F40,IF(AN$5>$L40,MIN($F40,$E40-SUM($AB40:AM40)),0)) -> 0
A41: ='Oper hydro SiteSpec'!B27 -> HCB North Bank hydro | B41: EPHYDNUhcb | C41: H | E41: 1245 | F41: 622.5 | G41: 771 | H41: 907 | I41: Hydro | J41: =VLOOKUP(I41,GenericSourceData!$A$42:$AC$60,29,FALSE) -> 1 | K41: 907 | L41: 2015 | R41: =VLOOKUP($A41,'Oper hydro SiteSpec'!$B$3:$L$43,R$2,FALSE) -> 1.51 | S41: =VLOOKUP($A41,'Oper hydro SiteSpec'!$B$3:$L$43,S$2,FALSE) -> 8.72 | T41: =VLOOKUP($A41,'Oper hydro SiteSpec'!$B$3:$L$43,T$2,FALSE) -> 0.05 | U41: =VLOOKUP($A41,'Oper hydro SiteSpec'!$B$3:$L$43,U$2,FALSE) -> 0.02 | V41: =IF(dryear,VLOOKUP($A41,'Oper hydro SiteSpec'!$B$3:$M$43,V$2+1,FALSE),VLOOKUP($A41,'Oper hydro SiteSpec'!$B$3:$L$43,V$2,FALSE)) -> 0 | W41: =VLOOKUP(I41,GenericSourceData!$A$42:$AD$60,30,FALSE) -> 50 | X41: 2015 | Z41: 622.5 | AA41: HCB North Bank hydro | AB41: =IF(AB$5=$L41,$F41,IF(AB$5>$L41,MIN($F41,$E41-SUM(AA41:$AB41)),0)) -> 0 | AC41: =IF(AC$5=$L41,$F41,IF(AC$5>$L41,MIN($F41,$E41-SUM(AB41:$AB41)),0)) -> 0 | AD41: =IF(AD$5=$L41,$F41,IF(AD$5>$L41,MIN($F41,$E41-SUM($AB41:AC41)),0)) -> 0 | AE41: =IF(AE$5=$L41,$F41,IF(AE$5>$L41,MIN($F41,$E41-SUM($AB41:AD41)),0)) -> 0 | AF41: =IF(AF$5=$L41,$F41,IF(AF$5>$L41,MIN($F41,$E41-SUM($AB41:AE41)),0)) -> 0 | AG41: =IF(AG$5=$L41,$F41,IF(AG$5>$L41,MIN($F41,$E41-SUM($AB41:AF41)),0)) -> 622.5 | AH41: =IF(AH$5=$L41,$F41,IF(AH$5>$L41,MIN($F41,$E41-SUM($AB41:AG41)),0)) -> 622.5 | AI41: =IF(AI$5=$L41,$F41,IF(AI$5>$L41,MIN($F41,$E41-SUM($AB41:AH41)),0)) -> 0 | AJ41: =IF(AJ$5=$L41,$F41,IF(AJ$5>$L41,MIN($F41,$E41-SUM($AB41:AI41)),0)) -> 0 | AK41: =IF(AK$5=$L41,$F41,IF(AK$5>$L41,MIN($F41,$E41-SUM($AB41:AJ41)),0)) -> 0 | AL41: =IF(AL$5=$L41,$F41,IF(AL$5>$L41,MIN($F41,$E41-SUM($AB41:AK41)),0)) -> 0 | AM41: =IF(AM$5=$L41,$F41,IF(AM$5>$L41,MIN($F41,$E41-SUM($AB41:AL41)),0)) -> 0 | AN41: =IF(AN$5=$L41,$F41,IF(AN$5>$L41,MIN($F41,$E41-SUM($AB41:AM41)),0)) -> 0
A42: Namibia | D42: =SUMIF($C43:$C45,"H",$E43:$E45) -> 360 | E42: =SUMIF($C43:$C45,"T",$E43:$E45) -> 1074 | V42: =V45*E45*8.76 -> 1138 | AA42: Namibia
A43: ='Oper therm SiteSpec'!B18 -> Kudu gas | B43: EPGASNUCCkud | C43: T | E43: 774 | F43: 774 | G43: 640 | H43: 827 | I43: Combined Cycle Gas Turbine | J43: =VLOOKUP(I43,GenericSourceData!$A$42:$AC$60,29,FALSE) -> 1.099155 | K43: 909.001185 | L43: 2015 | M43: =VLOOKUP($A43,'Oper therm SiteSpec'!$B$3:$O$30,M$1,FALSE) -> 6792 | N43: =1/(M43/3600) -> 0.5300353357 | O43: =VLOOKUP($A43,'Oper therm SiteSpec'!$B$3:$O$30,O$1,FALSE) -> Nat gas | P43: =VLOOKUP($A43,'Oper therm SiteSpec'!$B$3:$O$30,P$1,FALSE) -> 40 | Q43: =VLOOKUP($A43,'Oper therm SiteSpec'!$B$3:$O$30,Q$1,FALSE) -> 2.46 | R43: =VLOOKUP($A43,'Oper therm SiteSpec'!$B$3:$O$30,R$1,FALSE) -> 1.64 | S43: =VLOOKUP($A43,'Oper therm SiteSpec'!$B$3:$O$30,S$1,FALSE) -> 0 | T43: =VLOOKUP($A43,'Oper therm SiteSpec'!$B$3:$O$30,T$1,FALSE) -> 0.02 | U43: =VLOOKUP($A43,'Oper therm SiteSpec'!$B$3:$O$30,U$1,FALSE) -> 0.04 | V43: =(1-T43)*(1-U43) -> 0.9408 | W43: =VLOOKUP(I43,GenericSourceData!$A$42:$AD$60,30,FALSE) -> 25 | X43: =IF(D43<>"yes",L43,"") -> 2015 | Y43: =IF(D43="yes",AB43&" "&AC43&" "&AD43&" "&AE43&" "&AF43&" "&AG43&" "&AH43&" "&AI43&" "&AJ43&" "&AK43&" "&AL43&" "&AM43&" "&AN43,"") ->  | Z43: =IF(D43<>"yes",F43,"") -> 774 | AA43: Kudu gas | AB43: =IF(AB$5=$L43,$F43,IF(AB$5>$L43,MIN($F43,$E43-SUM(AA43:$AB43)),0)) -> 0 | AC43: =IF(AC$5=$L43,$F43,IF(AC$5>$L43,MIN($F43,$E43-SUM(AB43:$AB43)),0)) -> 0 | AD43: =IF(AD$5=$L43,$F43,IF(AD$5>$L43,MIN($F43,$E43-SUM($AB43:AC43)),0)) -> 0 | AE43: =IF(AE$5=$L43,$F43,IF(AE$5>$L43,MIN($F43,$E43-SUM($AB43:AD43)),0)) -> 0 | AF43: =IF(AF$5=$L43,$F43,IF(AF$5>$L43,MIN($F43,$E43-SUM($AB43:AE43)),0)) -> 0 | AG43: =IF(AG$5=$L43,$F43,IF(AG$5>$L43,MIN($F43,$E43-SUM($AB43:AF43)),0)) -> 774 | AH43: =IF(AH$5=$L43,$F43,IF(AH$5>$L43,MIN($F43,$E43-SUM($AB43:AG43)),0)) -> 0 | AI43: =IF(AI$5=$L43,$F43,IF(AI$5>$L43,MIN($F43,$E43-SUM($AB43:AH43)),0)) -> 0 | AJ43: =IF(AJ$5=$L43,$F43,IF(AJ$5>$L43,MIN($F43,$E43-SUM($AB43:AI43)),0)) -> 0 | AK43: =IF(AK$5=$L43,$F43,IF(AK$5>$L43,MIN($F43,$E43-SUM($AB43:AJ43)),0)) -> 0 | AL43: =IF(AL$5=$L43,$F43,IF(AL$5>$L43,MIN($F43,$E43-SUM($AB43:AK43)),0)) -> 0 | AM43: =IF(AM$5=$L43,$F43,IF(AM$5>$L43,MIN($F43,$E43-SUM($AB43:AL43)),0)) -> 0 | AN43: =IF(AN$5=$L43,$F43,IF(AN$5>$L43,MIN($F43,$E43-SUM($AB43:AM43)),0)) -> 0
A44: ='Oper therm SiteSpec'!B19 -> Walvis coal | B44: EPCOANUSCwal | C44: T | E44: 300 | F44: 300 | G44: 700 | H44: 1750 | I44: Supercritical Coal | J44: =VLOOKUP(I44,GenericSourceData!$A$42:$AC$60,29,FALSE) -> 1.1810985 | K44: 2066.922375 | L44: 2016 | M44: =VLOOKUP($A44,'Oper therm SiteSpec'!$B$3:$O$30,M$1,FALSE) -> 9730 | N44: =1/(M44/3600) -> 0.3699897225 | O44: =VLOOKUP($A44,'Oper therm SiteSpec'!$B$3:$O$30,O$1,FALSE) -> Coal | P44: =VLOOKUP($A44,'Oper therm SiteSpec'!$B$3:$O$30,P$1,FALSE) -> 0 | Q44: =VLOOKUP($A44,'Oper therm SiteSpec'!$B$3:$O$30,Q$1,FALSE) -> 0.4 | R44: =VLOOKUP($A44,'Oper therm SiteSpec'!$B$3:$O$30,R$1,FALSE) -> 0.96 | S44: =VLOOKUP($A44,'Oper therm SiteSpec'!$B$3:$O$30,S$1,FALSE) -> 19.97 | T44: =VLOOKUP($A44,'Oper therm SiteSpec'!$B$3:$O$30,T$1,FALSE) -> 0.072 | U44: =VLOOKUP($A44,'Oper therm SiteSpec'!$B$3:$O$30,U$1,FALSE) -> 0.0517 | V44: =(1-T44)*(1-U44) -> 0.8800224 | W44: =VLOOKUP(I44,GenericSourceData!$A$42:$AD$60,30,FALSE) -> 35 | X44: =IF(D44<>"yes",L44,"") -> 2016 | Y44: =IF(D44="yes",AB44&" "&AC44&" "&AD44&" "&AE44&" "&AF44&" "&AG44&" "&AH44&" "&AI44&" "&AJ44&" "&AK44&" "&AL44&" "&AM44&" "&AN44,"") ->  | Z44: =IF(D44<>"yes",F44,"") -> 300 | AA44: Walvis coal | AB44: =IF(AB$5=$L44,$F44,IF(AB$5>$L44,MIN($F44,$E44-SUM(AA44:$AB44)),0)) -> 0 | AC44: =IF(AC$5=$L44,$F44,IF(AC$5>$L44,MIN($F44,$E44-SUM(AB44:$AB44)),0)) -> 0 | AD44: =IF(AD$5=$L44,$F44,IF(AD$5>$L44,MIN($F44,$E44-SUM($AB44:AC44)),0)) -> 0 | AE44: =IF(AE$5=$L44,$F44,IF(AE$5>$L44,MIN($F44,$E44-SUM($AB44:AD44)),0)) -> 0 | AF44: =IF(AF$5=$L44,$F44,IF(AF$5>$L44,MIN($F44,$E44-SUM($AB44:AE44)),0)) -> 0 | AG44: =IF(AG$5=$L44,$F44,IF(AG$5>$L44,MIN($F44,$E44-SUM($AB44:AF44)),0)) -> 0 | AH44: =IF(AH$5=$L44,$F44,IF(AH$5>$L44,MIN($F44,$E44-SUM($AB44:AG44)),0)) -> 300 | AI44: =IF(AI$5=$L44,$F44,IF(AI$5>$L44,MIN($F44,$E44-SUM($AB44:AH44)),0)) -> 0 | AJ44: =IF(AJ$5=$L44,$F44,IF(AJ$5>$L44,MIN($F44,$E44-SUM($AB44:AI44)),0)) -> 0 | AK44: =IF(AK$5=$L44,$F44,IF(AK$5>$L44,MIN($F44,$E44-SUM($AB44:AJ44)),0)) -> 0 | AL44: =IF(AL$5=$L44,$F44,IF(AL$5>$L44,MIN($F44,$E44-SUM($AB44:AK44)),0)) -> 0 | AM44: =IF(AM$5=$L44,$F44,IF(AM$5>$L44,MIN($F44,$E44-SUM($AB44:AL44)),0)) -> 0 | AN44: =IF(AN$5=$L44,$F44,IF(AN$5>$L44,MIN($F44,$E44-SUM($AB44:AM44)),0)) -> 0
A45: ='Oper hydro SiteSpec'!B29 -> Baynes hydro | B45: EPHYDNUbay | C45: H | E45: 360 | F45: 360 | G45: 640 | H45: 1778 | I45: Hydro | J45: =VLOOKUP(I45,GenericSourceData!$A$42:$AC$60,29,FALSE) -> 1 | K45: 1778 | L45: 2020 | R45: =VLOOKUP($A45,'Oper hydro SiteSpec'!$B$3:$L$43,R$2,FALSE) -> 1.51 | S45: =VLOOKUP($A45,'Oper hydro SiteSpec'!$B$3:$L$43,S$2,FALSE) -> 8.72 | T45: =VLOOKUP($A45,'Oper hydro SiteSpec'!$B$3:$L$43,T$2,FALSE) -> 0.05 | U45: =VLOOKUP($A45,'Oper hydro SiteSpec'!$B$3:$L$43,U$2,FALSE) -> 0.02 | V45: =IF(dryear,VLOOKUP($A45,'Oper hydro SiteSpec'!$B$3:$M$43,V$2+1,FALSE),VLOOKUP($A45,'Oper hydro SiteSpec'!$B$3:$L$43,V$2,FALSE)) -> 0.3608574328 | W45: =VLOOKUP(I45,GenericSourceData!$A$42:$AD$60,30,FALSE) -> 50 | X45: =IF(D45<>"yes",L45,"") -> 2020 | Y45: =IF(D45="yes",AB45&" "&AC45&" "&AD45&" "&AE45&" "&AF45&" "&AG45&" "&AH45&" "&AI45&" "&AJ45&" "&AK45&" "&AL45&" "&AM45&" "&AN45,"") ->  | Z45: =IF(D45<>"yes",F45,"") -> 360 | AA45: Baynes hydro
A46: South Africa | D46: =SUMIF($C47:$C50,"H",$E47:$E50) -> 2832 | E46: =SUMIF($C47:$C50,"T",$E47:$E50) -> 7704 | V46: =SUMPRODUCT(--(C47:C50="H"),E47:E50,V47:V50)*8.76 -> 4713.5808 | AA46: South Africa
A47: Medupi coal | B47: EPCOANCSCmed | C47: T | D47: Yes | E47: 3852 | F47: 1284 | G47: 8560 | H47: 2222 | I47: Supercritical Coal | J47: =VLOOKUP(I47,GenericSourceData!$A$42:$AC$60,29,FALSE) -> 1.1810985 | K47: 2624.400867 | L47: 2013 | M47: =VLOOKUP("CF (Dry with FGD)",'Oper therm SiteSpec'!$B$3:$O$30,M$1,FALSE) -> 9730 | N47: =1/(M47/3600) -> 0.3699897225 | O47: =VLOOKUP("CF (Dry with FGD)",'Oper therm SiteSpec'!$B$3:$O$30,O$1,FALSE) -> Coal | P47: =VLOOKUP("CF (Dry with FGD)",'Oper therm SiteSpec'!$B$3:$O$30,P$1,FALSE) -> 32.95 | Q47: =VLOOKUP("CF (Dry with FGD)",'Oper therm SiteSpec'!$B$3:$O$30,Q$1,FALSE) -> 0.2 | R47: =VLOOKUP("CF (Dry with FGD)",'Oper therm SiteSpec'!$B$3:$O$30,R$1,FALSE) -> 0.96 | S47: =VLOOKUP("CF (Dry with FGD)",'Oper therm SiteSpec'!$B$3:$O$30,S$1,FALSE) -> 20 | T47: =VLOOKUP("CF (Dry with FGD)",'Oper therm SiteSpec'!$B$3:$O$30,T$1,FALSE) -> 0.072 | U47: =VLOOKUP("CF (Dry with FGD)",'Oper therm SiteSpec'!$B$3:$O$30,U$1,FALSE) -> 0.0517 | V47: =(1-T47)*(1-U47) -> 0.8800224 | W47: =VLOOKUP(I47,GenericSourceData!$A$42:$AD$60,30,FALSE) -> 35 | X47: =IF(D47<>"yes",L47,"") ->  | Y47: =IF(D47="yes",AB47&" "&AC47&" "&AD47&" "&AE47&" "&AF47&" "&AG47&" "&AH47&" "&AI47&" "&AJ47&" "&AK47&" "&AL47&" "&AM47&" "&AN47,"") -> 0 0 0 722 722 1444 722 722 0 0 0 0 0 | Z47: =IF(D47<>"yes",F47,"") ->  | AA47: Medupi coal | AB47: =IF(AB$5=$L47,$F47,IF(AB$5>$L47,MIN($F47,$E47-SUM(AA47:$AB47)),0)) -> 0 | AC47: =IF(AC$5=$L47,$F47,IF(AC$5>$L47,MIN($F47,$E47-SUM(AB47:$AB47)),0)) -> 0 | AD47: 0 | AE47: 722 | AF47: 722 | AG47: 1444 | AH47: 722 | AI47: 722 | AJ47: 0 | AK47: 0 | AL47: 0 | AM47: 0 | AN47: 0
A48: Kusile coal | B48: EPCOANCSCkus | C48: T | D48: Yes | E48: 3852 | F48: 1284 | G48: 8731 | H48: 2267 | I48: Supercritical Coal | J48: =VLOOKUP(I48,GenericSourceData!$A$42:$AC$60,29,FALSE) -> 1.1810985 | K48: 2677.5503 | L48: 2014 | M48: =VLOOKUP("CF (Dry with FGD)",'Oper therm SiteSpec'!$B$3:$O$30,M$1,FALSE) -> 9730 | N48: =1/(M48/3600) -> 0.3699897225 | O48: =VLOOKUP("CF (Dry with FGD)",'Oper therm SiteSpec'!$B$3:$O$30,O$1,FALSE) -> Coal | P48: =VLOOKUP("CF (Dry with FGD)",'Oper therm SiteSpec'!$B$3:$O$30,P$1,FALSE) -> 32.95 | Q48: =VLOOKUP("CF (Dry with FGD)",'Oper therm SiteSpec'!$B$3:$O$30,Q$1,FALSE) -> 0.2 | R48: =VLOOKUP("CF (Dry with FGD)",'Oper therm SiteSpec'!$B$3:$O$30,R$1,FALSE) -> 0.96 | S48: =VLOOKUP("CF (Dry with FGD)",'Oper therm SiteSpec'!$B$3:$O$30,S$1,FALSE) -> 20 | T48: =VLOOKUP("CF (Dry with FGD)",'Oper therm SiteSpec'!$B$3:$O$30,T$1,FALSE) -> 0.072 | U48: =VLOOKUP("CF (Dry with FGD)",'Oper therm SiteSpec'!$B$3:$O$30,U$1,FALSE) -> 0.0517 | V48: =(1-T48)*(1-U48) -> 0.8800224 | W48: =VLOOKUP(I48,GenericSourceData!$A$42:$AD$60,30,FALSE) -> 35 | X48: =IF(D48<>"yes",L48,"") ->  | Y48: =IF(D48="yes",AB48&" "&AC48&" "&AD48&" "&AE48&" "&AF48&" "&AG48&" "&AH48&" "&AI48&" "&AJ48&" "&AK48&" "&AL48&" "&AM48&" "&AN48,"") -> 0 0 0 0 0 0 0 1446 723 1446 723 0 0 | Z48: =IF(D48<>"yes",F48,"") ->  | AA48: Kusile coal | AB48: =IF(AB$5=$L48,$F48,IF(AB$5>$L48,MIN($F48,$E48-SUM(AA48:$AB48)),0)) -> 0 | AC48: =IF(AC$5=$L48,$F48,IF(AC$5>$L48,MIN($F48,$E48-SUM(AB48:$AB48)),0)) -> 0 | AD48: =IF(AD$5=$L48,$F48,IF(AD$5>$L48,MIN($F48,$E48-SUM($AB48:AC48)),0)) -> 0 | AE48: 0 | AF48: 0 | AG48: 0 | AH48: 0 | AI48: 1446 | AJ48: 723 | AK48: 1446 | AL48: 723 | AM48: 0 | AN48: 0
A49: Ingula Pump Storage | B49: EPPSGNCSTbra | C49: H | D49: Yes | E49: 1332 | F49: 666 | G49: 1400 | H49: 1051 | I49: Pumped Storage | J49: =VLOOKUP(I49,GenericSourceData!$A$42:$AC$60,29,FALSE) -> 1.473167445 | K49: 1548.298985 | L49: 2014 | N49: 0.73 | R49: 1.51 | S49: 8.7 | T49: 0.0459 | U49: 0.0459 | V49: 0.19 | W49: =VLOOKUP(I49,GenericSourceData!$A$42:$AD$60,30,FALSE) -> 50 | X49: =IF(D49<>"yes",L49,"") ->  | Y49: =IF(D49="yes",AB49&" "&AC49&" "&AD49&" "&AE49&" "&AF49&" "&AG49&" "&AH49&" "&AI49&" "&AJ49&" "&AK49&" "&AL49&" "&AM49&" "&AN49,"") -> 0 0 0 0 1332 0 0 0 0 0 0 0 0 | Z49: =IF(D49<>"yes",F49,"") ->  | AA49: Ingula Pump Storage | AB49: =IF(AB$5=$L49,$F49,IF(AB$5>$L49,MIN($F49,$E49-SUM(AA49:$AB49)),0)) -> 0 | AC49: =IF(AC$5=$L49,$F49,IF(AC$5>$L49,MIN($F49,$E49-SUM(AB49:$AB49)),0)) -> 0 | AD49: =IF(AD$5=$L49,$F49,IF(AD$5>$L49,MIN($F49,$E49-SUM($AB49:AC49)),0)) -> 0 | AE49: 0 | AF49: =333+999 -> 1332 | AG49: 0 | AH49: 0 | AI49: 0 | AJ49: 0 | AK49: 0 | AL49: 0 | AM49: =IF(AM$5=$L49,$F49,IF(AM$5>$L49,MIN($F49,$E49-SUM($AB49:AL49)),0)) -> 0 | AN49: =IF(AN$5=$L49,$F49,IF(AN$5>$L49,MIN($F49,$E49-SUM($AB49:AM49)),0)) -> 0
A50: Tubaste | B50: EPPSGNUSTste | C50: H | E50: =4*375 -> 1500 | F50: 750 | G50: 1052 | H50: 1053 | I50: Pumped Storage | J50: =VLOOKUP(I50,GenericSourceData!$A$42:$AC$60,29,FALSE) -> 1.473167445 | K50: 1551.24532 | L50: 2014 | N50: 0.73 | R50: 1.51 | S50: 8.7 | T50: 0.0459 | U50: 0.0459 | V50: 0.19 | W50: =VLOOKUP(I50,GenericSourceData!$A$42:$AD$60,30,FALSE) -> 50 | X50: =IF(D50<>"yes",L50,"") -> 2014 | Y50: =IF(D50="yes",AB50&" "&AC50&" "&AD50&" "&AE50&" "&AF50&" "&AG50&" "&AH50&" "&AI50&" "&AJ50&" "&AK50&" "&AL50&" "&AM50&" "&AN50,"") ->  | Z50: =IF(D50<>"yes",F50,"") -> 750 | AA50: Tubaste | AB50: =IF(AB$5=$L50,$F50,IF(AB$5>$L50,MIN($F50,$E50-SUM(AA50:$AB50)),0)) -> 0 | AC50: =IF(AC$5=$L50,$F50,IF(AC$5>$L50,MIN($F50,$E50-SUM(AB50:$AB50)),0)) -> 0 | AD50: =IF(AD$5=$L50,$F50,IF(AD$5>$L50,MIN($F50,$E50-SUM($AB50:AC50)),0)) -> 0 | AE50: 0 | AF50: 750 | AG50: 750 | AH50: 0 | AI50: 0 | AJ50: 0 | AK50: 0 | AL50: 0 | AM50: =IF(AM$5=$L50,$F50,IF(AM$5>$L50,MIN($F50,$E50-SUM($AB50:AL50)),0)) -> 0 | AN50: =IF(AN$5=$L50,$F50,IF(AN$5>$L50,MIN($F50,$E50-SUM($AB50:AM50)),0)) -> 0
A51: Swaziland | AA51: Swaziland
A52: ='Oper therm SiteSpec'!B21 -> Lubombo coal | B52: EPCOANCSClub | C52: T | E52: 1000 | F52: 500 | G52: 2222 | H52: 2222 | I52: Supercritical Coal | J52: =VLOOKUP(I52,GenericSourceData!$A$42:$AC$60,29,FALSE) -> 1.1810985 | K52: 2624.400867 | L52: 2015 | M52: =VLOOKUP($A52,'Oper therm SiteSpec'!$B$3:$O$30,M$1,FALSE) -> 9730 | N52: =1/(M52/3600) -> 0.3699897225 | O52: =VLOOKUP($A52,'Oper therm SiteSpec'!$B$3:$O$30,O$1,FALSE) -> Coal | P52: =VLOOKUP($A52,'Oper therm SiteSpec'!$B$3:$O$30,P$1,FALSE) -> 42.84 | Q52: =VLOOKUP($A52,'Oper therm SiteSpec'!$B$3:$O$30,Q$1,FALSE) -> 0.26 | R52: =VLOOKUP($A52,'Oper therm SiteSpec'!$B$3:$O$30,R$1,FALSE) -> 0.96 | S52: =VLOOKUP($A52,'Oper therm SiteSpec'!$B$3:$O$30,S$1,FALSE) -> 20 | T52: =VLOOKUP($A52,'Oper therm SiteSpec'!$B$3:$O$30,T$1,FALSE) -> 0.072 | U52: =VLOOKUP($A52,'Oper therm SiteSpec'!$B$3:$O$30,U$1,FALSE) -> 0.0517 | V52: =(1-T52)*(1-U52) -> 0.8800224 | W52: =W47 -> 35 | X52: =IF(D52<>"yes",L52,"") -> 2015 | Y52: =IF(D52="yes",AB52&" "&AC52&" "&AD52&" "&AE52&" "&AF52&" "&AG52&" "&AH52&" "&AI52&" "&AJ52&" "&AK52&" "&AL52&" "&AM52&" "&AN52,"") ->  | Z52: =IF(D52<>"yes",F52,"") -> 500 | AA52: Lubombo coal | AB52: =IF(AB$5=$L52,$F52,IF(AB$5>$L52,MIN($F52,$E52-SUM(AA52:$AB52)),0)) -> 0 | AC52: =IF(AC$5=$L52,$F52,IF(AC$5>$L52,MIN($F52,$E52-SUM(AB52:$AB52)),0)) -> 0 | AD52: =IF(AD$5=$L52,$F52,IF(AD$5>$L52,MIN($F52,$E52-SUM($AB52:AC52)),0)) -> 0 | AE52: =IF(AE$5=$L52,$F52,IF(AE$5>$L52,MIN($F52,$E52-SUM($AB52:AD52)),0)) -> 0 | AF52: =IF(AF$5=$L52,$F52,IF(AF$5>$L52,MIN($F52,$E52-SUM($AB52:AE52)),0)) -> 0 | AG52: =IF(AG$5=$L52,$F52,IF(AG$5>$L52,MIN($F52,$E52-SUM($AB52:AF52)),0)) -> 500 | AH52: =IF(AH$5=$L52,$F52,IF(AH$5>$L52,MIN($F52,$E52-SUM($AB52:AG52)),0)) -> 500 | AI52: =IF(AI$5=$L52,$F52,IF(AI$5>$L52,MIN($F52,$E52-SUM($AB52:AH52)),0)) -> 0 | AJ52: =IF(AJ$5=$L52,$F52,IF(AJ$5>$L52,MIN($F52,$E52-SUM($AB52:AI52)),0)) -> 0 | AK52: =IF(AK$5=$L52,$F52,IF(AK$5>$L52,MIN($F52,$E52-SUM($AB52:AJ52)),0)) -> 0 | AL52: =IF(AL$5=$L52,$F52,IF(AL$5>$L52,MIN($F52,$E52-SUM($AB52:AK52)),0)) -> 0 | AM52: =IF(AM$5=$L52,$F52,IF(AM$5>$L52,MIN($F52,$E52-SUM($AB52:AL52)),0)) -> 0 | AN52: =IF(AN$5=$L52,$F52,IF(AN$5>$L52,MIN($F52,$E52-SUM($AB52:AM52)),0)) -> 0
A53: Tanzania | D53: =SUMIF($C54:$C62,"H",$E54:$E62) -> 1972 | E53: =SUMIF($C54:$C62,"T",$E54:$E62) -> 1000 | V53: =SUMPRODUCT(--(C54:C62="H"),E54:E62,V54:V62)*8.76 -> 6279 | AA53: Tanzania
A54: ='Oper therm SiteSpec'!B25 -> Kinyerezi gas | B54: EPGASNUCCkin | C54: T | D54: yes | E54: 400 | F54: 400 | G54: 190 | H54: 950 | I54: Combined Cycle Gas Turbine | J54: =VLOOKUP(I54,GenericSourceData!$A$42:$AC$60,29,FALSE) -> 1.099155 | K54: 1044.19725 | L54: 2014 | M54: =VLOOKUP($A54,'Oper therm SiteSpec'!$B$3:$O$30,M$1,FALSE) -> 8500 | N54: =1/(M54/3600) -> 0.4235294118 | O54: =VLOOKUP($A54,'Oper therm SiteSpec'!$B$3:$O$30,O$1,FALSE) -> Nat gas | P54: =VLOOKUP($A54,'Oper therm SiteSpec'!$B$3:$O$30,P$1,FALSE) -> 0 | Q54: =VLOOKUP($A54,'Oper therm SiteSpec'!$B$3:$O$30,Q$1,FALSE) -> 2 | R54: =VLOOKUP($A54,'Oper therm SiteSpec'!$B$3:$O$30,R$1,FALSE) -> 1.45 | S54: =VLOOKUP($A54,'Oper therm SiteSpec'!$B$3:$O$30,S$1,FALSE) -> 24.01 | T54: =VLOOKUP($A54,'Oper therm SiteSpec'!$B$3:$O$30,T$1,FALSE) -> 0.0873 | U54: =VLOOKUP($A54,'Oper therm SiteSpec'!$B$3:$O$30,U$1,FALSE) -> 0.0646 | V54: =(1-T54)*(1-U54) -> 0.85373958 | W54: =VLOOKUP(I54,GenericSourceData!$A$42:$AD$60,30,FALSE) -> 25 | X54: =IF(D54<>"yes",L54,"") ->  | Y54: =IF(D54="yes",AB54&" "&AC54&" "&AD54&" "&AE54&" "&AF54&" "&AG54&" "&AH54&" "&AI54&" "&AJ54&" "&AK54&" "&AL54&" "&AM54&" "&AN54,"") -> 0 0 0 0 400 0 0 0 0 0 0 0 0 | Z54: =IF(D54<>"yes",F54,"") ->  | AA54: Kinyerezi gas | AB54: =IF(AB$5=$L54,$F54,IF(AB$5>$L54,MIN($F54,$E54-SUM(AA54:$AB54)),0)) -> 0 | AC54: =IF(AC$5=$L54,$F54,IF(AC$5>$L54,MIN($F54,$E54-SUM(AB54:$AB54)),0)) -> 0 | AD54: =IF(AD$5=$L54,$F54,IF(AD$5>$L54,MIN($F54,$E54-SUM($AB54:AC54)),0)) -> 0 | AE54: =IF(AE$5=$L54,$F54,IF(AE$5>$L54,MIN($F54,$E54-SUM($AB54:AD54)),0)) -> 0 | AF54: =IF(AF$5=$L54,$F54,IF(AF$5>$L54,MIN($F54,$E54-SUM($AB54:AE54)),0)) -> 400 | AG54: =IF(AG$5=$L54,$F54,IF(AG$5>$L54,MIN($F54,$E54-SUM($AB54:AF54)),0)) -> 0 | AH54: =IF(AH$5=$L54,$F54,IF(AH$5>$L54,MIN($F54,$E54-SUM($AB54:AG54)),0)) -> 0 | AI54: =IF(AI$5=$L54,$F54,IF(AI$5>$L54,MIN($F54,$E54-SUM($AB54:AH54)),0)) -> 0 | AJ54: =IF(AJ$5=$L54,$F54,IF(AJ$5>$L54,MIN($F54,$E54-SUM($AB54:AI54)),0)) -> 0 | AK54: =IF(AK$5=$L54,$F54,IF(AK$5>$L54,MIN($F54,$E54-SUM($AB54:AJ54)),0)) -> 0 | AL54: =IF(AL$5=$L54,$F54,IF(AL$5>$L54,MIN($F54,$E54-SUM($AB54:AK54)),0)) -> 0 | AM54: =IF(AM$5=$L54,$F54,IF(AM$5>$L54,MIN($F54,$E54-SUM($AB54:AL54)),0)) -> 0 | AN54: =IF(AN$5=$L54,$F54,IF(AN$5>$L54,MIN($F54,$E54-SUM($AB54:AM54)),0)) -> 0
A55: ='Oper therm SiteSpec'!B23 -> Mchuchuma coal | B55: EPCOANUSCmch | C55: T | E55: 400 | F55: 400 | G55: 889 | H55: 2222 | I55: Supercritical Coal | J55: =VLOOKUP(I55,GenericSourceData!$A$42:$AC$60,29,FALSE) -> 1.1810985 | K55: 2624.400867 | L55: 2015 | M55: =VLOOKUP($A55,'Oper therm SiteSpec'!$B$3:$O$30,M$1,FALSE) -> 10865 | N55: =1/(M55/3600) -> 0.3313391624 | O55: =VLOOKUP($A55,'Oper therm SiteSpec'!$B$3:$O$30,O$1,FALSE) -> Coal | P55: =VLOOKUP($A55,'Oper therm SiteSpec'!$B$3:$O$30,P$1,FALSE) -> 0 | Q55: =VLOOKUP($A55,'Oper therm SiteSpec'!$B$3:$O$30,Q$1,FALSE) -> 1.19 | R55: =VLOOKUP($A55,'Oper therm SiteSpec'!$B$3:$O$30,R$1,FALSE) -> 4.18 | S55: =VLOOKUP($A55,'Oper therm SiteSpec'!$B$3:$O$30,S$1,FALSE) -> 38.32 | T55: =VLOOKUP($A55,'Oper therm SiteSpec'!$B$3:$O$30,T$1,FALSE) -> 0.072 | U55: =VLOOKUP($A55,'Oper therm SiteSpec'!$B$3:$O$30,U$1,FALSE) -> 0.0517 | V55: =(1-T55)*(1-U55) -> 0.8800224 | W55: =VLOOKUP(I55,GenericSourceData!$A$42:$AD$60,30,FALSE) -> 35 | X55: 2015 | Z55: 400 | AA55: Mchuchuma coal | AB55: =IF(AB$5=$L55,$F55,IF(AB$5>$L55,MIN($F55,$E55-SUM(AA55:$AB55)),0)) -> 0 | AC55: =IF(AC$5=$L55,$F55,IF(AC$5>$L55,MIN($F55,$E55-SUM(AB55:$AB55)),0)) -> 0 | AD55: =IF(AD$5=$L55,$F55,IF(AD$5>$L55,MIN($F55,$E55-SUM($AB55:AC55)),0)) -> 0 | AE55: =IF(AE$5=$L55,$F55,IF(AE$5>$L55,MIN($F55,$E55-SUM($AB55:AD55)),0)) -> 0 | AF55: =IF(AF$5=$L55,$F55,IF(AF$5>$L55,MIN($F55,$E55-SUM($AB55:AE55)),0)) -> 0 | AG55: =IF(AG$5=$L55,$F55,IF(AG$5>$L55,MIN($F55,$E55-SUM($AB55:AF55)),0)) -> 400 | AH55: =IF(AH$5=$L55,$F55,IF(AH$5>$L55,MIN($F55,$E55-SUM($AB55:AG55)),0)) -> 0 | AI55: =IF(AI$5=$L55,$F55,IF(AI$5>$L55,MIN($F55,$E55-SUM($AB55:AH55)),0)) -> 0 | AJ55: =IF(AJ$5=$L55,$F55,IF(AJ$5>$L55,MIN($F55,$E55-SUM($AB55:AI55)),0)) -> 0 | AK55: =IF(AK$5=$L55,$F55,IF(AK$5>$L55,MIN($F55,$E55-SUM($AB55:AJ55)),0)) -> 0 | AL55: =IF(AL$5=$L55,$F55,IF(AL$5>$L55,MIN($F55,$E55-SUM($AB55:AK55)),0)) -> 0 | AM55: =IF(AM$5=$L55,$F55,IF(AM$5>$L55,MIN($F55,$E55-SUM($AB55:AL55)),0)) -> 0 | AN55: =IF(AN$5=$L55,$F55,IF(AN$5>$L55,MIN($F55,$E55-SUM($AB55:AM55)),0)) -> 0
A56: ='Oper therm SiteSpec'!B24 -> Kiwira coal | B56: EPCOANCSCkiw | C56: T | D56: Yes | E56: 200 | F56: 200 | G56: 533 | H56: 2667 | I56: Supercritical Coal | J56: =VLOOKUP(I56,GenericSourceData!$A$42:$AC$60,29,FALSE) -> 1.1810985 | K56: 3149.9897 | L56: 2014 | M56: =VLOOKUP($A56,'Oper therm SiteSpec'!$B$3:$O$30,M$1,FALSE) -> 12000 | N56: =1/(M56/3600) -> 0.3 | O56: =VLOOKUP($A56,'Oper therm SiteSpec'!$B$3:$O$30,O$1,FALSE) -> Coal | P56: =VLOOKUP($A56,'Oper therm SiteSpec'!$B$3:$O$30,P$1,FALSE) -> 0 | Q56: =VLOOKUP($A56,'Oper therm SiteSpec'!$B$3:$O$30,Q$1,FALSE) -> 1.19 | R56: =VLOOKUP($A56,'Oper therm SiteSpec'!$B$3:$O$30,R$1,FALSE) -> 7.4 | S56: =VLOOKUP($A56,'Oper therm SiteSpec'!$B$3:$O$30,S$1,FALSE) -> 56.67 | T56: =VLOOKUP($A56,'Oper therm SiteSpec'!$B$3:$O$30,T$1,FALSE) -> 0.072 | U56: =VLOOKUP($A56,'Oper therm SiteSpec'!$B$3:$O$30,U$1,FALSE) -> 0.0517 | V56: =(1-T56)*(1-U56) -> 0.8800224 | W56: =VLOOKUP(I56,GenericSourceData!$A$42:$AD$60,30,FALSE) -> 35 | Y56: 0 0 0 0 200 0 0 0 0 0 0 0 0 | AA56: Kiwira coal | AB56: =IF(AB$5=$L56,$F56,IF(AB$5>$L56,MIN($F56,$E56-SUM(AA56:$AB56)),0)) -> 0 | AC56: =IF(AC$5=$L56,$F56,IF(AC$5>$L56,MIN($F56,$E56-SUM(AB56:$AB56)),0)) -> 0 | AD56: =IF(AD$5=$L56,$F56,IF(AD$5>$L56,MIN($F56,$E56-SUM($AB56:AC56)),0)) -> 0 | AE56: =IF(AE$5=$L56,$F56,IF(AE$5>$L56,MIN($F56,$E56-SUM($AB56:AD56)),0)) -> 0 | AF56: =IF(AF$5=$L56,$F56,IF(AF$5>$L56,MIN($F56,$E56-SUM($AB56:AE56)),0)) -> 200 | AG56: =IF(AG$5=$L56,$F56,IF(AG$5>$L56,MIN($F56,$E56-SUM($AB56:AF56)),0)) -> 0 | AH56: =IF(AH$5=$L56,$F56,IF(AH$5>$L56,MIN($F56,$E56-SUM($AB56:AG56)),0)) -> 0 | AI56: =IF(AI$5=$L56,$F56,IF(AI$5>$L56,MIN($F56,$E56-SUM($AB56:AH56)),0)) -> 0 | AJ56: =IF(AJ$5=$L56,$F56,IF(AJ$5>$L56,MIN($F56,$E56-SUM($AB56:AI56)),0)) -> 0 | AK56: =IF(AK$5=$L56,$F56,IF(AK$5>$L56,MIN($F56,$E56-SUM($AB56:AJ56)),0)) -> 0 | AL56: =IF(AL$5=$L56,$F56,IF(AL$5>$L56,MIN($F56,$E56-SUM($AB56:AK56)),0)) -> 0 | AM56: =IF(AM$5=$L56,$F56,IF(AM$5>$L56,MIN($F56,$E56-SUM($AB56:AL56)),0)) -> 0 | AN56: =IF(AN$5=$L56,$F56,IF(AN$5>$L56,MIN($F56,$E56-SUM($AB56:AM56)),0)) -> 0
A57: ='Oper hydro SiteSpec'!B33 -> Ruhudji | B57: EPHYDNUruh | C57: H | E57: 358 | F57: 358 | G57: 611 | H57: 1707 | I57: Hydro | J57: =VLOOKUP(I57,GenericSourceData!$A$42:$AC$60,29,FALSE) -> 1 | K57: 1707 | L57: 2017 | R57: =VLOOKUP($A57,'Oper hydro SiteSpec'!$B$3:$L$43,R$2,FALSE) -> 1.51 | S57: =VLOOKUP($A57,'Oper hydro SiteSpec'!$B$3:$L$43,S$2,FALSE) -> 8.72 | T57: =VLOOKUP($A57,'Oper hydro SiteSpec'!$B$3:$L$43,T$2,FALSE) -> 0.05 | U57: =VLOOKUP($A57,'Oper hydro SiteSpec'!$B$3:$L$43,U$2,FALSE) -> 0.02 | V57: =IF(dryear,VLOOKUP($A57,'Oper hydro SiteSpec'!$B$3:$M$43,V$2+1,FALSE),VLOOKUP($A57,'Oper hydro SiteSpec'!$B$3:$L$43,V$2,FALSE)) -> 0.3788168669 | W57: =VLOOKUP(I57,GenericSourceData!$A$42:$AD$60,30,FALSE) -> 50 | X57: 2017 | Z57: 358 | AA57: Ruhudji | AB57: =IF(AB$5=$L57,$F57,IF(AB$5>$L57,MIN($F57,$E57-SUM(AA57:$AB57)),0)) -> 0 | AC57: =IF(AC$5=$L57,$F57,IF(AC$5>$L57,MIN($F57,$E57-SUM(AB57:$AB57)),0)) -> 0 | AD57: =IF(AD$5=$L57,$F57,IF(AD$5>$L57,MIN($F57,$E57-SUM($AB57:AC57)),0)) -> 0 | AE57: =IF(AE$5=$L57,$F57,IF(AE$5>$L57,MIN($F57,$E57-SUM($AB57:AD57)),0)) -> 0 | AF57: =IF(AF$5=$L57,$F57,IF(AF$5>$L57,MIN($F57,$E57-SUM($AB57:AE57)),0)) -> 0 | AG57: =IF(AG$5=$L57,$F57,IF(AG$5>$L57,MIN($F57,$E57-SUM($AB57:AF57)),0)) -> 0 | AH57: =IF(AH$5=$L57,$F57,IF(AH$5>$L57,MIN($F57,$E57-SUM($AB57:AG57)),0)) -> 0 | AI57: =IF(AI$5=$L57,$F57,IF(AI$5>$L57,MIN($F57,$E57-SUM($AB57:AH57)),0)) -> 358 | AJ57: =IF(AJ$5=$L57,$F57,IF(AJ$5>$L57,MIN($F57,$E57-SUM($AB57:AI57)),0)) -> 0 | AK57: =IF(AK$5=$L57,$F57,IF(AK$5>$L57,MIN($F57,$E57-SUM($AB57:AJ57)),0)) -> 0 | AL57: =IF(AL$5=$L57,$F57,IF(AL$5>$L57,MIN($F57,$E57-SUM($AB57:AK57)),0)) -> 0 | AM57: =IF(AM$5=$L57,$F57,IF(AM$5>$L57,MIN($F57,$E57-SUM($AB57:AL57)),0)) -> 0 | AN57: =IF(AN$5=$L57,$F57,IF(AN$5>$L57,MIN($F57,$E57-SUM($AB57:AM57)),0)) -> 0
A58: Rusomo | B58: EPHYDNUrus | C58: H | E58: 21 | F58: =IF(E58<1000,E58,IF(E58>3000,E58/3,E58/2)) -> 21 | G58: =E58*H58/1000 -> 48.846 | H58: 2326 | I58: Hydro | J58: =VLOOKUP(I58,GenericSourceData!$A$42:$AC$60,29,FALSE) -> 1 | K58: =J58*H58 -> 2326 | L58: 2015 | R58: =R57 -> 1.51 | S58: 8.72 | T58: 0.05 | U58: 0.02 | V58: =129/(E58*8.76) -> 0.7012393999 | W58: =VLOOKUP(I58,GenericSourceData!$A$42:$AD$60,30,FALSE) -> 50 | X58: 2015 | Z58: 21 | AA58: Rusomo | AB58: =IF(AB$5=$L58,$F58,IF(AB$5>$L58,MIN($F58,$E58-SUM(AA58:$AB58)),0)) -> 0 | AC58: =IF(AC$5=$L58,$F58,IF(AC$5>$L58,MIN($F58,$E58-SUM(AB58:$AB58)),0)) -> 0 | AD58: =IF(AD$5=$L58,$F58,IF(AD$5>$L58,MIN($F58,$E58-SUM($AB58:AC58)),0)) -> 0 | AE58: =IF(AE$5=$L58,$F58,IF(AE$5>$L58,MIN($F58,$E58-SUM($AB58:AD58)),0)) -> 0 | AF58: =IF(AF$5=$L58,$F58,IF(AF$5>$L58,MIN($F58,$E58-SUM($AB58:AE58)),0)) -> 0 | AG58: =IF(AG$5=$L58,$F58,IF(AG$5>$L58,MIN($F58,$E58-SUM($AB58:AF58)),0)) -> 21 | AH58: =IF(AH$5=$L58,$F58,IF(AH$5>$L58,MIN($F58,$E58-SUM($AB58:AG58)),0)) -> 0 | AI58: =IF(AI$5=$L58,$F58,IF(AI$5>$L58,MIN($F58,$E58-SUM($AB58:AH58)),0)) -> 0 | AJ58: =IF(AJ$5=$L58,$F58,IF(AJ$5>$L58,MIN($F58,$E58-SUM($AB58:AI58)),0)) -> 0 | AK58: =IF(AK$5=$L58,$F58,IF(AK$5>$L58,MIN($F58,$E58-SUM($AB58:AJ58)),0)) -> 0 | AL58: =IF(AL$5=$L58,$F58,IF(AL$5>$L58,MIN($F58,$E58-SUM($AB58:AK58)),0)) -> 0 | AM58: =IF(AM$5=$L58,$F58,IF(AM$5>$L58,MIN($F58,$E58-SUM($AB58:AL58)),0)) -> 0 | AN58: =IF(AN$5=$L58,$F58,IF(AN$5>$L58,MIN($F58,$E58-SUM($AB58:AM58)),0)) -> 0
A59: Kakono | B59: EPHYDNUkak | C59: H | E59: 53 | F59: =IF(E59<1000,E59,IF(E59>3000,E59/3,E59/2)) -> 53 | G59: =E59*H59/1000 -> 123.278 | H59: 2326 | I59: Hydro | J59: =VLOOKUP(I59,GenericSourceData!$A$42:$AC$60,29,FALSE) -> 1 | K59: =J59*H59 -> 2326 | L59: 2016 | R59: 1.51 | S59: 8.72 | T59: 0.05 | U59: 0.02 | V59: =335/(E59*8.76) -> 0.7215473421 | W59: =VLOOKUP(I59,GenericSourceData!$A$42:$AD$60,30,FALSE) -> 50 | X59: 2016 | Z59: 53 | AA59: Kakono | AB59: =IF(AB$5=$L59,$F59,IF(AB$5>$L59,MIN($F59,$E59-SUM(AA59:$AB59)),0)) -> 0 | AC59: =IF(AC$5=$L59,$F59,IF(AC$5>$L59,MIN($F59,$E59-SUM(AB59:$AB59)),0)) -> 0 | AD59: =IF(AD$5=$L59,$F59,IF(AD$5>$L59,MIN($F59,$E59-SUM($AB59:AC59)),0)) -> 0 | AE59: =IF(AE$5=$L59,$F59,IF(AE$5>$L59,MIN($F59,$E59-SUM($AB59:AD59)),0)) -> 0 | AF59: =IF(AF$5=$L59,$F59,IF(AF$5>$L59,MIN($F59,$E59-SUM($AB59:AE59)),0)) -> 0 | AG59: =IF(AG$5=$L59,$F59,IF(AG$5>$L59,MIN($F59,$E59-SUM($AB59:AF59)),0)) -> 0 | AH59: =IF(AH$5=$L59,$F59,IF(AH$5>$L59,MIN($F59,$E59-SUM($AB59:AG59)),0)) -> 53 | AI59: =IF(AI$5=$L59,$F59,IF(AI$5>$L59,MIN($F59,$E59-SUM($AB59:AH59)),0)) -> 0 | AJ59: =IF(AJ$5=$L59,$F59,IF(AJ$5>$L59,MIN($F59,$E59-SUM($AB59:AI59)),0)) -> 0 | AK59: =IF(AK$5=$L59,$F59,IF(AK$5>$L59,MIN($F59,$E59-SUM($AB59:AJ59)),0)) -> 0 | AL59: =IF(AL$5=$L59,$F59,IF(AL$5>$L59,MIN($F59,$E59-SUM($AB59:AK59)),0)) -> 0 | AM59: =IF(AM$5=$L59,$F59,IF(AM$5>$L59,MIN($F59,$E59-SUM($AB59:AL59)),0)) -> 0 | AN59: =IF(AN$5=$L59,$F59,IF(AN$5>$L59,MIN($F59,$E59-SUM($AB59:AM59)),0)) -> 0
A60: ='Oper hydro SiteSpec'!B34 -> Rumakali | B60: EPHYDNUrum | C60: H | E60: 222 | F60: =IF(E60<1000,E60,IF(E60>3000,E60/3,E60/2)) -> 222 | G60: =E60*H60/1000 -> 516.372 | H60: 2326 | I60: Hydro | J60: =VLOOKUP(I60,GenericSourceData!$A$42:$AC$60,29,FALSE) -> 1 | K60: =J60*H60 -> 2326 | L60: 2019 | R60: 1.51 | S60: 8.72 | T60: 0.05 | U60: 0.02 | V60: =908/(E60*8.76) -> 0.4669052614 | W60: =VLOOKUP(I60,GenericSourceData!$A$42:$AD$60,30,FALSE) -> 50 | X60: 2019 | Z60: 222 | AA60: Rumakali | AB60: =IF(AB$5=$L60,$F60,IF(AB$5>$L60,MIN($F60,$E60-SUM(AA60:$AB60)),0)) -> 0 | AC60: =IF(AC$5=$L60,$F60,IF(AC$5>$L60,MIN($F60,$E60-SUM(AB60:$AB60)),0)) -> 0 | AD60: =IF(AD$5=$L60,$F60,IF(AD$5>$L60,MIN($F60,$E60-SUM($AB60:AC60)),0)) -> 0 | AE60: =IF(AE$5=$L60,$F60,IF(AE$5>$L60,MIN($F60,$E60-SUM($AB60:AD60)),0)) -> 0 | AF60: =IF(AF$5=$L60,$F60,IF(AF$5>$L60,MIN($F60,$E60-SUM($AB60:AE60)),0)) -> 0 | AG60: =IF(AG$5=$L60,$F60,IF(AG$5>$L60,MIN($F60,$E60-SUM($AB60:AF60)),0)) -> 0 | AH60: =IF(AH$5=$L60,$F60,IF(AH$5>$L60,MIN($F60,$E60-SUM($AB60:AG60)),0)) -> 0 | AI60: =IF(AI$5=$L60,$F60,IF(AI$5>$L60,MIN($F60,$E60-SUM($AB60:AH60)),0)) -> 0 | AJ60: =IF(AJ$5=$L60,$F60,IF(AJ$5>$L60,MIN($F60,$E60-SUM($AB60:AI60)),0)) -> 0 | AK60: =IF(AK$5=$L60,$F60,IF(AK$5>$L60,MIN($F60,$E60-SUM($AB60:AJ60)),0)) -> 222 | AL60: =IF(AL$5=$L60,$F60,IF(AL$5>$L60,MIN($F60,$E60-SUM($AB60:AK60)),0)) -> 0 | AM60: =IF(AM$5=$L60,$F60,IF(AM$5>$L60,MIN($F60,$E60-SUM($AB60:AL60)),0)) -> 0 | AN60: =IF(AN$5=$L60,$F60,IF(AN$5>$L60,MIN($F60,$E60-SUM($AB60:AM60)),0)) -> 0
A61: Masigira | B61: EPHYDNUmsg | C61: H | E61: 118 | F61: =IF(E61<1000,E61,IF(E61>3000,E61/3,E61/2)) -> 118 | G61: =E61*H61/1000 -> 274.468 | H61: 2326 | I61: Hydro | J61: =VLOOKUP(I61,GenericSourceData!$A$42:$AC$60,29,FALSE) -> 1 | K61: =J61*H61 -> 2326 | L61: 2020 | R61: 1.51 | S61: 8.72 | T61: 0.05 | U61: 0.02 | V61: =492/(E61*8.76) -> 0.4759693522 | W61: =VLOOKUP(I61,GenericSourceData!$A$42:$AD$60,30,FALSE) -> 50 | X61: 2020 | Z61: 118 | AA61: Masigira | AB61: =IF(AB$5=$L61,$F61,IF(AB$5>$L61,MIN($F61,$E61-SUM(AA61:$AB61)),0)) -> 0 | AC61: =IF(AC$5=$L61,$F61,IF(AC$5>$L61,MIN($F61,$E61-SUM(AB61:$AB61)),0)) -> 0 | AD61: =IF(AD$5=$L61,$F61,IF(AD$5>$L61,MIN($F61,$E61-SUM($AB61:AC61)),0)) -> 0 | AE61: =IF(AE$5=$L61,$F61,IF(AE$5>$L61,MIN($F61,$E61-SUM($AB61:AD61)),0)) -> 0 | AF61: =IF(AF$5=$L61,$F61,IF(AF$5>$L61,MIN($F61,$E61-SUM($AB61:AE61)),0)) -> 0 | AG61: =IF(AG$5=$L61,$F61,IF(AG$5>$L61,MIN($F61,$E61-SUM($AB61:AF61)),0)) -> 0 | AH61: =IF(AH$5=$L61,$F61,IF(AH$5>$L61,MIN($F61,$E61-SUM($AB61:AG61)),0)) -> 0 | AI61: =IF(AI$5=$L61,$F61,IF(AI$5>$L61,MIN($F61,$E61-SUM($AB61:AH61)),0)) -> 0 | AJ61: =IF(AJ$5=$L61,$F61,IF(AJ$5>$L61,MIN($F61,$E61-SUM($AB61:AI61)),0)) -> 0 | AK61: =IF(AK$5=$L61,$F61,IF(AK$5>$L61,MIN($F61,$E61-SUM($AB61:AJ61)),0)) -> 0 | AL61: =IF(AL$5=$L61,$F61,IF(AL$5>$L61,MIN($F61,$E61-SUM($AB61:AK61)),0)) -> 118 | AM61: =IF(AM$5=$L61,$F61,IF(AM$5>$L61,MIN($F61,$E61-SUM($AB61:AL61)),0)) -> 0 | AN61: =IF(AN$5=$L61,$F61,IF(AN$5>$L61,MIN($F61,$E61-SUM($AB61:AM61)),0)) -> 0
A62: Stieglers Gorge | B62: EPHYDNUstg | C62: H | E62: 1200 | F62: 600 | G62: =E62*H62/1000 -> 2791.2 | H62: 2326 | I62: Hydro | J62: =VLOOKUP(I62,GenericSourceData!$A$42:$AC$60,29,FALSE) -> 1 | K62: 2326 | L62: 2023 | R62: 1.51 | S62: 8.72 | T62: 0.05 | U62: 0.02 | V62: =(1908+855+464)/(E62*8.76) -> 0.3069824962 | W62: =VLOOKUP(I62,GenericSourceData!$A$42:$AD$60,30,FALSE) -> 50 | X62: 2023 | Z62: 150 | AA62: Stieglers Gorge | AB62: =IF(AB$5=$L62,$F62,IF(AB$5>$L62,MIN($F62,$E62-SUM(AA62:$AB62)),0)) -> 0 | AC62: =IF(AC$5=$L62,$F62,IF(AC$5>$L62,MIN($F62,$E62-SUM(AB62:$AB62)),0)) -> 0 | AD62: =IF(AD$5=$L62,$F62,IF(AD$5>$L62,MIN($F62,$E62-SUM($AB62:AC62)),0)) -> 0 | AE62: =IF(AE$5=$L62,$F62,IF(AE$5>$L62,MIN($F62,$E62-SUM($AB62:AD62)),0)) -> 0 | AF62: =IF(AF$5=$L62,$F62,IF(AF$5>$L62,MIN($F62,$E62-SUM($AB62:AE62)),0)) -> 0 | AG62: =IF(AG$5=$L62,$F62,IF(AG$5>$L62,MIN($F62,$E62-SUM($AB62:AF62)),0)) -> 0 | AH62: =IF(AH$5=$L62,$F62,IF(AH$5>$L62,MIN($F62,$E62-SUM($AB62:AG62)),0)) -> 0 | AI62: =IF(AI$5=$L62,$F62,IF(AI$5>$L62,MIN($F62,$E62-SUM($AB62:AH62)),0)) -> 0 | AJ62: =IF(AJ$5=$L62,$F62,IF(AJ$5>$L62,MIN($F62,$E62-SUM($AB62:AI62)),0)) -> 0 | AK62: =IF(AK$5=$L62,$F62,IF(AK$5>$L62,MIN($F62,$E62-SUM($AB62:AJ62)),0)) -> 0 | AL62: =IF(AL$5=$L62,$F62,IF(AL$5>$L62,MIN($F62,$E62-SUM($AB62:AK62)),0)) -> 0 | AM62: =IF(AM$5=$L62,$F62,IF(AM$5>$L62,MIN($F62,$E62-SUM($AB62:AL62)),0)) -> 0 | AN62: =IF(AN$5=$L62,$F62,IF(AN$5>$L62,MIN($F62,$E62-SUM($AB62:AM62)),0)) -> 0
A63: Zambia | D63: =SUMIF($C64:$C76,"H",$E64:$E76) -> 4299 | E63: =SUMIF($C64:$C76,"T",$E64:$E76) -> 300 | V63: =SUMPRODUCT(--(C64:C76="H"),E64:E76,V64:V76)*8.76 -> 15316.24152 | AA63: Zambia
A64: Maamba Coal fired | B64: EPCOANUSCmaa | C64: T | E64: 300 | F64: 300 | G64: 750 | H64: =G64/E64*1000 -> 2500 | I64: Supercritical Coal | J64: 1 | K64: 2500 | L64: 2016 | M64: =M78 -> 9730 | N64: 0.3699897225 | O64: Coal | P64: 0 | Q64: 0.64 | R64: 0.96 | S64: 19.97 | T64: 0.072 | U64: 0.0517 | V64: 0.8800224 | W64: =VLOOKUP(I64,GenericSourceData!$A$42:$AD$60,30,FALSE) -> 35 | X64: =IF(D64<>"yes",L64,"") -> 2016 | Y64: =IF(D64="yes",AB64&" "&AC64&" "&AD64&" "&AE64&" "&AF64&" "&AG64&" "&AH64&" "&AI64&" "&AJ64&" "&AK64&" "&AL64&" "&AM64&" "&AN64,"") ->  | Z64: =IF(D64<>"yes",F64,"") -> 300 | AA64: Maamba Coal fired | AB64: =IF(AB$5=$L64,$F64,IF(AB$5>$L64,MIN($F64,$E64-SUM(AA64:$AB64)),0)) -> 0 | AC64: =IF(AC$5=$L64,$F64,IF(AC$5>$L64,MIN($F64,$E64-SUM(AB64:$AB64)),0)) -> 0 | AD64: =IF(AD$5=$L64,$F64,IF(AD$5>$L64,MIN($F64,$E64-SUM($AB64:AC64)),0)) -> 0 | AE64: =IF(AE$5=$L64,$F64,IF(AE$5>$L64,MIN($F64,$E64-SUM($AB64:AD64)),0)) -> 0 | AF64: =IF(AF$5=$L64,$F64,IF(AF$5>$L64,MIN($F64,$E64-SUM($AB64:AE64)),0)) -> 0 | AG64: =IF(AG$5=$L64,$F64,IF(AG$5>$L64,MIN($F64,$E64-SUM($AB64:AF64)),0)) -> 0 | AH64: =IF(AH$5=$L64,$F64,IF(AH$5>$L64,MIN($F64,$E64-SUM($AB64:AG64)),0)) -> 300 | AI64: =IF(AI$5=$L64,$F64,IF(AI$5>$L64,MIN($F64,$E64-SUM($AB64:AH64)),0)) -> 0 | AJ64: =IF(AJ$5=$L64,$F64,IF(AJ$5>$L64,MIN($F64,$E64-SUM($AB64:AI64)),0)) -> 0 | AK64: =IF(AK$5=$L64,$F64,IF(AK$5>$L64,MIN($F64,$E64-SUM($AB64:AJ64)),0)) -> 0 | AL64: =IF(AL$5=$L64,$F64,IF(AL$5>$L64,MIN($F64,$E64-SUM($AB64:AK64)),0)) -> 0 | AM64: =IF(AM$5=$L64,$F64,IF(AM$5>$L64,MIN($F64,$E64-SUM($AB64:AL64)),0)) -> 0 | AN64: =IF(AN$5=$L64,$F64,IF(AN$5>$L64,MIN($F64,$E64-SUM($AB64:AM64)),0)) -> 0
A65: ='Oper hydro SiteSpec'!B39 -> Itezhi-Tezhi hydro | B65: EPHYDNUite | C65: H | D65: yes | E65: 120 | F65: 120 | G65: 250 | H65: =G65/E65*1000 -> 2083.333333 | I65: Hydro | J65: =VLOOKUP(I65,GenericSourceData!$A$42:$AC$60,29,FALSE) -> 1 | K65: 2083.333333 | L65: 2014 | R65: =VLOOKUP($A65,'Oper hydro SiteSpec'!$B$3:$L$43,R$2,FALSE) -> 1.51 | S65: =VLOOKUP($A65,'Oper hydro SiteSpec'!$B$3:$L$43,S$2,FALSE) -> 8.72 | T65: =VLOOKUP($A65,'Oper hydro SiteSpec'!$B$3:$L$43,T$2,FALSE) -> 0.05 | U65: =VLOOKUP($A65,'Oper hydro SiteSpec'!$B$3:$L$43,U$2,FALSE) -> 0.02 | V65: =IF(dryear,VLOOKUP($A65,'Oper hydro SiteSpec'!$B$3:$M$43,V$2+1,FALSE),VLOOKUP($A65,'Oper hydro SiteSpec'!$B$3:$L$43,V$2,FALSE)) -> 0.4242770167 | W65: =VLOOKUP(I65,GenericSourceData!$A$42:$AD$60,30,FALSE) -> 50 | Y65: 0 0 0 0 120 0 0 0 0 0 0 0 0 | AA65: Itezhi-Tezhi hydro | AB65: =IF(AB$5=$L65,$F65,IF(AB$5>$L65,MIN($F65,$E65-SUM(AA65:$AB65)),0)) -> 0 | AC65: =IF(AC$5=$L65,$F65,IF(AC$5>$L65,MIN($F65,$E65-SUM(AB65:$AB65)),0)) -> 0 | AD65: =IF(AD$5=$L65,$F65,IF(AD$5>$L65,MIN($F65,$E65-SUM($AB65:AC65)),0)) -> 0 | AE65: =IF(AE$5=$L65,$F65,IF(AE$5>$L65,MIN($F65,$E65-SUM($AB65:AD65)),0)) -> 0 | AF65: =IF(AF$5=$L65,$F65,IF(AF$5>$L65,MIN($F65,$E65-SUM($AB65:AE65)),0)) -> 120 | AG65: =IF(AG$5=$L65,$F65,IF(AG$5>$L65,MIN($F65,$E65-SUM($AB65:AF65)),0)) -> 0 | AH65: =IF(AH$5=$L65,$F65,IF(AH$5>$L65,MIN($F65,$E65-SUM($AB65:AG65)),0)) -> 0 | AI65: =IF(AI$5=$L65,$F65,IF(AI$5>$L65,MIN($F65,$E65-SUM($AB65:AH65)),0)) -> 0 | AJ65: =IF(AJ$5=$L65,$F65,IF(AJ$5>$L65,MIN($F65,$E65-SUM($AB65:AI65)),0)) -> 0 | AK65: =IF(AK$5=$L65,$F65,IF(AK$5>$L65,MIN($F65,$E65-SUM($AB65:AJ65)),0)) -> 0 | AL65: =IF(AL$5=$L65,$F65,IF(AL$5>$L65,MIN($F65,$E65-SUM($AB65:AK65)),0)) -> 0 | AM65: =IF(AM$5=$L65,$F65,IF(AM$5>$L65,MIN($F65,$E65-SUM($AB65:AL65)),0)) -> 0 | AN65: =IF(AN$5=$L65,$F65,IF(AN$5>$L65,MIN($F65,$E65-SUM($AB65:AM65)),0)) -> 0
A66: ='Oper hydro SiteSpec'!B36 -> Kariba North Extension hydro | B66: EPHYDNUkne | C66: H | D66: Yes | E66: 360 | F66: 180 | G66: 450 | H66: =G66/E66*1000 -> 1250 | I66: Hydro | J66: =VLOOKUP(I66,GenericSourceData!$A$42:$AC$60,29,FALSE) -> 1 | K66: 1250 | L66: 2013 | R66: =VLOOKUP($A66,'Oper hydro SiteSpec'!$B$3:$L$43,R$2,FALSE) -> 1.51 | S66: =VLOOKUP($A66,'Oper hydro SiteSpec'!$B$3:$L$43,S$2,FALSE) -> 8.72 | T66: =VLOOKUP($A66,'Oper hydro SiteSpec'!$B$3:$L$43,T$2,FALSE) -> 0.05 | U66: =VLOOKUP($A66,'Oper hydro SiteSpec'!$B$3:$L$43,U$2,FALSE) -> 0.02 | V66: =IF(dryear,VLOOKUP($A66,'Oper hydro SiteSpec'!$B$3:$M$43,V$2+1,FALSE),VLOOKUP($A66,'Oper hydro SiteSpec'!$B$3:$L$43,V$2,FALSE)) -> 0.2942668696 | W66: =VLOOKUP(I66,GenericSourceData!$A$42:$AD$60,30,FALSE) -> 50 | Y66: 0 0 0 180 180 0 0 0 0 0 0 0 0 | AA66: Kariba North Extension hydro | AB66: =IF(AB$5=$L66,$F66,IF(AB$5>$L66,MIN($F66,$E66-SUM(AA66:$AB66)),0)) -> 0 | AC66: =IF(AC$5=$L66,$F66,IF(AC$5>$L66,MIN($F66,$E66-SUM(AB66:$AB66)),0)) -> 0 | AD66: =IF(AD$5=$L66,$F66,IF(AD$5>$L66,MIN($F66,$E66-SUM($AB66:AC66)),0)) -> 0 | AE66: =IF(AE$5=$L66,$F66,IF(AE$5>$L66,MIN($F66,$E66-SUM($AB66:AD66)),0)) -> 180 | AF66: =IF(AF$5=$L66,$F66,IF(AF$5>$L66,MIN($F66,$E66-SUM($AB66:AE66)),0)) -> 180 | AG66: =IF(AG$5=$L66,$F66,IF(AG$5>$L66,MIN($F66,$E66-SUM($AB66:AF66)),0)) -> 0 | AH66: =IF(AH$5=$L66,$F66,IF(AH$5>$L66,MIN($F66,$E66-SUM($AB66:AG66)),0)) -> 0 | AI66: =IF(AI$5=$L66,$F66,IF(AI$5>$L66,MIN($F66,$E66-SUM($AB66:AH66)),0)) -> 0 | AJ66: =IF(AJ$5=$L66,$F66,IF(AJ$5>$L66,MIN($F66,$E66-SUM($AB66:AI66)),0)) -> 0 | AK66: =IF(AK$5=$L66,$F66,IF(AK$5>$L66,MIN($F66,$E66-SUM($AB66:AJ66)),0)) -> 0 | AL66: =IF(AL$5=$L66,$F66,IF(AL$5>$L66,MIN($F66,$E66-SUM($AB66:AK66)),0)) -> 0 | AM66: =IF(AM$5=$L66,$F66,IF(AM$5>$L66,MIN($F66,$E66-SUM($AB66:AL66)),0)) -> 0 | AN66: =IF(AN$5=$L66,$F66,IF(AN$5>$L66,MIN($F66,$E66-SUM($AB66:AM66)),0)) -> 0
A67: Lunsenfwa | B67: EPHYDNUlun | C67: H | E67: 255 | F67: =E67 -> 255 | K67: 2500 | L67: 2018 | R67: 1.51 | S67: 8.72 | T67: 0.05 | U67: 0.02 | V67: =IF(dryear,0.6*0.66,0.68) -> 0.396 | W67: =W66 -> 50 | X67: 2018 | Z67: 255 | AA67: Lunsenfwa
A68: Lusiwasi | B68: EPHYDNUIus | C68: H | D68: yes | E68: 84 | F68: =E68 -> 84 | K68: 2500 | L68: 2016 | R68: =R67 -> 1.51 | S68: 8.72 | T68: =T67 -> 0.05 | U68: =U67 -> 0.02 | V68: =IF(dryear,0.68*0.66,0.68) -> 0.4488 | W68: =W67 -> 50 | AA68: Lusiwasi
A69: Devils Gorge | B69: EPHYDNUdvg | C69: H | E69: 500 | F69: =E69/2 -> 250 | K69: 2500 | L69: 2019 | R69: 1.51 | S69: 8.72 | T69: 0.05 | U69: 0.02 | V69: 0.4488 | W69: 50 | X69: 2019 | Z69: 250 | AA69: Devils Gorge
A70: Mumbotula Fall | B70: EPHYDNUmum | C70: H | E70: 301 | F70: =E70 -> 301 | K70: 2500 | L70: 2021 | R70: 1.51 | S70: 8.72 | T70: 0.05 | U70: 0.02 | V70: 0.4488 | W70: 50 | X70: 2021 | Z70: 301 | AA70: Mumbotula Fall
A71: Mpata Gorge | B71: EPHYDNUmpg | C71: H | E71: 543 | F71: =E71/2 -> 271.5 | K71: 2500 | L71: 2023 | R71: 1.51 | S71: 8.72 | T71: 0.05 | U71: 0.02 | V71: 0.4488 | W71: 50 | X71: 2023 | Z71: 271.5 | AA71: =A71 -> Mpata Gorge
A72: Mambililma Falls | B72: EPHYDNUmam | C72: H | E72: 326 | F72: =E72 -> 326 | K72: 2500 | L72: 2025 | R72: 1.51 | S72: 8.72 | T72: 0.05 | U72: 0.02 | V72: 0.4488 | W72: 50 | X72: 2025 | Z72: 326 | AA72: Mambililma Falls
A73: ='Oper hydro SiteSpec'!B38 -> Batoka Gorge hydro | B73: EPHYDNUbat | C73: H | E73: 800 | F73: =E73/2 -> 400 | K73: 2500 | L73: 2022 | R73: =VLOOKUP($A73,'Oper hydro SiteSpec'!$B$3:$L$43,R$2,FALSE) -> 1.51 | S73: =VLOOKUP($A73,'Oper hydro SiteSpec'!$B$3:$L$43,S$2,FALSE) -> 8.72 | T73: 0.05 | U73: 0.02 | V73: 0.4488 | W73: 50 | X73: 2022 | Z73: 400 | AA73: Batoka Gorge hydro
A74: ='Oper hydro SiteSpec'!B37 -> Kafue Gorge Lower hydro | B74: EPHYDNUrkgl | C74: H | D74: yes | E74: 750 | F74: =E74/3 -> 250 | G74: 600 | H74: 2000 | I74: 2000 | J74: 2000 | K74: 2000 | L74: 2016 | R74: =VLOOKUP($A74,'Oper hydro SiteSpec'!$B$3:$L$43,R$2,FALSE) -> 1.51 | S74: =VLOOKUP($A74,'Oper hydro SiteSpec'!$B$3:$L$43,S$2,FALSE) -> 8.72 | T74: =VLOOKUP($A74,'Oper hydro SiteSpec'!$B$3:$L$43,T$2,FALSE) -> 0.05 | U74: =VLOOKUP($A74,'Oper hydro SiteSpec'!$B$3:$L$43,U$2,FALSE) -> 0.02 | V74: =IF(dryear,VLOOKUP($A74,'Oper hydro SiteSpec'!$B$3:$M$43,V$2+1,FALSE),VLOOKUP($A74,'Oper hydro SiteSpec'!$B$3:$L$43,V$2,FALSE)) -> 0.3546423135 | W74: =W66 -> 50 | Y74: 0 0 0 0 0 0 250 250 250 0 0 0 0 | AA74: Kafue Gorge Lower hydro | AB74: =IF(AB$5=$L74,$F74,IF(AB$5>$L74,MIN($F74,$E74-SUM(AA74:$AB74)),0)) -> 0 | AC74: =IF(AC$5=$L74,$F74,IF(AC$5>$L74,MIN($F74,$E74-SUM(AB74:$AB74)),0)) -> 0 | AD74: =IF(AD$5=$L74,$F74,IF(AD$5>$L74,MIN($F74,$E74-SUM($AB74:AC74)),0)) -> 0 | AE74: =IF(AE$5=$L74,$F74,IF(AE$5>$L74,MIN($F74,$E74-SUM($AB74:AD74)),0)) -> 0 | AF74: =IF(AF$5=$L74,$F74,IF(AF$5>$L74,MIN($F74,$E74-SUM($AB74:AE74)),0)) -> 0 | AG74: =IF(AG$5=$L74,$F74,IF(AG$5>$L74,MIN($F74,$E74-SUM($AB74:AF74)),0)) -> 0 | AH74: =IF(AH$5=$L74,$F74,IF(AH$5>$L74,MIN($F74,$E74-SUM($AB74:AG74)),0)) -> 250 | AI74: =IF(AI$5=$L74,$F74,IF(AI$5>$L74,MIN($F74,$E74-SUM($AB74:AH74)),0)) -> 250 | AJ74: =IF(AJ$5=$L74,$F74,IF(AJ$5>$L74,MIN($F74,$E74-SUM($AB74:AI74)),0)) -> 250 | AK74: =IF(AK$5=$L74,$F74,IF(AK$5>$L74,MIN($F74,$E74-SUM($AB74:AJ74)),0)) -> 0 | AL74: =IF(AL$5=$L74,$F74,IF(AL$5>$L74,MIN($F74,$E74-SUM($AB74:AK74)),0)) -> 0 | AM74: =IF(AM$5=$L74,$F74,IF(AM$5>$L74,MIN($F74,$E74-SUM($AB74:AL74)),0)) -> 0 | AN74: =IF(AN$5=$L74,$F74,IF(AN$5>$L74,MIN($F74,$E74-SUM($AB74:AM74)),0)) -> 0
A75: ='Oper hydro SiteSpec'!B40 -> Kalungwishi hydro | B75: EPHYDNUkal | C75: H | E75: 220 | F75: 220 | G75: 210 | H75: 3000 | I75: 2000 | J75: 2000 | K75: 3000 | L75: 2018 | R75: =VLOOKUP($A75,'Oper hydro SiteSpec'!$B$3:$L$43,R$2,FALSE) -> 1.51 | S75: =VLOOKUP($A75,'Oper hydro SiteSpec'!$B$3:$L$43,S$2,FALSE) -> 8.72 | T75: =VLOOKUP($A75,'Oper hydro SiteSpec'!$B$3:$L$43,T$2,FALSE) -> 0.05 | U75: =VLOOKUP($A75,'Oper hydro SiteSpec'!$B$3:$L$43,U$2,FALSE) -> 0.02 | V75: =IF(dryear,VLOOKUP($A75,'Oper hydro SiteSpec'!$B$3:$M$43,V$2+1,FALSE),VLOOKUP($A75,'Oper hydro SiteSpec'!$B$3:$L$43,V$2,FALSE)) -> 0.3014736405 | W75: =W74 -> 50 | X75: 2018 | Z75: 220 | AA75: Kalungwishi hydro | AB75: =IF(AB$5=$L75,$F75,IF(AB$5>$L75,MIN($F75,$E75-SUM(AA75:$AB75)),0)) -> 0 | AC75: =IF(AC$5=$L75,$F75,IF(AC$5>$L75,MIN($F75,$E75-SUM(AB75:$AB75)),0)) -> 0 | AD75: =IF(AD$5=$L75,$F75,IF(AD$5>$L75,MIN($F75,$E75-SUM($AB75:AC75)),0)) -> 0 | AE75: =IF(AE$5=$L75,$F75,IF(AE$5>$L75,MIN($F75,$E75-SUM($AB75:AD75)),0)) -> 0 | AF75: =IF(AF$5=$L75,$F75,IF(AF$5>$L75,MIN($F75,$E75-SUM($AB75:AE75)),0)) -> 0 | AG75: =IF(AG$5=$L75,$F75,IF(AG$5>$L75,MIN($F75,$E75-SUM($AB75:AF75)),0)) -> 0 | AH75: =IF(AH$5=$L75,$F75,IF(AH$5>$L75,MIN($F75,$E75-SUM($AB75:AG75)),0)) -> 0 | AI75: =IF(AI$5=$L75,$F75,IF(AI$5>$L75,MIN($F75,$E75-SUM($AB75:AH75)),0)) -> 0 | AJ75: =IF(AJ$5=$L75,$F75,IF(AJ$5>$L75,MIN($F75,$E75-SUM($AB75:AI75)),0)) -> 220 | AK75: =IF(AK$5=$L75,$F75,IF(AK$5>$L75,MIN($F75,$E75-SUM($AB75:AJ75)),0)) -> 0 | AL75: =IF(AL$5=$L75,$F75,IF(AL$5>$L75,MIN($F75,$E75-SUM($AB75:AK75)),0)) -> 0 | AM75: =IF(AM$5=$L75,$F75,IF(AM$5>$L75,MIN($F75,$E75-SUM($AB75:AL75)),0)) -> 0 | AN75: =IF(AN$5=$L75,$F75,IF(AN$5>$L75,MIN($F75,$E75-SUM($AB75:AM75)),0)) -> 0
A76: Kabompo | B76: EPHYDNUkab | C76: H | D76: yes | E76: 40 | F76: 40 | G76: ?? | H76: 4000 | I76: 4000 | J76: 4000 | K76: 4000 | L76: 2015 | R76: =R75 -> 1.51 | S76: =S75 -> 8.72 | T76: =T75 -> 0.05 | U76: =U75 -> 0.02 | V76: =V75 -> 0.3014736405 | W76: =W75 -> 50 | Y76: 0 0 0 0 0 40 0 0 0 0 0 0 0 | AA76: Kabompo | AB76: =IF(AB$5=$L76,$F76,IF(AB$5>$L76,MIN($F76,$E76-SUM(AA76:$AB76)),0)) -> 0 | AC76: =IF(AC$5=$L76,$F76,IF(AC$5>$L76,MIN($F76,$E76-SUM(AB76:$AB76)),0)) -> 0 | AD76: =IF(AD$5=$L76,$F76,IF(AD$5>$L76,MIN($F76,$E76-SUM($AB76:AC76)),0)) -> 0 | AE76: =IF(AE$5=$L76,$F76,IF(AE$5>$L76,MIN($F76,$E76-SUM($AB76:AD76)),0)) -> 0 | AF76: =IF(AF$5=$L76,$F76,IF(AF$5>$L76,MIN($F76,$E76-SUM($AB76:AE76)),0)) -> 0 | AG76: =IF(AG$5=$L76,$F76,IF(AG$5>$L76,MIN($F76,$E76-SUM($AB76:AF76)),0)) -> 40 | AH76: =IF(AH$5=$L76,$F76,IF(AH$5>$L76,MIN($F76,$E76-SUM($AB76:AG76)),0)) -> 0 | AI76: =IF(AI$5=$L76,$F76,IF(AI$5>$L76,MIN($F76,$E76-SUM($AB76:AH76)),0)) -> 0 | AJ76: =IF(AJ$5=$L76,$F76,IF(AJ$5>$L76,MIN($F76,$E76-SUM($AB76:AI76)),0)) -> 0 | AK76: =IF(AK$5=$L76,$F76,IF(AK$5>$L76,MIN($F76,$E76-SUM($AB76:AJ76)),0)) -> 0 | AL76: =IF(AL$5=$L76,$F76,IF(AL$5>$L76,MIN($F76,$E76-SUM($AB76:AK76)),0)) -> 0 | AM76: =IF(AM$5=$L76,$F76,IF(AM$5>$L76,MIN($F76,$E76-SUM($AB76:AL76)),0)) -> 0 | AN76: =IF(AN$5=$L76,$F76,IF(AN$5>$L76,MIN($F76,$E76-SUM($AB76:AM76)),0)) -> 0
A77: Zimbabwe | D77: =SUMIF($C78:$C83,"H",$E78:$E83) -> 1100 | E77: =SUMIF($C78:$C83,"T",$E78:$E83) -> 2300 | V77: =SUMPRODUCT(--(C78:C82="H"),E78:E82,V78:V82)*8.76 -> 5710 | AA77: Zimbabwe
A78: ='Oper therm SiteSpec'!B28 -> Hwange 7-8 coal | B78: EPCOANUSChwa | C78: T | E78: 600 | F78: 300 | G78: 500 | H78: 833 | I78: Supercritical Coal | J78: =VLOOKUP(I78,GenericSourceData!$A$42:$AC$60,29,FALSE) -> 1.1810985 | K78: 983.8550505 | L78: 2016 | M78: =VLOOKUP($A78,'Oper therm SiteSpec'!$B$3:$O$30,M$1,FALSE) -> 9730 | N78: =1/(M78/3600) -> 0.3699897225 | O78: =VLOOKUP($A78,'Oper therm SiteSpec'!$B$3:$O$30,O$1,FALSE) -> Coal | P78: =VLOOKUP($A78,'Oper therm SiteSpec'!$B$3:$O$30,P$1,FALSE) -> 0 | Q78: =VLOOKUP($A78,'Oper therm SiteSpec'!$B$3:$O$30,Q$1,FALSE) -> 0.64 | R78: =VLOOKUP($A78,'Oper therm SiteSpec'!$B$3:$O$30,R$1,FALSE) -> 0.96 | S78: =VLOOKUP($A78,'Oper therm SiteSpec'!$B$3:$O$30,S$1,FALSE) -> 19.97 | T78: =VLOOKUP($A78,'Oper therm SiteSpec'!$B$3:$O$30,T$1,FALSE) -> 0.072 | U78: =VLOOKUP($A78,'Oper therm SiteSpec'!$B$3:$O$30,U$1,FALSE) -> 0.0517 | V78: =(1-T78)*(1-U78) -> 0.8800224 | W78: =VLOOKUP(I78,GenericSourceData!$A$42:$AD$60,30,FALSE) -> 35 | X78: =IF(D78<>"yes",L78,"") -> 2016 | Y78: =IF(D78="yes",AB78&" "&AC78&" "&AD78&" "&AE78&" "&AF78&" "&AG78&" "&AH78&" "&AI78&" "&AJ78&" "&AK78&" "&AL78&" "&AM78&" "&AN78,"") ->  | Z78: =IF(D78<>"yes",F78,"") -> 300 | AA78: Hwange 7-8 coal | AB78: =IF(AB$5=$L78,$F78,IF(AB$5>$L78,MIN($F78,$E78-SUM(AA78:$AB78)),0)) -> 0 | AC78: =IF(AC$5=$L78,$F78,IF(AC$5>$L78,MIN($F78,$E78-SUM(AB78:$AB78)),0)) -> 0 | AD78: =IF(AD$5=$L78,$F78,IF(AD$5>$L78,MIN($F78,$E78-SUM($AB78:AC78)),0)) -> 0 | AE78: =IF(AE$5=$L78,$F78,IF(AE$5>$L78,MIN($F78,$E78-SUM($AB78:AD78)),0)) -> 0 | AF78: =IF(AF$5=$L78,$F78,IF(AF$5>$L78,MIN($F78,$E78-SUM($AB78:AE78)),0)) -> 0 | AG78: =IF(AG$5=$L78,$F78,IF(AG$5>$L78,MIN($F78,$E78-SUM($AB78:AF78)),0)) -> 0 | AH78: =IF(AH$5=$L78,$F78,IF(AH$5>$L78,MIN($F78,$E78-SUM($AB78:AG78)),0)) -> 300 | AI78: =IF(AI$5=$L78,$F78,IF(AI$5>$L78,MIN($F78,$E78-SUM($AB78:AH78)),0)) -> 300 | AJ78: =IF(AJ$5=$L78,$F78,IF(AJ$5>$L78,MIN($F78,$E78-SUM($AB78:AI78)),0)) -> 0 | AK78: =IF(AK$5=$L78,$F78,IF(AK$5>$L78,MIN($F78,$E78-SUM($AB78:AJ78)),0)) -> 0 | AL78: =IF(AL$5=$L78,$F78,IF(AL$5>$L78,MIN($F78,$E78-SUM($AB78:AK78)),0)) -> 0 | AM78: =IF(AM$5=$L78,$F78,IF(AM$5>$L78,MIN($F78,$E78-SUM($AB78:AL78)),0)) -> 0 | AN78: =IF(AN$5=$L78,$F78,IF(AN$5>$L78,MIN($F78,$E78-SUM($AB78:AM78)),0)) -> 0
A79: ='Oper therm SiteSpec'!B30 -> Gokwe North coal | B79: EPCOANUSCgon | C79: T | E79: 1400 | F79: 700 | G79: 1357 | H79: 969 | I79: Supercritical Coal | J79: =VLOOKUP(I79,GenericSourceData!$A$42:$AC$60,29,FALSE) -> 1.1810985 | K79: 1144.484447 | L79: 2017 | M79: =VLOOKUP($A79,'Oper therm SiteSpec'!$B$3:$O$30,M$1,FALSE) -> 9730 | N79: =1/(M79/3600) -> 0.3699897225 | O79: =VLOOKUP($A79,'Oper therm SiteSpec'!$B$3:$O$30,O$1,FALSE) -> Coal | P79: =VLOOKUP($A79,'Oper therm SiteSpec'!$B$3:$O$30,P$1,FALSE) -> 0 | Q79: =VLOOKUP($A79,'Oper therm SiteSpec'!$B$3:$O$30,Q$1,FALSE) -> 0.64 | R79: =VLOOKUP($A79,'Oper therm SiteSpec'!$B$3:$O$30,R$1,FALSE) -> 0.96 | S79: =VLOOKUP($A79,'Oper therm SiteSpec'!$B$3:$O$30,S$1,FALSE) -> 19.97 | T79: =VLOOKUP($A79,'Oper therm SiteSpec'!$B$3:$O$30,T$1,FALSE) -> 0.072 | U79: =VLOOKUP($A79,'Oper therm SiteSpec'!$B$3:$O$30,U$1,FALSE) -> 0.0517 | V79: =(1-T79)*(1-U79) -> 0.8800224 | W79: =VLOOKUP(I79,GenericSourceData!$A$42:$AD$60,30,FALSE) -> 35 | X79: =IF(D79<>"yes",L79,"") -> 2017 | Y79: =IF(D79="yes",AB79&" "&AC79&" "&AD79&" "&AE79&" "&AF79&" "&AG79&" "&AH79&" "&AI79&" "&AJ79&" "&AK79&" "&AL79&" "&AM79&" "&AN79,"") ->  | Z79: =IF(D79<>"yes",F79,"") -> 700 | AA79: Gokwe North coal | AB79: =IF(AB$5=$L79,$F79,IF(AB$5>$L79,MIN($F79,$E79-SUM(AA79:$AB79)),0)) -> 0 | AC79: =IF(AC$5=$L79,$F79,IF(AC$5>$L79,MIN($F79,$E79-SUM(AB79:$AB79)),0)) -> 0 | AD79: =IF(AD$5=$L79,$F79,IF(AD$5>$L79,MIN($F79,$E79-SUM($AB79:AC79)),0)) -> 0 | AE79: =IF(AE$5=$L79,$F79,IF(AE$5>$L79,MIN($F79,$E79-SUM($AB79:AD79)),0)) -> 0 | AF79: =IF(AF$5=$L79,$F79,IF(AF$5>$L79,MIN($F79,$E79-SUM($AB79:AE79)),0)) -> 0 | AG79: =IF(AG$5=$L79,$F79,IF(AG$5>$L79,MIN($F79,$E79-SUM($AB79:AF79)),0)) -> 0 | AH79: =IF(AH$5=$L79,$F79,IF(AH$5>$L79,MIN($F79,$E79-SUM($AB79:AG79)),0)) -> 0 | AI79: =IF(AI$5=$L79,$F79,IF(AI$5>$L79,MIN($F79,$E79-SUM($AB79:AH79)),0)) -> 700 | AJ79: =IF(AJ$5=$L79,$F79,IF(AJ$5>$L79,MIN($F79,$E79-SUM($AB79:AI79)),0)) -> 700 | AK79: =IF(AK$5=$L79,$F79,IF(AK$5>$L79,MIN($F79,$E79-SUM($AB79:AJ79)),0)) -> 0 | AL79: =IF(AL$5=$L79,$F79,IF(AL$5>$L79,MIN($F79,$E79-SUM($AB79:AK79)),0)) -> 0 | AM79: =IF(AM$5=$L79,$F79,IF(AM$5>$L79,MIN($F79,$E79-SUM($AB79:AL79)),0)) -> 0 | AN79: =IF(AN$5=$L79,$F79,IF(AN$5>$L79,MIN($F79,$E79-SUM($AB79:AM79)),0)) -> 0
A80: ='Oper therm SiteSpec'!B29 -> Lupane gas | B80: EPGASNUCClup | C80: T | E80: 300 | F80: 300 | G80: 368 | H80: 1227 | I80: Combined Cycle Gas Turbine | J80: =VLOOKUP(I80,GenericSourceData!$A$42:$AC$60,29,FALSE) -> 1.099155 | K80: 1348.663185 | L80: 2017 | M80: =VLOOKUP($A80,'Oper therm SiteSpec'!$B$3:$O$30,M$1,FALSE) -> 6792 | N80: =1/(M80/3600) -> 0.5300353357 | O80: =VLOOKUP($A80,'Oper therm SiteSpec'!$B$3:$O$30,O$1,FALSE) -> Methane | P80: =VLOOKUP($A80,'Oper therm SiteSpec'!$B$3:$O$30,P$1,FALSE) -> 0 | Q80: =VLOOKUP($A80,'Oper therm SiteSpec'!$B$3:$O$30,Q$1,FALSE) -> 2 | R80: =VLOOKUP($A80,'Oper therm SiteSpec'!$B$3:$O$30,R$1,FALSE) -> 1.45 | S80: =VLOOKUP($A80,'Oper therm SiteSpec'!$B$3:$O$30,S$1,FALSE) -> 24.01 | T80: =VLOOKUP($A80,'Oper therm SiteSpec'!$B$3:$O$30,T$1,FALSE) -> 0.0873 | U80: =VLOOKUP($A80,'Oper therm SiteSpec'!$B$3:$O$30,U$1,FALSE) -> 0.0646 | V80: =(1-T80)*(1-U80) -> 0.85373958 | W80: =VLOOKUP(I80,GenericSourceData!$A$42:$AD$60,30,FALSE) -> 25 | X80: =IF(D80<>"yes",L80,"") -> 2017 | Y80: =IF(D80="yes",AB80&" "&AC80&" "&AD80&" "&AE80&" "&AF80&" "&AG80&" "&AH80&" "&AI80&" "&AJ80&" "&AK80&" "&AL80&" "&AM80&" "&AN80,"") ->  | Z80: =IF(D80<>"yes",F80,"") -> 300 | AA80: Lupane gas | AB80: =IF(AB$5=$L80,$F80,IF(AB$5>$L80,MIN($F80,$E80-SUM(AA80:$AB80)),0)) -> 0 | AC80: =IF(AC$5=$L80,$F80,IF(AC$5>$L80,MIN($F80,$E80-SUM(AB80:$AB80)),0)) -> 0 | AD80: =IF(AD$5=$L80,$F80,IF(AD$5>$L80,MIN($F80,$E80-SUM($AB80:AC80)),0)) -> 0 | AE80: =IF(AE$5=$L80,$F80,IF(AE$5>$L80,MIN($F80,$E80-SUM($AB80:AD80)),0)) -> 0 | AF80: =IF(AF$5=$L80,$F80,IF(AF$5>$L80,MIN($F80,$E80-SUM($AB80:AE80)),0)) -> 0 | AG80: =IF(AG$5=$L80,$F80,IF(AG$5>$L80,MIN($F80,$E80-SUM($AB80:AF80)),0)) -> 0 | AH80: =IF(AH$5=$L80,$F80,IF(AH$5>$L80,MIN($F80,$E80-SUM($AB80:AG80)),0)) -> 0 | AI80: =IF(AI$5=$L80,$F80,IF(AI$5>$L80,MIN($F80,$E80-SUM($AB80:AH80)),0)) -> 300 | AJ80: =IF(AJ$5=$L80,$F80,IF(AJ$5>$L80,MIN($F80,$E80-SUM($AB80:AI80)),0)) -> 0 | AK80: =IF(AK$5=$L80,$F80,IF(AK$5>$L80,MIN($F80,$E80-SUM($AB80:AJ80)),0)) -> 0 | AL80: =IF(AL$5=$L80,$F80,IF(AL$5>$L80,MIN($F80,$E80-SUM($AB80:AK80)),0)) -> 0 | AM80: =IF(AM$5=$L80,$F80,IF(AM$5>$L80,MIN($F80,$E80-SUM($AB80:AL80)),0)) -> 0 | AN80: =IF(AN$5=$L80,$F80,IF(AN$5>$L80,MIN($F80,$E80-SUM($AB80:AM80)),0)) -> 0
A81: ='Oper hydro SiteSpec'!B42 -> Kariba South Extension hydro | B81: EPHYDNUkse | C81: H | D81: Yes | E81: 300 | F81: 300 | G81: 200 | H81: 667 | I81: Hydro | J81: =VLOOKUP(I81,GenericSourceData!$A$42:$AC$60,29,FALSE) -> 1 | K81: 667 | L81: 2016 | R81: =VLOOKUP($A81,'Oper hydro SiteSpec'!$B$3:$L$43,R$2,FALSE) -> 1.51 | S81: =VLOOKUP($A81,'Oper hydro SiteSpec'!$B$3:$L$43,S$2,FALSE) -> 8.72 | T81: =VLOOKUP($A81,'Oper hydro SiteSpec'!$B$3:$L$43,T$2,FALSE) -> 0.05 | U81: =VLOOKUP($A81,'Oper hydro SiteSpec'!$B$3:$L$43,U$2,FALSE) -> 0.02 | V81: =IF(dryear,VLOOKUP($A81,'Oper hydro SiteSpec'!$B$3:$M$43,V$2+1,FALSE),VLOOKUP($A81,'Oper hydro SiteSpec'!$B$3:$L$43,V$2,FALSE)) -> 0.3531202435 | W81: =VLOOKUP(I81,GenericSourceData!$A$42:$AD$60,30,FALSE) -> 50 | X81: =IF(D81<>"yes",L81,"") ->  | Y81: =IF(D81="yes",AB81&" "&AC81&" "&AD81&" "&AE81&" "&AF81&" "&AG81&" "&AH81&" "&AI81&" "&AJ81&" "&AK81&" "&AL81&" "&AM81&" "&AN81,"") -> 0 0 0 0 0 0 300 0 0 0 0 0 0 | Z81: =IF(D81<>"yes",F81,"") ->  | AA81: Kariba South Extension hydro | AB81: =IF(AB$5=$L81,$F81,IF(AB$5>$L81,MIN($F81,$E81-SUM(AA81:$AB81)),0)) -> 0 | AC81: =IF(AC$5=$L81,$F81,IF(AC$5>$L81,MIN($F81,$E81-SUM(AB81:$AB81)),0)) -> 0 | AD81: =IF(AD$5=$L81,$F81,IF(AD$5>$L81,MIN($F81,$E81-SUM($AB81:AC81)),0)) -> 0 | AE81: =IF(AE$5=$L81,$F81,IF(AE$5>$L81,MIN($F81,$E81-SUM($AB81:AD81)),0)) -> 0 | AF81: =IF(AF$5=$L81,$F81,IF(AF$5>$L81,MIN($F81,$E81-SUM($AB81:AE81)),0)) -> 0 | AG81: =IF(AG$5=$L81,$F81,IF(AG$5>$L81,MIN($F81,$E81-SUM($AB81:AF81)),0)) -> 0 | AH81: =IF(AH$5=$L81,$F81,IF(AH$5>$L81,MIN($F81,$E81-SUM($AB81:AG81)),0)) -> 300 | AI81: =IF(AI$5=$L81,$F81,IF(AI$5>$L81,MIN($F81,$E81-SUM($AB81:AH81)),0)) -> 0 | AJ81: =IF(AJ$5=$L81,$F81,IF(AJ$5>$L81,MIN($F81,$E81-SUM($AB81:AI81)),0)) -> 0 | AK81: =IF(AK$5=$L81,$F81,IF(AK$5>$L81,MIN($F81,$E81-SUM($AB81:AJ81)),0)) -> 0 | AL81: =IF(AL$5=$L81,$F81,IF(AL$5>$L81,MIN($F81,$E81-SUM($AB81:AK81)),0)) -> 0 | AM81: =IF(AM$5=$L81,$F81,IF(AM$5>$L81,MIN($F81,$E81-SUM($AB81:AL81)),0)) -> 0 | AN81: =IF(AN$5=$L81,$F81,IF(AN$5>$L81,MIN($F81,$E81-SUM($AB81:AM81)),0)) -> 0
A82: ='Oper hydro SiteSpec'!B43 -> Batoka Gorge hydro | B82: EPHYDNUbat | C82: H | E82: 800 | F82: 800 | H82: 1563 | I82: Hydro | J82: =VLOOKUP(I82,GenericSourceData!$A$42:$AC$60,29,FALSE) -> 1 | K82: 1563 | L82: 2022 | R82: =VLOOKUP($A82,'Oper hydro SiteSpec'!$B$3:$L$43,R$2,FALSE) -> 1.51 | S82: =VLOOKUP($A82,'Oper hydro SiteSpec'!$B$3:$L$43,S$2,FALSE) -> 8.72 | T82: =VLOOKUP($A82,'Oper hydro SiteSpec'!$B$3:$L$43,T$2,FALSE) -> 0.05 | U82: =VLOOKUP($A82,'Oper hydro SiteSpec'!$B$3:$L$43,U$2,FALSE) -> 0.02 | V82: =IF(dryear,VLOOKUP($A82,'Oper hydro SiteSpec'!$B$3:$M$43,V$2+1,FALSE),VLOOKUP($A82,'Oper hydro SiteSpec'!$B$3:$L$43,V$2,FALSE)) -> 0.6823630137 | W82: =VLOOKUP(I82,GenericSourceData!$A$42:$AD$60,30,FALSE) -> 50 | X82: =IF(D82<>"yes",L82,"") -> 2022 | Y82: =IF(D82="yes",AB82&" "&AC82&" "&AD82&" "&AE82&" "&AF82&" "&AG82&" "&AH82&" "&AI82&" "&AJ82&" "&AK82&" "&AL82&" "&AM82&" "&AN82,"") ->  | Z82: =IF(D82<>"yes",F82,"") -> 800 | AA82: Batoka Gorge hydro | AB82: =IF(AB$5=$L82,$F82,IF(AB$5>$L82,MIN($F82,$E82-SUM(AA82:$AB82)),0)) -> 0 | AC82: =IF(AC$5=$L82,$F82,IF(AC$5>$L82,MIN($F82,$E82-SUM(AB82:$AB82)),0)) -> 0 | AD82: =IF(AD$5=$L82,$F82,IF(AD$5>$L82,MIN($F82,$E82-SUM($AB82:AC82)),0)) -> 0 | AE82: =IF(AE$5=$L82,$F82,IF(AE$5>$L82,MIN($F82,$E82-SUM($AB82:AD82)),0)) -> 0 | AF82: =IF(AF$5=$L82,$F82,IF(AF$5>$L82,MIN($F82,$E82-SUM($AB82:AE82)),0)) -> 0 | AG82: =IF(AG$5=$L82,$F82,IF(AG$5>$L82,MIN($F82,$E82-SUM($AB82:AF82)),0)) -> 0 | AH82: =IF(AH$5=$L82,$F82,IF(AH$5>$L82,MIN($F82,$E82-SUM($AB82:AG82)),0)) -> 0 | AI82: =IF(AI$5=$L82,$F82,IF(AI$5>$L82,MIN($F82,$E82-SUM($AB82:AH82)),0)) -> 0 | AJ82: =IF(AJ$5=$L82,$F82,IF(AJ$5>$L82,MIN($F82,$E82-SUM($AB82:AI82)),0)) -> 0 | AK82: =IF(AK$5=$L82,$F82,IF(AK$5>$L82,MIN($F82,$E82-SUM($AB82:AJ82)),0)) -> 0 | AL82: =IF(AL$5=$L82,$F82,IF(AL$5>$L82,MIN($F82,$E82-SUM($AB82:AK82)),0)) -> 0 | AM82: =IF(AM$5=$L82,$F82,IF(AM$5>$L82,MIN($F82,$E82-SUM($AB82:AL82)),0)) -> 0 | AN82: =IF(AN$5=$L82,$F82,IF(AN$5>$L82,MIN($F82,$E82-SUM($AB82:AM82)),0)) -> 800
L84: Date updated from alternative source
L85: No updates found for dates in above reports

Sheet MSG_SiteSpecific
A1: 1 | B1: =A1+1 -> 2 | C1: =B1+1 -> 3 | D1: 4 | E1: 5 | F1: 6 | G1: 7 | H1: 8 | I1: 9 | J1: 10 | K1: 11 | L1: 12 | M1: 13 | N1: 14 | O1: 15 | P1: 16 | Q1: 17 | R1: =Q1+1 -> 18 | S1: 19 | T1: 20 | U1: 21 | V1: 22 | W1: 23 | X1: 24 | Z1: 2010 | AA1: 2011 | AB1: 2012 | AC1: 2013 | AD1: 2014 | AE1: 2015 | AF1: 2016 | AG1: 2017 | AH1: 2018 | AI1: 2019 | AJ1: 2020
A2: column number | G2: =SiteSpecific_data!N3 -> 13 | H2: =SiteSpecific_data!R3 -> 17 | I2: =SiteSpecific_data!U3 -> 20 | J2: =SiteSpecific_data!X3 -> 23 | K2: =SiteSpecific_data!V3 -> 21 | L2: =SiteSpecific_data!W3 -> 22 | M2: =SiteSpecific_data!K3 -> 10 | N2: =SiteSpecific_data!S3 -> 18 | O2: =SiteSpecific_data!E3 -> 4 | P2: =SiteSpecific_data!Z3 -> 25 | Q2: =SiteSpecific_data!Y3 -> 24
A3: English | B3: MESSAGE Name | C3: Main Input | D3: Main Output | E3: name | F3: Main Input | G3: Main Output (switch c) | H3: var costs (switch c) | I3: plant factor | J3: First year | K3: operation time | L3: Plant life | M3: Investment Costs | N3: Fixed Costs | O3: bdi(up) | P3: bdc(up) | Q3: bdc (fx)
A4: French | B4: Nom MESSAGE | C4: intrant principal | D4: extrant principal | E4: nom | F4: =C4 -> intrant principal | G4: extrant principal (ast: c) | H4: couts var | I4: facteur d'installation | J4: premiere annee | K4: temps de fonctionnement | L4: duree de vie | M4: cout d'investissement | N4: couts fixes | O4: bdi(up) | P4: bdc(up) | Q4: =Q3 -> bdc (fx)
A5: Monetary conversion | B5: 1 | R5: wind firm capacity | S5: 0.25
R6: solar firm capacity | S6: 0.2 | W6: Data for results
B7: =VLOOKUP(A20,NameConvsw!$B$58:$E$70,4,FALSE) -> Angola | C7: =OFFSET(C$3,lang,0) -> Main Input | D7: Main Output | E7: name | F7: Main Input | G7: Main Output (switch c) | H7: var costs (switch c) | I7: plant factor | J7: First year | K7: operation time | L7: Plant life | M7: Investment Costs | N7: Fixed Costs | O7: bdi(up) | P7: bdc(up) | Q7: bdc (fx) | R7: Firm capacity | S7: Renewable? | T7: Loss Factor | W7: fuel costs | X7: emission factor
B8: =OFFSET(B$3,lang,0) -> MESSAGE Name | E8: alt | F8: Value | G8: Value | H8: US$'00/kWyr | K8: share | M8: US$'00/kW | N8: US$'00/kW/yr | O8: MW | P8: MW | Q8: MW | U8: Input Fuel | V8: Output Fuel | W8: $/kWyr | X8: ton/kWyr
A9: ANGEPODSNCOCben | B9: EPODSNCOCben | C9: =VLOOKUP(MID(B9,3,3),NameConvs!$B$3:$C$15,2,FALSE)&"/Primary" -> Diesel/Primary | D9: Electricity/Secondary | E9: i | F9: 1 | G9: =VLOOKUP($B9,SiteSpecific_data!$B$7:$Z$113,G$2,FALSE) -> 0.33000275 | H9: =VLOOKUP($B9,SiteSpecific_data!$B$7:$Z$113,H$2,FALSE)*8.76*CurAdj -> 39.24094136 | I9: =1-VLOOKUP($B9,SiteSpecific_data!$B$7:$Z$113,I$2,FALSE) -> 0.9269 | J9: =VLOOKUP($B9,SiteSpecific_data!$B$7:$Z$113,J$2,FALSE) ->  | K9: =VLOOKUP($B9,SiteSpecific_data!$B$7:$Z$113,K$2,FALSE)/I9 -> 0.9292 | L9: =VLOOKUP($B9,SiteSpecific_data!$B$7:$Z$113,L$2,FALSE) -> 25 | M9: =VLOOKUP($B9,SiteSpecific_data!$B$7:$Z$113,M$2,FALSE)*CurAdj -> 774.1498668 | N9: =VLOOKUP($B9,SiteSpecific_data!$B$7:$Z$113,N$2,FALSE)*CurAdj -> 20.36163416 | O9: =IF(VLOOKUP($B9,SiteSpecific_data!$B$7:$Z$113,SiteSpecific_data!D$3,FALSE)="Yes","",VLOOKUP($B9,SiteSpecific_data!$B$7:$Z$113,O$2,FALSE)) ->  | P9: =VLOOKUP($B9,SiteSpecific_data!$B$7:$Z$113,P$2,FALSE) ->  | Q9: =VLOOKUP($B9,SiteSpecific_data!$B$7:$Z$113,Q$2,FALSE) -> 83 0 0 0 0 0 0 0 0 0 0 0 0 | R9: =IF(MID(B9,3,1)="W",$S$5,IF(MID(B9,3,1)="S",$S$6,1)) -> 1 | S9: =IF(OR(MID(B9,3,1)="W",MID(B9,3,1)="S",MID(B9,3,1)="H",MID(B9,3,1)="B",MID(B9,3,2)="GE"),1,0) -> 0 | T9: =IF(V9="e-t",1,SUMIF(NameConvsw!$B$58:$B$70,LEFT(A9,3),NameConvsw!$H$58:$H$70)) -> 1 | U9: =IF(C9="","",VLOOKUP(C9,EnergyForms,2,FALSE)) -> o-p | V9: =IF(ISNA(VLOOKUP(D9&"/"&LEFT(A9,3),EnergyForms2,2,FALSE)),VLOOKUP(D9,EnergyForms,2,FALSE),VLOOKUP(D9&"/"&LEFT(A9,3),EnergyForms2,2,FALSE)) -> e-A | W9: =SUMIF(MSG_Fueldata!$A$2:$A$209,LEFT($A9,3)&MID(B9,3,3),MSG_Fueldata!$E$2:$E$209)/$G9 -> 0 | X9: =SUMIF(MSG_Fueldata!$A$2:$A$209,LEFT($A9,3)&MID(B9,3,3),MSG_Fueldata!$F$2:$F$209)/$G9 -> 7.078339559 | Y9: =Z9&" "&AA9&" "&AB9&" "&AC9&" "&AD9&" "&AE9&" "&AF9&" "&AG9&" "&AH9&" "&AI9&" "&AJ9 -> 0 0 0 0 0 0 0 0 0 0 0 | Z9: =IF(Z$1=$J9,$O9,0) -> 0 | AA9: =IF(AA$1=$J9,$O9,0) -> 0 | AB9: 0 | AC9: 0 | AD9: 0 | AE9: 0 | AF9: 0 | AG9: 0 | AH9: 0 | AI9: 0 | AJ9: 0
A10: ANGEPODSNUOCt40 | B10: EPODSNUOCt40 | C10: =VLOOKUP(MID(B10,3,3),NameConvs!$B$3:$C$15,2,FALSE)&"/Primary" -> Diesel/Primary | D10: Electricity/Secondary | E10: j | F10: 1 | G10: =VLOOKUP($B10,SiteSpecific_data!$B$7:$Z$113,G$2,FALSE) -> 0.33000275 | H10: =VLOOKUP($B10,SiteSpecific_data!$B$7:$Z$113,H$2,FALSE)*8.76*CurAdj -> 39.24094136 | I10: =1-VLOOKUP($B10,SiteSpecific_data!$B$7:$Z$113,I$2,FALSE) -> 0.9269 | J10: =VLOOKUP($B10,SiteSpecific_data!$B$7:$Z$113,J$2,FALSE) -> 2010 | K10: =VLOOKUP($B10,SiteSpecific_data!$B$7:$Z$113,K$2,FALSE)/I10 -> 0.9292 | L10: =VLOOKUP($B10,SiteSpecific_data!$B$7:$Z$113,L$2,FALSE) -> 25 | M10: =VLOOKUP($B10,SiteSpecific_data!$B$7:$Z$113,M$2,FALSE)*CurAdj -> 706.7844718 | N10: =VLOOKUP($B10,SiteSpecific_data!$B$7:$Z$113,N$2,FALSE)*CurAdj -> 20.36163416 | O10: =IF(VLOOKUP($B10,SiteSpecific_data!$B$7:$Z$113,SiteSpecific_data!D$3,FALSE)="Yes","",VLOOKUP($B10,SiteSpecific_data!$B$7:$Z$113,O$2,FALSE)) -> 80 | P10: =VLOOKUP($B10,SiteSpecific_data!$B$7:$Z$113,P$2,FALSE) -> 80 | Q10: =VLOOKUP($B10,SiteSpecific_data!$B$7:$Z$113,Q$2,FALSE) ->  | R10: 1 | S10: 0 | T10: =IF(V10="e-t",1,SUMIF(NameConvsw!$B$58:$B$70,LEFT(A10,3),NameConvsw!$H$58:$H$70)) -> 1 | U10: o-p | V10: =IF(ISNA(VLOOKUP(D10&"/"&LEFT(A10,3),EnergyForms2,2,FALSE)),VLOOKUP(D10,EnergyForms,2,FALSE),VLOOKUP(D10&"/"&LEFT(A10,3),EnergyForms2,2,FALSE)) -> e-A | W10: =SUMIF(MSG_Fueldata!$A$2:$A$125,LEFT($A10,3)&$C10,MSG_Fueldata!$E$2:$E$124)/$G10 -> 0 | X10: =SUMIF(MSG_Fueldata!$A$2:$A$125,LEFT($A10,3)&$C10,MSG_Fueldata!$F$2:$F$124)/$G10 -> 0 | Y10: =Z10&" "&AA10&" "&AB10&" "&AC10&" "&AD10&" "&AE10&" "&AF10&" "&AG10&" "&AH10&" "&AI10&" "&AJ10 -> 80 0 0 0 0 0 0 0 0 0 0 | Z10: 80 | AA10: 0 | AB10: 0 | AC10: 0 | AD10: 0 | AE10: 0 | AF10: 0 | AG10: 0 | AH10: 0 | AI10: 0 | AJ10: 0
